Workbook

Sheet Control
A2: State Inventory Tool - Emissions and Sinks From Land Use, Land-Use Change, and Forestry Version 2025.1
A3: This module provides default activity data, emission factors, and other relevant metrics for 1990-2022. Emission factors for 2023-2025 are proxied.
A6: 1. Choose a State
A7: This is very important - it selects the correct default variables for your state.
A10: 2. Forest Carbon Flux (Forest Land Remaining Forest Land, Land Converted to Forest Land, and Forest Land Converted to Land)
A11: TRUE
A15: 3.- 6. Enter emission factors and proceed to the corresponding worksheet to enter activity data for the following:
A18: 3. C Storage in Urban Trees
B19: Carbon Sequestration Factor | D19: Default Value
B20: ="metric ton C/hectare/year in "&StateName -> metric ton C/hectare/year in Select a State . . . | D20: =IFERROR(VLOOKUP(StateID,'Urban Forests'!$B$65:$H$116,7,FALSE),"Select a state") -> Select a state
A22: 4. N2O from Settlement Soils
B23: Emission Factor | D23: Default Value | F23: Value Used
B24: Direct N2O Emission Factor for Managed Soils | D24: =SettlementEF -> 0.01
A27: 5. Non-CO2 From Forest Fires
B28: Emission Factors | D28: Default Value | F28: Value Used
B29: Savanna, g CH4/kg dry matter combusted | D29: ='Burning Data'!L6 -> 4.6
B30: Savanna, g N2O/kg dry matter combusted | D30: ='Burning Data'!M6 -> 0.12
B31: Forests, g CH4/kg dry matter combusted | D31: ='Burning Data'!L7 -> 8.1
B32: Forests, g N2O/kg dry matter combusted | D32: ='Burning Data'!M7 -> 0.11
B34: Combustion Efficiency by Vegetation Type | D34: Default Value | F34: Value Used
B35: Primary tropical forests | D35: ='Burning Data'!I6 -> 0.36
B36: Secondary tropical forests | D36: ='Burning Data'!I7 -> 0.55
B37: Tertiary tropical forests | D37: ='Burning Data'!I8 -> 0.59
B38: Boreal forest | D38: ='Burning Data'!I9 -> 0.34
B39: Eucalypt forests | D39: ='Burning Data'!I10 -> 0.63
B40: Other temperate forests | D40: ='Burning Data'!I11 -> 0.45
B41: Shrublands | D41: ='Burning Data'!I12 -> 0.72
B42: Savanna woodlands (early dry season burns) | D42: ='Burning Data'!I13 -> 0.4
B43: Savanna woodlands (mid/late season burns) | D43: ='Burning Data'!I14 -> 0.74
B44: Savanna woodlands (early dry season burns) | D44: ='Burning Data'!I15 -> 0.74
B45: Savanna woodlands (mid/late season burns) | D45: ='Burning Data'!I16 -> 0.77
B47: Average Biomass Density (kg d.m. / ha) | D47: Default Value | F47: Value Used
B48: =StateName -> Select a State . . . | D48: =IFERROR(VLOOKUP(StateID,'Burning Data'!$E$6:$F$56,2,FALSE),"Select a state") -> Select a state
A50: 6. Carbon Storage in Landfilled Yard Trimmings and Food Scraps
B51: Since the calculations for this source are complex, the key variables are selected on the Yard Trimmings and Food Scraps sheet.
A54: 7. Agricultural Soil Carbon Flux (in Cropland and Grassland soils)
A55: 1
A56: 8. Additional Emission Sources
A62: 9. Continue to estimate emissions . . .
A69: 10. Export the results for use in the Synthesis Tool.
A76: Constants and/or Factors Used Throughout the Module
A77: The default GWPs used in this module are from the IPCC Fifth Assessment Report (AR5) but can be adjusted in the cells below to reflect other sources.
C78: Default
B79: Methane GWP* | C79: 28
B80: Nitrous Oxide GWP* | C80: 265
B81: N2O/N2 (molecular weight ratio) | C81: =44/28 -> 1.571428571
B82: CO2/C (molecular weight ratio) | C82: =44/12 -> 3.666666667
B83: * As of January 2014, the UNFCCC approved the use of new (AR5) GWPs for GHG Inventories.

Sheet Dataframe (hidden)
A1: Emissions (MMTCO2E) | B1: Category | C1: 1990 | D1: 1991 | E1: 1992 | F1: 1993 | G1: 1994 | H1: 1995 | I1: 1996 | J1: 1997 | K1: 1998 | L1: 1999 | M1: 2000 | N1: 2001 | O1: 2002 | P1: 2003 | Q1: 2004 | R1: 2005 | S1: 2006 | T1: 2007 | U1: 2008 | V1: 2009 | W1: 2010 | X1: 2011 | Y1: 2012 | Z1: 2013 | AA1: 2014 | AB1: 2015 | AC1: 2016 | AD1: 2017 | AE1: 2018 | AF1: 2019 | AG1: 2020 | AH1: 2021 | AI1: 2022 | AJ1: 2023 | AK1: 2024 | AL1: 2025
A2: Net Forest Carbon Flux | B2: ="LULUCF - "&$A$3 -> LULUCF - Forest Land Remaining Forest Land | C2: =Summary!C10 ->  | D2: =Summary!D10 ->  | E2: =Summary!E10 ->  | F2: =Summary!F10 ->  | G2: =Summary!G10 ->  | H2: =Summary!H10 ->  | I2: =Summary!I10 ->  | J2: =Summary!J10 ->  | K2: =Summary!K10 ->  | L2: =Summary!L10 ->  | M2: =Summary!M10 ->  | N2: =Summary!N10 ->  | O2: =Summary!O10 ->  | P2: =Summary!P10 ->  | Q2: =Summary!Q10 ->  | R2: =Summary!R10 ->  | S2: =Summary!S10 ->  | T2: =Summary!T10 ->  | U2: =Summary!U10 ->  | V2: =Summary!V10 ->  | W2: =Summary!W10 ->  | X2: =Summary!X10 ->  | Y2: =Summary!Y10 ->  | Z2: =Summary!Z10 ->  | AA2: =Summary!AA10 ->  | AB2: =Summary!AB10 ->  | AC2: =Summary!AC10 ->  | AD2: =Summary!AD10 ->  | AE2: =Summary!AE10 ->  | AF2: =Summary!AF10 ->  | AG2: =Summary!AG10 ->  | AH2: =Summary!AH10 ->  | AI2: =Summary!AI10 ->  | AJ2: =Summary!AJ10 -> 0 | AK2: =Summary!AK10 -> 0 | AL2: =Summary!AL10 -> 0
A3: Forest Land Remaining Forest Land | B3: ="LULUCF - "&$A$2 -> LULUCF - Net Forest Carbon Flux | C3: =Summary!C19 ->  | D3: =Summary!D19 ->  | E3: =Summary!E19 ->  | F3: =Summary!F19 ->  | G3: =Summary!G19 ->  | H3: =Summary!H19 ->  | I3: =Summary!I19 ->  | J3: =Summary!J19 ->  | K3: =Summary!K19 ->  | L3: =Summary!L19 ->  | M3: =Summary!M19 ->  | N3: =Summary!N19 ->  | O3: =Summary!O19 ->  | P3: =Summary!P19 ->  | Q3: =Summary!Q19 ->  | R3: =Summary!R19 ->  | S3: =Summary!S19 ->  | T3: =Summary!T19 ->  | U3: =Summary!U19 ->  | V3: =Summary!V19 ->  | W3: =Summary!W19 ->  | X3: =Summary!X19 ->  | Y3: =Summary!Y19 ->  | Z3: =Summary!Z19 ->  | AA3: =Summary!AA19 ->  | AB3: =Summary!AB19 ->  | AC3: =Summary!AC19 ->  | AD3: =Summary!AD19 ->  | AE3: =Summary!AE19 ->  | AF3: =Summary!AF19 ->  | AG3: =Summary!AG19 ->  | AH3: =Summary!AH19 ->  | AI3: =Summary!AI19 ->  | AJ3: =Summary!AJ19 -> 0 | AK3: =Summary!AK19 -> 0 | AL3: =Summary!AL19 -> 0
A4: Aboveground Biomass | B4: ="LULUCF - "&$A$3&" - "&A4 -> LULUCF - Forest Land Remaining Forest Land - Aboveground Biomass | C4: =Summary!C20 ->  | D4: =Summary!D20 ->  | E4: =Summary!E20 ->  | F4: =Summary!F20 ->  | G4: =Summary!G20 ->  | H4: =Summary!H20 ->  | I4: =Summary!I20 ->  | J4: =Summary!J20 ->  | K4: =Summary!K20 ->  | L4: =Summary!L20 ->  | M4: =Summary!M20 ->  | N4: =Summary!N20 ->  | O4: =Summary!O20 ->  | P4: =Summary!P20 ->  | Q4: =Summary!Q20 ->  | R4: =Summary!R20 ->  | S4: =Summary!S20 ->  | T4: =Summary!T20 ->  | U4: =Summary!U20 ->  | V4: =Summary!V20 ->  | W4: =Summary!W20 ->  | X4: =Summary!X20 ->  | Y4: =Summary!Y20 ->  | Z4: =Summary!Z20 ->  | AA4: =Summary!AA20 ->  | AB4: =Summary!AB20 ->  | AC4: =Summary!AC20 ->  | AD4: =Summary!AD20 ->  | AE4: =Summary!AE20 ->  | AF4: =Summary!AF20 ->  | AG4: =Summary!AG20 ->  | AH4: =Summary!AH20 ->  | AI4: =Summary!AI20 ->  | AJ4: =Summary!AJ20 -> 0 | AK4: =Summary!AK20 -> 0 | AL4: =Summary!AL20 -> 0
A5: Belowground Biomass | B5: ="LULUCF - "&$A$3&" - "&A5 -> LULUCF - Forest Land Remaining Forest Land - Belowground Biomass | C5: =Summary!C21 ->  | D5: =Summary!D21 ->  | E5: =Summary!E21 ->  | F5: =Summary!F21 ->  | G5: =Summary!G21 ->  | H5: =Summary!H21 ->  | I5: =Summary!I21 ->  | J5: =Summary!J21 ->  | K5: =Summary!K21 ->  | L5: =Summary!L21 ->  | M5: =Summary!M21 ->  | N5: =Summary!N21 ->  | O5: =Summary!O21 ->  | P5: =Summary!P21 ->  | Q5: =Summary!Q21 ->  | R5: =Summary!R21 ->  | S5: =Summary!S21 ->  | T5: =Summary!T21 ->  | U5: =Summary!U21 ->  | V5: =Summary!V21 ->  | W5: =Summary!W21 ->  | X5: =Summary!X21 ->  | Y5: =Summary!Y21 ->  | Z5: =Summary!Z21 ->  | AA5: =Summary!AA21 ->  | AB5: =Summary!AB21 ->  | AC5: =Summary!AC21 ->  | AD5: =Summary!AD21 ->  | AE5: =Summary!AE21 ->  | AF5: =Summary!AF21 ->  | AG5: =Summary!AG21 ->  | AH5: =Summary!AH21 ->  | AI5: =Summary!AI21 ->  | AJ5: =Summary!AJ21 -> 0 | AK5: =Summary!AK21 -> 0 | AL5: =Summary!AL21 -> 0
A6: Dead Wood | B6: LULUCF - Forest Land Remaining Forest Land - Dead Wood | C6: =Summary!C22 ->  | D6: =Summary!D22 ->  | E6: =Summary!E22 ->  | F6: =Summary!F22 ->  | G6: =Summary!G22 ->  | H6: =Summary!H22 ->  | I6: =Summary!I22 ->  | J6: =Summary!J22 ->  | K6: =Summary!K22 ->  | L6: =Summary!L22 ->  | M6: =Summary!M22 ->  | N6: =Summary!N22 ->  | O6: =Summary!O22 ->  | P6: =Summary!P22 ->  | Q6: =Summary!Q22 ->  | R6: =Summary!R22 ->  | S6: =Summary!S22 ->  | T6: =Summary!T22 ->  | U6: =Summary!U22 ->  | V6: =Summary!V22 ->  | W6: =Summary!W22 ->  | X6: =Summary!X22 ->  | Y6: =Summary!Y22 ->  | Z6: =Summary!Z22 ->  | AA6: =Summary!AA22 ->  | AB6: =Summary!AB22 ->  | AC6: =Summary!AC22 ->  | AD6: =Summary!AD22 ->  | AE6: =Summary!AE22 ->  | AF6: =Summary!AF22 ->  | AG6: =Summary!AG22 ->  | AH6: =Summary!AH22 ->  | AI6: =Summary!AI22 ->  | AJ6: =Summary!AJ22 -> 0 | AK6: =Summary!AK22 -> 0 | AL6: =Summary!AL22 -> 0
A7: Litter | B7: LULUCF - Forest Land Remaining Forest Land - Litter | C7: =Summary!C23 ->  | D7: =Summary!D23 ->  | E7: =Summary!E23 ->  | F7: =Summary!F23 ->  | G7: =Summary!G23 ->  | H7: =Summary!H23 ->  | I7: =Summary!I23 ->  | J7: =Summary!J23 ->  | K7: =Summary!K23 ->  | L7: =Summary!L23 ->  | M7: =Summary!M23 ->  | N7: =Summary!N23 ->  | O7: =Summary!O23 ->  | P7: =Summary!P23 ->  | Q7: =Summary!Q23 ->  | R7: =Summary!R23 ->  | S7: =Summary!S23 ->  | T7: =Summary!T23 ->  | U7: =Summary!U23 ->  | V7: =Summary!V23 ->  | W7: =Summary!W23 ->  | X7: =Summary!X23 ->  | Y7: =Summary!Y23 ->  | Z7: =Summary!Z23 ->  | AA7: =Summary!AA23 ->  | AB7: =Summary!AB23 ->  | AC7: =Summary!AC23 ->  | AD7: =Summary!AD23 ->  | AE7: =Summary!AE23 ->  | AF7: =Summary!AF23 ->  | AG7: =Summary!AG23 ->  | AH7: =Summary!AH23 ->  | AI7: =Summary!AI23 ->  | AJ7: =Summary!AJ23 -> 0 | AK7: =Summary!AK23 -> 0 | AL7: =Summary!AL23 -> 0
A8: Soil (Mineral) | B8: LULUCF - Forest Land Remaining Forest Land - Soil (Mineral) | C8: =Summary!C24 ->  | D8: =Summary!D24 ->  | E8: =Summary!E24 ->  | F8: =Summary!F24 ->  | G8: =Summary!G24 ->  | H8: =Summary!H24 ->  | I8: =Summary!I24 ->  | J8: =Summary!J24 ->  | K8: =Summary!K24 ->  | L8: =Summary!L24 ->  | M8: =Summary!M24 ->  | N8: =Summary!N24 ->  | O8: =Summary!O24 ->  | P8: =Summary!P24 ->  | Q8: =Summary!Q24 ->  | R8: =Summary!R24 ->  | S8: =Summary!S24 ->  | T8: =Summary!T24 ->  | U8: =Summary!U24 ->  | V8: =Summary!V24 ->  | W8: =Summary!W24 ->  | X8: =Summary!X24 ->  | Y8: =Summary!Y24 ->  | Z8: =Summary!Z24 ->  | AA8: =Summary!AA24 ->  | AB8: =Summary!AB24 ->  | AC8: =Summary!AC24 ->  | AD8: =Summary!AD24 ->  | AE8: =Summary!AE24 ->  | AF8: =Summary!AF24 ->  | AG8: =Summary!AG24 ->  | AH8: =Summary!AH24 ->  | AI8: =Summary!AI24 ->  | AJ8: =Summary!AJ24 -> 0 | AK8: =Summary!AK24 -> 0 | AL8: =Summary!AL24 -> 0
A9: Soil (Organic) | B9: LULUCF - Forest Land Remaining Forest Land - Soil (Organic) | C9: =Summary!C25 ->  | D9: =Summary!D25 ->  | E9: =Summary!E25 ->  | F9: =Summary!F25 ->  | G9: =Summary!G25 ->  | H9: =Summary!H25 ->  | I9: =Summary!I25 ->  | J9: =Summary!J25 ->  | K9: =Summary!K25 ->  | L9: =Summary!L25 ->  | M9: =Summary!M25 ->  | N9: =Summary!N25 ->  | O9: =Summary!O25 ->  | P9: =Summary!P25 ->  | Q9: =Summary!Q25 ->  | R9: =Summary!R25 ->  | S9: =Summary!S25 ->  | T9: =Summary!T25 ->  | U9: =Summary!U25 ->  | V9: =Summary!V25 ->  | W9: =Summary!W25 ->  | X9: =Summary!X25 ->  | Y9: =Summary!Y25 ->  | Z9: =Summary!Z25 ->  | AA9: =Summary!AA25 ->  | AB9: =Summary!AB25 ->  | AC9: =Summary!AC25 ->  | AD9: =Summary!AD25 ->  | AE9: =Summary!AE25 ->  | AF9: =Summary!AF25 ->  | AG9: =Summary!AG25 ->  | AH9: =Summary!AH25 ->  | AI9: =Summary!AI25 ->  | AJ9: =Summary!AJ25 -> 0 | AK9: =Summary!AK25 -> 0 | AL9: =Summary!AL25 -> 0
A10: Drained Organic Soil | B10: LULUCF - Forest Land Remaining Forest Land - Drained Organic Soil | C10: =Summary!C26 ->  | D10: =Summary!D26 ->  | E10: =Summary!E26 ->  | F10: =Summary!F26 ->  | G10: =Summary!G26 ->  | H10: =Summary!H26 ->  | I10: =Summary!I26 ->  | J10: =Summary!J26 ->  | K10: =Summary!K26 ->  | L10: =Summary!L26 ->  | M10: =Summary!M26 ->  | N10: =Summary!N26 ->  | O10: =Summary!O26 ->  | P10: =Summary!P26 ->  | Q10: =Summary!Q26 ->  | R10: =Summary!R26 ->  | S10: =Summary!S26 ->  | T10: =Summary!T26 ->  | U10: =Summary!U26 ->  | V10: =Summary!V26 ->  | W10: =Summary!W26 ->  | X10: =Summary!X26 ->  | Y10: =Summary!Y26 ->  | Z10: =Summary!Z26 ->  | AA10: =Summary!AA26 ->  | AB10: =Summary!AB26 ->  | AC10: =Summary!AC26 ->  | AD10: =Summary!AD26 ->  | AE10: =Summary!AE26 ->  | AF10: =Summary!AF26 ->  | AG10: =Summary!AG26 ->  | AH10: =Summary!AH26 ->  | AI10: =Summary!AI26 ->  | AJ10: =Summary!AJ26 -> 0 | AK10: =Summary!AK26 -> 0 | AL10: =Summary!AL26 -> 0
A11: Total wood products and landfills | B11: LULUCF - Forest Land Remaining Forest Land - Total wood products and landfills | C11: =Summary!C27 ->  | D11: =Summary!D27 ->  | E11: =Summary!E27 ->  | F11: =Summary!F27 ->  | G11: =Summary!G27 ->  | H11: =Summary!H27 ->  | I11: =Summary!I27 ->  | J11: =Summary!J27 ->  | K11: =Summary!K27 ->  | L11: =Summary!L27 ->  | M11: =Summary!M27 ->  | N11: =Summary!N27 ->  | O11: =Summary!O27 ->  | P11: =Summary!P27 ->  | Q11: =Summary!Q27 ->  | R11: =Summary!R27 ->  | S11: =Summary!S27 ->  | T11: =Summary!T27 ->  | U11: =Summary!U27 ->  | V11: =Summary!V27 ->  | W11: =Summary!W27 ->  | X11: =Summary!X27 ->  | Y11: =Summary!Y27 ->  | Z11: =Summary!Z27 ->  | AA11: =Summary!AA27 ->  | AB11: =Summary!AB27 ->  | AC11: =Summary!AC27 ->  | AD11: =Summary!AD27 ->  | AE11: =Summary!AE27 ->  | AF11: =Summary!AF27 ->  | AG11: =Summary!AG27 ->  | AH11: =Summary!AH27 ->  | AI11: =Summary!AI27 ->  | AJ11: =Summary!AJ27 -> 0 | AK11: =Summary!AK27 -> 0 | AL11: =Summary!AL27 -> 0
A12: Land Converted to Forest Land | B12: ="LULUCF - "&$A$12&" - "&A12 -> LULUCF - Land Converted to Forest Land - Land Converted to Forest Land | C12: =Summary!C28 ->  | D12: =Summary!D28 ->  | E12: =Summary!E28 ->  | F12: =Summary!F28 ->  | G12: =Summary!G28 ->  | H12: =Summary!H28 ->  | I12: =Summary!I28 ->  | J12: =Summary!J28 ->  | K12: =Summary!K28 ->  | L12: =Summary!L28 ->  | M12: =Summary!M28 ->  | N12: =Summary!N28 ->  | O12: =Summary!O28 ->  | P12: =Summary!P28 ->  | Q12: =Summary!Q28 ->  | R12: =Summary!R28 ->  | S12: =Summary!S28 ->  | T12: =Summary!T28 ->  | U12: =Summary!U28 ->  | V12: =Summary!V28 ->  | W12: =Summary!W28 ->  | X12: =Summary!X28 ->  | Y12: =Summary!Y28 ->  | Z12: =Summary!Z28 ->  | AA12: =Summary!AA28 ->  | AB12: =Summary!AB28 ->  | AC12: =Summary!AC28 ->  | AD12: =Summary!AD28 ->  | AE12: =Summary!AE28 ->  | AF12: =Summary!AF28 ->  | AG12: =Summary!AG28 ->  | AH12: =Summary!AH28 ->  | AI12: =Summary!AI28 ->  | AJ12: =Summary!AJ28 -> 0 | AK12: =Summary!AK28 -> 0 | AL12: =Summary!AL28 -> 0
A13: Aboveground Biomass | B13: ="LULUCF - "&$A$12&" - "&A13 -> LULUCF - Land Converted to Forest Land - Aboveground Biomass | C13: =Summary!C29 ->  | D13: =Summary!D29 ->  | E13: =Summary!E29 ->  | F13: =Summary!F29 ->  | G13: =Summary!G29 ->  | H13: =Summary!H29 ->  | I13: =Summary!I29 ->  | J13: =Summary!J29 ->  | K13: =Summary!K29 ->  | L13: =Summary!L29 ->  | M13: =Summary!M29 ->  | N13: =Summary!N29 ->  | O13: =Summary!O29 ->  | P13: =Summary!P29 ->  | Q13: =Summary!Q29 ->  | R13: =Summary!R29 ->  | S13: =Summary!S29 ->  | T13: =Summary!T29 ->  | U13: =Summary!U29 ->  | V13: =Summary!V29 ->  | W13: =Summary!W29 ->  | X13: =Summary!X29 ->  | Y13: =Summary!Y29 ->  | Z13: =Summary!Z29 ->  | AA13: =Summary!AA29 ->  | AB13: =Summary!AB29 ->  | AC13: =Summary!AC29 ->  | AD13: =Summary!AD29 ->  | AE13: =Summary!AE29 ->  | AF13: =Summary!AF29 ->  | AG13: =Summary!AG29 ->  | AH13: =Summary!AH29 ->  | AI13: =Summary!AI29 ->  | AJ13: =Summary!AJ29 -> 0 | AK13: =Summary!AK29 -> 0 | AL13: =Summary!AL29 -> 0
A14: Belowground Biomass | B14: LULUCF - Land Converted to Forest Land - Belowground Biomass | C14: =Summary!C30 ->  | D14: =Summary!D30 ->  | E14: =Summary!E30 ->  | F14: =Summary!F30 ->  | G14: =Summary!G30 ->  | H14: =Summary!H30 ->  | I14: =Summary!I30 ->  | J14: =Summary!J30 ->  | K14: =Summary!K30 ->  | L14: =Summary!L30 ->  | M14: =Summary!M30 ->  | N14: =Summary!N30 ->  | O14: =Summary!O30 ->  | P14: =Summary!P30 ->  | Q14: =Summary!Q30 ->  | R14: =Summary!R30 ->  | S14: =Summary!S30 ->  | T14: =Summary!T30 ->  | U14: =Summary!U30 ->  | V14: =Summary!V30 ->  | W14: =Summary!W30 ->  | X14: =Summary!X30 ->  | Y14: =Summary!Y30 ->  | Z14: =Summary!Z30 ->  | AA14: =Summary!AA30 ->  | AB14: =Summary!AB30 ->  | AC14: =Summary!AC30 ->  | AD14: =Summary!AD30 ->  | AE14: =Summary!AE30 ->  | AF14: =Summary!AF30 ->  | AG14: =Summary!AG30 ->  | AH14: =Summary!AH30 ->  | AI14: =Summary!AI30 ->  | AJ14: =Summary!AJ30 -> 0 | AK14: =Summary!AK30 -> 0 | AL14: =Summary!AL30 -> 0
A15: Deadwood | B15: LULUCF - Land Converted to Forest Land - Deadwood | C15: =Summary!C31 ->  | D15: =Summary!D31 ->  | E15: =Summary!E31 ->  | F15: =Summary!F31 ->  | G15: =Summary!G31 ->  | H15: =Summary!H31 ->  | I15: =Summary!I31 ->  | J15: =Summary!J31 ->  | K15: =Summary!K31 ->  | L15: =Summary!L31 ->  | M15: =Summary!M31 ->  | N15: =Summary!N31 ->  | O15: =Summary!O31 ->  | P15: =Summary!P31 ->  | Q15: =Summary!Q31 ->  | R15: =Summary!R31 ->  | S15: =Summary!S31 ->  | T15: =Summary!T31 ->  | U15: =Summary!U31 ->  | V15: =Summary!V31 ->  | W15: =Summary!W31 ->  | X15: =Summary!X31 ->  | Y15: =Summary!Y31 ->  | Z15: =Summary!Z31 ->  | AA15: =Summary!AA31 ->  | AB15: =Summary!AB31 ->  | AC15: =Summary!AC31 ->  | AD15: =Summary!AD31 ->  | AE15: =Summary!AE31 ->  | AF15: =Summary!AF31 ->  | AG15: =Summary!AG31 ->  | AH15: =Summary!AH31 ->  | AI15: =Summary!AI31 ->  | AJ15: =Summary!AJ31 -> 0 | AK15: =Summary!AK31 -> 0 | AL15: =Summary!AL31 -> 0
A16: Litter | B16: LULUCF - Land Converted to Forest Land - Litter | C16: =Summary!C32 ->  | D16: =Summary!D32 ->  | E16: =Summary!E32 ->  | F16: =Summary!F32 ->  | G16: =Summary!G32 ->  | H16: =Summary!H32 ->  | I16: =Summary!I32 ->  | J16: =Summary!J32 ->  | K16: =Summary!K32 ->  | L16: =Summary!L32 ->  | M16: =Summary!M32 ->  | N16: =Summary!N32 ->  | O16: =Summary!O32 ->  | P16: =Summary!P32 ->  | Q16: =Summary!Q32 ->  | R16: =Summary!R32 ->  | S16: =Summary!S32 ->  | T16: =Summary!T32 ->  | U16: =Summary!U32 ->  | V16: =Summary!V32 ->  | W16: =Summary!W32 ->  | X16: =Summary!X32 ->  | Y16: =Summary!Y32 ->  | Z16: =Summary!Z32 ->  | AA16: =Summary!AA32 ->  | AB16: =Summary!AB32 ->  | AC16: =Summary!AC32 ->  | AD16: =Summary!AD32 ->  | AE16: =Summary!AE32 ->  | AF16: =Summary!AF32 ->  | AG16: =Summary!AG32 ->  | AH16: =Summary!AH32 ->  | AI16: =Summary!AI32 ->  | AJ16: =Summary!AJ32 -> 0 | AK16: =Summary!AK32 -> 0 | AL16: =Summary!AL32 -> 0
A17: Soil (Mineral) | B17: LULUCF - Land Converted to Forest Land - Soil (Mineral) | C17: =Summary!C33 ->  | D17: =Summary!D33 ->  | E17: =Summary!E33 ->  | F17: =Summary!F33 ->  | G17: =Summary!G33 ->  | H17: =Summary!H33 ->  | I17: =Summary!I33 ->  | J17: =Summary!J33 ->  | K17: =Summary!K33 ->  | L17: =Summary!L33 ->  | M17: =Summary!M33 ->  | N17: =Summary!N33 ->  | O17: =Summary!O33 ->  | P17: =Summary!P33 ->  | Q17: =Summary!Q33 ->  | R17: =Summary!R33 ->  | S17: =Summary!S33 ->  | T17: =Summary!T33 ->  | U17: =Summary!U33 ->  | V17: =Summary!V33 ->  | W17: =Summary!W33 ->  | X17: =Summary!X33 ->  | Y17: =Summary!Y33 ->  | Z17: =Summary!Z33 ->  | AA17: =Summary!AA33 ->  | AB17: =Summary!AB33 ->  | AC17: =Summary!AC33 ->  | AD17: =Summary!AD33 ->  | AE17: =Summary!AE33 ->  | AF17: =Summary!AF33 ->  | AG17: =Summary!AG33 ->  | AH17: =Summary!AH33 ->  | AI17: =Summary!AI33 ->  | AJ17: =Summary!AJ33 -> 0 | AK17: =Summary!AK33 -> 0 | AL17: =Summary!AL33 -> 0
A18: Forest Land Converted to Land | B18: ="LULUCF - "&$A$18&" - "&A18 -> LULUCF - Forest Land Converted to Land - Forest Land Converted to Land | C18: =Summary!C34 ->  | D18: =Summary!D34 ->  | E18: =Summary!E34 ->  | F18: =Summary!F34 ->  | G18: =Summary!G34 ->  | H18: =Summary!H34 ->  | I18: =Summary!I34 ->  | J18: =Summary!J34 ->  | K18: =Summary!K34 ->  | L18: =Summary!L34 ->  | M18: =Summary!M34 ->  | N18: =Summary!N34 ->  | O18: =Summary!O34 ->  | P18: =Summary!P34 ->  | Q18: =Summary!Q34 ->  | R18: =Summary!R34 ->  | S18: =Summary!S34 ->  | T18: =Summary!T34 ->  | U18: =Summary!U34 ->  | V18: =Summary!V34 ->  | W18: =Summary!W34 ->  | X18: =Summary!X34 ->  | Y18: =Summary!Y34 ->  | Z18: =Summary!Z34 ->  | AA18: =Summary!AA34 ->  | AB18: =Summary!AB34 ->  | AC18: =Summary!AC34 ->  | AD18: =Summary!AD34 ->  | AE18: =Summary!AE34 ->  | AF18: =Summary!AF34 ->  | AG18: =Summary!AG34 ->  | AH18: =Summary!AH34 ->  | AI18: =Summary!AI34 ->  | AJ18: =Summary!AJ34 -> 0 | AK18: =Summary!AK34 -> 0 | AL18: =Summary!AL34 -> 0
A19: Aboveground Biomass | B19: ="LULUCF - "&$A$18&" - "&A19 -> LULUCF - Forest Land Converted to Land - Aboveground Biomass | C19: =Summary!C35 ->  | D19: =Summary!D35 ->  | E19: =Summary!E35 ->  | F19: =Summary!F35 ->  | G19: =Summary!G35 ->  | H19: =Summary!H35 ->  | I19: =Summary!I35 ->  | J19: =Summary!J35 ->  | K19: =Summary!K35 ->  | L19: =Summary!L35 ->  | M19: =Summary!M35 ->  | N19: =Summary!N35 ->  | O19: =Summary!O35 ->  | P19: =Summary!P35 ->  | Q19: =Summary!Q35 ->  | R19: =Summary!R35 ->  | S19: =Summary!S35 ->  | T19: =Summary!T35 ->  | U19: =Summary!U35 ->  | V19: =Summary!V35 ->  | W19: =Summary!W35 ->  | X19: =Summary!X35 ->  | Y19: =Summary!Y35 ->  | Z19: =Summary!Z35 ->  | AA19: =Summary!AA35 ->  | AB19: =Summary!AB35 ->  | AC19: =Summary!AC35 ->  | AD19: =Summary!AD35 ->  | AE19: =Summary!AE35 ->  | AF19: =Summary!AF35 ->  | AG19: =Summary!AG35 ->  | AH19: =Summary!AH35 ->  | AI19: =Summary!AI35 ->  | AJ19: =Summary!AJ35 -> 0 | AK19: =Summary!AK35 -> 0 | AL19: =Summary!AL35 -> 0
A20: Belowground Biomass | B20: LULUCF - Forest Land Converted to Land - Belowground Biomass | C20: =Summary!C36 ->  | D20: =Summary!D36 ->  | E20: =Summary!E36 ->  | F20: =Summary!F36 ->  | G20: =Summary!G36 ->  | H20: =Summary!H36 ->  | I20: =Summary!I36 ->  | J20: =Summary!J36 ->  | K20: =Summary!K36 ->  | L20: =Summary!L36 ->  | M20: =Summary!M36 ->  | N20: =Summary!N36 ->  | O20: =Summary!O36 ->  | P20: =Summary!P36 ->  | Q20: =Summary!Q36 ->  | R20: =Summary!R36 ->  | S20: =Summary!S36 ->  | T20: =Summary!T36 ->  | U20: =Summary!U36 ->  | V20: =Summary!V36 ->  | W20: =Summary!W36 ->  | X20: =Summary!X36 ->  | Y20: =Summary!Y36 ->  | Z20: =Summary!Z36 ->  | AA20: =Summary!AA36 ->  | AB20: =Summary!AB36 ->  | AC20: =Summary!AC36 ->  | AD20: =Summary!AD36 ->  | AE20: =Summary!AE36 ->  | AF20: =Summary!AF36 ->  | AG20: =Summary!AG36 ->  | AH20: =Summary!AH36 ->  | AI20: =Summary!AI36 ->  | AJ20: =Summary!AJ36 -> 0 | AK20: =Summary!AK36 -> 0 | AL20: =Summary!AL36 -> 0
A21: Deadwood | B21: LULUCF - Forest Land Converted to Land - Deadwood | C21: =Summary!C37 ->  | D21: =Summary!D37 ->  | E21: =Summary!E37 ->  | F21: =Summary!F37 ->  | G21: =Summary!G37 ->  | H21: =Summary!H37 ->  | I21: =Summary!I37 ->  | J21: =Summary!J37 ->  | K21: =Summary!K37 ->  | L21: =Summary!L37 ->  | M21: =Summary!M37 ->  | N21: =Summary!N37 ->  | O21: =Summary!O37 ->  | P21: =Summary!P37 ->  | Q21: =Summary!Q37 ->  | R21: =Summary!R37 ->  | S21: =Summary!S37 ->  | T21: =Summary!T37 ->  | U21: =Summary!U37 ->  | V21: =Summary!V37 ->  | W21: =Summary!W37 ->  | X21: =Summary!X37 ->  | Y21: =Summary!Y37 ->  | Z21: =Summary!Z37 ->  | AA21: =Summary!AA37 ->  | AB21: =Summary!AB37 ->  | AC21: =Summary!AC37 ->  | AD21: =Summary!AD37 ->  | AE21: =Summary!AE37 ->  | AF21: =Summary!AF37 ->  | AG21: =Summary!AG37 ->  | AH21: =Summary!AH37 ->  | AI21: =Summary!AI37 ->  | AJ21: =Summary!AJ37 -> 0 | AK21: =Summary!AK37 -> 0 | AL21: =Summary!AL37 -> 0
A22: Litter | B22: LULUCF - Forest Land Converted to Land - Litter | C22: =Summary!C38 ->  | D22: =Summary!D38 ->  | E22: =Summary!E38 ->  | F22: =Summary!F38 ->  | G22: =Summary!G38 ->  | H22: =Summary!H38 ->  | I22: =Summary!I38 ->  | J22: =Summary!J38 ->  | K22: =Summary!K38 ->  | L22: =Summary!L38 ->  | M22: =Summary!M38 ->  | N22: =Summary!N38 ->  | O22: =Summary!O38 ->  | P22: =Summary!P38 ->  | Q22: =Summary!Q38 ->  | R22: =Summary!R38 ->  | S22: =Summary!S38 ->  | T22: =Summary!T38 ->  | U22: =Summary!U38 ->  | V22: =Summary!V38 ->  | W22: =Summary!W38 ->  | X22: =Summary!X38 ->  | Y22: =Summary!Y38 ->  | Z22: =Summary!Z38 ->  | AA22: =Summary!AA38 ->  | AB22: =Summary!AB38 ->  | AC22: =Summary!AC38 ->  | AD22: =Summary!AD38 ->  | AE22: =Summary!AE38 ->  | AF22: =Summary!AF38 ->  | AG22: =Summary!AG38 ->  | AH22: =Summary!AH38 ->  | AI22: =Summary!AI38 ->  | AJ22: =Summary!AJ38 -> 0 | AK22: =Summary!AK38 -> 0 | AL22: =Summary!AL38 -> 0
A23: Soil (Mineral) | B23: LULUCF - Forest Land Converted to Land - Soil (Mineral) | C23: =Summary!C39 ->  | D23: =Summary!D39 ->  | E23: =Summary!E39 ->  | F23: =Summary!F39 ->  | G23: =Summary!G39 ->  | H23: =Summary!H39 ->  | I23: =Summary!I39 ->  | J23: =Summary!J39 ->  | K23: =Summary!K39 ->  | L23: =Summary!L39 ->  | M23: =Summary!M39 ->  | N23: =Summary!N39 ->  | O23: =Summary!O39 ->  | P23: =Summary!P39 ->  | Q23: =Summary!Q39 ->  | R23: =Summary!R39 ->  | S23: =Summary!S39 ->  | T23: =Summary!T39 ->  | U23: =Summary!U39 ->  | V23: =Summary!V39 ->  | W23: =Summary!W39 ->  | X23: =Summary!X39 ->  | Y23: =Summary!Y39 ->  | Z23: =Summary!Z39 ->  | AA23: =Summary!AA39 ->  | AB23: =Summary!AB39 ->  | AC23: =Summary!AC39 ->  | AD23: =Summary!AD39 ->  | AE23: =Summary!AE39 ->  | AF23: =Summary!AF39 ->  | AG23: =Summary!AG39 ->  | AH23: =Summary!AH39 ->  | AI23: =Summary!AI39 ->  | AJ23: =Summary!AJ39 -> 0 | AK23: =Summary!AK39 -> 0 | AL23: =Summary!AL39 -> 0
A24: Urban Trees | B24: ="LULUCF - "&A24 -> LULUCF - Urban Trees | C24: =Summary!C40 -> 0 | D24: =Summary!D40 -> 0 | E24: =Summary!E40 -> 0 | F24: =Summary!F40 -> 0 | G24: =Summary!G40 -> 0 | H24: =Summary!H40 -> 0 | I24: =Summary!I40 -> 0 | J24: =Summary!J40 -> 0 | K24: =Summary!K40 -> 0 | L24: =Summary!L40 -> 0 | M24: =Summary!M40 -> 0 | N24: =Summary!N40 -> 0 | O24: =Summary!O40 -> 0 | P24: =Summary!P40 -> 0 | Q24: =Summary!Q40 -> 0 | R24: =Summary!R40 -> 0 | S24: =Summary!S40 -> 0 | T24: =Summary!T40 -> 0 | U24: =Summary!U40 -> 0 | V24: =Summary!V40 -> 0 | W24: =Summary!W40 -> 0 | X24: =Summary!X40 -> 0 | Y24: =Summary!Y40 -> 0 | Z24: =Summary!Z40 -> 0 | AA24: =Summary!AA40 -> 0 | AB24: =Summary!AB40 -> 0 | AC24: =Summary!AC40 -> 0 | AD24: =Summary!AD40 -> 0 | AE24: =Summary!AE40 -> 0 | AF24: =Summary!AF40 -> 0 | AG24: =Summary!AG40 -> 0 | AH24: =Summary!AH40 -> 0 | AI24: =Summary!AI40 -> 0 | AJ24: =Summary!AJ40 -> 0 | AK24: =Summary!AK40 -> 0 | AL24: =Summary!AL40 -> 0
A25: Landfilled Yard Trimmings and Food Scraps | B25: ="LULUCF - "&$A$25 -> LULUCF - Landfilled Yard Trimmings and Food Scraps | C25: =Summary!C41 -> 0 | D25: =Summary!D41 -> 0 | E25: =Summary!E41 -> 0 | F25: =Summary!F41 -> 0 | G25: =Summary!G41 -> 0 | H25: =Summary!H41 -> 0 | I25: =Summary!I41 -> 0 | J25: =Summary!J41 -> 0 | K25: =Summary!K41 -> 0 | L25: =Summary!L41 -> 0 | M25: =Summary!M41 -> 0 | N25: =Summary!N41 -> 0 | O25: =Summary!O41 -> 0 | P25: =Summary!P41 -> 0 | Q25: =Summary!Q41 -> 0 | R25: =Summary!R41 -> 0 | S25: =Summary!S41 -> 0 | T25: =Summary!T41 -> 0 | U25: =Summary!U41 -> 0 | V25: =Summary!V41 -> 0 | W25: =Summary!W41 -> 0 | X25: =Summary!X41 -> 0 | Y25: =Summary!Y41 -> 0 | Z25: =Summary!Z41 -> 0 | AA25: =Summary!AA41 -> 0 | AB25: =Summary!AB41 -> 0 | AC25: =Summary!AC41 -> 0 | AD25: =Summary!AD41 -> 0 | AE25: =Summary!AE41 -> 0 | AF25: =Summary!AF41 -> 0 | AG25: =Summary!AG41 -> 0 | AH25: =Summary!AH41 -> 0 | AI25: =Summary!AI41 -> 0 | AJ25: =Summary!AJ41 -> 0 | AK25: =Summary!AK41 -> 0 | AL25: =Summary!AL41 -> 0
A26: Grass | B26: ="LULUCF - "&$A$25&" - "&A26 -> LULUCF - Landfilled Yard Trimmings and Food Scraps - Grass | C26: =Summary!C42 -> 0 | D26: =Summary!D42 -> 0 | E26: =Summary!E42 -> 0 | F26: =Summary!F42 -> 0 | G26: =Summary!G42 -> 0 | H26: =Summary!H42 -> 0 | I26: =Summary!I42 -> 0 | J26: =Summary!J42 -> 0 | K26: =Summary!K42 -> 0 | L26: =Summary!L42 -> 0 | M26: =Summary!M42 -> 0 | N26: =Summary!N42 -> 0 | O26: =Summary!O42 -> 0 | P26: =Summary!P42 -> 0 | Q26: =Summary!Q42 -> 0 | R26: =Summary!R42 -> 0 | S26: =Summary!S42 -> 0 | T26: =Summary!T42 -> 0 | U26: =Summary!U42 -> 0 | V26: =Summary!V42 -> 0 | W26: =Summary!W42 -> 0 | X26: =Summary!X42 -> 0 | Y26: =Summary!Y42 -> 0 | Z26: =Summary!Z42 -> 0 | AA26: =Summary!AA42 -> 0 | AB26: =Summary!AB42 -> 0 | AC26: =Summary!AC42 -> 0 | AD26: =Summary!AD42 -> 0 | AE26: =Summary!AE42 -> 0 | AF26: =Summary!AF42 -> 0 | AG26: =Summary!AG42 -> 0 | AH26: =Summary!AH42 -> 0 | AI26: =Summary!AI42 -> 0 | AJ26: =Summary!AJ42 -> 0 | AK26: =Summary!AK42 -> 0 | AL26: =Summary!AL42 -> 0
A27: Leaves | B27: ="LULUCF - "&$A$25&" - "&A27 -> LULUCF - Landfilled Yard Trimmings and Food Scraps - Leaves | C27: =Summary!C43 -> 0 | D27: =Summary!D43 -> 0 | E27: =Summary!E43 -> 0 | F27: =Summary!F43 -> 0 | G27: =Summary!G43 -> 0 | H27: =Summary!H43 -> 0 | I27: =Summary!I43 -> 0 | J27: =Summary!J43 -> 0 | K27: =Summary!K43 -> 0 | L27: =Summary!L43 -> 0 | M27: =Summary!M43 -> 0 | N27: =Summary!N43 -> 0 | O27: =Summary!O43 -> 0 | P27: =Summary!P43 -> 0 | Q27: =Summary!Q43 -> 0 | R27: =Summary!R43 -> 0 | S27: =Summary!S43 -> 0 | T27: =Summary!T43 -> 0 | U27: =Summary!U43 -> 0 | V27: =Summary!V43 -> 0 | W27: =Summary!W43 -> 0 | X27: =Summary!X43 -> 0 | Y27: =Summary!Y43 -> 0 | Z27: =Summary!Z43 -> 0 | AA27: =Summary!AA43 -> 0 | AB27: =Summary!AB43 -> 0 | AC27: =Summary!AC43 -> 0 | AD27: =Summary!AD43 -> 0 | AE27: =Summary!AE43 -> 0 | AF27: =Summary!AF43 -> 0 | AG27: =Summary!AG43 -> 0 | AH27: =Summary!AH43 -> 0 | AI27: =Summary!AI43 -> 0 | AJ27: =Summary!AJ43 -> 0 | AK27: =Summary!AK43 -> 0 | AL27: =Summary!AL43 -> 0
A28: Branches | B28: LULUCF - Landfilled Yard Trimmings and Food Scraps - Branches | C28: =Summary!C44 -> 0 | D28: =Summary!D44 -> 0 | E28: =Summary!E44 -> 0 | F28: =Summary!F44 -> 0 | G28: =Summary!G44 -> 0 | H28: =Summary!H44 -> 0 | I28: =Summary!I44 -> 0 | J28: =Summary!J44 -> 0 | K28: =Summary!K44 -> 0 | L28: =Summary!L44 -> 0 | M28: =Summary!M44 -> 0 | N28: =Summary!N44 -> 0 | O28: =Summary!O44 -> 0 | P28: =Summary!P44 -> 0 | Q28: =Summary!Q44 -> 0 | R28: =Summary!R44 -> 0 | S28: =Summary!S44 -> 0 | T28: =Summary!T44 -> 0 | U28: =Summary!U44 -> 0 | V28: =Summary!V44 -> 0 | W28: =Summary!W44 -> 0 | X28: =Summary!X44 -> 0 | Y28: =Summary!Y44 -> 0 | Z28: =Summary!Z44 -> 0 | AA28: =Summary!AA44 -> 0 | AB28: =Summary!AB44 -> 0 | AC28: =Summary!AC44 -> 0 | AD28: =Summary!AD44 -> 0 | AE28: =Summary!AE44 -> 0 | AF28: =Summary!AF44 -> 0 | AG28: =Summary!AG44 -> 0 | AH28: =Summary!AH44 -> 0 | AI28: =Summary!AI44 -> 0 | AJ28: =Summary!AJ44 -> 0 | AK28: =Summary!AK44 -> 0 | AL28: =Summary!AL44 -> 0
A29: Landfilled Food Scraps | B29: LULUCF - Landfilled Yard Trimmings and Food Scraps - Landfilled Food Scraps | C29: =Summary!C45 -> 0 | D29: =Summary!D45 -> 0 | E29: =Summary!E45 -> 0 | F29: =Summary!F45 -> 0 | G29: =Summary!G45 -> 0 | H29: =Summary!H45 -> 0 | I29: =Summary!I45 -> 0 | J29: =Summary!J45 -> 0 | K29: =Summary!K45 -> 0 | L29: =Summary!L45 -> 0 | M29: =Summary!M45 -> 0 | N29: =Summary!N45 -> 0 | O29: =Summary!O45 -> 0 | P29: =Summary!P45 -> 0 | Q29: =Summary!Q45 -> 0 | R29: =Summary!R45 -> 0 | S29: =Summary!S45 -> 0 | T29: =Summary!T45 -> 0 | U29: =Summary!U45 -> 0 | V29: =Summary!V45 -> 0 | W29: =Summary!W45 -> 0 | X29: =Summary!X45 -> 0 | Y29: =Summary!Y45 -> 0 | Z29: =Summary!Z45 -> 0 | AA29: =Summary!AA45 -> 0 | AB29: =Summary!AB45 -> 0 | AC29: =Summary!AC45 -> 0 | AD29: =Summary!AD45 -> 0 | AE29: =Summary!AE45 -> 0 | AF29: =Summary!AF45 -> 0 | AG29: =Summary!AG45 -> 0 | AH29: =Summary!AH45 -> 0 | AI29: =Summary!AI45 -> 0 | AJ29: =Summary!AJ45 -> 0 | AK29: =Summary!AK45 -> 0 | AL29: =Summary!AL45 -> 0
A30: Forest Fires | B30: ="LULUCF - "&$A$30 -> LULUCF - Forest Fires | C30: =Summary!C46 -> 0 | D30: =Summary!D46 -> 0 | E30: =Summary!E46 -> 0 | F30: =Summary!F46 -> 0 | G30: =Summary!G46 -> 0 | H30: =Summary!H46 -> 0 | I30: =Summary!I46 -> 0 | J30: =Summary!J46 -> 0 | K30: =Summary!K46 -> 0 | L30: =Summary!L46 -> 0 | M30: =Summary!M46 -> 0 | N30: =Summary!N46 -> 0 | O30: =Summary!O46 -> 0 | P30: =Summary!P46 -> 0 | Q30: =Summary!Q46 -> 0 | R30: =Summary!R46 -> 0 | S30: =Summary!S46 -> 0 | T30: =Summary!T46 -> 0 | U30: =Summary!U46 -> 0 | V30: =Summary!V46 -> 0 | W30: =Summary!W46 -> 0 | X30: =Summary!X46 -> 0 | Y30: =Summary!Y46 -> 0 | Z30: =Summary!Z46 -> 0 | AA30: =Summary!AA46 -> 0 | AB30: =Summary!AB46 -> 0 | AC30: =Summary!AC46 -> 0 | AD30: =Summary!AD46 -> 0 | AE30: =Summary!AE46 -> 0 | AF30: =Summary!AF46 -> 0 | AG30: =Summary!AG46 -> 0 | AH30: =Summary!AH46 -> 0 | AI30: =Summary!AI46 -> 0 | AJ30: =Summary!AJ46 -> 0 | AK30: =Summary!AK46 -> 0 | AL30: =Summary!AL46 -> 0
A31: CH4 | B31: ="LULUCF - "&$A$30&" - "&A31 -> LULUCF - Forest Fires - CH4 | C31: =Summary!C47 -> 0 | D31: =Summary!D47 -> 0 | E31: =Summary!E47 -> 0 | F31: =Summary!F47 -> 0 | G31: =Summary!G47 -> 0 | H31: =Summary!H47 -> 0 | I31: =Summary!I47 -> 0 | J31: =Summary!J47 -> 0 | K31: =Summary!K47 -> 0 | L31: =Summary!L47 -> 0 | M31: =Summary!M47 -> 0 | N31: =Summary!N47 -> 0 | O31: =Summary!O47 -> 0 | P31: =Summary!P47 -> 0 | Q31: =Summary!Q47 -> 0 | R31: =Summary!R47 -> 0 | S31: =Summary!S47 -> 0 | T31: =Summary!T47 -> 0 | U31: =Summary!U47 -> 0 | V31: =Summary!V47 -> 0 | W31: =Summary!W47 -> 0 | X31: =Summary!X47 -> 0 | Y31: =Summary!Y47 -> 0 | Z31: =Summary!Z47 -> 0 | AA31: =Summary!AA47 -> 0 | AB31: =Summary!AB47 -> 0 | AC31: =Summary!AC47 -> 0 | AD31: =Summary!AD47 -> 0 | AE31: =Summary!AE47 -> 0 | AF31: =Summary!AF47 -> 0 | AG31: =Summary!AG47 -> 0 | AH31: =Summary!AH47 -> 0 | AI31: =Summary!AI47 -> 0 | AJ31: =Summary!AJ47 -> 0 | AK31: =Summary!AK47 -> 0 | AL31: =Summary!AL47 -> 0
A32: N2O | B32: ="LULUCF - "&$A$30&" - "&A32 -> LULUCF - Forest Fires - N2O | C32: =Summary!C48 -> 0 | D32: =Summary!D48 -> 0 | E32: =Summary!E48 -> 0 | F32: =Summary!F48 -> 0 | G32: =Summary!G48 -> 0 | H32: =Summary!H48 -> 0 | I32: =Summary!I48 -> 0 | J32: =Summary!J48 -> 0 | K32: =Summary!K48 -> 0 | L32: =Summary!L48 -> 0 | M32: =Summary!M48 -> 0 | N32: =Summary!N48 -> 0 | O32: =Summary!O48 -> 0 | P32: =Summary!P48 -> 0 | Q32: =Summary!Q48 -> 0 | R32: =Summary!R48 -> 0 | S32: =Summary!S48 -> 0 | T32: =Summary!T48 -> 0 | U32: =Summary!U48 -> 0 | V32: =Summary!V48 -> 0 | W32: =Summary!W48 -> 0 | X32: =Summary!X48 -> 0 | Y32: =Summary!Y48 -> 0 | Z32: =Summary!Z48 -> 0 | AA32: =Summary!AA48 -> 0 | AB32: =Summary!AB48 -> 0 | AC32: =Summary!AC48 -> 0 | AD32: =Summary!AD48 -> 0 | AE32: =Summary!AE48 -> 0 | AF32: =Summary!AF48 -> 0 | AG32: =Summary!AG48 -> 0 | AH32: =Summary!AH48 -> 0 | AI32: =Summary!AI48 -> 0 | AJ32: =Summary!AJ48 -> 0 | AK32: =Summary!AK48 -> 0 | AL32: =Summary!AL48 -> 0
A33: N2O from Settlement Soils | B33: ="LULUCF - "&$A$33 -> LULUCF - N2O from Settlement Soils | C33: =Summary!C49 -> 0 | D33: =Summary!D49 -> 0 | E33: =Summary!E49 -> 0 | F33: =Summary!F49 -> 0 | G33: =Summary!G49 -> 0 | H33: =Summary!H49 -> 0 | I33: =Summary!I49 -> 0 | J33: =Summary!J49 -> 0 | K33: =Summary!K49 -> 0 | L33: =Summary!L49 -> 0 | M33: =Summary!M49 -> 0 | N33: =Summary!N49 -> 0 | O33: =Summary!O49 -> 0 | P33: =Summary!P49 -> 0 | Q33: =Summary!Q49 -> 0 | R33: =Summary!R49 -> 0 | S33: =Summary!S49 -> 0 | T33: =Summary!T49 -> 0 | U33: =Summary!U49 -> 0 | V33: =Summary!V49 -> 0 | W33: =Summary!W49 -> 0 | X33: =Summary!X49 -> 0 | Y33: =Summary!Y49 -> 0 | Z33: =Summary!Z49 -> 0 | AA33: =Summary!AA49 -> 0 | AB33: =Summary!AB49 -> 0 | AC33: =Summary!AC49 -> 0 | AD33: =Summary!AD49 -> 0 | AE33: =Summary!AE49 -> 0 | AF33: =Summary!AF49 -> 0 | AG33: =Summary!AG49 -> 0 | AH33: =Summary!AH49 -> 0 | AI33: =Summary!AI49 -> 0 | AJ33: =Summary!AJ49 -> 0 | AK33: =Summary!AK49 -> 0 | AL33: =Summary!AL49 -> 0
A34: Agricultural Soil Carbon Flux | B34: ="LULUCF - "&$A$34 -> LULUCF - Agricultural Soil Carbon Flux | C34: =Summary!C50 ->  | D34: =Summary!D50 ->  | E34: =Summary!E50 ->  | F34: =Summary!F50 ->  | G34: =Summary!G50 ->  | H34: =Summary!H50 ->  | I34: =Summary!I50 ->  | J34: =Summary!J50 ->  | K34: =Summary!K50 ->  | L34: =Summary!L50 ->  | M34: =Summary!M50 ->  | N34: =Summary!N50 ->  | O34: =Summary!O50 ->  | P34: =Summary!P50 ->  | Q34: =Summary!Q50 ->  | R34: =Summary!R50 ->  | S34: =Summary!S50 ->  | T34: =Summary!T50 ->  | U34: =Summary!U50 ->  | V34: =Summary!V50 ->  | W34: =Summary!W50 ->  | X34: =Summary!X50 ->  | Y34: =Summary!Y50 ->  | Z34: =Summary!Z50 ->  | AA34: =Summary!AA50 ->  | AB34: =Summary!AB50 ->  | AC34: =Summary!AC50 ->  | AD34: =Summary!AD50 ->  | AE34: =Summary!AE50 ->  | AF34: =Summary!AF50 ->  | AG34: =Summary!AG50 ->  | AH34: =Summary!AH50 ->  | AI34: =Summary!AI50 ->  | AJ34: =Summary!AJ50 -> 0 | AK34: =Summary!AK50 -> 0 | AL34: =Summary!AL50 -> 0

Sheet Dataframe_Sum (hidden)
A1: Emissions (MMTCO2E) | B1: Category | C1: 1990 | D1: 1991 | E1: 1992 | F1: 1993 | G1: 1994 | H1: 1995 | I1: 1996 | J1: 1997 | K1: 1998 | L1: 1999 | M1: 2000 | N1: 2001 | O1: 2002 | P1: 2003 | Q1: 2004 | R1: 2005 | S1: 2006 | T1: 2007 | U1: 2008 | V1: 2009 | W1: 2010 | X1: 2011 | Y1: 2012 | Z1: 2013 | AA1: 2014 | AB1: 2015 | AC1: 2016 | AD1: 2017 | AE1: 2018 | AF1: 2019 | AG1: 2020 | AH1: 2021 | AI1: 2022 | AJ1: 2023 | AK1: 2024 | AL1: 2025
A2: Total | B2: LULUCF | C2: =Summary!C52 ->  | D2: =Summary!D52 ->  | E2: =Summary!E52 ->  | F2: =Summary!F52 ->  | G2: =Summary!G52 ->  | H2: =Summary!H52 ->  | I2: =Summary!I52 ->  | J2: =Summary!J52 ->  | K2: =Summary!K52 ->  | L2: =Summary!L52 ->  | M2: =Summary!M52 ->  | N2: =Summary!N52 ->  | O2: =Summary!O52 ->  | P2: =Summary!P52 ->  | Q2: =Summary!Q52 ->  | R2: =Summary!R52 ->  | S2: =Summary!S52 ->  | T2: =Summary!T52 ->  | U2: =Summary!U52 ->  | V2: =Summary!V52 ->  | W2: =Summary!W52 ->  | X2: =Summary!X52 ->  | Y2: =Summary!Y52 ->  | Z2: =Summary!Z52 ->  | AA2: =Summary!AA52 ->  | AB2: =Summary!AB52 ->  | AC2: =Summary!AC52 ->  | AD2: =Summary!AD52 ->  | AE2: =Summary!AE52 ->  | AF2: =Summary!AF52 ->  | AG2: =Summary!AG52 ->  | AH2: =Summary!AH52 ->  | AI2: =Summary!AI52 ->  | AJ2: =Summary!AJ52 -> 0 | AK2: =Summary!AK52 -> 0 | AL2: =Summary!AL52 -> 0

Sheet C Flux-User Data
A1: ="2. Forest Carbon Flux in "&StateName -> 2. Forest Carbon Flux in Select a State . . .
C8: Aboveground Biomass | E8: Belowground Biomass | G8: Dead Wood | I8: Litter | K8: Soil (Mineral) | M8: Soil (Organic) | O8: Drained Organic Soil | Q8: Wood products and landfills | S8: Total
C9: MMTCO2E (million metric tons of carbon dioxide equivalent)
B11: 1990 | D11: + | F11: + | H11: + | J11: + | L11: + | N11: + | P11: + | R11: = | S11: =C11+E11+G11+I11+K11+M11+O11+Q11 -> 0
B13: =B11+1 -> 1991 | D13: + | F13: + | H13: + | J13: + | L13: + | N13: + | P13: + | R13: = | S13: =C13+E13+G13+I13+K13+M13+O13+Q13 -> 0
B15: =B13+1 -> 1992 | D15: + | F15: + | H15: + | J15: + | L15: + | N15: + | P15: + | R15: = | S15: =C15+E15+G15+I15+K15+M15+O15+Q15 -> 0
B17: =B15+1 -> 1993 | D17: + | F17: + | H17: + | J17: + | L17: + | N17: + | P17: + | R17: = | S17: =C17+E17+G17+I17+K17+M17+O17+Q17 -> 0
B19: =B17+1 -> 1994 | D19: + | F19: + | H19: + | J19: + | L19: + | N19: + | P19: + | R19: = | S19: =C19+E19+G19+I19+K19+M19+O19+Q19 -> 0
B21: =B19+1 -> 1995 | D21: + | F21: + | H21: + | J21: + | L21: + | N21: + | P21: + | R21: = | S21: =C21+E21+G21+I21+K21+M21+O21+Q21 -> 0
B23: =B21+1 -> 1996 | D23: + | F23: + | H23: + | J23: + | L23: + | N23: + | P23: + | R23: = | S23: =C23+E23+G23+I23+K23+M23+O23+Q23 -> 0
B25: =B23+1 -> 1997 | D25: + | F25: + | H25: + | J25: + | L25: + | N25: + | P25: + | R25: = | S25: =C25+E25+G25+I25+K25+M25+O25+Q25 -> 0
B27: =B25+1 -> 1998 | D27: + | F27: + | H27: + | J27: + | L27: + | N27: + | P27: + | R27: = | S27: =C27+E27+G27+I27+K27+M27+O27+Q27 -> 0
B29: =B27+1 -> 1999 | D29: + | F29: + | H29: + | J29: + | L29: + | N29: + | P29: + | R29: = | S29: =C29+E29+G29+I29+K29+M29+O29+Q29 -> 0
B31: =B29+1 -> 2000 | D31: + | F31: + | H31: + | J31: + | L31: + | N31: + | P31: + | R31: = | S31: =C31+E31+G31+I31+K31+M31+O31+Q31 -> 0
B33: =B31+1 -> 2001 | D33: + | F33: + | H33: + | J33: + | L33: + | N33: + | P33: + | R33: = | S33: =C33+E33+G33+I33+K33+M33+O33+Q33 -> 0
B35: =B33+1 -> 2002 | D35: + | F35: + | H35: + | J35: + | L35: + | N35: + | P35: + | R35: = | S35: =C35+E35+G35+I35+K35+M35+O35+Q35 -> 0
B37: =B35+1 -> 2003 | D37: + | F37: + | H37: + | J37: + | L37: + | N37: + | P37: + | R37: = | S37: =C37+E37+G37+I37+K37+M37+O37+Q37 -> 0
B39: =B37+1 -> 2004 | D39: + | F39: + | H39: + | J39: + | L39: + | N39: + | P39: + | R39: = | S39: =C39+E39+G39+I39+K39+M39+O39+Q39 -> 0
B41: =B39+1 -> 2005 | D41: + | F41: + | H41: + | J41: + | L41: + | N41: + | P41: + | R41: = | S41: =C41+E41+G41+I41+K41+M41+O41+Q41 -> 0
B43: =B41+1 -> 2006 | D43: + | F43: + | H43: + | J43: + | L43: + | N43: + | P43: + | R43: = | S43: =C43+E43+G43+I43+K43+M43+O43+Q43 -> 0
B45: =B43+1 -> 2007 | D45: + | F45: + | H45: + | J45: + | L45: + | N45: + | P45: + | R45: = | S45: =C45+E45+G45+I45+K45+M45+O45+Q45 -> 0
B47: =B45+1 -> 2008 | D47: + | F47: + | H47: + | J47: + | L47: + | N47: + | P47: + | R47: = | S47: =C47+E47+G47+I47+K47+M47+O47+Q47 -> 0
B49: =B47+1 -> 2009 | D49: + | F49: + | H49: + | J49: + | L49: + | N49: + | P49: + | R49: = | S49: =C49+E49+G49+I49+K49+M49+O49+Q49 -> 0
B51: =B49+1 -> 2010 | D51: + | F51: + | H51: + | J51: + | L51: + | N51: + | P51: + | R51: = | S51: =C51+E51+G51+I51+K51+M51+O51+Q51 -> 0
B53: =B51+1 -> 2011 | D53: + | F53: + | H53: + | J53: + | L53: + | N53: + | P53: + | R53: = | S53: =C53+E53+G53+I53+K53+M53+O53+Q53 -> 0
B55: =B53+1 -> 2012 | D55: + | F55: + | H55: + | J55: + | L55: + | N55: + | P55: + | R55: = | S55: =C55+E55+G55+I55+K55+M55+O55+Q55 -> 0
B57: =B55+1 -> 2013 | D57: + | F57: + | H57: + | J57: + | L57: + | N57: + | P57: + | R57: = | S57: =C57+E57+G57+I57+K57+M57+O57+Q57 -> 0
B59: =B57+1 -> 2014 | D59: + | F59: + | H59: + | J59: + | L59: + | N59: + | P59: + | R59: = | S59: =C59+E59+G59+I59+K59+M59+O59+Q59 -> 0
B61: =B59+1 -> 2015 | D61: + | F61: + | H61: + | J61: + | L61: + | N61: + | P61: + | R61: = | S61: =C61+E61+G61+I61+K61+M61+O61+Q61 -> 0
B63: =B61+1 -> 2016 | D63: + | F63: + | H63: + | J63: + | L63: + | N63: + | P63: + | R63: = | S63: =C63+E63+G63+I63+K63+M63+O63+Q63 -> 0
B65: =B63+1 -> 2017 | D65: + | F65: + | H65: + | J65: + | L65: + | N65: + | P65: + | R65: = | S65: =C65+E65+G65+I65+K65+M65+O65+Q65 -> 0
B67: =B65+1 -> 2018 | D67: + | F67: + | H67: + | J67: + | L67: + | N67: + | P67: + | R67: = | S67: =C67+E67+G67+I67+K67+M67+O67+Q67 -> 0
B69: =B67+1 -> 2019 | D69: + | F69: + | H69: + | J69: + | L69: + | N69: + | P69: + | R69: = | S69: =C69+E69+G69+I69+K69+M69+O69+Q69 -> 0
B71: =B69+1 -> 2020 | D71: + | F71: + | H71: + | J71: + | L71: + | N71: + | P71: + | R71: = | S71: =C71+E71+G71+I71+K71+M71+O71+Q71 -> 0
B73: =B71+1 -> 2021 | D73: + | F73: + | H73: + | J73: + | L73: + | N73: + | P73: + | R73: = | S73: =C73+E73+G73+I73+K73+M73+O73+Q73 -> 0
B75: =B73+1 -> 2022 | D75: + | F75: + | H75: + | J75: + | L75: + | N75: + | P75: + | R75: = | S75: =C75+E75+G75+I75+K75+M75+O75+Q75 -> 0
B77: =B75+1 -> 2023 | D77: + | F77: + | H77: + | J77: + | L77: + | N77: + | P77: + | R77: = | S77: =C77+E77+G77+I77+K77+M77+O77+Q77 -> 0
B79: =B77+1 -> 2024 | D79: + | F79: + | H79: + | J79: + | L79: + | N79: + | P79: + | R79: = | S79: =C79+E79+G79+I79+K79+M79+O79+Q79 -> 0
B81: =B79+1 -> 2025 | D81: + | F81: + | H81: + | J81: + | L81: + | N81: + | P81: + | R81: = | S81: =C81+E81+G81+I81+K81+M81+O81+Q81 -> 0

Sheet Forest Land Remaining Forest
A1: ="2a. Forest Land Remaining Forest Land in "&StateName -> 2a. Forest Land Remaining Forest Land in Select a State . . .
A5: Default data for Aboveground and Belowground Biomass, Dead Wood, Litter, and Soil Carbon
I6: Net Sequestration/Emissions from Forest Land Remaining Forest Land
K7: MMTCO2E
E8: 1990 | F8: 1991 | G8: 1992 | H8: 1993 | I8: 1994 | J8: 1995 | K8: 1996 | L8: 1997 | M8: 1998 | N8: 1999 | O8: 2000 | P8: 2001 | Q8: 2002 | R8: 2003 | S8: 2004 | T8: 2005 | U8: 2006 | V8: 2007 | W8: 2008 | X8: 2009 | Y8: 2010 | Z8: 2011 | AA8: 2012 | AB8: 2013 | AC8: 2014 | AD8: 2015 | AE8: 2016 | AF8: 2017 | AG8: 2018 | AH8: 2019 | AI8: 2020 | AJ8: 2021 | AK8: 2022 | AL8: 2023 | AM8: 2024 | AN8: 2025
C9: Aboveground Biomass | E9: ='FRF Carbon Flux'!C2 ->  | F9: ='FRF Carbon Flux'!D2 ->  | G9: ='FRF Carbon Flux'!E2 ->  | H9: ='FRF Carbon Flux'!F2 ->  | I9: ='FRF Carbon Flux'!G2 ->  | J9: ='FRF Carbon Flux'!H2 ->  | K9: ='FRF Carbon Flux'!I2 ->  | L9: ='FRF Carbon Flux'!J2 ->  | M9: ='FRF Carbon Flux'!K2 ->  | N9: ='FRF Carbon Flux'!L2 ->  | O9: ='FRF Carbon Flux'!M2 ->  | P9: ='FRF Carbon Flux'!N2 ->  | Q9: ='FRF Carbon Flux'!O2 ->  | R9: ='FRF Carbon Flux'!P2 ->  | S9: ='FRF Carbon Flux'!Q2 ->  | T9: ='FRF Carbon Flux'!R2 ->  | U9: ='FRF Carbon Flux'!S2 ->  | V9: ='FRF Carbon Flux'!T2 ->  | W9: ='FRF Carbon Flux'!U2 ->  | X9: ='FRF Carbon Flux'!V2 ->  | Y9: ='FRF Carbon Flux'!W2 ->  | Z9: ='FRF Carbon Flux'!X2 ->  | AA9: ='FRF Carbon Flux'!Y2 ->  | AB9: ='FRF Carbon Flux'!Z2 ->  | AC9: ='FRF Carbon Flux'!AA2 ->  | AD9: ='FRF Carbon Flux'!AB2 ->  | AE9: ='FRF Carbon Flux'!AC2 ->  | AF9: ='FRF Carbon Flux'!AD2 ->  | AG9: ='FRF Carbon Flux'!AE2 ->  | AH9: ='FRF Carbon Flux'!AF2 ->  | AI9: ='FRF Carbon Flux'!AG2 ->  | AJ9: ='FRF Carbon Flux'!AH2 ->  | AK9: ='FRF Carbon Flux'!AI2 -> 
C10: Belowground Biomass | E10: ='FRF Carbon Flux'!C3 ->  | F10: ='FRF Carbon Flux'!D3 ->  | G10: ='FRF Carbon Flux'!E3 ->  | H10: ='FRF Carbon Flux'!F3 ->  | I10: ='FRF Carbon Flux'!G3 ->  | J10: ='FRF Carbon Flux'!H3 ->  | K10: ='FRF Carbon Flux'!I3 ->  | L10: ='FRF Carbon Flux'!J3 ->  | M10: ='FRF Carbon Flux'!K3 ->  | N10: ='FRF Carbon Flux'!L3 ->  | O10: ='FRF Carbon Flux'!M3 ->  | P10: ='FRF Carbon Flux'!N3 ->  | Q10: ='FRF Carbon Flux'!O3 ->  | R10: ='FRF Carbon Flux'!P3 ->  | S10: ='FRF Carbon Flux'!Q3 ->  | T10: ='FRF Carbon Flux'!R3 ->  | U10: ='FRF Carbon Flux'!S3 ->  | V10: ='FRF Carbon Flux'!T3 ->  | W10: ='FRF Carbon Flux'!U3 ->  | X10: ='FRF Carbon Flux'!V3 ->  | Y10: ='FRF Carbon Flux'!W3 ->  | Z10: ='FRF Carbon Flux'!X3 ->  | AA10: ='FRF Carbon Flux'!Y3 ->  | AB10: ='FRF Carbon Flux'!Z3 ->  | AC10: ='FRF Carbon Flux'!AA3 ->  | AD10: ='FRF Carbon Flux'!AB3 ->  | AE10: ='FRF Carbon Flux'!AC3 ->  | AF10: ='FRF Carbon Flux'!AD3 ->  | AG10: ='FRF Carbon Flux'!AE3 ->  | AH10: ='FRF Carbon Flux'!AF3 ->  | AI10: ='FRF Carbon Flux'!AG3 ->  | AJ10: ='FRF Carbon Flux'!AH3 ->  | AK10: ='FRF Carbon Flux'!AI3 -> 
C11: Deadwood | E11: ='FRF Carbon Flux'!C4 ->  | F11: ='FRF Carbon Flux'!D4 ->  | G11: ='FRF Carbon Flux'!E4 ->  | H11: ='FRF Carbon Flux'!F4 ->  | I11: ='FRF Carbon Flux'!G4 ->  | J11: ='FRF Carbon Flux'!H4 ->  | K11: ='FRF Carbon Flux'!I4 ->  | L11: ='FRF Carbon Flux'!J4 ->  | M11: ='FRF Carbon Flux'!K4 ->  | N11: ='FRF Carbon Flux'!L4 ->  | O11: ='FRF Carbon Flux'!M4 ->  | P11: ='FRF Carbon Flux'!N4 ->  | Q11: ='FRF Carbon Flux'!O4 ->  | R11: ='FRF Carbon Flux'!P4 ->  | S11: ='FRF Carbon Flux'!Q4 ->  | T11: ='FRF Carbon Flux'!R4 ->  | U11: ='FRF Carbon Flux'!S4 ->  | V11: ='FRF Carbon Flux'!T4 ->  | W11: ='FRF Carbon Flux'!U4 ->  | X11: ='FRF Carbon Flux'!V4 ->  | Y11: ='FRF Carbon Flux'!W4 ->  | Z11: ='FRF Carbon Flux'!X4 ->  | AA11: ='FRF Carbon Flux'!Y4 ->  | AB11: ='FRF Carbon Flux'!Z4 ->  | AC11: ='FRF Carbon Flux'!AA4 ->  | AD11: ='FRF Carbon Flux'!AB4 ->  | AE11: ='FRF Carbon Flux'!AC4 ->  | AF11: ='FRF Carbon Flux'!AD4 ->  | AG11: ='FRF Carbon Flux'!AE4 ->  | AH11: ='FRF Carbon Flux'!AF4 ->  | AI11: ='FRF Carbon Flux'!AG4 ->  | AJ11: ='FRF Carbon Flux'!AH4 ->  | AK11: ='FRF Carbon Flux'!AI4 -> 
C12: Litter | E12: ='FRF Carbon Flux'!C5 ->  | F12: ='FRF Carbon Flux'!D5 ->  | G12: ='FRF Carbon Flux'!E5 ->  | H12: ='FRF Carbon Flux'!F5 ->  | I12: ='FRF Carbon Flux'!G5 ->  | J12: ='FRF Carbon Flux'!H5 ->  | K12: ='FRF Carbon Flux'!I5 ->  | L12: ='FRF Carbon Flux'!J5 ->  | M12: ='FRF Carbon Flux'!K5 ->  | N12: ='FRF Carbon Flux'!L5 ->  | O12: ='FRF Carbon Flux'!M5 ->  | P12: ='FRF Carbon Flux'!N5 ->  | Q12: ='FRF Carbon Flux'!O5 ->  | R12: ='FRF Carbon Flux'!P5 ->  | S12: ='FRF Carbon Flux'!Q5 ->  | T12: ='FRF Carbon Flux'!R5 ->  | U12: ='FRF Carbon Flux'!S5 ->  | V12: ='FRF Carbon Flux'!T5 ->  | W12: ='FRF Carbon Flux'!U5 ->  | X12: ='FRF Carbon Flux'!V5 ->  | Y12: ='FRF Carbon Flux'!W5 ->  | Z12: ='FRF Carbon Flux'!X5 ->  | AA12: ='FRF Carbon Flux'!Y5 ->  | AB12: ='FRF Carbon Flux'!Z5 ->  | AC12: ='FRF Carbon Flux'!AA5 ->  | AD12: ='FRF Carbon Flux'!AB5 ->  | AE12: ='FRF Carbon Flux'!AC5 ->  | AF12: ='FRF Carbon Flux'!AD5 ->  | AG12: ='FRF Carbon Flux'!AE5 ->  | AH12: ='FRF Carbon Flux'!AF5 ->  | AI12: ='FRF Carbon Flux'!AG5 ->  | AJ12: ='FRF Carbon Flux'!AH5 ->  | AK12: ='FRF Carbon Flux'!AI5 -> 
C13: Soil (Mineral) | E13: ='FRF Carbon Flux'!C6 ->  | F13: ='FRF Carbon Flux'!D6 ->  | G13: ='FRF Carbon Flux'!E6 ->  | H13: ='FRF Carbon Flux'!F6 ->  | I13: ='FRF Carbon Flux'!G6 ->  | J13: ='FRF Carbon Flux'!H6 ->  | K13: ='FRF Carbon Flux'!I6 ->  | L13: ='FRF Carbon Flux'!J6 ->  | M13: ='FRF Carbon Flux'!K6 ->  | N13: ='FRF Carbon Flux'!L6 ->  | O13: ='FRF Carbon Flux'!M6 ->  | P13: ='FRF Carbon Flux'!N6 ->  | Q13: ='FRF Carbon Flux'!O6 ->  | R13: ='FRF Carbon Flux'!P6 ->  | S13: ='FRF Carbon Flux'!Q6 ->  | T13: ='FRF Carbon Flux'!R6 ->  | U13: ='FRF Carbon Flux'!S6 ->  | V13: ='FRF Carbon Flux'!T6 ->  | W13: ='FRF Carbon Flux'!U6 ->  | X13: ='FRF Carbon Flux'!V6 ->  | Y13: ='FRF Carbon Flux'!W6 ->  | Z13: ='FRF Carbon Flux'!X6 ->  | AA13: ='FRF Carbon Flux'!Y6 ->  | AB13: ='FRF Carbon Flux'!Z6 ->  | AC13: ='FRF Carbon Flux'!AA6 ->  | AD13: ='FRF Carbon Flux'!AB6 ->  | AE13: ='FRF Carbon Flux'!AC6 ->  | AF13: ='FRF Carbon Flux'!AD6 ->  | AG13: ='FRF Carbon Flux'!AE6 ->  | AH13: ='FRF Carbon Flux'!AF6 ->  | AI13: ='FRF Carbon Flux'!AG6 ->  | AJ13: ='FRF Carbon Flux'!AH6 ->  | AK13: ='FRF Carbon Flux'!AI6 -> 
C14: Soil (Organic) | E14: ='FRF Carbon Flux'!C7 ->  | F14: ='FRF Carbon Flux'!D7 ->  | G14: ='FRF Carbon Flux'!E7 ->  | H14: ='FRF Carbon Flux'!F7 ->  | I14: ='FRF Carbon Flux'!G7 ->  | J14: ='FRF Carbon Flux'!H7 ->  | K14: ='FRF Carbon Flux'!I7 ->  | L14: ='FRF Carbon Flux'!J7 ->  | M14: ='FRF Carbon Flux'!K7 ->  | N14: ='FRF Carbon Flux'!L7 ->  | O14: ='FRF Carbon Flux'!M7 ->  | P14: ='FRF Carbon Flux'!N7 ->  | Q14: ='FRF Carbon Flux'!O7 ->  | R14: ='FRF Carbon Flux'!P7 ->  | S14: ='FRF Carbon Flux'!Q7 ->  | T14: ='FRF Carbon Flux'!R7 ->  | U14: ='FRF Carbon Flux'!S7 ->  | V14: ='FRF Carbon Flux'!T7 ->  | W14: ='FRF Carbon Flux'!U7 ->  | X14: ='FRF Carbon Flux'!V7 ->  | Y14: ='FRF Carbon Flux'!W7 ->  | Z14: ='FRF Carbon Flux'!X7 ->  | AA14: ='FRF Carbon Flux'!Y7 ->  | AB14: ='FRF Carbon Flux'!Z7 ->  | AC14: ='FRF Carbon Flux'!AA7 ->  | AD14: ='FRF Carbon Flux'!AB7 ->  | AE14: ='FRF Carbon Flux'!AC7 ->  | AF14: ='FRF Carbon Flux'!AD7 ->  | AG14: ='FRF Carbon Flux'!AE7 ->  | AH14: ='FRF Carbon Flux'!AF7 ->  | AI14: ='FRF Carbon Flux'!AG7 ->  | AJ14: ='FRF Carbon Flux'!AH7 ->  | AK14: ='FRF Carbon Flux'!AI7 -> 
C15: Drained Organic Soil | E15: ='FRF Carbon Flux'!C8 ->  | F15: ='FRF Carbon Flux'!D8 ->  | G15: ='FRF Carbon Flux'!E8 ->  | H15: ='FRF Carbon Flux'!F8 ->  | I15: ='FRF Carbon Flux'!G8 ->  | J15: ='FRF Carbon Flux'!H8 ->  | K15: ='FRF Carbon Flux'!I8 ->  | L15: ='FRF Carbon Flux'!J8 ->  | M15: ='FRF Carbon Flux'!K8 ->  | N15: ='FRF Carbon Flux'!L8 ->  | O15: ='FRF Carbon Flux'!M8 ->  | P15: ='FRF Carbon Flux'!N8 ->  | Q15: ='FRF Carbon Flux'!O8 ->  | R15: ='FRF Carbon Flux'!P8 ->  | S15: ='FRF Carbon Flux'!Q8 ->  | T15: ='FRF Carbon Flux'!R8 ->  | U15: ='FRF Carbon Flux'!S8 ->  | V15: ='FRF Carbon Flux'!T8 ->  | W15: ='FRF Carbon Flux'!U8 ->  | X15: ='FRF Carbon Flux'!V8 ->  | Y15: ='FRF Carbon Flux'!W8 ->  | Z15: ='FRF Carbon Flux'!X8 ->  | AA15: ='FRF Carbon Flux'!Y8 ->  | AB15: ='FRF Carbon Flux'!Z8 ->  | AC15: ='FRF Carbon Flux'!AA8 ->  | AD15: ='FRF Carbon Flux'!AB8 ->  | AE15: ='FRF Carbon Flux'!AC8 ->  | AF15: ='FRF Carbon Flux'!AD8 ->  | AG15: ='FRF Carbon Flux'!AE8 ->  | AH15: ='FRF Carbon Flux'!AF8 ->  | AI15: ='FRF Carbon Flux'!AG8 ->  | AJ15: ='FRF Carbon Flux'!AH8 ->  | AK15: ='FRF Carbon Flux'!AI8 -> 
C16: Total | E16: =SUM(E9:E15) ->  | F16: =SUM(F9:F15) ->  | AJ16: =SUM(AJ9:AJ15) ->  | AK16: =SUM(AK9:AK15) ->  | AL16: 0 | AM16: 0 | AN16: 0
A21: Default Data for Wood Products and Landfills
G22: Total Carbon Storage
G23: (million metric tons carbon)
G24: 1987 | I24: 1992 | K24: 1997
E25: Wood products and landfills | F25: W | G25: =VLOOKUP(StateName&F$25,CFluxBlock,5,FALSE) ->  | I25: =VLOOKUP(StateName&F$25,CFluxBlock,6,FALSE) ->  | K25: =VLOOKUP(StateName&F$25,CFluxBlock,7,FALSE) -> 
F28: Changes in Carbon Storage
F29: (million metric tons carbon)
F30: Change, 1987-1992 | H30: Average Annual Change | J30: Change, 1992-1997 | L30: Average Annual Change
E31: Wood products and landfills | F31: =I25-G25 ->  | H31: =F31/5 ->  | J31: =K25-I25 ->  | L31: =J31/5 -> 
K33: Net Sequestration/Emissions
K34: MMTCO2E
F35: 1990 | G35: 1991 | H35: 1992 | I35: 1993 | J35: 1994 | K35: 1995 | L35: 1996 | M35: 1997 | N35: 1998 | O35: 1999 | P35: 2000 | Q35: 2001 | R35: 2002 | S35: 2003 | T35: 2004 | U35: 2005 | V35: 2006 | W35: 2007 | X35: 2008 | Y35: 2009 | Z35: 2010 | AA35: 2011 | AB35: 2012 | AC35: 2013 | AD35: 2014 | AE35: 2015 | AF35: 2016 | AG35: 2017 | AH35: 2018 | AI35: 2019 | AJ35: 2020 | AK35: 2021 | AL35: 2022 | AM35: 2023 | AN35: 2024 | AO35: 2025
E36: Total wood products and landfills | F36: =-$H$31*CO2_C ->  | G36: =-$H$31*CO2_C ->  | H36: =-$H$31*CO2_C ->  | I36: =-$L$31*CO2_C ->  | AI36: =-$L$31*CO2_C -> 

Sheet Land Converted to Forest Land
A1: ="2b. Land Converted to Forest Land in "&StateName -> 2b. Land Converted to Forest Land in Select a State . . .
A5: Default data for Aboveground and Belowground Biomass, Dead Wood, Litter, and Soil Carbon
I6: Net Sequestration/Emissions from Land Converted to Forest Land
K7: MMTCO2E
E8: 1990 | F8: 1991 | G8: 1992 | H8: 1993 | I8: 1994 | J8: 1995 | K8: 1996 | L8: 1997 | M8: 1998 | N8: 1999 | O8: 2000 | P8: 2001 | Q8: 2002 | R8: 2003 | S8: 2004 | T8: 2005 | U8: 2006 | V8: 2007 | W8: 2008 | X8: 2009 | Y8: 2010 | Z8: 2011 | AA8: 2012 | AB8: 2013 | AC8: 2014 | AD8: 2015 | AE8: 2016 | AF8: 2017 | AG8: 2018 | AH8: 2019 | AI8: 2020 | AJ8: 2021 | AK8: 2022 | AL8: 2023 | AM8: 2024 | AN8: 2025
C9: Aboveground Biomass | E9: =SUM(E20,E30,E40,E50,E60) ->  | F9: =SUM(F20,F30,F40,F50,F60) ->  | AJ9: =SUM(AJ20,AJ30,AJ40,AJ50) ->  | AL9: 0 | AM9: 0 | AN9: 0
C10: Belowground Biomass | E10: =SUM(E21,E31,E41,E51,E61) ->  | F10: =SUM(F21,F31,F41,F51,F61) ->  | AJ10: =SUM(AJ21,AJ31,AJ41,AJ51) ->  | AL10: 0 | AM10: 0 | AN10: 0
C11: Deadwood | E11: =SUM(E22,E32,E42,E52,E62) ->  | AJ11: =SUM(AJ22,AJ32,AJ42,AJ52) ->  | AL11: 0 | AM11: 0 | AN11: 0
C12: Litter | E12: =SUM(E23,E33,E43,E53,E63) ->  | AJ12: =SUM(AJ23,AJ33,AJ43,AJ53) ->  | AL12: 0 | AM12: 0 | AN12: 0
C13: Soil (Mineral) | E13: =SUM(E24,E34,E44,E54,E64) ->  | AJ13: =SUM(AJ24,AJ34,AJ44,AJ54) ->  | AL13: 0 | AM13: 0 | AN13: 0
C14: Total | E14: =SUM(E9:E13) ->  | F14: =SUM(F9:F13) ->  | AJ14: =SUM(AJ9:AJ13) ->  | AL14: 0 | AM14: 0 | AN14: 0
A16: Subtotals by Land-Use Change Category
I17: Net Sequestration/Emissions from Cropland Converted to Forest Land
K18: MMTCO2E
E19: 1990 | F19: 1991 | G19: 1992 | H19: 1993 | I19: 1994 | J19: 1995 | K19: 1996 | L19: 1997 | M19: 1998 | N19: 1999 | O19: 2000 | P19: 2001 | Q19: 2002 | R19: 2003 | S19: 2004 | T19: 2005 | U19: 2006 | V19: 2007 | W19: 2008 | X19: 2009 | Y19: 2010 | Z19: 2011 | AA19: 2012 | AB19: 2013 | AC19: 2014 | AD19: 2015 | AE19: 2016 | AF19: 2017 | AG19: 2018 | AH19: 2019 | AI19: 2020 | AJ19: 2021 | AK19: 2022 | AL19: 2023 | AM19: 2024 | AN19: 2025
C20: Aboveground Biomass | E20: ='LCF Carbon Flux'!C2 ->  | F20: ='LCF Carbon Flux'!D2 ->  | G20: ='LCF Carbon Flux'!E2 ->  | H20: ='LCF Carbon Flux'!F2 ->  | I20: ='LCF Carbon Flux'!G2 ->  | J20: ='LCF Carbon Flux'!H2 ->  | K20: ='LCF Carbon Flux'!I2 ->  | L20: ='LCF Carbon Flux'!J2 ->  | M20: ='LCF Carbon Flux'!K2 ->  | N20: ='LCF Carbon Flux'!L2 ->  | O20: ='LCF Carbon Flux'!M2 ->  | P20: ='LCF Carbon Flux'!N2 ->  | Q20: ='LCF Carbon Flux'!O2 ->  | R20: ='LCF Carbon Flux'!P2 ->  | S20: ='LCF Carbon Flux'!Q2 ->  | T20: ='LCF Carbon Flux'!R2 ->  | U20: ='LCF Carbon Flux'!S2 ->  | V20: ='LCF Carbon Flux'!T2 ->  | W20: ='LCF Carbon Flux'!U2 ->  | X20: ='LCF Carbon Flux'!V2 ->  | Y20: ='LCF Carbon Flux'!W2 ->  | Z20: ='LCF Carbon Flux'!X2 ->  | AA20: ='LCF Carbon Flux'!Y2 ->  | AB20: ='LCF Carbon Flux'!Z2 ->  | AC20: ='LCF Carbon Flux'!AA2 ->  | AD20: ='LCF Carbon Flux'!AB2 ->  | AE20: ='LCF Carbon Flux'!AC2 ->  | AF20: ='LCF Carbon Flux'!AD2 ->  | AG20: ='LCF Carbon Flux'!AE2 ->  | AH20: ='LCF Carbon Flux'!AF2 ->  | AI20: ='LCF Carbon Flux'!AG2 ->  | AJ20: ='LCF Carbon Flux'!AH2 ->  | AK20: ='LCF Carbon Flux'!AI2 -> 
C21: Belowground Biomass | E21: ='LCF Carbon Flux'!C3 ->  | F21: ='LCF Carbon Flux'!D3 ->  | G21: ='LCF Carbon Flux'!E3 ->  | H21: ='LCF Carbon Flux'!F3 ->  | I21: ='LCF Carbon Flux'!G3 ->  | J21: ='LCF Carbon Flux'!H3 ->  | K21: ='LCF Carbon Flux'!I3 ->  | L21: ='LCF Carbon Flux'!J3 ->  | M21: ='LCF Carbon Flux'!K3 ->  | N21: ='LCF Carbon Flux'!L3 ->  | O21: ='LCF Carbon Flux'!M3 ->  | P21: ='LCF Carbon Flux'!N3 ->  | Q21: ='LCF Carbon Flux'!O3 ->  | R21: ='LCF Carbon Flux'!P3 ->  | S21: ='LCF Carbon Flux'!Q3 ->  | T21: ='LCF Carbon Flux'!R3 ->  | U21: ='LCF Carbon Flux'!S3 ->  | V21: ='LCF Carbon Flux'!T3 ->  | W21: ='LCF Carbon Flux'!U3 ->  | X21: ='LCF Carbon Flux'!V3 ->  | Y21: ='LCF Carbon Flux'!W3 ->  | Z21: ='LCF Carbon Flux'!X3 ->  | AA21: ='LCF Carbon Flux'!Y3 ->  | AB21: ='LCF Carbon Flux'!Z3 ->  | AC21: ='LCF Carbon Flux'!AA3 ->  | AD21: ='LCF Carbon Flux'!AB3 ->  | AE21: ='LCF Carbon Flux'!AC3 ->  | AF21: ='LCF Carbon Flux'!AD3 ->  | AG21: ='LCF Carbon Flux'!AE3 ->  | AH21: ='LCF Carbon Flux'!AF3 ->  | AI21: ='LCF Carbon Flux'!AG3 ->  | AJ21: ='LCF Carbon Flux'!AH3 ->  | AK21: ='LCF Carbon Flux'!AI3 -> 
C22: Deadwood | E22: ='LCF Carbon Flux'!C4 ->  | F22: ='LCF Carbon Flux'!D4 ->  | G22: ='LCF Carbon Flux'!E4 ->  | H22: ='LCF Carbon Flux'!F4 ->  | I22: ='LCF Carbon Flux'!G4 ->  | J22: ='LCF Carbon Flux'!H4 ->  | K22: ='LCF Carbon Flux'!I4 ->  | L22: ='LCF Carbon Flux'!J4 ->  | M22: ='LCF Carbon Flux'!K4 ->  | N22: ='LCF Carbon Flux'!L4 ->  | O22: ='LCF Carbon Flux'!M4 ->  | P22: ='LCF Carbon Flux'!N4 ->  | Q22: ='LCF Carbon Flux'!O4 ->  | R22: ='LCF Carbon Flux'!P4 ->  | S22: ='LCF Carbon Flux'!Q4 ->  | T22: ='LCF Carbon Flux'!R4 ->  | U22: ='LCF Carbon Flux'!S4 ->  | V22: ='LCF Carbon Flux'!T4 ->  | W22: ='LCF Carbon Flux'!U4 ->  | X22: ='LCF Carbon Flux'!V4 ->  | Y22: ='LCF Carbon Flux'!W4 ->  | Z22: ='LCF Carbon Flux'!X4 ->  | AA22: ='LCF Carbon Flux'!Y4 ->  | AB22: ='LCF Carbon Flux'!Z4 ->  | AC22: ='LCF Carbon Flux'!AA4 ->  | AD22: ='LCF Carbon Flux'!AB4 ->  | AE22: ='LCF Carbon Flux'!AC4 ->  | AF22: ='LCF Carbon Flux'!AD4 ->  | AG22: ='LCF Carbon Flux'!AE4 ->  | AH22: ='LCF Carbon Flux'!AF4 ->  | AI22: ='LCF Carbon Flux'!AG4 ->  | AJ22: ='LCF Carbon Flux'!AH4 ->  | AK22: ='LCF Carbon Flux'!AI4 -> 
C23: Litter | E23: ='LCF Carbon Flux'!C5 ->  | F23: ='LCF Carbon Flux'!D5 ->  | G23: ='LCF Carbon Flux'!E5 ->  | H23: ='LCF Carbon Flux'!F5 ->  | I23: ='LCF Carbon Flux'!G5 ->  | J23: ='LCF Carbon Flux'!H5 ->  | K23: ='LCF Carbon Flux'!I5 ->  | L23: ='LCF Carbon Flux'!J5 ->  | M23: ='LCF Carbon Flux'!K5 ->  | N23: ='LCF Carbon Flux'!L5 ->  | O23: ='LCF Carbon Flux'!M5 ->  | P23: ='LCF Carbon Flux'!N5 ->  | Q23: ='LCF Carbon Flux'!O5 ->  | R23: ='LCF Carbon Flux'!P5 ->  | S23: ='LCF Carbon Flux'!Q5 ->  | T23: ='LCF Carbon Flux'!R5 ->  | U23: ='LCF Carbon Flux'!S5 ->  | V23: ='LCF Carbon Flux'!T5 ->  | W23: ='LCF Carbon Flux'!U5 ->  | X23: ='LCF Carbon Flux'!V5 ->  | Y23: ='LCF Carbon Flux'!W5 ->  | Z23: ='LCF Carbon Flux'!X5 ->  | AA23: ='LCF Carbon Flux'!Y5 ->  | AB23: ='LCF Carbon Flux'!Z5 ->  | AC23: ='LCF Carbon Flux'!AA5 ->  | AD23: ='LCF Carbon Flux'!AB5 ->  | AE23: ='LCF Carbon Flux'!AC5 ->  | AF23: ='LCF Carbon Flux'!AD5 ->  | AG23: ='LCF Carbon Flux'!AE5 ->  | AH23: ='LCF Carbon Flux'!AF5 ->  | AI23: ='LCF Carbon Flux'!AG5 ->  | AJ23: ='LCF Carbon Flux'!AH5 ->  | AK23: ='LCF Carbon Flux'!AI5 -> 
C24: Soil (Mineral) | E24: ='LCF Carbon Flux'!C6 ->  | F24: ='LCF Carbon Flux'!D6 ->  | G24: ='LCF Carbon Flux'!E6 ->  | H24: ='LCF Carbon Flux'!F6 ->  | I24: ='LCF Carbon Flux'!G6 ->  | J24: ='LCF Carbon Flux'!H6 ->  | K24: ='LCF Carbon Flux'!I6 ->  | L24: ='LCF Carbon Flux'!J6 ->  | M24: ='LCF Carbon Flux'!K6 ->  | N24: ='LCF Carbon Flux'!L6 ->  | O24: ='LCF Carbon Flux'!M6 ->  | P24: ='LCF Carbon Flux'!N6 ->  | Q24: ='LCF Carbon Flux'!O6 ->  | R24: ='LCF Carbon Flux'!P6 ->  | S24: ='LCF Carbon Flux'!Q6 ->  | T24: ='LCF Carbon Flux'!R6 ->  | U24: ='LCF Carbon Flux'!S6 ->  | V24: ='LCF Carbon Flux'!T6 ->  | W24: ='LCF Carbon Flux'!U6 ->  | X24: ='LCF Carbon Flux'!V6 ->  | Y24: ='LCF Carbon Flux'!W6 ->  | Z24: ='LCF Carbon Flux'!X6 ->  | AA24: ='LCF Carbon Flux'!Y6 ->  | AB24: ='LCF Carbon Flux'!Z6 ->  | AC24: ='LCF Carbon Flux'!AA6 ->  | AD24: ='LCF Carbon Flux'!AB6 ->  | AE24: ='LCF Carbon Flux'!AC6 ->  | AF24: ='LCF Carbon Flux'!AD6 ->  | AG24: ='LCF Carbon Flux'!AE6 ->  | AH24: ='LCF Carbon Flux'!AF6 ->  | AI24: ='LCF Carbon Flux'!AG6 ->  | AJ24: ='LCF Carbon Flux'!AH6 ->  | AK24: ='LCF Carbon Flux'!AI6 -> 
C25: Total | E25: =SUM(E20:E24) ->  | F25: =SUM(F20:F24) ->  | AJ25: =SUM(AJ20:AJ24) ->  | AK25: =SUM(AK20:AK24) ->  | AL25: 0 | AM25: 0 | AN25: 0
I27: Net Sequestration/Emissions from Grassland Converted to Forest Land
K28: MMTCO2E
E29: 1990 | F29: 1991 | G29: 1992 | H29: 1993 | I29: 1994 | J29: 1995 | K29: 1996 | L29: 1997 | M29: 1998 | N29: 1999 | O29: 2000 | P29: 2001 | Q29: 2002 | R29: 2003 | S29: 2004 | T29: 2005 | U29: 2006 | V29: 2007 | W29: 2008 | X29: 2009 | Y29: 2010 | Z29: 2011 | AA29: 2012 | AB29: 2013 | AC29: 2014 | AD29: 2015 | AE29: 2016 | AF29: 2017 | AG29: 2018 | AH29: 2019 | AI29: 2020 | AJ29: 2021 | AK29: 2022 | AL29: 2023 | AM29: 2024 | AN29: 2025
C30: Aboveground Biomass | E30: ='LCF Carbon Flux'!AP2 ->  | F30: ='LCF Carbon Flux'!AQ2 ->  | G30: ='LCF Carbon Flux'!AR2 ->  | H30: ='LCF Carbon Flux'!AS2 ->  | I30: ='LCF Carbon Flux'!AT2 ->  | J30: ='LCF Carbon Flux'!AU2 ->  | K30: ='LCF Carbon Flux'!AV2 ->  | L30: ='LCF Carbon Flux'!AW2 ->  | M30: ='LCF Carbon Flux'!AX2 ->  | N30: ='LCF Carbon Flux'!AY2 ->  | O30: ='LCF Carbon Flux'!AZ2 ->  | P30: ='LCF Carbon Flux'!BA2 ->  | Q30: ='LCF Carbon Flux'!BB2 ->  | R30: ='LCF Carbon Flux'!BC2 ->  | S30: ='LCF Carbon Flux'!BD2 ->  | T30: ='LCF Carbon Flux'!BE2 ->  | U30: ='LCF Carbon Flux'!BF2 ->  | V30: ='LCF Carbon Flux'!BG2 ->  | W30: ='LCF Carbon Flux'!BH2 ->  | X30: ='LCF Carbon Flux'!BI2 ->  | Y30: ='LCF Carbon Flux'!BJ2 ->  | Z30: ='LCF Carbon Flux'!BK2 ->  | AA30: ='LCF Carbon Flux'!BL2 ->  | AB30: ='LCF Carbon Flux'!BM2 ->  | AC30: ='LCF Carbon Flux'!BN2 ->  | AD30: ='LCF Carbon Flux'!BO2 ->  | AE30: ='LCF Carbon Flux'!BP2 ->  | AF30: ='LCF Carbon Flux'!BQ2 ->  | AG30: ='LCF Carbon Flux'!BR2 ->  | AH30: ='LCF Carbon Flux'!BS2 ->  | AI30: ='LCF Carbon Flux'!BT2 ->  | AJ30: ='LCF Carbon Flux'!BU2 ->  | AK30: ='LCF Carbon Flux'!BV2 -> 
C31: Belowground Biomass | E31: ='LCF Carbon Flux'!AP3 ->  | F31: ='LCF Carbon Flux'!AQ3 ->  | G31: ='LCF Carbon Flux'!AR3 ->  | H31: ='LCF Carbon Flux'!AS3 ->  | I31: ='LCF Carbon Flux'!AT3 ->  | J31: ='LCF Carbon Flux'!AU3 ->  | K31: ='LCF Carbon Flux'!AV3 ->  | L31: ='LCF Carbon Flux'!AW3 ->  | M31: ='LCF Carbon Flux'!AX3 ->  | N31: ='LCF Carbon Flux'!AY3 ->  | O31: ='LCF Carbon Flux'!AZ3 ->  | P31: ='LCF Carbon Flux'!BA3 ->  | Q31: ='LCF Carbon Flux'!BB3 ->  | R31: ='LCF Carbon Flux'!BC3 ->  | S31: ='LCF Carbon Flux'!BD3 ->  | T31: ='LCF Carbon Flux'!BE3 ->  | U31: ='LCF Carbon Flux'!BF3 ->  | V31: ='LCF Carbon Flux'!BG3 ->  | W31: ='LCF Carbon Flux'!BH3 ->  | X31: ='LCF Carbon Flux'!BI3 ->  | Y31: ='LCF Carbon Flux'!BJ3 ->  | Z31: ='LCF Carbon Flux'!BK3 ->  | AA31: ='LCF Carbon Flux'!BL3 ->  | AB31: ='LCF Carbon Flux'!BM3 ->  | AC31: ='LCF Carbon Flux'!BN3 ->  | AD31: ='LCF Carbon Flux'!BO3 ->  | AE31: ='LCF Carbon Flux'!BP3 ->  | AF31: ='LCF Carbon Flux'!BQ3 ->  | AG31: ='LCF Carbon Flux'!BR3 ->  | AH31: ='LCF Carbon Flux'!BS3 ->  | AI31: ='LCF Carbon Flux'!BT3 ->  | AJ31: ='LCF Carbon Flux'!BU3 ->  | AK31: ='LCF Carbon Flux'!BV3 -> 
C32: Deadwood | E32: ='LCF Carbon Flux'!AP4 ->  | F32: ='LCF Carbon Flux'!AQ4 ->  | G32: ='LCF Carbon Flux'!AR4 ->  | H32: ='LCF Carbon Flux'!AS4 ->  | I32: ='LCF Carbon Flux'!AT4 ->  | J32: ='LCF Carbon Flux'!AU4 ->  | K32: ='LCF Carbon Flux'!AV4 ->  | L32: ='LCF Carbon Flux'!AW4 ->  | M32: ='LCF Carbon Flux'!AX4 ->  | N32: ='LCF Carbon Flux'!AY4 ->  | O32: ='LCF Carbon Flux'!AZ4 ->  | P32: ='LCF Carbon Flux'!BA4 ->  | Q32: ='LCF Carbon Flux'!BB4 ->  | R32: ='LCF Carbon Flux'!BC4 ->  | S32: ='LCF Carbon Flux'!BD4 ->  | T32: ='LCF Carbon Flux'!BE4 ->  | U32: ='LCF Carbon Flux'!BF4 ->  | V32: ='LCF Carbon Flux'!BG4 ->  | W32: ='LCF Carbon Flux'!BH4 ->  | X32: ='LCF Carbon Flux'!BI4 ->  | Y32: ='LCF Carbon Flux'!BJ4 ->  | Z32: ='LCF Carbon Flux'!BK4 ->  | AA32: ='LCF Carbon Flux'!BL4 ->  | AB32: ='LCF Carbon Flux'!BM4 ->  | AC32: ='LCF Carbon Flux'!BN4 ->  | AD32: ='LCF Carbon Flux'!BO4 ->  | AE32: ='LCF Carbon Flux'!BP4 ->  | AF32: ='LCF Carbon Flux'!BQ4 ->  | AG32: ='LCF Carbon Flux'!BR4 ->  | AH32: ='LCF Carbon Flux'!BS4 ->  | AI32: ='LCF Carbon Flux'!BT4 ->  | AJ32: ='LCF Carbon Flux'!BU4 ->  | AK32: ='LCF Carbon Flux'!BV4 -> 
C33: Litter | E33: ='LCF Carbon Flux'!AP5 ->  | F33: ='LCF Carbon Flux'!AQ5 ->  | G33: ='LCF Carbon Flux'!AR5 ->  | H33: ='LCF Carbon Flux'!AS5 ->  | I33: ='LCF Carbon Flux'!AT5 ->  | J33: ='LCF Carbon Flux'!AU5 ->  | K33: ='LCF Carbon Flux'!AV5 ->  | L33: ='LCF Carbon Flux'!AW5 ->  | M33: ='LCF Carbon Flux'!AX5 ->  | N33: ='LCF Carbon Flux'!AY5 ->  | O33: ='LCF Carbon Flux'!AZ5 ->  | P33: ='LCF Carbon Flux'!BA5 ->  | Q33: ='LCF Carbon Flux'!BB5 ->  | R33: ='LCF Carbon Flux'!BC5 ->  | S33: ='LCF Carbon Flux'!BD5 ->  | T33: ='LCF Carbon Flux'!BE5 ->  | U33: ='LCF Carbon Flux'!BF5 ->  | V33: ='LCF Carbon Flux'!BG5 ->  | W33: ='LCF Carbon Flux'!BH5 ->  | X33: ='LCF Carbon Flux'!BI5 ->  | Y33: ='LCF Carbon Flux'!BJ5 ->  | Z33: ='LCF Carbon Flux'!BK5 ->  | AA33: ='LCF Carbon Flux'!BL5 ->  | AB33: ='LCF Carbon Flux'!BM5 ->  | AC33: ='LCF Carbon Flux'!BN5 ->  | AD33: ='LCF Carbon Flux'!BO5 ->  | AE33: ='LCF Carbon Flux'!BP5 ->  | AF33: ='LCF Carbon Flux'!BQ5 ->  | AG33: ='LCF Carbon Flux'!BR5 ->  | AH33: ='LCF Carbon Flux'!BS5 ->  | AI33: ='LCF Carbon Flux'!BT5 ->  | AJ33: ='LCF Carbon Flux'!BU5 ->  | AK33: ='LCF Carbon Flux'!BV5 -> 
C34: Soil (Mineral) | E34: ='LCF Carbon Flux'!AP6 ->  | F34: ='LCF Carbon Flux'!AQ6 ->  | G34: ='LCF Carbon Flux'!AR6 ->  | H34: ='LCF Carbon Flux'!AS6 ->  | I34: ='LCF Carbon Flux'!AT6 ->  | J34: ='LCF Carbon Flux'!AU6 ->  | K34: ='LCF Carbon Flux'!AV6 ->  | L34: ='LCF Carbon Flux'!AW6 ->  | M34: ='LCF Carbon Flux'!AX6 ->  | N34: ='LCF Carbon Flux'!AY6 ->  | O34: ='LCF Carbon Flux'!AZ6 ->  | P34: ='LCF Carbon Flux'!BA6 ->  | Q34: ='LCF Carbon Flux'!BB6 ->  | R34: ='LCF Carbon Flux'!BC6 ->  | S34: ='LCF Carbon Flux'!BD6 ->  | T34: ='LCF Carbon Flux'!BE6 ->  | U34: ='LCF Carbon Flux'!BF6 ->  | V34: ='LCF Carbon Flux'!BG6 ->  | W34: ='LCF Carbon Flux'!BH6 ->  | X34: ='LCF Carbon Flux'!BI6 ->  | Y34: ='LCF Carbon Flux'!BJ6 ->  | Z34: ='LCF Carbon Flux'!BK6 ->  | AA34: ='LCF Carbon Flux'!BL6 ->  | AB34: ='LCF Carbon Flux'!BM6 ->  | AC34: ='LCF Carbon Flux'!BN6 ->  | AD34: ='LCF Carbon Flux'!BO6 ->  | AE34: ='LCF Carbon Flux'!BP6 ->  | AF34: ='LCF Carbon Flux'!BQ6 ->  | AG34: ='LCF Carbon Flux'!BR6 ->  | AH34: ='LCF Carbon Flux'!BS6 ->  | AI34: ='LCF Carbon Flux'!BT6 ->  | AJ34: ='LCF Carbon Flux'!BU6 ->  | AK34: ='LCF Carbon Flux'!BV6 -> 
C35: Total | E35: =SUM(E30:E34) ->  | F35: =SUM(F30:F34) ->  | AJ35: =SUM(AJ30:AJ34) ->  | AK35: =SUM(AK30:AK34) ->  | AL35: 0 | AM35: 0 | AN35: 0
I37: Net Sequestration/Emissions from Settlements Converted to Forest Land
K38: MMTCO2E
E39: 1990 | F39: 1991 | G39: 1992 | H39: 1993 | I39: 1994 | J39: 1995 | K39: 1996 | L39: 1997 | M39: 1998 | N39: 1999 | O39: 2000 | P39: 2001 | Q39: 2002 | R39: 2003 | S39: 2004 | T39: 2005 | U39: 2006 | V39: 2007 | W39: 2008 | X39: 2009 | Y39: 2010 | Z39: 2011 | AA39: 2012 | AB39: 2013 | AC39: 2014 | AD39: 2015 | AE39: 2016 | AF39: 2017 | AG39: 2018 | AH39: 2019 | AI39: 2020 | AJ39: 2021 | AK39: 2022 | AL39: 2023 | AM39: 2024 | AN39: 2025
C40: Aboveground Biomass | E40: ='LCF Carbon Flux'!CC2 ->  | F40: ='LCF Carbon Flux'!CD2 ->  | G40: ='LCF Carbon Flux'!CE2 ->  | H40: ='LCF Carbon Flux'!CF2 ->  | I40: ='LCF Carbon Flux'!CG2 ->  | J40: ='LCF Carbon Flux'!CH2 ->  | K40: ='LCF Carbon Flux'!CI2 ->  | L40: ='LCF Carbon Flux'!CJ2 ->  | M40: ='LCF Carbon Flux'!CK2 ->  | N40: ='LCF Carbon Flux'!CL2 ->  | O40: ='LCF Carbon Flux'!CM2 ->  | P40: ='LCF Carbon Flux'!CN2 ->  | Q40: ='LCF Carbon Flux'!CO2 ->  | R40: ='LCF Carbon Flux'!CP2 ->  | S40: ='LCF Carbon Flux'!CQ2 ->  | T40: ='LCF Carbon Flux'!CR2 ->  | U40: ='LCF Carbon Flux'!CS2 ->  | V40: ='LCF Carbon Flux'!CT2 ->  | W40: ='LCF Carbon Flux'!CU2 ->  | X40: ='LCF Carbon Flux'!CV2 ->  | Y40: ='LCF Carbon Flux'!CW2 ->  | Z40: ='LCF Carbon Flux'!CX2 ->  | AA40: ='LCF Carbon Flux'!CY2 ->  | AB40: ='LCF Carbon Flux'!CZ2 ->  | AC40: ='LCF Carbon Flux'!DA2 ->  | AD40: ='LCF Carbon Flux'!DB2 ->  | AE40: ='LCF Carbon Flux'!DC2 ->  | AF40: ='LCF Carbon Flux'!DD2 ->  | AG40: ='LCF Carbon Flux'!DE2 ->  | AH40: ='LCF Carbon Flux'!DF2 ->  | AI40: ='LCF Carbon Flux'!DG2 ->  | AJ40: ='LCF Carbon Flux'!DH2 ->  | AK40: ='LCF Carbon Flux'!DI2 -> 
C41: Belowground Biomass | E41: ='LCF Carbon Flux'!CC3 ->  | F41: ='LCF Carbon Flux'!CD3 ->  | G41: ='LCF Carbon Flux'!CE3 ->  | H41: ='LCF Carbon Flux'!CF3 ->  | I41: ='LCF Carbon Flux'!CG3 ->  | J41: ='LCF Carbon Flux'!CH3 ->  | K41: ='LCF Carbon Flux'!CI3 ->  | L41: ='LCF Carbon Flux'!CJ3 ->  | M41: ='LCF Carbon Flux'!CK3 ->  | N41: ='LCF Carbon Flux'!CL3 ->  | O41: ='LCF Carbon Flux'!CM3 ->  | P41: ='LCF Carbon Flux'!CN3 ->  | Q41: ='LCF Carbon Flux'!CO3 ->  | R41: ='LCF Carbon Flux'!CP3 ->  | S41: ='LCF Carbon Flux'!CQ3 ->  | T41: ='LCF Carbon Flux'!CR3 ->  | U41: ='LCF Carbon Flux'!CS3 ->  | V41: ='LCF Carbon Flux'!CT3 ->  | W41: ='LCF Carbon Flux'!CU3 ->  | X41: ='LCF Carbon Flux'!CV3 ->  | Y41: ='LCF Carbon Flux'!CW3 ->  | Z41: ='LCF Carbon Flux'!CX3 ->  | AA41: ='LCF Carbon Flux'!CY3 ->  | AB41: ='LCF Carbon Flux'!CZ3 ->  | AC41: ='LCF Carbon Flux'!DA3 ->  | AD41: ='LCF Carbon Flux'!DB3 ->  | AE41: ='LCF Carbon Flux'!DC3 ->  | AF41: ='LCF Carbon Flux'!DD3 ->  | AG41: ='LCF Carbon Flux'!DE3 ->  | AH41: ='LCF Carbon Flux'!DF3 ->  | AI41: ='LCF Carbon Flux'!DG3 ->  | AJ41: ='LCF Carbon Flux'!DH3 ->  | AK41: ='LCF Carbon Flux'!DI3 -> 
C42: Deadwood | E42: ='LCF Carbon Flux'!CC4 ->  | F42: ='LCF Carbon Flux'!CD4 ->  | G42: ='LCF Carbon Flux'!CE4 ->  | H42: ='LCF Carbon Flux'!CF4 ->  | I42: ='LCF Carbon Flux'!CG4 ->  | J42: ='LCF Carbon Flux'!CH4 ->  | K42: ='LCF Carbon Flux'!CI4 ->  | L42: ='LCF Carbon Flux'!CJ4 ->  | M42: ='LCF Carbon Flux'!CK4 ->  | N42: ='LCF Carbon Flux'!CL4 ->  | O42: ='LCF Carbon Flux'!CM4 ->  | P42: ='LCF Carbon Flux'!CN4 ->  | Q42: ='LCF Carbon Flux'!CO4 ->  | R42: ='LCF Carbon Flux'!CP4 ->  | S42: ='LCF Carbon Flux'!CQ4 ->  | T42: ='LCF Carbon Flux'!CR4 ->  | U42: ='LCF Carbon Flux'!CS4 ->  | V42: ='LCF Carbon Flux'!CT4 ->  | W42: ='LCF Carbon Flux'!CU4 ->  | X42: ='LCF Carbon Flux'!CV4 ->  | Y42: ='LCF Carbon Flux'!CW4 ->  | Z42: ='LCF Carbon Flux'!CX4 ->  | AA42: ='LCF Carbon Flux'!CY4 ->  | AB42: ='LCF Carbon Flux'!CZ4 ->  | AC42: ='LCF Carbon Flux'!DA4 ->  | AD42: ='LCF Carbon Flux'!DB4 ->  | AE42: ='LCF Carbon Flux'!DC4 ->  | AF42: ='LCF Carbon Flux'!DD4 ->  | AG42: ='LCF Carbon Flux'!DE4 ->  | AH42: ='LCF Carbon Flux'!DF4 ->  | AI42: ='LCF Carbon Flux'!DG4 ->  | AJ42: ='LCF Carbon Flux'!DH4 ->  | AK42: ='LCF Carbon Flux'!DI4 -> 
C43: Litter | E43: ='LCF Carbon Flux'!CC5 ->  | F43: ='LCF Carbon Flux'!CD5 ->  | G43: ='LCF Carbon Flux'!CE5 ->  | H43: ='LCF Carbon Flux'!CF5 ->  | I43: ='LCF Carbon Flux'!CG5 ->  | J43: ='LCF Carbon Flux'!CH5 ->  | K43: ='LCF Carbon Flux'!CI5 ->  | L43: ='LCF Carbon Flux'!CJ5 ->  | M43: ='LCF Carbon Flux'!CK5 ->  | N43: ='LCF Carbon Flux'!CL5 ->  | O43: ='LCF Carbon Flux'!CM5 ->  | P43: ='LCF Carbon Flux'!CN5 ->  | Q43: ='LCF Carbon Flux'!CO5 ->  | R43: ='LCF Carbon Flux'!CP5 ->  | S43: ='LCF Carbon Flux'!CQ5 ->  | T43: ='LCF Carbon Flux'!CR5 ->  | U43: ='LCF Carbon Flux'!CS5 ->  | V43: ='LCF Carbon Flux'!CT5 ->  | W43: ='LCF Carbon Flux'!CU5 ->  | X43: ='LCF Carbon Flux'!CV5 ->  | Y43: ='LCF Carbon Flux'!CW5 ->  | Z43: ='LCF Carbon Flux'!CX5 ->  | AA43: ='LCF Carbon Flux'!CY5 ->  | AB43: ='LCF Carbon Flux'!CZ5 ->  | AC43: ='LCF Carbon Flux'!DA5 ->  | AD43: ='LCF Carbon Flux'!DB5 ->  | AE43: ='LCF Carbon Flux'!DC5 ->  | AF43: ='LCF Carbon Flux'!DD5 ->  | AG43: ='LCF Carbon Flux'!DE5 ->  | AH43: ='LCF Carbon Flux'!DF5 ->  | AI43: ='LCF Carbon Flux'!DG5 ->  | AJ43: ='LCF Carbon Flux'!DH5 ->  | AK43: ='LCF Carbon Flux'!DI5 -> 
C44: Soil (Mineral) | E44: ='LCF Carbon Flux'!CC6 ->  | F44: ='LCF Carbon Flux'!CD6 ->  | G44: ='LCF Carbon Flux'!CE6 ->  | H44: ='LCF Carbon Flux'!CF6 ->  | I44: ='LCF Carbon Flux'!CG6 ->  | J44: ='LCF Carbon Flux'!CH6 ->  | K44: ='LCF Carbon Flux'!CI6 ->  | L44: ='LCF Carbon Flux'!CJ6 ->  | M44: ='LCF Carbon Flux'!CK6 ->  | N44: ='LCF Carbon Flux'!CL6 ->  | O44: ='LCF Carbon Flux'!CM6 ->  | P44: ='LCF Carbon Flux'!CN6 ->  | Q44: ='LCF Carbon Flux'!CO6 ->  | R44: ='LCF Carbon Flux'!CP6 ->  | S44: ='LCF Carbon Flux'!CQ6 ->  | T44: ='LCF Carbon Flux'!CR6 ->  | U44: ='LCF Carbon Flux'!CS6 ->  | V44: ='LCF Carbon Flux'!CT6 ->  | W44: ='LCF Carbon Flux'!CU6 ->  | X44: ='LCF Carbon Flux'!CV6 ->  | Y44: ='LCF Carbon Flux'!CW6 ->  | Z44: ='LCF Carbon Flux'!CX6 ->  | AA44: ='LCF Carbon Flux'!CY6 ->  | AB44: ='LCF Carbon Flux'!CZ6 ->  | AC44: ='LCF Carbon Flux'!DA6 ->  | AD44: ='LCF Carbon Flux'!DB6 ->  | AE44: ='LCF Carbon Flux'!DC6 ->  | AF44: ='LCF Carbon Flux'!DD6 ->  | AG44: ='LCF Carbon Flux'!DE6 ->  | AH44: ='LCF Carbon Flux'!DF6 ->  | AI44: ='LCF Carbon Flux'!DG6 ->  | AJ44: ='LCF Carbon Flux'!DH6 ->  | AK44: ='LCF Carbon Flux'!DI6 -> 
C45: Total | E45: =SUM(E40:E44) ->  | F45: =SUM(F40:F44) ->  | AJ45: =SUM(AJ40:AJ44) ->  | AK45: =SUM(AK40:AK44) ->  | AL45: 0 | AM45: 0 | AN45: 0
I47: Net Sequestration/Emissions from Other Land Converted to Forest Land
K48: MMTCO2E
E49: 1990 | F49: 1991 | G49: 1992 | H49: 1993 | I49: 1994 | J49: 1995 | K49: 1996 | L49: 1997 | M49: 1998 | N49: 1999 | O49: 2000 | P49: 2001 | Q49: 2002 | R49: 2003 | S49: 2004 | T49: 2005 | U49: 2006 | V49: 2007 | W49: 2008 | X49: 2009 | Y49: 2010 | Z49: 2011 | AA49: 2012 | AB49: 2013 | AC49: 2014 | AD49: 2015 | AE49: 2016 | AF49: 2017 | AG49: 2018 | AH49: 2019 | AI49: 2020 | AJ49: 2021 | AK49: 2022 | AL49: 2023 | AM49: 2024 | AN49: 2025
C50: Aboveground Biomass | E50: ='LCF Carbon Flux'!DP2 ->  | F50: ='LCF Carbon Flux'!DQ2 ->  | G50: ='LCF Carbon Flux'!DR2 ->  | H50: ='LCF Carbon Flux'!DS2 ->  | I50: ='LCF Carbon Flux'!DT2 ->  | J50: ='LCF Carbon Flux'!DU2 ->  | K50: ='LCF Carbon Flux'!DV2 ->  | L50: ='LCF Carbon Flux'!DW2 ->  | M50: ='LCF Carbon Flux'!DX2 ->  | N50: ='LCF Carbon Flux'!DY2 ->  | O50: ='LCF Carbon Flux'!DZ2 ->  | P50: ='LCF Carbon Flux'!EA2 ->  | Q50: ='LCF Carbon Flux'!EB2 ->  | R50: ='LCF Carbon Flux'!EC2 ->  | S50: ='LCF Carbon Flux'!ED2 ->  | T50: ='LCF Carbon Flux'!EE2 ->  | U50: ='LCF Carbon Flux'!EF2 ->  | V50: ='LCF Carbon Flux'!EG2 ->  | W50: ='LCF Carbon Flux'!EH2 ->  | X50: ='LCF Carbon Flux'!EI2 ->  | Y50: ='LCF Carbon Flux'!EJ2 ->  | Z50: ='LCF Carbon Flux'!EK2 ->  | AA50: ='LCF Carbon Flux'!EL2 ->  | AB50: ='LCF Carbon Flux'!EM2 ->  | AC50: ='LCF Carbon Flux'!EN2 ->  | AD50: ='LCF Carbon Flux'!EO2 ->  | AE50: ='LCF Carbon Flux'!EP2 ->  | AF50: ='LCF Carbon Flux'!EQ2 ->  | AG50: ='LCF Carbon Flux'!ER2 ->  | AH50: ='LCF Carbon Flux'!ES2 ->  | AI50: ='LCF Carbon Flux'!ET2 ->  | AJ50: ='LCF Carbon Flux'!EU2 ->  | AK50: ='LCF Carbon Flux'!EV2 -> 
C51: Belowground Biomass | E51: ='LCF Carbon Flux'!DP3 ->  | F51: ='LCF Carbon Flux'!DQ3 ->  | G51: ='LCF Carbon Flux'!DR3 ->  | H51: ='LCF Carbon Flux'!DS3 ->  | I51: ='LCF Carbon Flux'!DT3 ->  | J51: ='LCF Carbon Flux'!DU3 ->  | K51: ='LCF Carbon Flux'!DV3 ->  | L51: ='LCF Carbon Flux'!DW3 ->  | M51: ='LCF Carbon Flux'!DX3 ->  | N51: ='LCF Carbon Flux'!DY3 ->  | O51: ='LCF Carbon Flux'!DZ3 ->  | P51: ='LCF Carbon Flux'!EA3 ->  | Q51: ='LCF Carbon Flux'!EB3 ->  | R51: ='LCF Carbon Flux'!EC3 ->  | S51: ='LCF Carbon Flux'!ED3 ->  | T51: ='LCF Carbon Flux'!EE3 ->  | U51: ='LCF Carbon Flux'!EF3 ->  | V51: ='LCF Carbon Flux'!EG3 ->  | W51: ='LCF Carbon Flux'!EH3 ->  | X51: ='LCF Carbon Flux'!EI3 ->  | Y51: ='LCF Carbon Flux'!EJ3 ->  | Z51: ='LCF Carbon Flux'!EK3 ->  | AA51: ='LCF Carbon Flux'!EL3 ->  | AB51: ='LCF Carbon Flux'!EM3 ->  | AC51: ='LCF Carbon Flux'!EN3 ->  | AD51: ='LCF Carbon Flux'!EO3 ->  | AE51: ='LCF Carbon Flux'!EP3 ->  | AF51: ='LCF Carbon Flux'!EQ3 ->  | AG51: ='LCF Carbon Flux'!ER3 ->  | AH51: ='LCF Carbon Flux'!ES3 ->  | AI51: ='LCF Carbon Flux'!ET3 ->  | AJ51: ='LCF Carbon Flux'!EU3 ->  | AK51: ='LCF Carbon Flux'!EV3 -> 
C52: Deadwood | E52: ='LCF Carbon Flux'!DP4 ->  | F52: ='LCF Carbon Flux'!DQ4 ->  | G52: ='LCF Carbon Flux'!DR4 ->  | H52: ='LCF Carbon Flux'!DS4 ->  | I52: ='LCF Carbon Flux'!DT4 ->  | J52: ='LCF Carbon Flux'!DU4 ->  | K52: ='LCF Carbon Flux'!DV4 ->  | L52: ='LCF Carbon Flux'!DW4 ->  | M52: ='LCF Carbon Flux'!DX4 ->  | N52: ='LCF Carbon Flux'!DY4 ->  | O52: ='LCF Carbon Flux'!DZ4 ->  | P52: ='LCF Carbon Flux'!EA4 ->  | Q52: ='LCF Carbon Flux'!EB4 ->  | R52: ='LCF Carbon Flux'!EC4 ->  | S52: ='LCF Carbon Flux'!ED4 ->  | T52: ='LCF Carbon Flux'!EE4 ->  | U52: ='LCF Carbon Flux'!EF4 ->  | V52: ='LCF Carbon Flux'!EG4 ->  | W52: ='LCF Carbon Flux'!EH4 ->  | X52: ='LCF Carbon Flux'!EI4 ->  | Y52: ='LCF Carbon Flux'!EJ4 ->  | Z52: ='LCF Carbon Flux'!EK4 ->  | AA52: ='LCF Carbon Flux'!EL4 ->  | AB52: ='LCF Carbon Flux'!EM4 ->  | AC52: ='LCF Carbon Flux'!EN4 ->  | AD52: ='LCF Carbon Flux'!EO4 ->  | AE52: ='LCF Carbon Flux'!EP4 ->  | AF52: ='LCF Carbon Flux'!EQ4 ->  | AG52: ='LCF Carbon Flux'!ER4 ->  | AH52: ='LCF Carbon Flux'!ES4 ->  | AI52: ='LCF Carbon Flux'!ET4 ->  | AJ52: ='LCF Carbon Flux'!EU4 ->  | AK52: ='LCF Carbon Flux'!EV4 -> 
C53: Litter | E53: ='LCF Carbon Flux'!DP5 ->  | F53: ='LCF Carbon Flux'!DQ5 ->  | G53: ='LCF Carbon Flux'!DR5 ->  | H53: ='LCF Carbon Flux'!DS5 ->  | I53: ='LCF Carbon Flux'!DT5 ->  | J53: ='LCF Carbon Flux'!DU5 ->  | K53: ='LCF Carbon Flux'!DV5 ->  | L53: ='LCF Carbon Flux'!DW5 ->  | M53: ='LCF Carbon Flux'!DX5 ->  | N53: ='LCF Carbon Flux'!DY5 ->  | O53: ='LCF Carbon Flux'!DZ5 ->  | P53: ='LCF Carbon Flux'!EA5 ->  | Q53: ='LCF Carbon Flux'!EB5 ->  | R53: ='LCF Carbon Flux'!EC5 ->  | S53: ='LCF Carbon Flux'!ED5 ->  | T53: ='LCF Carbon Flux'!EE5 ->  | U53: ='LCF Carbon Flux'!EF5 ->  | V53: ='LCF Carbon Flux'!EG5 ->  | W53: ='LCF Carbon Flux'!EH5 ->  | X53: ='LCF Carbon Flux'!EI5 ->  | Y53: ='LCF Carbon Flux'!EJ5 ->  | Z53: ='LCF Carbon Flux'!EK5 ->  | AA53: ='LCF Carbon Flux'!EL5 ->  | AB53: ='LCF Carbon Flux'!EM5 ->  | AC53: ='LCF Carbon Flux'!EN5 ->  | AD53: ='LCF Carbon Flux'!EO5 ->  | AE53: ='LCF Carbon Flux'!EP5 ->  | AF53: ='LCF Carbon Flux'!EQ5 ->  | AG53: ='LCF Carbon Flux'!ER5 ->  | AH53: ='LCF Carbon Flux'!ES5 ->  | AI53: ='LCF Carbon Flux'!ET5 ->  | AJ53: ='LCF Carbon Flux'!EU5 ->  | AK53: ='LCF Carbon Flux'!EV5 -> 
C54: Soil (Mineral) | E54: ='LCF Carbon Flux'!DP6 ->  | F54: ='LCF Carbon Flux'!DQ6 ->  | G54: ='LCF Carbon Flux'!DR6 ->  | H54: ='LCF Carbon Flux'!DS6 ->  | I54: ='LCF Carbon Flux'!DT6 ->  | J54: ='LCF Carbon Flux'!DU6 ->  | K54: ='LCF Carbon Flux'!DV6 ->  | L54: ='LCF Carbon Flux'!DW6 ->  | M54: ='LCF Carbon Flux'!DX6 ->  | N54: ='LCF Carbon Flux'!DY6 ->  | O54: ='LCF Carbon Flux'!DZ6 ->  | P54: ='LCF Carbon Flux'!EA6 ->  | Q54: ='LCF Carbon Flux'!EB6 ->  | R54: ='LCF Carbon Flux'!EC6 ->  | S54: ='LCF Carbon Flux'!ED6 ->  | T54: ='LCF Carbon Flux'!EE6 ->  | U54: ='LCF Carbon Flux'!EF6 ->  | V54: ='LCF Carbon Flux'!EG6 ->  | W54: ='LCF Carbon Flux'!EH6 ->  | X54: ='LCF Carbon Flux'!EI6 ->  | Y54: ='LCF Carbon Flux'!EJ6 ->  | Z54: ='LCF Carbon Flux'!EK6 ->  | AA54: ='LCF Carbon Flux'!EL6 ->  | AB54: ='LCF Carbon Flux'!EM6 ->  | AC54: ='LCF Carbon Flux'!EN6 ->  | AD54: ='LCF Carbon Flux'!EO6 ->  | AE54: ='LCF Carbon Flux'!EP6 ->  | AF54: ='LCF Carbon Flux'!EQ6 ->  | AG54: ='LCF Carbon Flux'!ER6 ->  | AH54: ='LCF Carbon Flux'!ES6 ->  | AI54: ='LCF Carbon Flux'!ET6 ->  | AJ54: ='LCF Carbon Flux'!EU6 ->  | AK54: ='LCF Carbon Flux'!EV6 -> 
C55: Total | E55: =SUM(E50:E54) ->  | F55: =SUM(F50:F54) ->  | AJ55: =SUM(AJ50:AJ54) ->  | AK55: =SUM(AK50:AK54) ->  | AL55: 0 | AM55: 0 | AN55: 0
I57: Net Sequestration/Emissions from Wetlands Converted to Forest Land
K58: MMTCO2E
E59: 1990 | F59: 1991 | G59: 1992 | H59: 1993 | I59: 1994 | J59: 1995 | K59: 1996 | L59: 1997 | M59: 1998 | N59: 1999 | O59: 2000 | P59: 2001 | Q59: 2002 | R59: 2003 | S59: 2004 | T59: 2005 | U59: 2006 | V59: 2007 | W59: 2008 | X59: 2009 | Y59: 2010 | Z59: 2011 | AA59: 2012 | AB59: 2013 | AC59: 2014 | AD59: 2015 | AE59: 2016 | AF59: 2017 | AG59: 2018 | AH59: 2019 | AI59: 2020 | AJ59: 2021 | AK59: 2022 | AL59: 2023 | AM59: 2024 | AN59: 2025
C60: Aboveground Biomass | E60: ='LCF Carbon Flux'!FC2 ->  | F60: ='LCF Carbon Flux'!FD2 ->  | G60: ='LCF Carbon Flux'!FE2 ->  | H60: ='LCF Carbon Flux'!FF2 ->  | I60: ='LCF Carbon Flux'!FG2 ->  | J60: ='LCF Carbon Flux'!FH2 ->  | K60: ='LCF Carbon Flux'!FI2 ->  | L60: ='LCF Carbon Flux'!FJ2 ->  | M60: ='LCF Carbon Flux'!FK2 ->  | N60: ='LCF Carbon Flux'!FL2 ->  | O60: ='LCF Carbon Flux'!FM2 ->  | P60: ='LCF Carbon Flux'!FN2 ->  | Q60: ='LCF Carbon Flux'!FO2 ->  | R60: ='LCF Carbon Flux'!FP2 ->  | S60: ='LCF Carbon Flux'!FQ2 ->  | T60: ='LCF Carbon Flux'!FR2 ->  | U60: ='LCF Carbon Flux'!FS2 ->  | V60: ='LCF Carbon Flux'!FT2 ->  | W60: ='LCF Carbon Flux'!FU2 ->  | X60: ='LCF Carbon Flux'!FV2 ->  | Y60: ='LCF Carbon Flux'!FW2 ->  | Z60: ='LCF Carbon Flux'!FX2 ->  | AA60: ='LCF Carbon Flux'!FY2 ->  | AB60: ='LCF Carbon Flux'!FZ2 ->  | AC60: ='LCF Carbon Flux'!GA2 ->  | AD60: ='LCF Carbon Flux'!GB2 ->  | AE60: ='LCF Carbon Flux'!GC2 ->  | AF60: ='LCF Carbon Flux'!GD2 ->  | AG60: ='LCF Carbon Flux'!GE2 ->  | AH60: ='LCF Carbon Flux'!GF2 ->  | AI60: ='LCF Carbon Flux'!GG2 ->  | AJ60: ='LCF Carbon Flux'!GH2 ->  | AK60: ='LCF Carbon Flux'!GI2 -> 
C61: Belowground Biomass | E61: ='LCF Carbon Flux'!FC3 ->  | F61: ='LCF Carbon Flux'!FD3 ->  | G61: ='LCF Carbon Flux'!FE3 ->  | H61: ='LCF Carbon Flux'!FF3 ->  | I61: ='LCF Carbon Flux'!FG3 ->  | J61: ='LCF Carbon Flux'!FH3 ->  | K61: ='LCF Carbon Flux'!FI3 ->  | L61: ='LCF Carbon Flux'!FJ3 ->  | M61: ='LCF Carbon Flux'!FK3 ->  | N61: ='LCF Carbon Flux'!FL3 ->  | O61: ='LCF Carbon Flux'!FM3 ->  | P61: ='LCF Carbon Flux'!FN3 ->  | Q61: ='LCF Carbon Flux'!FO3 ->  | R61: ='LCF Carbon Flux'!FP3 ->  | S61: ='LCF Carbon Flux'!FQ3 ->  | T61: ='LCF Carbon Flux'!FR3 ->  | U61: ='LCF Carbon Flux'!FS3 ->  | V61: ='LCF Carbon Flux'!FT3 ->  | W61: ='LCF Carbon Flux'!FU3 ->  | X61: ='LCF Carbon Flux'!FV3 ->  | Y61: ='LCF Carbon Flux'!FW3 ->  | Z61: ='LCF Carbon Flux'!FX3 ->  | AA61: ='LCF Carbon Flux'!FY3 ->  | AB61: ='LCF Carbon Flux'!FZ3 ->  | AC61: ='LCF Carbon Flux'!GA3 ->  | AD61: ='LCF Carbon Flux'!GB3 ->  | AE61: ='LCF Carbon Flux'!GC3 ->  | AF61: ='LCF Carbon Flux'!GD3 ->  | AG61: ='LCF Carbon Flux'!GE3 ->  | AH61: ='LCF Carbon Flux'!GF3 ->  | AI61: ='LCF Carbon Flux'!GG3 ->  | AJ61: ='LCF Carbon Flux'!GH3 ->  | AK61: ='LCF Carbon Flux'!GI3 -> 
C62: Deadwood | E62: ='LCF Carbon Flux'!FC4 ->  | F62: ='LCF Carbon Flux'!FD4 ->  | G62: ='LCF Carbon Flux'!FE4 ->  | H62: ='LCF Carbon Flux'!FF4 ->  | I62: ='LCF Carbon Flux'!FG4 ->  | J62: ='LCF Carbon Flux'!FH4 ->  | K62: ='LCF Carbon Flux'!FI4 ->  | L62: ='LCF Carbon Flux'!FJ4 ->  | M62: ='LCF Carbon Flux'!FK4 ->  | N62: ='LCF Carbon Flux'!FL4 ->  | O62: ='LCF Carbon Flux'!FM4 ->  | P62: ='LCF Carbon Flux'!FN4 ->  | Q62: ='LCF Carbon Flux'!FO4 ->  | R62: ='LCF Carbon Flux'!FP4 ->  | S62: ='LCF Carbon Flux'!FQ4 ->  | T62: ='LCF Carbon Flux'!FR4 ->  | U62: ='LCF Carbon Flux'!FS4 ->  | V62: ='LCF Carbon Flux'!FT4 ->  | W62: ='LCF Carbon Flux'!FU4 ->  | X62: ='LCF Carbon Flux'!FV4 ->  | Y62: ='LCF Carbon Flux'!FW4 ->  | Z62: ='LCF Carbon Flux'!FX4 ->  | AA62: ='LCF Carbon Flux'!FY4 ->  | AB62: ='LCF Carbon Flux'!FZ4 ->  | AC62: ='LCF Carbon Flux'!GA4 ->  | AD62: ='LCF Carbon Flux'!GB4 ->  | AE62: ='LCF Carbon Flux'!GC4 ->  | AF62: ='LCF Carbon Flux'!GD4 ->  | AG62: ='LCF Carbon Flux'!GE4 ->  | AH62: ='LCF Carbon Flux'!GF4 ->  | AI62: ='LCF Carbon Flux'!GG4 ->  | AJ62: ='LCF Carbon Flux'!GH4 ->  | AK62: ='LCF Carbon Flux'!GI4 -> 
C63: Litter | E63: ='LCF Carbon Flux'!FC5 ->  | F63: ='LCF Carbon Flux'!FD5 ->  | G63: ='LCF Carbon Flux'!FE5 ->  | H63: ='LCF Carbon Flux'!FF5 ->  | I63: ='LCF Carbon Flux'!FG5 ->  | J63: ='LCF Carbon Flux'!FH5 ->  | K63: ='LCF Carbon Flux'!FI5 ->  | L63: ='LCF Carbon Flux'!FJ5 ->  | M63: ='LCF Carbon Flux'!FK5 ->  | N63: ='LCF Carbon Flux'!FL5 ->  | O63: ='LCF Carbon Flux'!FM5 ->  | P63: ='LCF Carbon Flux'!FN5 ->  | Q63: ='LCF Carbon Flux'!FO5 ->  | R63: ='LCF Carbon Flux'!FP5 ->  | S63: ='LCF Carbon Flux'!FQ5 ->  | T63: ='LCF Carbon Flux'!FR5 ->  | U63: ='LCF Carbon Flux'!FS5 ->  | V63: ='LCF Carbon Flux'!FT5 ->  | W63: ='LCF Carbon Flux'!FU5 ->  | X63: ='LCF Carbon Flux'!FV5 ->  | Y63: ='LCF Carbon Flux'!FW5 ->  | Z63: ='LCF Carbon Flux'!FX5 ->  | AA63: ='LCF Carbon Flux'!FY5 ->  | AB63: ='LCF Carbon Flux'!FZ5 ->  | AC63: ='LCF Carbon Flux'!GA5 ->  | AD63: ='LCF Carbon Flux'!GB5 ->  | AE63: ='LCF Carbon Flux'!GC5 ->  | AF63: ='LCF Carbon Flux'!GD5 ->  | AG63: ='LCF Carbon Flux'!GE5 ->  | AH63: ='LCF Carbon Flux'!GF5 ->  | AI63: ='LCF Carbon Flux'!GG5 ->  | AJ63: ='LCF Carbon Flux'!GH5 ->  | AK63: ='LCF Carbon Flux'!GI5 -> 
C64: Soil (Mineral) | E64: ='LCF Carbon Flux'!FC6 ->  | F64: ='LCF Carbon Flux'!FD6 ->  | G64: ='LCF Carbon Flux'!FE6 ->  | H64: ='LCF Carbon Flux'!FF6 ->  | I64: ='LCF Carbon Flux'!FG6 ->  | J64: ='LCF Carbon Flux'!FH6 ->  | K64: ='LCF Carbon Flux'!FI6 ->  | L64: ='LCF Carbon Flux'!FJ6 ->  | M64: ='LCF Carbon Flux'!FK6 ->  | N64: ='LCF Carbon Flux'!FL6 ->  | O64: ='LCF Carbon Flux'!FM6 ->  | P64: ='LCF Carbon Flux'!FN6 ->  | Q64: ='LCF Carbon Flux'!FO6 ->  | R64: ='LCF Carbon Flux'!FP6 ->  | S64: ='LCF Carbon Flux'!FQ6 ->  | T64: ='LCF Carbon Flux'!FR6 ->  | U64: ='LCF Carbon Flux'!FS6 ->  | V64: ='LCF Carbon Flux'!FT6 ->  | W64: ='LCF Carbon Flux'!FU6 ->  | X64: ='LCF Carbon Flux'!FV6 ->  | Y64: ='LCF Carbon Flux'!FW6 ->  | Z64: ='LCF Carbon Flux'!FX6 ->  | AA64: ='LCF Carbon Flux'!FY6 ->  | AB64: ='LCF Carbon Flux'!FZ6 ->  | AC64: ='LCF Carbon Flux'!GA6 ->  | AD64: ='LCF Carbon Flux'!GB6 ->  | AE64: ='LCF Carbon Flux'!GC6 ->  | AF64: ='LCF Carbon Flux'!GD6 ->  | AG64: ='LCF Carbon Flux'!GE6 ->  | AH64: ='LCF Carbon Flux'!GF6 ->  | AI64: ='LCF Carbon Flux'!GG6 ->  | AJ64: ='LCF Carbon Flux'!GH6 ->  | AK64: ='LCF Carbon Flux'!GI6 -> 
C65: Total | E65: =SUM(E60:E64) ->  | F65: =SUM(F60:F64) ->  | AK65: =SUM(AK60:AK64) ->  | AL65: 0 | AM65: 0 | AN65: 0

Sheet Forest Land Converted to Land
A1: ="2c. Forest Land Converted to Land in "&StateName -> 2c. Forest Land Converted to Land in Select a State . . .
A5: Default data for Aboveground and Belowground Biomass, Dead Wood, Litter, and Soil Carbon
I6: Net Sequestration/Emissions from Forest Land Converted to Land
K7: MMTCO2E
E8: 1990 | F8: 1991 | G8: 1992 | H8: 1993 | I8: 1994 | J8: 1995 | K8: 1996 | L8: 1997 | M8: 1998 | N8: 1999 | O8: 2000 | P8: 2001 | Q8: 2002 | R8: 2003 | S8: 2004 | T8: 2005 | U8: 2006 | V8: 2007 | W8: 2008 | X8: 2009 | Y8: 2010 | Z8: 2011 | AA8: 2012 | AB8: 2013 | AC8: 2014 | AD8: 2015 | AE8: 2016 | AF8: 2017 | AG8: 2018 | AH8: 2019 | AI8: 2020 | AJ8: 2021 | AK8: 2022 | AL8: 2023 | AM8: 2024 | AN8: 2025
C9: Aboveground Biomass | E9: =SUM(E20,E30,E40) ->  | F9: =SUM(F20,F30,F40) ->  | AJ9: =SUM(AJ20,AJ30,AJ40) ->  | AL9: 0 | AM9: 0 | AN9: 0
C10: Belowground Biomass | E10: =SUM(E21,E31,E41) ->  | AJ10: =SUM(AJ21,AJ31,AJ41) ->  | AL10: 0 | AM10: 0 | AN10: 0
C11: Deadwood | AJ11: =SUM(AJ22,AJ32,AJ42) ->  | AL11: 0 | AM11: 0 | AN11: 0
C12: Litter | AJ12: =SUM(AJ23,AJ33,AJ43) ->  | AL12: 0 | AM12: 0 | AN12: 0
C13: Soil (Mineral) | AJ13: =SUM(AJ24,AJ34,AJ44) ->  | AL13: 0 | AM13: 0 | AN13: 0
C14: Total | E14: =SUM(E9:E13) ->  | F14: =SUM(F9:F13) ->  | AJ14: =SUM(AJ9:AJ13) ->  | AL14: 0 | AM14: 0 | AN14: 0
A16: Subtotals by Land-Use Change Category
I17: Net Sequestration/Emissions from Forest Land Converted to Other Land
K18: MMTCO2E
E19: 1990 | F19: 1991 | G19: 1992 | H19: 1993 | I19: 1994 | J19: 1995 | K19: 1996 | L19: 1997 | M19: 1998 | N19: 1999 | O19: 2000 | P19: 2001 | Q19: 2002 | R19: 2003 | S19: 2004 | T19: 2005 | U19: 2006 | V19: 2007 | W19: 2008 | X19: 2009 | Y19: 2010 | Z19: 2011 | AA19: 2012 | AB19: 2013 | AC19: 2014 | AD19: 2015 | AE19: 2016 | AF19: 2017 | AG19: 2018 | AH19: 2019 | AI19: 2020 | AJ19: 2021 | AK19: 2022 | AL19: 2023 | AM19: 2024 | AN19: 2025
C20: Aboveground Biomass | E20: ='FCL Carbon Flux'!C2 ->  | F20: ='FCL Carbon Flux'!D2 ->  | G20: ='FCL Carbon Flux'!E2 ->  | H20: ='FCL Carbon Flux'!F2 ->  | I20: ='FCL Carbon Flux'!G2 ->  | J20: ='FCL Carbon Flux'!H2 ->  | K20: ='FCL Carbon Flux'!I2 ->  | L20: ='FCL Carbon Flux'!J2 ->  | M20: ='FCL Carbon Flux'!K2 ->  | N20: ='FCL Carbon Flux'!L2 ->  | O20: ='FCL Carbon Flux'!M2 ->  | P20: ='FCL Carbon Flux'!N2 ->  | Q20: ='FCL Carbon Flux'!O2 ->  | R20: ='FCL Carbon Flux'!P2 ->  | S20: ='FCL Carbon Flux'!Q2 ->  | T20: ='FCL Carbon Flux'!R2 ->  | U20: ='FCL Carbon Flux'!S2 ->  | V20: ='FCL Carbon Flux'!T2 ->  | W20: ='FCL Carbon Flux'!U2 ->  | X20: ='FCL Carbon Flux'!V2 ->  | Y20: ='FCL Carbon Flux'!W2 ->  | Z20: ='FCL Carbon Flux'!X2 ->  | AA20: ='FCL Carbon Flux'!Y2 ->  | AB20: ='FCL Carbon Flux'!Z2 ->  | AC20: ='FCL Carbon Flux'!AA2 ->  | AD20: ='FCL Carbon Flux'!AB2 ->  | AE20: ='FCL Carbon Flux'!AC2 ->  | AF20: ='FCL Carbon Flux'!AD2 ->  | AG20: ='FCL Carbon Flux'!AE2 ->  | AH20: ='FCL Carbon Flux'!AF2 ->  | AI20: ='FCL Carbon Flux'!AG2 ->  | AJ20: ='FCL Carbon Flux'!AH2 ->  | AK20: ='FCL Carbon Flux'!AI2 -> 
C21: Belowground Biomass | E21: ='FCL Carbon Flux'!C3 ->  | F21: ='FCL Carbon Flux'!D3 ->  | G21: ='FCL Carbon Flux'!E3 ->  | H21: ='FCL Carbon Flux'!F3 ->  | I21: ='FCL Carbon Flux'!G3 ->  | J21: ='FCL Carbon Flux'!H3 ->  | K21: ='FCL Carbon Flux'!I3 ->  | L21: ='FCL Carbon Flux'!J3 ->  | M21: ='FCL Carbon Flux'!K3 ->  | N21: ='FCL Carbon Flux'!L3 ->  | O21: ='FCL Carbon Flux'!M3 ->  | P21: ='FCL Carbon Flux'!N3 ->  | Q21: ='FCL Carbon Flux'!O3 ->  | R21: ='FCL Carbon Flux'!P3 ->  | S21: ='FCL Carbon Flux'!Q3 ->  | T21: ='FCL Carbon Flux'!R3 ->  | U21: ='FCL Carbon Flux'!S3 ->  | V21: ='FCL Carbon Flux'!T3 ->  | W21: ='FCL Carbon Flux'!U3 ->  | X21: ='FCL Carbon Flux'!V3 ->  | Y21: ='FCL Carbon Flux'!W3 ->  | Z21: ='FCL Carbon Flux'!X3 ->  | AA21: ='FCL Carbon Flux'!Y3 ->  | AB21: ='FCL Carbon Flux'!Z3 ->  | AC21: ='FCL Carbon Flux'!AA3 ->  | AD21: ='FCL Carbon Flux'!AB3 ->  | AE21: ='FCL Carbon Flux'!AC3 ->  | AF21: ='FCL Carbon Flux'!AD3 ->  | AG21: ='FCL Carbon Flux'!AE3 ->  | AH21: ='FCL Carbon Flux'!AF3 ->  | AI21: ='FCL Carbon Flux'!AG3 ->  | AJ21: ='FCL Carbon Flux'!AH3 ->  | AK21: ='FCL Carbon Flux'!AI3 -> 
C22: Deadwood | E22: ='FCL Carbon Flux'!C4 ->  | F22: ='FCL Carbon Flux'!D4 ->  | G22: ='FCL Carbon Flux'!E4 ->  | H22: ='FCL Carbon Flux'!F4 ->  | I22: ='FCL Carbon Flux'!G4 ->  | J22: ='FCL Carbon Flux'!H4 ->  | K22: ='FCL Carbon Flux'!I4 ->  | L22: ='FCL Carbon Flux'!J4 ->  | M22: ='FCL Carbon Flux'!K4 ->  | N22: ='FCL Carbon Flux'!L4 ->  | O22: ='FCL Carbon Flux'!M4 ->  | P22: ='FCL Carbon Flux'!N4 ->  | Q22: ='FCL Carbon Flux'!O4 ->  | R22: ='FCL Carbon Flux'!P4 ->  | S22: ='FCL Carbon Flux'!Q4 ->  | T22: ='FCL Carbon Flux'!R4 ->  | U22: ='FCL Carbon Flux'!S4 ->  | V22: ='FCL Carbon Flux'!T4 ->  | W22: ='FCL Carbon Flux'!U4 ->  | X22: ='FCL Carbon Flux'!V4 ->  | Y22: ='FCL Carbon Flux'!W4 ->  | Z22: ='FCL Carbon Flux'!X4 ->  | AA22: ='FCL Carbon Flux'!Y4 ->  | AB22: ='FCL Carbon Flux'!Z4 ->  | AC22: ='FCL Carbon Flux'!AA4 ->  | AD22: ='FCL Carbon Flux'!AB4 ->  | AE22: ='FCL Carbon Flux'!AC4 ->  | AF22: ='FCL Carbon Flux'!AD4 ->  | AG22: ='FCL Carbon Flux'!AE4 ->  | AH22: ='FCL Carbon Flux'!AF4 ->  | AI22: ='FCL Carbon Flux'!AG4 ->  | AJ22: ='FCL Carbon Flux'!AH4 ->  | AK22: ='FCL Carbon Flux'!AI4 -> 
C23: Litter | E23: ='FCL Carbon Flux'!C5 ->  | F23: ='FCL Carbon Flux'!D5 ->  | G23: ='FCL Carbon Flux'!E5 ->  | H23: ='FCL Carbon Flux'!F5 ->  | I23: ='FCL Carbon Flux'!G5 ->  | J23: ='FCL Carbon Flux'!H5 ->  | K23: ='FCL Carbon Flux'!I5 ->  | L23: ='FCL Carbon Flux'!J5 ->  | M23: ='FCL Carbon Flux'!K5 ->  | N23: ='FCL Carbon Flux'!L5 ->  | O23: ='FCL Carbon Flux'!M5 ->  | P23: ='FCL Carbon Flux'!N5 ->  | Q23: ='FCL Carbon Flux'!O5 ->  | R23: ='FCL Carbon Flux'!P5 ->  | S23: ='FCL Carbon Flux'!Q5 ->  | T23: ='FCL Carbon Flux'!R5 ->  | U23: ='FCL Carbon Flux'!S5 ->  | V23: ='FCL Carbon Flux'!T5 ->  | W23: ='FCL Carbon Flux'!U5 ->  | X23: ='FCL Carbon Flux'!V5 ->  | Y23: ='FCL Carbon Flux'!W5 ->  | Z23: ='FCL Carbon Flux'!X5 ->  | AA23: ='FCL Carbon Flux'!Y5 ->  | AB23: ='FCL Carbon Flux'!Z5 ->  | AC23: ='FCL Carbon Flux'!AA5 ->  | AD23: ='FCL Carbon Flux'!AB5 ->  | AE23: ='FCL Carbon Flux'!AC5 ->  | AF23: ='FCL Carbon Flux'!AD5 ->  | AG23: ='FCL Carbon Flux'!AE5 ->  | AH23: ='FCL Carbon Flux'!AF5 ->  | AI23: ='FCL Carbon Flux'!AG5 ->  | AJ23: ='FCL Carbon Flux'!AH5 ->  | AK23: ='FCL Carbon Flux'!AI5 -> 
C24: Soil (Mineral) | E24: ='FCL Carbon Flux'!C6 ->  | F24: ='FCL Carbon Flux'!D6 ->  | G24: ='FCL Carbon Flux'!E6 ->  | H24: ='FCL Carbon Flux'!F6 ->  | I24: ='FCL Carbon Flux'!G6 ->  | J24: ='FCL Carbon Flux'!H6 ->  | K24: ='FCL Carbon Flux'!I6 ->  | L24: ='FCL Carbon Flux'!J6 ->  | M24: ='FCL Carbon Flux'!K6 ->  | N24: ='FCL Carbon Flux'!L6 ->  | O24: ='FCL Carbon Flux'!M6 ->  | P24: ='FCL Carbon Flux'!N6 ->  | Q24: ='FCL Carbon Flux'!O6 ->  | R24: ='FCL Carbon Flux'!P6 ->  | S24: ='FCL Carbon Flux'!Q6 ->  | T24: ='FCL Carbon Flux'!R6 ->  | U24: ='FCL Carbon Flux'!S6 ->  | V24: ='FCL Carbon Flux'!T6 ->  | W24: ='FCL Carbon Flux'!U6 ->  | X24: ='FCL Carbon Flux'!V6 ->  | Y24: ='FCL Carbon Flux'!W6 ->  | Z24: ='FCL Carbon Flux'!X6 ->  | AA24: ='FCL Carbon Flux'!Y6 ->  | AB24: ='FCL Carbon Flux'!Z6 ->  | AC24: ='FCL Carbon Flux'!AA6 ->  | AD24: ='FCL Carbon Flux'!AB6 ->  | AE24: ='FCL Carbon Flux'!AC6 ->  | AF24: ='FCL Carbon Flux'!AD6 ->  | AG24: ='FCL Carbon Flux'!AE6 ->  | AH24: ='FCL Carbon Flux'!AF6 ->  | AI24: ='FCL Carbon Flux'!AG6 ->  | AJ24: ='FCL Carbon Flux'!AH6 ->  | AK24: ='FCL Carbon Flux'!AI6 -> 
C25: Total | E25: =SUM(E20:E24) ->  | F25: =SUM(F20:F24) ->  | AJ25: =SUM(AJ20:AJ24) ->  | AK25: =SUM(AK20:AK24) ->  | AL25: 0 | AM25: 0 | AN25: 0
I27: Net Sequestration/Emissions from Forest Land Converted to Settlements
K28: MMTCO2E
E29: 1990 | F29: 1991 | G29: 1992 | H29: 1993 | I29: 1994 | J29: 1995 | K29: 1996 | L29: 1997 | M29: 1998 | N29: 1999 | O29: 2000 | P29: 2001 | Q29: 2002 | R29: 2003 | S29: 2004 | T29: 2005 | U29: 2006 | V29: 2007 | W29: 2008 | X29: 2009 | Y29: 2010 | Z29: 2011 | AA29: 2012 | AB29: 2013 | AC29: 2014 | AD29: 2015 | AE29: 2016 | AF29: 2017 | AG29: 2018 | AH29: 2019 | AI29: 2020 | AJ29: 2021 | AK29: 2022 | AL29: 2023 | AM29: 2024 | AN29: 2025
C30: Aboveground Biomass | E30: ='FCL Carbon Flux'!AP2 ->  | F30: ='FCL Carbon Flux'!AQ2 ->  | G30: ='FCL Carbon Flux'!AR2 ->  | H30: ='FCL Carbon Flux'!AS2 ->  | I30: ='FCL Carbon Flux'!AT2 ->  | J30: ='FCL Carbon Flux'!AU2 ->  | K30: ='FCL Carbon Flux'!AV2 ->  | L30: ='FCL Carbon Flux'!AW2 ->  | M30: ='FCL Carbon Flux'!AX2 ->  | N30: ='FCL Carbon Flux'!AY2 ->  | O30: ='FCL Carbon Flux'!AZ2 ->  | P30: ='FCL Carbon Flux'!BA2 ->  | Q30: ='FCL Carbon Flux'!BB2 ->  | R30: ='FCL Carbon Flux'!BC2 ->  | S30: ='FCL Carbon Flux'!BD2 ->  | T30: ='FCL Carbon Flux'!BE2 ->  | U30: ='FCL Carbon Flux'!BF2 ->  | V30: ='FCL Carbon Flux'!BG2 ->  | W30: ='FCL Carbon Flux'!BH2 ->  | X30: ='FCL Carbon Flux'!BI2 ->  | Y30: ='FCL Carbon Flux'!BJ2 ->  | Z30: ='FCL Carbon Flux'!BK2 ->  | AA30: ='FCL Carbon Flux'!BL2 ->  | AB30: ='FCL Carbon Flux'!BM2 ->  | AC30: ='FCL Carbon Flux'!BN2 ->  | AD30: ='FCL Carbon Flux'!BO2 ->  | AE30: ='FCL Carbon Flux'!BP2 ->  | AF30: ='FCL Carbon Flux'!BQ2 ->  | AG30: ='FCL Carbon Flux'!BR2 ->  | AH30: ='FCL Carbon Flux'!BS2 ->  | AI30: ='FCL Carbon Flux'!BT2 ->  | AJ30: ='FCL Carbon Flux'!BU2 ->  | AK30: ='FCL Carbon Flux'!BV2 -> 
C31: Belowground Biomass | E31: ='FCL Carbon Flux'!AP3 ->  | F31: ='FCL Carbon Flux'!AQ3 ->  | G31: ='FCL Carbon Flux'!AR3 ->  | H31: ='FCL Carbon Flux'!AS3 ->  | I31: ='FCL Carbon Flux'!AT3 ->  | J31: ='FCL Carbon Flux'!AU3 ->  | K31: ='FCL Carbon Flux'!AV3 ->  | L31: ='FCL Carbon Flux'!AW3 ->  | M31: ='FCL Carbon Flux'!AX3 ->  | N31: ='FCL Carbon Flux'!AY3 ->  | O31: ='FCL Carbon Flux'!AZ3 ->  | P31: ='FCL Carbon Flux'!BA3 ->  | Q31: ='FCL Carbon Flux'!BB3 ->  | R31: ='FCL Carbon Flux'!BC3 ->  | S31: ='FCL Carbon Flux'!BD3 ->  | T31: ='FCL Carbon Flux'!BE3 ->  | U31: ='FCL Carbon Flux'!BF3 ->  | V31: ='FCL Carbon Flux'!BG3 ->  | W31: ='FCL Carbon Flux'!BH3 ->  | X31: ='FCL Carbon Flux'!BI3 ->  | Y31: ='FCL Carbon Flux'!BJ3 ->  | Z31: ='FCL Carbon Flux'!BK3 ->  | AA31: ='FCL Carbon Flux'!BL3 ->  | AB31: ='FCL Carbon Flux'!BM3 ->  | AC31: ='FCL Carbon Flux'!BN3 ->  | AD31: ='FCL Carbon Flux'!BO3 ->  | AE31: ='FCL Carbon Flux'!BP3 ->  | AF31: ='FCL Carbon Flux'!BQ3 ->  | AG31: ='FCL Carbon Flux'!BR3 ->  | AH31: ='FCL Carbon Flux'!BS3 ->  | AI31: ='FCL Carbon Flux'!BT3 ->  | AJ31: ='FCL Carbon Flux'!BU3 ->  | AK31: ='FCL Carbon Flux'!BV3 -> 
C32: Deadwood | E32: ='FCL Carbon Flux'!AP4 ->  | F32: ='FCL Carbon Flux'!AQ4 ->  | G32: ='FCL Carbon Flux'!AR4 ->  | H32: ='FCL Carbon Flux'!AS4 ->  | I32: ='FCL Carbon Flux'!AT4 ->  | J32: ='FCL Carbon Flux'!AU4 ->  | K32: ='FCL Carbon Flux'!AV4 ->  | L32: ='FCL Carbon Flux'!AW4 ->  | M32: ='FCL Carbon Flux'!AX4 ->  | N32: ='FCL Carbon Flux'!AY4 ->  | O32: ='FCL Carbon Flux'!AZ4 ->  | P32: ='FCL Carbon Flux'!BA4 ->  | Q32: ='FCL Carbon Flux'!BB4 ->  | R32: ='FCL Carbon Flux'!BC4 ->  | S32: ='FCL Carbon Flux'!BD4 ->  | T32: ='FCL Carbon Flux'!BE4 ->  | U32: ='FCL Carbon Flux'!BF4 ->  | V32: ='FCL Carbon Flux'!BG4 ->  | W32: ='FCL Carbon Flux'!BH4 ->  | X32: ='FCL Carbon Flux'!BI4 ->  | Y32: ='FCL Carbon Flux'!BJ4 ->  | Z32: ='FCL Carbon Flux'!BK4 ->  | AA32: ='FCL Carbon Flux'!BL4 ->  | AB32: ='FCL Carbon Flux'!BM4 ->  | AC32: ='FCL Carbon Flux'!BN4 ->  | AD32: ='FCL Carbon Flux'!BO4 ->  | AE32: ='FCL Carbon Flux'!BP4 ->  | AF32: ='FCL Carbon Flux'!BQ4 ->  | AG32: ='FCL Carbon Flux'!BR4 ->  | AH32: ='FCL Carbon Flux'!BS4 ->  | AI32: ='FCL Carbon Flux'!BT4 ->  | AJ32: ='FCL Carbon Flux'!BU4 ->  | AK32: ='FCL Carbon Flux'!BV4 -> 
C33: Litter | E33: ='FCL Carbon Flux'!AP5 ->  | F33: ='FCL Carbon Flux'!AQ5 ->  | G33: ='FCL Carbon Flux'!AR5 ->  | H33: ='FCL Carbon Flux'!AS5 ->  | I33: ='FCL Carbon Flux'!AT5 ->  | J33: ='FCL Carbon Flux'!AU5 ->  | K33: ='FCL Carbon Flux'!AV5 ->  | L33: ='FCL Carbon Flux'!AW5 ->  | M33: ='FCL Carbon Flux'!AX5 ->  | N33: ='FCL Carbon Flux'!AY5 ->  | O33: ='FCL Carbon Flux'!AZ5 ->  | P33: ='FCL Carbon Flux'!BA5 ->  | Q33: ='FCL Carbon Flux'!BB5 ->  | R33: ='FCL Carbon Flux'!BC5 ->  | S33: ='FCL Carbon Flux'!BD5 ->  | T33: ='FCL Carbon Flux'!BE5 ->  | U33: ='FCL Carbon Flux'!BF5 ->  | V33: ='FCL Carbon Flux'!BG5 ->  | W33: ='FCL Carbon Flux'!BH5 ->  | X33: ='FCL Carbon Flux'!BI5 ->  | Y33: ='FCL Carbon Flux'!BJ5 ->  | Z33: ='FCL Carbon Flux'!BK5 ->  | AA33: ='FCL Carbon Flux'!BL5 ->  | AB33: ='FCL Carbon Flux'!BM5 ->  | AC33: ='FCL Carbon Flux'!BN5 ->  | AD33: ='FCL Carbon Flux'!BO5 ->  | AE33: ='FCL Carbon Flux'!BP5 ->  | AF33: ='FCL Carbon Flux'!BQ5 ->  | AG33: ='FCL Carbon Flux'!BR5 ->  | AH33: ='FCL Carbon Flux'!BS5 ->  | AI33: ='FCL Carbon Flux'!BT5 ->  | AJ33: ='FCL Carbon Flux'!BU5 ->  | AK33: ='FCL Carbon Flux'!BV5 -> 
C34: Soil (Mineral) | E34: ='FCL Carbon Flux'!AP6 ->  | F34: ='FCL Carbon Flux'!AQ6 ->  | G34: ='FCL Carbon Flux'!AR6 ->  | H34: ='FCL Carbon Flux'!AS6 ->  | I34: ='FCL Carbon Flux'!AT6 ->  | J34: ='FCL Carbon Flux'!AU6 ->  | K34: ='FCL Carbon Flux'!AV6 ->  | L34: ='FCL Carbon Flux'!AW6 ->  | M34: ='FCL Carbon Flux'!AX6 ->  | N34: ='FCL Carbon Flux'!AY6 ->  | O34: ='FCL Carbon Flux'!AZ6 ->  | P34: ='FCL Carbon Flux'!BA6 ->  | Q34: ='FCL Carbon Flux'!BB6 ->  | R34: ='FCL Carbon Flux'!BC6 ->  | S34: ='FCL Carbon Flux'!BD6 ->  | T34: ='FCL Carbon Flux'!BE6 ->  | U34: ='FCL Carbon Flux'!BF6 ->  | V34: ='FCL Carbon Flux'!BG6 ->  | W34: ='FCL Carbon Flux'!BH6 ->  | X34: ='FCL Carbon Flux'!BI6 ->  | Y34: ='FCL Carbon Flux'!BJ6 ->  | Z34: ='FCL Carbon Flux'!BK6 ->  | AA34: ='FCL Carbon Flux'!BL6 ->  | AB34: ='FCL Carbon Flux'!BM6 ->  | AC34: ='FCL Carbon Flux'!BN6 ->  | AD34: ='FCL Carbon Flux'!BO6 ->  | AE34: ='FCL Carbon Flux'!BP6 ->  | AF34: ='FCL Carbon Flux'!BQ6 ->  | AG34: ='FCL Carbon Flux'!BR6 ->  | AH34: ='FCL Carbon Flux'!BS6 ->  | AI34: ='FCL Carbon Flux'!BT6 ->  | AJ34: ='FCL Carbon Flux'!BU6 ->  | AK34: ='FCL Carbon Flux'!BV6 -> 
C35: Total | E35: =SUM(E30:E34) ->  | F35: =SUM(F30:F34) ->  | AJ35: =SUM(AJ30:AJ34) ->  | AK35: =SUM(AK30:AK34) ->  | AL35: 0 | AM35: 0 | AN35: 0
I37: Net Sequestration/Emissions from Forest Land Converted to Wetlands
K38: MMTCO2E
E39: 1990 | F39: 1991 | G39: 1992 | H39: 1993 | I39: 1994 | J39: 1995 | K39: 1996 | L39: 1997 | M39: 1998 | N39: 1999 | O39: 2000 | P39: 2001 | Q39: 2002 | R39: 2003 | S39: 2004 | T39: 2005 | U39: 2006 | V39: 2007 | W39: 2008 | X39: 2009 | Y39: 2010 | Z39: 2011 | AA39: 2012 | AB39: 2013 | AC39: 2014 | AD39: 2015 | AE39: 2016 | AF39: 2017 | AG39: 2018 | AH39: 2019 | AI39: 2020 | AJ39: 2021 | AK39: 2022 | AL39: 2023 | AM39: 2024 | AN39: 2025
C40: Aboveground Biomass | E40: ='FCL Carbon Flux'!CC2 ->  | F40: ='FCL Carbon Flux'!CD2 ->  | G40: ='FCL Carbon Flux'!CE2 ->  | H40: ='FCL Carbon Flux'!CF2 ->  | I40: ='FCL Carbon Flux'!CG2 ->  | J40: ='FCL Carbon Flux'!CH2 ->  | K40: ='FCL Carbon Flux'!CI2 ->  | L40: ='FCL Carbon Flux'!CJ2 ->  | M40: ='FCL Carbon Flux'!CK2 ->  | N40: ='FCL Carbon Flux'!CL2 ->  | O40: ='FCL Carbon Flux'!CM2 ->  | P40: ='FCL Carbon Flux'!CN2 ->  | Q40: ='FCL Carbon Flux'!CO2 ->  | R40: ='FCL Carbon Flux'!CP2 ->  | S40: ='FCL Carbon Flux'!CQ2 ->  | T40: ='FCL Carbon Flux'!CR2 ->  | U40: ='FCL Carbon Flux'!CS2 ->  | V40: ='FCL Carbon Flux'!CT2 ->  | W40: ='FCL Carbon Flux'!CU2 ->  | X40: ='FCL Carbon Flux'!CV2 ->  | Y40: ='FCL Carbon Flux'!CW2 ->  | Z40: ='FCL Carbon Flux'!CX2 ->  | AA40: ='FCL Carbon Flux'!CY2 ->  | AB40: ='FCL Carbon Flux'!CZ2 ->  | AC40: ='FCL Carbon Flux'!DA2 ->  | AD40: ='FCL Carbon Flux'!DB2 ->  | AE40: ='FCL Carbon Flux'!DC2 ->  | AF40: ='FCL Carbon Flux'!DD2 ->  | AG40: ='FCL Carbon Flux'!DE2 ->  | AH40: ='FCL Carbon Flux'!DF2 ->  | AI40: ='FCL Carbon Flux'!DG2 ->  | AJ40: ='FCL Carbon Flux'!DH2 ->  | AK40: ='FCL Carbon Flux'!DI2 -> 
C41: Belowground Biomass | E41: ='FCL Carbon Flux'!CC3 ->  | F41: ='FCL Carbon Flux'!CD3 ->  | G41: ='FCL Carbon Flux'!CE3 ->  | H41: ='FCL Carbon Flux'!CF3 ->  | I41: ='FCL Carbon Flux'!CG3 ->  | J41: ='FCL Carbon Flux'!CH3 ->  | K41: ='FCL Carbon Flux'!CI3 ->  | L41: ='FCL Carbon Flux'!CJ3 ->  | M41: ='FCL Carbon Flux'!CK3 ->  | N41: ='FCL Carbon Flux'!CL3 ->  | O41: ='FCL Carbon Flux'!CM3 ->  | P41: ='FCL Carbon Flux'!CN3 ->  | Q41: ='FCL Carbon Flux'!CO3 ->  | R41: ='FCL Carbon Flux'!CP3 ->  | S41: ='FCL Carbon Flux'!CQ3 ->  | T41: ='FCL Carbon Flux'!CR3 ->  | U41: ='FCL Carbon Flux'!CS3 ->  | V41: ='FCL Carbon Flux'!CT3 ->  | W41: ='FCL Carbon Flux'!CU3 ->  | X41: ='FCL Carbon Flux'!CV3 ->  | Y41: ='FCL Carbon Flux'!CW3 ->  | Z41: ='FCL Carbon Flux'!CX3 ->  | AA41: ='FCL Carbon Flux'!CY3 ->  | AB41: ='FCL Carbon Flux'!CZ3 ->  | AC41: ='FCL Carbon Flux'!DA3 ->  | AD41: ='FCL Carbon Flux'!DB3 ->  | AE41: ='FCL Carbon Flux'!DC3 ->  | AF41: ='FCL Carbon Flux'!DD3 ->  | AG41: ='FCL Carbon Flux'!DE3 ->  | AH41: ='FCL Carbon Flux'!DF3 ->  | AI41: ='FCL Carbon Flux'!DG3 ->  | AJ41: ='FCL Carbon Flux'!DH3 ->  | AK41: ='FCL Carbon Flux'!DI3 -> 
C42: Deadwood | E42: ='FCL Carbon Flux'!CC4 ->  | F42: ='FCL Carbon Flux'!CD4 ->  | G42: ='FCL Carbon Flux'!CE4 ->  | H42: ='FCL Carbon Flux'!CF4 ->  | I42: ='FCL Carbon Flux'!CG4 ->  | J42: ='FCL Carbon Flux'!CH4 ->  | K42: ='FCL Carbon Flux'!CI4 ->  | L42: ='FCL Carbon Flux'!CJ4 ->  | M42: ='FCL Carbon Flux'!CK4 ->  | N42: ='FCL Carbon Flux'!CL4 ->  | O42: ='FCL Carbon Flux'!CM4 ->  | P42: ='FCL Carbon Flux'!CN4 ->  | Q42: ='FCL Carbon Flux'!CO4 ->  | R42: ='FCL Carbon Flux'!CP4 ->  | S42: ='FCL Carbon Flux'!CQ4 ->  | T42: ='FCL Carbon Flux'!CR4 ->  | U42: ='FCL Carbon Flux'!CS4 ->  | V42: ='FCL Carbon Flux'!CT4 ->  | W42: ='FCL Carbon Flux'!CU4 ->  | X42: ='FCL Carbon Flux'!CV4 ->  | Y42: ='FCL Carbon Flux'!CW4 ->  | Z42: ='FCL Carbon Flux'!CX4 ->  | AA42: ='FCL Carbon Flux'!CY4 ->  | AB42: ='FCL Carbon Flux'!CZ4 ->  | AC42: ='FCL Carbon Flux'!DA4 ->  | AD42: ='FCL Carbon Flux'!DB4 ->  | AE42: ='FCL Carbon Flux'!DC4 ->  | AF42: ='FCL Carbon Flux'!DD4 ->  | AG42: ='FCL Carbon Flux'!DE4 ->  | AH42: ='FCL Carbon Flux'!DF4 ->  | AI42: ='FCL Carbon Flux'!DG4 ->  | AJ42: ='FCL Carbon Flux'!DH4 ->  | AK42: ='FCL Carbon Flux'!DI4 -> 
C43: Litter | E43: ='FCL Carbon Flux'!CC5 ->  | F43: ='FCL Carbon Flux'!CD5 ->  | G43: ='FCL Carbon Flux'!CE5 ->  | H43: ='FCL Carbon Flux'!CF5 ->  | I43: ='FCL Carbon Flux'!CG5 ->  | J43: ='FCL Carbon Flux'!CH5 ->  | K43: ='FCL Carbon Flux'!CI5 ->  | L43: ='FCL Carbon Flux'!CJ5 ->  | M43: ='FCL Carbon Flux'!CK5 ->  | N43: ='FCL Carbon Flux'!CL5 ->  | O43: ='FCL Carbon Flux'!CM5 ->  | P43: ='FCL Carbon Flux'!CN5 ->  | Q43: ='FCL Carbon Flux'!CO5 ->  | R43: ='FCL Carbon Flux'!CP5 ->  | S43: ='FCL Carbon Flux'!CQ5 ->  | T43: ='FCL Carbon Flux'!CR5 ->  | U43: ='FCL Carbon Flux'!CS5 ->  | V43: ='FCL Carbon Flux'!CT5 ->  | W43: ='FCL Carbon Flux'!CU5 ->  | X43: ='FCL Carbon Flux'!CV5 ->  | Y43: ='FCL Carbon Flux'!CW5 ->  | Z43: ='FCL Carbon Flux'!CX5 ->  | AA43: ='FCL Carbon Flux'!CY5 ->  | AB43: ='FCL Carbon Flux'!CZ5 ->  | AC43: ='FCL Carbon Flux'!DA5 ->  | AD43: ='FCL Carbon Flux'!DB5 ->  | AE43: ='FCL Carbon Flux'!DC5 ->  | AF43: ='FCL Carbon Flux'!DD5 ->  | AG43: ='FCL Carbon Flux'!DE5 ->  | AH43: ='FCL Carbon Flux'!DF5 ->  | AI43: ='FCL Carbon Flux'!DG5 ->  | AJ43: ='FCL Carbon Flux'!DH5 ->  | AK43: ='FCL Carbon Flux'!DI5 -> 
C44: Soil (Mineral) | E44: ='FCL Carbon Flux'!CC6 ->  | F44: ='FCL Carbon Flux'!CD6 ->  | G44: ='FCL Carbon Flux'!CE6 ->  | H44: ='FCL Carbon Flux'!CF6 ->  | I44: ='FCL Carbon Flux'!CG6 ->  | J44: ='FCL Carbon Flux'!CH6 ->  | K44: ='FCL Carbon Flux'!CI6 ->  | L44: ='FCL Carbon Flux'!CJ6 ->  | M44: ='FCL Carbon Flux'!CK6 ->  | N44: ='FCL Carbon Flux'!CL6 ->  | O44: ='FCL Carbon Flux'!CM6 ->  | P44: ='FCL Carbon Flux'!CN6 ->  | Q44: ='FCL Carbon Flux'!CO6 ->  | R44: ='FCL Carbon Flux'!CP6 ->  | S44: ='FCL Carbon Flux'!CQ6 ->  | T44: ='FCL Carbon Flux'!CR6 ->  | U44: ='FCL Carbon Flux'!CS6 ->  | V44: ='FCL Carbon Flux'!CT6 ->  | W44: ='FCL Carbon Flux'!CU6 ->  | X44: ='FCL Carbon Flux'!CV6 ->  | Y44: ='FCL Carbon Flux'!CW6 ->  | Z44: ='FCL Carbon Flux'!CX6 ->  | AA44: ='FCL Carbon Flux'!CY6 ->  | AB44: ='FCL Carbon Flux'!CZ6 ->  | AC44: ='FCL Carbon Flux'!DA6 ->  | AD44: ='FCL Carbon Flux'!DB6 ->  | AE44: ='FCL Carbon Flux'!DC6 ->  | AF44: ='FCL Carbon Flux'!DD6 ->  | AG44: ='FCL Carbon Flux'!DE6 ->  | AH44: ='FCL Carbon Flux'!DF6 ->  | AI44: ='FCL Carbon Flux'!DG6 ->  | AJ44: ='FCL Carbon Flux'!DH6 ->  | AK44: ='FCL Carbon Flux'!DI6 -> 
C45: Total | E45: =SUM(E40:E44) ->  | F45: =SUM(F40:F44) ->  | AK45: =SUM(AK40:AK44) ->  | AL45: 0 | AM45: 0 | AN45: 0

Sheet Urban Trees
A1: ="3. Urban Trees in "&StateName -> 3. Urban Trees in Select a State . . .
B9: Year | D9: Total Urban Area | F9: Percent of Urban Area with Tree Cover | H9: hectare/ km2 | J9: Carbon Sequestration Factor | L9: Carbon Sequestration
D10: (km2) | J10: (metric ton C/hectare/year) | L10: (MMTCO2E)
A12: 5 | B12: 1990 | E12: x | G12: x | H12: 100 | I12: x | J12: =Control!$F$20 -> 0 | K12: = | L12: =((D12*F12*H12*J12)*CO2_C)*10^-6 -> 0
A14: =A12+1 -> 6 | B14: =B12+1 -> 1991 | E14: x | G14: x | H14: 100 | I14: x | J14: =Control!$F$20 -> 0 | K14: = | L14: =((D14*F14*H14*J14)*CO2_C)*10^-6 -> 0
A16: =A14+1 -> 7 | B16: =B14+1 -> 1992 | E16: x | G16: x | H16: 100 | I16: x | J16: =Control!$F$20 -> 0 | K16: = | L16: =((D16*F16*H16*J16)*CO2_C)*10^-6 -> 0
A18: =A16+1 -> 8 | B18: =B16+1 -> 1993 | E18: x | G18: x | H18: 100 | I18: x | J18: =Control!$F$20 -> 0 | K18: = | L18: =((D18*F18*H18*J18)*CO2_C)*10^-6 -> 0
A20: =A18+1 -> 9 | B20: =B18+1 -> 1994 | E20: x | G20: x | H20: 100 | I20: x | J20: =Control!$F$20 -> 0 | K20: = | L20: =((D20*F20*H20*J20)*CO2_C)*10^-6 -> 0
A22: =A20+1 -> 10 | B22: =B20+1 -> 1995 | E22: x | G22: x | H22: 100 | I22: x | J22: =Control!$F$20 -> 0 | K22: = | L22: =((D22*F22*H22*J22)*CO2_C)*10^-6 -> 0
A24: =A22+1 -> 11 | B24: =B22+1 -> 1996 | E24: x | G24: x | H24: 100 | I24: x | J24: =Control!$F$20 -> 0 | K24: = | L24: =((D24*F24*H24*J24)*CO2_C)*10^-6 -> 0
A26: =A24+1 -> 12 | B26: =B24+1 -> 1997 | E26: x | G26: x | H26: 100 | I26: x | J26: =Control!$F$20 -> 0 | K26: = | L26: =((D26*F26*H26*J26)*CO2_C)*10^-6 -> 0
A28: =A26+1 -> 13 | B28: =B26+1 -> 1998 | E28: x | G28: x | H28: 100 | I28: x | J28: =Control!$F$20 -> 0 | K28: = | L28: =((D28*F28*H28*J28)*CO2_C)*10^-6 -> 0
A30: =A28+1 -> 14 | B30: =B28+1 -> 1999 | E30: x | G30: x | H30: 100 | I30: x | J30: =Control!$F$20 -> 0 | K30: = | L30: =((D30*F30*H30*J30)*CO2_C)*10^-6 -> 0
A32: =A30+1 -> 15 | B32: =B30+1 -> 2000 | E32: x | G32: x | H32: 100 | I32: x | J32: =Control!$F$20 -> 0 | K32: = | L32: =((D32*F32*H32*J32)*CO2_C)*10^-6 -> 0
A34: =A32+1 -> 16 | B34: =B32+1 -> 2001 | E34: x | G34: x | H34: 100 | I34: x | J34: =Control!$F$20 -> 0 | K34: = | L34: =((D34*F34*H34*J34)*CO2_C)*10^-6 -> 0
A36: =A34+1 -> 17 | B36: =B34+1 -> 2002 | E36: x | G36: x | H36: 100 | I36: x | J36: =Control!$F$20 -> 0 | K36: = | L36: =((D36*F36*H36*J36)*CO2_C)*10^-6 -> 0
A38: =A36+1 -> 18 | B38: =B36+1 -> 2003 | E38: x | G38: x | H38: 100 | I38: x | J38: =Control!$F$20 -> 0 | K38: = | L38: =((D38*F38*H38*J38)*CO2_C)*10^-6 -> 0
A40: =A38+1 -> 19 | B40: =B38+1 -> 2004 | E40: x | G40: x | H40: 100 | I40: x | J40: =Control!$F$20 -> 0 | K40: = | L40: =((D40*F40*H40*J40)*CO2_C)*10^-6 -> 0
A42: =A40+1 -> 20 | B42: =B40+1 -> 2005 | E42: x | G42: x | H42: 100 | I42: x | J42: =Control!$F$20 -> 0 | K42: = | L42: =((D42*F42*H42*J42)*CO2_C)*10^-6 -> 0
A44: =A42+1 -> 21 | B44: =B42+1 -> 2006 | E44: x | G44: x | H44: 100 | I44: x | J44: =Control!$F$20 -> 0 | K44: = | L44: =((D44*F44*H44*J44)*CO2_C)*10^-6 -> 0
A46: =A44+1 -> 22 | B46: =B44+1 -> 2007 | E46: x | G46: x | H46: 100 | I46: x | J46: =Control!$F$20 -> 0 | K46: = | L46: =((D46*F46*H46*J46)*CO2_C)*10^-6 -> 0
A48: =A46+1 -> 23 | B48: =B46+1 -> 2008 | E48: x | G48: x | H48: 100 | I48: x | J48: =Control!$F$20 -> 0 | K48: = | L48: =((D48*F48*H48*J48)*CO2_C)*10^-6 -> 0
A50: =A48+1 -> 24 | B50: =B48+1 -> 2009 | E50: x | G50: x | H50: 100 | I50: x | J50: =Control!$F$20 -> 0 | K50: = | L50: =((D50*F50*H50*J50)*CO2_C)*10^-6 -> 0
A52: =A50+1 -> 25 | B52: =B50+1 -> 2010 | E52: x | G52: x | H52: 100 | I52: x | J52: =Control!$F$20 -> 0 | K52: = | L52: =((D52*F52*H52*J52)*CO2_C)*10^-6 -> 0
A54: =A52+1 -> 26 | B54: =B52+1 -> 2011 | E54: x | G54: x | H54: 100 | I54: x | J54: =Control!$F$20 -> 0 | K54: = | L54: =((D54*F54*H54*J54)*CO2_C)*10^-6 -> 0
A56: =A54+1 -> 27 | B56: =B54+1 -> 2012 | E56: x | G56: x | H56: 100 | I56: x | J56: =Control!$F$20 -> 0 | K56: = | L56: =((D56*F56*H56*J56)*CO2_C)*10^-6 -> 0
A58: =A56+1 -> 28 | B58: =B56+1 -> 2013 | E58: x | G58: x | H58: 100 | I58: x | J58: =Control!$F$20 -> 0 | K58: = | L58: =((D58*F58*H58*J58)*CO2_C)*10^-6 -> 0
A60: =A58+1 -> 29 | B60: =B58+1 -> 2014 | E60: x | G60: x | H60: 100 | I60: x | J60: =Control!$F$20 -> 0 | K60: = | L60: =((D60*F60*H60*J60)*CO2_C)*10^-6 -> 0
A62: =A60+1 -> 30 | B62: =B60+1 -> 2015 | E62: x | G62: x | H62: 100 | I62: x | J62: =Control!$F$20 -> 0 | K62: = | L62: =((D62*F62*H62*J62)*CO2_C)*10^-6 -> 0
A64: =A62+1 -> 31 | B64: =B62+1 -> 2016 | E64: x | G64: x | H64: 100 | I64: x | J64: =Control!$F$20 -> 0 | K64: = | L64: =((D64*F64*H64*J64)*CO2_C)*10^-6 -> 0
A66: =A64+1 -> 32 | B66: =B64+1 -> 2017 | E66: x | G66: x | H66: 100 | I66: x | J66: =Control!$F$20 -> 0 | K66: = | L66: =((D66*F66*H66*J66)*CO2_C)*10^-6 -> 0
A68: =A66+1 -> 33 | B68: =B66+1 -> 2018 | E68: x | G68: x | H68: 100 | I68: x | J68: =Control!$F$20 -> 0 | K68: = | L68: =((D68*F68*H68*J68)*CO2_C)*10^-6 -> 0
A70: =A68+1 -> 34 | B70: =B68+1 -> 2019 | E70: x | G70: x | H70: 100 | I70: x | J70: =Control!$F$20 -> 0 | K70: = | L70: =((D70*F70*H70*J70)*CO2_C)*10^-6 -> 0
A72: =A70+1 -> 35 | B72: =B70+1 -> 2020 | E72: x | G72: x | H72: 100 | I72: x | J72: =Control!$F$20 -> 0 | K72: = | L72: =((D72*F72*H72*J72)*CO2_C)*10^-6 -> 0
A74: =A72+1 -> 36 | B74: =B72+1 -> 2021 | E74: x | G74: x | H74: 100 | I74: x | J74: =Control!$F$20 -> 0 | K74: = | L74: =((D74*F74*H74*J74)*CO2_C)*10^-6 -> 0
A76: =A74+1 -> 37 | B76: =B74+1 -> 2022 | E76: x | G76: x | H76: 100 | I76: x | J76: =Control!$F$20 -> 0 | K76: = | L76: =((D76*F76*H76*J76)*CO2_C)*10^-6 -> 0
A78: =A76+1 -> 38 | B78: =B76+1 -> 2023 | E78: x | G78: x | H78: 100 | I78: x | J78: =Control!$F$20 -> 0 | K78: = | L78: =((D78*F78*H78*J78)*CO2_C)*10^-6 -> 0
A80: =A78+1 -> 39 | B80: =B78+1 -> 2024 | E80: x | G80: x | H80: 100 | I80: x | J80: =Control!$F$20 -> 0 | K80: = | L80: =((D80*F80*H80*J80)*CO2_C)*10^-6 -> 0
A82: =A80+1 -> 40 | B82: =B80+1 -> 2025 | E82: x | G82: x | H82: 100 | I82: x | J82: =Control!$F$20 -> 0 | K82: = | L82: =((D82*F82*H82*J82)*CO2_C)*10^-6 -> 0

Sheet Settlement Soils
A1: ="4. N2O from Settlement Soils in "&StateName -> 4. N2O from Settlement Soils in Select a State . . .
B6: Year | D6: Total Synthetic Fertilizer Applied to Settlements | F6: Emission Factor | H6: N2O-N | J6: Direct N2O Emissions | L6: N2O GWP | N6: Carbon Dioxide Emissions | P6: Total Carbon Dioxide Emissions
D7: (Metric Tons N) | F7: (percent) | J7: (Metric Tons N2O Emitted) | N7: (MTCO2E) | P7: (MMTCO2E)
A9: 2 | B9: 1990 | E9: x | F9: =Control!$F$24 -> 0 | G9: x | H9: =(N2O_N2) -> 1.571428571 | I9: = | J9: =D9*F9*H9 -> 0 | K9: x | L9: =Control!$C$80 -> 265 | M9: x | N9: =J9*L9 -> 0 | O9: = | P9: =N9*10^-6 -> 0
A11: 3 | B11: =B9+1 -> 1991 | E11: x | F11: =Control!$F$24 -> 0 | G11: x | H11: =(N2O_N2) -> 1.571428571 | I11: = | J11: =D11*F11*H11 -> 0 | K11: x | L11: =Control!$C$80 -> 265 | M11: x | N11: =J11*L11 -> 0 | O11: = | P11: =N11*10^-6 -> 0
A13: 4 | B13: =B11+1 -> 1992 | E13: x | F13: =Control!$F$24 -> 0 | G13: x | H13: =(N2O_N2) -> 1.571428571 | I13: = | J13: =D13*F13*H13 -> 0 | K13: x | L13: =Control!$C$80 -> 265 | M13: x | N13: =J13*L13 -> 0 | O13: = | P13: =N13*10^-6 -> 0
A15: 5 | B15: =B13+1 -> 1993 | E15: x | F15: =Control!$F$24 -> 0 | G15: x | H15: =(N2O_N2) -> 1.571428571 | I15: = | J15: =D15*F15*H15 -> 0 | K15: x | L15: =Control!$C$80 -> 265 | M15: x | N15: =J15*L15 -> 0 | O15: = | P15: =N15*10^-6 -> 0
A17: 6 | B17: =B15+1 -> 1994 | E17: x | F17: =Control!$F$24 -> 0 | G17: x | H17: =(N2O_N2) -> 1.571428571 | I17: = | J17: =D17*F17*H17 -> 0 | K17: x | L17: =Control!$C$80 -> 265 | M17: x | N17: =J17*L17 -> 0 | O17: = | P17: =N17*10^-6 -> 0
A19: 7 | B19: =B17+1 -> 1995 | E19: x | F19: =Control!$F$24 -> 0 | G19: x | H19: =(N2O_N2) -> 1.571428571 | I19: = | J19: =D19*F19*H19 -> 0 | K19: x | L19: =Control!$C$80 -> 265 | M19: x | N19: =J19*L19 -> 0 | O19: = | P19: =N19*10^-6 -> 0
A21: 8 | B21: =B19+1 -> 1996 | E21: x | F21: =Control!$F$24 -> 0 | G21: x | H21: =(N2O_N2) -> 1.571428571 | I21: = | J21: =D21*F21*H21 -> 0 | K21: x | L21: =Control!$C$80 -> 265 | M21: x | N21: =J21*L21 -> 0 | O21: = | P21: =N21*10^-6 -> 0
A23: 9 | B23: =B21+1 -> 1997 | E23: x | F23: =Control!$F$24 -> 0 | G23: x | H23: =(N2O_N2) -> 1.571428571 | I23: = | J23: =D23*F23*H23 -> 0 | K23: x | L23: =Control!$C$80 -> 265 | M23: x | N23: =J23*L23 -> 0 | O23: = | P23: =N23*10^-6 -> 0
A25: 10 | B25: =B23+1 -> 1998 | E25: x | F25: =Control!$F$24 -> 0 | G25: x | H25: =(N2O_N2) -> 1.571428571 | I25: = | J25: =D25*F25*H25 -> 0 | K25: x | L25: =Control!$C$80 -> 265 | M25: x | N25: =J25*L25 -> 0 | O25: = | P25: =N25*10^-6 -> 0
A27: 11 | B27: =B25+1 -> 1999 | E27: x | F27: =Control!$F$24 -> 0 | G27: x | H27: =(N2O_N2) -> 1.571428571 | I27: = | J27: =D27*F27*H27 -> 0 | K27: x | L27: =Control!$C$80 -> 265 | M27: x | N27: =J27*L27 -> 0 | O27: = | P27: =N27*10^-6 -> 0
A29: 12 | B29: =B27+1 -> 2000 | E29: x | F29: =Control!$F$24 -> 0 | G29: x | H29: =(N2O_N2) -> 1.571428571 | I29: = | J29: =D29*F29*H29 -> 0 | K29: x | L29: =Control!$C$80 -> 265 | M29: x | N29: =J29*L29 -> 0 | O29: = | P29: =N29*10^-6 -> 0
A31: 13 | B31: =B29+1 -> 2001 | E31: x | F31: =Control!$F$24 -> 0 | G31: x | H31: =(N2O_N2) -> 1.571428571 | I31: = | J31: =D31*F31*H31 -> 0 | K31: x | L31: =Control!$C$80 -> 265 | M31: x | N31: =J31*L31 -> 0 | O31: = | P31: =N31*10^-6 -> 0
A33: 14 | B33: =B31+1 -> 2002 | E33: x | F33: =Control!$F$24 -> 0 | G33: x | H33: =(N2O_N2) -> 1.571428571 | I33: = | J33: =D33*F33*H33 -> 0 | K33: x | L33: =Control!$C$80 -> 265 | M33: x | N33: =J33*L33 -> 0 | O33: = | P33: =N33*10^-6 -> 0
A35: 15 | B35: =B33+1 -> 2003 | E35: x | F35: =Control!$F$24 -> 0 | G35: x | H35: =(N2O_N2) -> 1.571428571 | I35: = | J35: =D35*F35*H35 -> 0 | K35: x | L35: =Control!$C$80 -> 265 | M35: x | N35: =J35*L35 -> 0 | O35: = | P35: =N35*10^-6 -> 0
A37: 16 | B37: =B35+1 -> 2004 | E37: x | F37: =Control!$F$24 -> 0 | G37: x | H37: =(N2O_N2) -> 1.571428571 | I37: = | J37: =D37*F37*H37 -> 0 | K37: x | L37: =Control!$C$80 -> 265 | M37: x | N37: =J37*L37 -> 0 | O37: = | P37: =N37*10^-6 -> 0
A39: 17 | B39: =B37+1 -> 2005 | E39: x | F39: =Control!$F$24 -> 0 | G39: x | H39: =(N2O_N2) -> 1.571428571 | I39: = | J39: =D39*F39*H39 -> 0 | K39: x | L39: =Control!$C$80 -> 265 | M39: x | N39: =J39*L39 -> 0 | O39: = | P39: =N39*10^-6 -> 0
A41: 18 | B41: =B39+1 -> 2006 | E41: x | F41: =Control!$F$24 -> 0 | G41: x | H41: =(N2O_N2) -> 1.571428571 | I41: = | J41: =D41*F41*H41 -> 0 | K41: x | L41: =Control!$C$80 -> 265 | M41: x | N41: =J41*L41 -> 0 | O41: = | P41: =N41*10^-6 -> 0
A43: 19 | B43: =B41+1 -> 2007 | E43: x | F43: =Control!$F$24 -> 0 | G43: x | H43: =(N2O_N2) -> 1.571428571 | I43: = | J43: =D43*F43*H43 -> 0 | K43: x | L43: =Control!$C$80 -> 265 | M43: x | N43: =J43*L43 -> 0 | O43: = | P43: =N43*10^-6 -> 0
A45: 20 | B45: =B43+1 -> 2008 | E45: x | F45: =Control!$F$24 -> 0 | G45: x | H45: =(N2O_N2) -> 1.571428571 | I45: = | J45: =D45*F45*H45 -> 0 | K45: x | L45: =Control!$C$80 -> 265 | M45: x | N45: =J45*L45 -> 0 | O45: = | P45: =N45*10^-6 -> 0
A47: 21 | B47: =B45+1 -> 2009 | E47: x | F47: =Control!$F$24 -> 0 | G47: x | H47: =(N2O_N2) -> 1.571428571 | I47: = | J47: =D47*F47*H47 -> 0 | K47: x | L47: =Control!$C$80 -> 265 | M47: x | N47: =J47*L47 -> 0 | O47: = | P47: =N47*10^-6 -> 0
A49: 22 | B49: =B47+1 -> 2010 | E49: x | F49: =Control!$F$24 -> 0 | G49: x | H49: =(N2O_N2) -> 1.571428571 | I49: = | J49: =D49*F49*H49 -> 0 | K49: x | L49: =Control!$C$80 -> 265 | M49: x | N49: =J49*L49 -> 0 | O49: = | P49: =N49*10^-6 -> 0
A51: 23 | B51: =B49+1 -> 2011 | E51: x | F51: =Control!$F$24 -> 0 | G51: x | H51: =(N2O_N2) -> 1.571428571 | I51: = | J51: =D51*F51*H51 -> 0 | K51: x | L51: =Control!$C$80 -> 265 | M51: x | N51: =J51*L51 -> 0 | O51: = | P51: =N51*10^-6 -> 0
A53: 24 | B53: =B51+1 -> 2012 | E53: x | F53: =Control!$F$24 -> 0 | G53: x | H53: =(N2O_N2) -> 1.571428571 | I53: = | J53: =D53*F53*H53 -> 0 | K53: x | L53: =Control!$C$80 -> 265 | M53: x | N53: =J53*L53 -> 0 | O53: = | P53: =N53*10^-6 -> 0
A55: 25 | B55: =B53+1 -> 2013 | E55: x | F55: =Control!$F$24 -> 0 | G55: x | H55: =(N2O_N2) -> 1.571428571 | I55: = | J55: =D55*F55*H55 -> 0 | K55: x | L55: =Control!$C$80 -> 265 | M55: x | N55: =J55*L55 -> 0 | O55: = | P55: =N55*10^-6 -> 0
A57: 26 | B57: =B55+1 -> 2014 | E57: x | F57: =Control!$F$24 -> 0 | G57: x | H57: =(N2O_N2) -> 1.571428571 | I57: = | J57: =D57*F57*H57 -> 0 | K57: x | L57: =Control!$C$80 -> 265 | M57: x | N57: =J57*L57 -> 0 | O57: = | P57: =N57*10^-6 -> 0
A59: 27 | B59: =B57+1 -> 2015 | E59: x | F59: =Control!$F$24 -> 0 | G59: x | H59: =(N2O_N2) -> 1.571428571 | I59: = | J59: =D59*F59*H59 -> 0 | K59: x | L59: =Control!$C$80 -> 265 | M59: x | N59: =J59*L59 -> 0 | O59: = | P59: =N59*10^-6 -> 0
A61: 28 | B61: =B59+1 -> 2016 | E61: x | F61: =Control!$F$24 -> 0 | G61: x | H61: =(N2O_N2) -> 1.571428571 | I61: = | J61: =D61*F61*H61 -> 0 | K61: x | L61: =Control!$C$80 -> 265 | M61: x | N61: =J61*L61 -> 0 | O61: = | P61: =N61*10^-6 -> 0
A63: 29 | B63: =B61+1 -> 2017 | E63: x | F63: =Control!$F$24 -> 0 | G63: x | H63: =(N2O_N2) -> 1.571428571 | I63: = | J63: =D63*F63*H63 -> 0 | K63: x | L63: =Control!$C$80 -> 265 | M63: x | N63: =J63*L63 -> 0 | O63: = | P63: =N63*10^-6 -> 0
A65: 30 | B65: =B63+1 -> 2018 | E65: x | F65: =Control!$F$24 -> 0 | G65: x | H65: =(N2O_N2) -> 1.571428571 | I65: = | J65: =D65*F65*H65 -> 0 | K65: x | L65: =Control!$C$80 -> 265 | M65: x | N65: =J65*L65 -> 0 | O65: = | P65: =N65*10^-6 -> 0
A67: 31 | B67: =B65+1 -> 2019 | E67: x | F67: =Control!$F$24 -> 0 | G67: x | H67: =(N2O_N2) -> 1.571428571 | I67: = | J67: =D67*F67*H67 -> 0 | K67: x | L67: =Control!$C$80 -> 265 | M67: x | N67: =J67*L67 -> 0 | O67: = | P67: =N67*10^-6 -> 0
A69: 32 | B69: =B67+1 -> 2020 | E69: x | F69: =Control!$F$24 -> 0 | G69: x | H69: =(N2O_N2) -> 1.571428571 | I69: = | J69: =D69*F69*H69 -> 0 | K69: x | L69: =Control!$C$80 -> 265 | M69: x | N69: =J69*L69 -> 0 | O69: = | P69: =N69*10^-6 -> 0
A71: 33 | B71: =B69+1 -> 2021 | E71: x | F71: =Control!$F$24 -> 0 | G71: x | H71: =(N2O_N2) -> 1.571428571 | I71: = | J71: =D71*F71*H71 -> 0 | K71: x | L71: =Control!$C$80 -> 265 | M71: x | N71: =J71*L71 -> 0 | O71: = | P71: =N71*10^-6 -> 0
A73: 34 | B73: =B71+1 -> 2022 | E73: x | F73: =Control!$F$24 -> 0 | G73: x | H73: =(N2O_N2) -> 1.571428571 | I73: = | J73: =D73*F73*H73 -> 0 | K73: x | L73: =Control!$C$80 -> 265 | M73: x | N73: =J73*L73 -> 0 | O73: = | P73: =N73*10^-6 -> 0
A75: 35 | B75: =B73+1 -> 2023 | E75: x | F75: =Control!$F$24 -> 0 | G75: x | H75: =(N2O_N2) -> 1.571428571 | I75: = | J75: =D75*F75*H75 -> 0 | K75: x | L75: =Control!$C$80 -> 265 | M75: x | N75: =J75*L75 -> 0 | O75: = | P75: =N75*10^-6 -> 0
A77: 36 | B77: =B75+1 -> 2024 | E77: x | F77: =Control!$F$24 -> 0 | G77: x | H77: =(N2O_N2) -> 1.571428571 | I77: = | J77: =D77*F77*H77 -> 0 | K77: x | L77: =Control!$C$80 -> 265 | M77: x | N77: =J77*L77 -> 0 | O77: = | P77: =N77*10^-6 -> 0
A79: 37 | B79: =B77+1 -> 2025 | E79: x | F79: =Control!$F$24 -> 0 | G79: x | H79: =(N2O_N2) -> 1.571428571 | I79: = | J79: =D79*F79*H79 -> 0 | K79: x | L79: =Control!$C$80 -> 265 | M79: x | N79: =J79*L79 -> 0 | O79: = | P79: =N79*10^-6 -> 0

Sheet Burning CH4
A1: ="5a. Methane Emissions from Forest Fires in "&StateName -> 5a. Methane Emissions from Forest Fires in Select a State . . .
A7: Forest Fires | D7: 1990
B8: Forest Type | D8: Area Burned (ha) | F8: Average Biomass Density (kg d.m. / ha) | H8: Combustion efficiency | J8: Emission Factor (g/kg dry matter burned) | L8: MTCH4 Emitted | N8: CH4 GWP | P8: Emissions MMTCO2E
B9: Primary tropical forests | E9: x | F9: =Control!$F$48 -> 0 | G9: x | H9: =Control!$F$35 -> 0 | I9: x | J9: =Control!$F$31 -> 0 | K9: = | L9: =D9*F9*H9*J9*10^-6 -> 0 | M9: x | N9: =Control!$C$79 -> 28 | O9: = | P9: =L9*N9*10^-6 -> 0
B10: Secondary tropical forests | E10: x | F10: =Control!$F$48 -> 0 | G10: x | H10: =Control!$F$36 -> 0 | I10: x | J10: =Control!$F$31 -> 0 | K10: = | L10: =D10*F10*H10*J10*10^-6 -> 0 | M10: x | N10: =Control!$C$79 -> 28 | O10: = | P10: =L10*N10*10^-6 -> 0
B11: Tertiary tropical forests | E11: x | F11: =Control!$F$48 -> 0 | G11: x | H11: =Control!$F$37 -> 0 | I11: x | J11: =Control!$F$31 -> 0 | K11: = | L11: 0 | M11: x | N11: =Control!$C$79 -> 28 | O11: = | P11: =L11*N11*10^-6 -> 0
B12: Boreal forest | E12: x | F12: =Control!$F$48 -> 0 | G12: x | H12: =Control!$F$38 -> 0 | I12: x | J12: =Control!$F$31 -> 0 | K12: = | L12: 0 | M12: x | N12: =Control!$C$79 -> 28 | O12: = | P12: 0
B13: Eucalypt forests | E13: x | F13: =Control!$F$48 -> 0 | G13: x | H13: =Control!$F$39 -> 0 | I13: x | J13: =Control!$F$31 -> 0 | K13: = | L13: 0 | M13: x | N13: =Control!$C$79 -> 28 | O13: = | P13: 0
B14: Other temperate forests | E14: x | F14: =Control!$F$48 -> 0 | G14: x | H14: =Control!$F$40 -> 0 | I14: x | J14: =Control!$F$31 -> 0 | K14: = | L14: 0 | M14: x | N14: =Control!$C$79 -> 28 | O14: = | P14: 0
B15: Shrublands | E15: x | F15: =Control!$F$48 -> 0 | G15: x | H15: =Control!$F$41 -> 0 | I15: x | J15: =Control!$F$31 -> 0 | K15: = | L15: 0 | M15: x | N15: =Control!$C$79 -> 28 | O15: = | P15: 0
B16: Savanna woodlands (early dry season burns) | E16: x | F16: =Control!$F$48 -> 0 | G16: x | H16: =Control!$F$42 -> 0 | I16: x | J16: =Control!$F$29 -> 0 | K16: = | L16: 0 | M16: x | N16: =Control!$C$79 -> 28 | O16: = | P16: 0
B17: Savanna woodlands (mid/late season burns) | E17: x | F17: =Control!$F$48 -> 0 | G17: x | H17: =Control!$F$43 -> 0 | I17: x | J17: =Control!$F$29 -> 0 | K17: = | L17: 0 | M17: x | N17: =Control!$C$79 -> 28 | O17: = | P17: 0
B18: Savanna grasslands (early dry season burns) | E18: x | F18: =Control!$F$48 -> 0 | G18: x | H18: =Control!$F$44 -> 0 | I18: x | J18: =Control!$F$29 -> 0 | K18: = | L18: =D18*F18*H18*J18*10^-6 -> 0 | M18: x | N18: =Control!$C$79 -> 28 | O18: = | P18: =L18*N18*10^-6 -> 0
B19: Savanna grasslands (mid/late season burns) | E19: x | F19: =Control!$F$48 -> 0 | G19: x | H19: =Control!$F$45 -> 0 | I19: x | J19: =Control!$F$29 -> 0 | K19: = | L19: 0 | M19: x | N19: =Control!$C$79 -> 28 | O19: = | P19: 0
B20: Total | P20: =SUM(P9:P19) -> 0
A22: Forest Fires | D22: =D7+1 -> 1991
B23: Forest Type | D23: Area Burned (ha) | F23: Average Biomass Density (kg d.m. / ha) | H23: Combustion efficiency | J23: Emission Factor (g/kg dry matter burned) | L23: MTCH4 Emitted | N23: CH4 GWP | P23: Emissions MMTCO2E
B24: Primary tropical forests | E24: x | F24: =Control!$F$48 -> 0 | G24: x | H24: =Control!$F$35 -> 0 | I24: x | J24: =Control!$F$31 -> 0 | K24: = | L24: =D24*F24*H24*J24*10^-6 -> 0 | M24: x | N24: =Control!$C$79 -> 28 | O24: = | P24: =L24*N24*10^-6 -> 0
B25: Secondary tropical forests | E25: x | F25: =Control!$F$48 -> 0 | G25: x | H25: =Control!$F$36 -> 0 | I25: x | J25: =Control!$F$31 -> 0 | K25: = | L25: =D25*F25*H25*J25*10^-6 -> 0 | M25: x | N25: =Control!$C$79 -> 28 | O25: = | P25: =L25*N25*10^-6 -> 0
B26: Tertiary tropical forests | E26: x | F26: =Control!$F$48 -> 0 | G26: x | H26: =Control!$F$37 -> 0 | I26: x | J26: =Control!$F$31 -> 0 | K26: = | L26: 0 | M26: x | N26: =Control!$C$79 -> 28 | O26: = | P26: =L26*N26*10^-6 -> 0
B27: Boreal forest | E27: x | F27: =Control!$F$48 -> 0 | G27: x | H27: =Control!$F$38 -> 0 | I27: x | J27: =Control!$F$31 -> 0 | K27: = | L27: 0 | M27: x | N27: =Control!$C$79 -> 28 | O27: = | P27: 0
B28: Eucalypt forests | E28: x | F28: =Control!$F$48 -> 0 | G28: x | H28: =Control!$F$39 -> 0 | I28: x | J28: =Control!$F$31 -> 0 | K28: = | L28: 0 | M28: x | N28: =Control!$C$79 -> 28 | O28: = | P28: 0
B29: Other temperate forests | E29: x | F29: =Control!$F$48 -> 0 | G29: x | H29: =Control!$F$40 -> 0 | I29: x | J29: =Control!$F$31 -> 0 | K29: = | L29: 0 | M29: x | N29: =Control!$C$79 -> 28 | O29: = | P29: 0
B30: Shrublands | E30: x | F30: =Control!$F$48 -> 0 | G30: x | H30: =Control!$F$41 -> 0 | I30: x | J30: =Control!$F$31 -> 0 | K30: = | L30: 0 | M30: x | N30: =Control!$C$79 -> 28 | O30: = | P30: 0
B31: Savanna woodlands (early dry season burns) | E31: x | F31: =Control!$F$48 -> 0 | G31: x | H31: =Control!$F$42 -> 0 | I31: x | J31: =Control!$F$29 -> 0 | K31: = | L31: 0 | M31: x | N31: =Control!$C$79 -> 28 | O31: = | P31: 0
B32: Savanna woodlands (mid/late season burns) | E32: x | F32: =Control!$F$48 -> 0 | G32: x | H32: =Control!$F$43 -> 0 | I32: x | J32: =Control!$F$29 -> 0 | K32: = | L32: 0 | M32: x | N32: =Control!$C$79 -> 28 | O32: = | P32: 0
B33: Savanna grasslands (early dry season burns) | E33: x | F33: =Control!$F$48 -> 0 | G33: x | H33: =Control!$F$44 -> 0 | I33: x | J33: =Control!$F$29 -> 0 | K33: = | L33: 0 | M33: x | N33: =Control!$C$79 -> 28 | O33: = | P33: 0
B34: Savanna grasslands (mid/late season burns) | E34: x | F34: =Control!$F$48 -> 0 | G34: x | H34: =Control!$F$45 -> 0 | I34: x | J34: =Control!$F$29 -> 0 | K34: = | L34: 0 | M34: x | N34: =Control!$C$79 -> 28 | O34: = | P34: 0
B35: Total | P35: =SUM(P24:P34) -> 0
A37: Forest Fires | D37: =D22+1 -> 1992
B38: Forest Type | D38: Area Burned (ha) | F38: Average Biomass Density (kg d.m. / ha) | H38: Combustion efficiency | J38: Emission Factor (g/kg dry matter burned) | L38: MTCH4 Emitted | N38: CH4 GWP | P38: Emissions MMTCO2E
B39: Primary tropical forests | E39: x | F39: =Control!$F$48 -> 0 | G39: x | H39: =Control!$F$35 -> 0 | I39: x | J39: =Control!$F$31 -> 0 | K39: = | L39: =D39*F39*H39*J39*10^-6 -> 0 | M39: x | N39: =Control!$C$79 -> 28 | O39: = | P39: =L39*N39*10^-6 -> 0
B40: Secondary tropical forests | E40: x | F40: =Control!$F$48 -> 0 | G40: x | H40: =Control!$F$36 -> 0 | I40: x | J40: =Control!$F$31 -> 0 | K40: = | L40: =D40*F40*H40*J40*10^-6 -> 0 | M40: x | N40: =Control!$C$79 -> 28 | O40: = | P40: =L40*N40*10^-6 -> 0
B41: Tertiary tropical forests | E41: x | F41: =Control!$F$48 -> 0 | G41: x | H41: =Control!$F$37 -> 0 | I41: x | J41: =Control!$F$31 -> 0 | K41: = | L41: 0 | M41: x | N41: =Control!$C$79 -> 28 | O41: = | P41: =L41*N41*10^-6 -> 0
B42: Boreal forest | E42: x | F42: =Control!$F$48 -> 0 | G42: x | H42: =Control!$F$38 -> 0 | I42: x | J42: =Control!$F$31 -> 0 | K42: = | L42: 0 | M42: x | N42: =Control!$C$79 -> 28 | O42: = | P42: 0
B43: Eucalypt forests | E43: x | F43: =Control!$F$48 -> 0 | G43: x | H43: =Control!$F$39 -> 0 | I43: x | J43: =Control!$F$31 -> 0 | K43: = | L43: 0 | M43: x | N43: =Control!$C$79 -> 28 | O43: = | P43: 0
B44: Other temperate forests | E44: x | F44: =Control!$F$48 -> 0 | G44: x | H44: =Control!$F$40 -> 0 | I44: x | J44: =Control!$F$31 -> 0 | K44: = | L44: 0 | M44: x | N44: =Control!$C$79 -> 28 | O44: = | P44: 0
B45: Shrublands | E45: x | F45: =Control!$F$48 -> 0 | G45: x | H45: =Control!$F$41 -> 0 | I45: x | J45: =Control!$F$31 -> 0 | K45: = | L45: 0 | M45: x | N45: =Control!$C$79 -> 28 | O45: = | P45: 0
B46: Savanna woodlands (early dry season burns) | E46: x | F46: =Control!$F$48 -> 0 | G46: x | H46: =Control!$F$42 -> 0 | I46: x | J46: =Control!$F$29 -> 0 | K46: = | L46: 0 | M46: x | N46: =Control!$C$79 -> 28 | O46: = | P46: 0
B47: Savanna woodlands (mid/late season burns) | E47: x | F47: =Control!$F$48 -> 0 | G47: x | H47: =Control!$F$43 -> 0 | I47: x | J47: =Control!$F$29 -> 0 | K47: = | L47: 0 | M47: x | N47: =Control!$C$79 -> 28 | O47: = | P47: 0
B48: Savanna grasslands (early dry season burns) | E48: x | F48: =Control!$F$48 -> 0 | G48: x | H48: =Control!$F$44 -> 0 | I48: x | J48: =Control!$F$29 -> 0 | K48: = | L48: 0 | M48: x | N48: =Control!$C$79 -> 28 | O48: = | P48: 0
B49: Savanna grasslands (mid/late season burns) | E49: x | F49: =Control!$F$48 -> 0 | G49: x | H49: =Control!$F$45 -> 0 | I49: x | J49: =Control!$F$29 -> 0 | K49: = | L49: 0 | M49: x | N49: =Control!$C$79 -> 28 | O49: = | P49: 0
B50: Total | P50: =SUM(P39:P49) -> 0
A52: Forest Fires | D52: =D37+1 -> 1993
B53: Forest Type | D53: Area Burned (ha) | F53: Average Biomass Density (kg d.m. / ha) | H53: Combustion efficiency | J53: Emission Factor (g/kg dry matter burned) | L53: MTCH4 Emitted | N53: CH4 GWP | P53: Emissions MMTCO2E
B54: Primary tropical forests | E54: x | F54: =Control!$F$48 -> 0 | G54: x | H54: =Control!$F$35 -> 0 | I54: x | J54: =Control!$F$31 -> 0 | K54: = | L54: =D54*F54*H54*J54*10^-6 -> 0 | M54: x | N54: =Control!$C$79 -> 28 | O54: = | P54: =L54*N54*10^-6 -> 0
B55: Secondary tropical forests | E55: x | F55: =Control!$F$48 -> 0 | G55: x | H55: =Control!$F$36 -> 0 | I55: x | J55: =Control!$F$31 -> 0 | K55: = | L55: =D55*F55*H55*J55*10^-6 -> 0 | M55: x | N55: =Control!$C$79 -> 28 | O55: = | P55: =L55*N55*10^-6 -> 0
B56: Tertiary tropical forests | E56: x | F56: =Control!$F$48 -> 0 | G56: x | H56: =Control!$F$37 -> 0 | I56: x | J56: =Control!$F$31 -> 0 | K56: = | L56: 0 | M56: x | N56: =Control!$C$79 -> 28 | O56: = | P56: =L56*N56*10^-6 -> 0
B57: Boreal forest | E57: x | F57: =Control!$F$48 -> 0 | G57: x | H57: =Control!$F$38 -> 0 | I57: x | J57: =Control!$F$31 -> 0 | K57: = | L57: 0 | M57: x | N57: =Control!$C$79 -> 28 | O57: = | P57: 0
B58: Eucalypt forests | E58: x | F58: =Control!$F$48 -> 0 | G58: x | H58: =Control!$F$39 -> 0 | I58: x | J58: =Control!$F$31 -> 0 | K58: = | L58: 0 | M58: x | N58: =Control!$C$79 -> 28 | O58: = | P58: 0
B59: Other temperate forests | E59: x | F59: =Control!$F$48 -> 0 | G59: x | H59: =Control!$F$40 -> 0 | I59: x | J59: =Control!$F$31 -> 0 | K59: = | L59: 0 | M59: x | N59: =Control!$C$79 -> 28 | O59: = | P59: 0
B60: Shrublands | E60: x | F60: =Control!$F$48 -> 0 | G60: x | H60: =Control!$F$41 -> 0 | I60: x | J60: =Control!$F$31 -> 0 | K60: = | L60: 0 | M60: x | N60: =Control!$C$79 -> 28 | O60: = | P60: 0
B61: Savanna woodlands (early dry season burns) | E61: x | F61: =Control!$F$48 -> 0 | G61: x | H61: =Control!$F$42 -> 0 | I61: x | J61: =Control!$F$29 -> 0 | K61: = | L61: 0 | M61: x | N61: =Control!$C$79 -> 28 | O61: = | P61: 0
B62: Savanna woodlands (mid/late season burns) | E62: x | F62: =Control!$F$48 -> 0 | G62: x | H62: =Control!$F$43 -> 0 | I62: x | J62: =Control!$F$29 -> 0 | K62: = | L62: 0 | M62: x | N62: =Control!$C$79 -> 28 | O62: = | P62: 0
B63: Savanna grasslands (early dry season burns) | E63: x | F63: =Control!$F$48 -> 0 | G63: x | H63: =Control!$F$44 -> 0 | I63: x | J63: =Control!$F$29 -> 0 | K63: = | L63: 0 | M63: x | N63: =Control!$C$79 -> 28 | O63: = | P63: 0
B64: Savanna grasslands (mid/late season burns) | E64: x | F64: =Control!$F$48 -> 0 | G64: x | H64: =Control!$F$45 -> 0 | I64: x | J64: =Control!$F$29 -> 0 | K64: = | L64: 0 | M64: x | N64: =Control!$C$79 -> 28 | O64: = | P64: 0
B65: Total | P65: =SUM(P54:P64) -> 0
A67: Forest Fires | D67: =D52+1 -> 1994
B68: Forest Type | D68: Area Burned (ha) | F68: Average Biomass Density (kg d.m. / ha) | H68: Combustion efficiency | J68: Emission Factor (g/kg dry matter burned) | L68: MTCH4 Emitted | N68: CH4 GWP | P68: Emissions MMTCO2E
B69: Primary tropical forests | E69: x | F69: =Control!$F$48 -> 0 | G69: x | H69: =Control!$F$35 -> 0 | I69: x | J69: =Control!$F$31 -> 0 | K69: = | L69: =D69*F69*H69*J69*10^-6 -> 0 | M69: x | N69: =Control!$C$79 -> 28 | O69: = | P69: =L69*N69*10^-6 -> 0
B70: Secondary tropical forests | E70: x | F70: =Control!$F$48 -> 0 | G70: x | H70: =Control!$F$36 -> 0 | I70: x | J70: =Control!$F$31 -> 0 | K70: = | L70: =D70*F70*H70*J70*10^-6 -> 0 | M70: x | N70: =Control!$C$79 -> 28 | O70: = | P70: =L70*N70*10^-6 -> 0
B71: Tertiary tropical forests | E71: x | F71: =Control!$F$48 -> 0 | G71: x | H71: =Control!$F$37 -> 0 | I71: x | J71: =Control!$F$31 -> 0 | K71: = | L71: 0 | M71: x | N71: =Control!$C$79 -> 28 | O71: = | P71: =L71*N71*10^-6 -> 0
B72: Boreal forest | E72: x | F72: =Control!$F$48 -> 0 | G72: x | H72: =Control!$F$38 -> 0 | I72: x | J72: =Control!$F$31 -> 0 | K72: = | L72: 0 | M72: x | N72: =Control!$C$79 -> 28 | O72: = | P72: 0
B73: Eucalypt forests | E73: x | F73: =Control!$F$48 -> 0 | G73: x | H73: =Control!$F$39 -> 0 | I73: x | J73: =Control!$F$31 -> 0 | K73: = | L73: 0 | M73: x | N73: =Control!$C$79 -> 28 | O73: = | P73: 0
B74: Other temperate forests | E74: x | F74: =Control!$F$48 -> 0 | G74: x | H74: =Control!$F$40 -> 0 | I74: x | J74: =Control!$F$31 -> 0 | K74: = | L74: 0 | M74: x | N74: =Control!$C$79 -> 28 | O74: = | P74: 0
B75: Shrublands | E75: x | F75: =Control!$F$48 -> 0 | G75: x | H75: =Control!$F$41 -> 0 | I75: x | J75: =Control!$F$31 -> 0 | K75: = | L75: 0 | M75: x | N75: =Control!$C$79 -> 28 | O75: = | P75: 0
B76: Savanna woodlands (early dry season burns) | E76: x | F76: =Control!$F$48 -> 0 | G76: x | H76: =Control!$F$42 -> 0 | I76: x | J76: =Control!$F$29 -> 0 | K76: = | L76: 0 | M76: x | N76: =Control!$C$79 -> 28 | O76: = | P76: 0
B77: Savanna woodlands (mid/late season burns) | E77: x | F77: =Control!$F$48 -> 0 | G77: x | H77: =Control!$F$43 -> 0 | I77: x | J77: =Control!$F$29 -> 0 | K77: = | L77: 0 | M77: x | N77: =Control!$C$79 -> 28 | O77: = | P77: 0
B78: Savanna grasslands (early dry season burns) | E78: x | F78: =Control!$F$48 -> 0 | G78: x | H78: =Control!$F$44 -> 0 | I78: x | J78: =Control!$F$29 -> 0 | K78: = | L78: 0 | M78: x | N78: =Control!$C$79 -> 28 | O78: = | P78: 0
B79: Savanna grasslands (mid/late season burns) | E79: x | F79: =Control!$F$48 -> 0 | G79: x | H79: =Control!$F$45 -> 0 | I79: x | J79: =Control!$F$29 -> 0 | K79: = | L79: 0 | M79: x | N79: =Control!$C$79 -> 28 | O79: = | P79: 0
B80: Total | P80: =SUM(P69:P79) -> 0
A82: Forest Fires | D82: =D67+1 -> 1995
B83: Forest Type | D83: Area Burned (ha) | F83: Average Biomass Density (kg d.m. / ha) | H83: Combustion efficiency | J83: Emission Factor (g/kg dry matter burned) | L83: MTCH4 Emitted | N83: CH4 GWP | P83: Emissions MMTCO2E
B84: Primary tropical forests | E84: x | F84: =Control!$F$48 -> 0 | G84: x | H84: =Control!$F$35 -> 0 | I84: x | J84: =Control!$F$31 -> 0 | K84: = | L84: =D84*F84*H84*J84*10^-6 -> 0 | M84: x | N84: =Control!$C$79 -> 28 | O84: = | P84: =L84*N84*10^-6 -> 0
B85: Secondary tropical forests | E85: x | F85: =Control!$F$48 -> 0 | G85: x | H85: =Control!$F$36 -> 0 | I85: x | J85: =Control!$F$31 -> 0 | K85: = | L85: =D85*F85*H85*J85*10^-6 -> 0 | M85: x | N85: =Control!$C$79 -> 28 | O85: = | P85: =L85*N85*10^-6 -> 0
B86: Tertiary tropical forests | E86: x | F86: =Control!$F$48 -> 0 | G86: x | H86: =Control!$F$37 -> 0 | I86: x | J86: =Control!$F$31 -> 0 | K86: = | L86: 0 | M86: x | N86: =Control!$C$79 -> 28 | O86: = | P86: =L86*N86*10^-6 -> 0
B87: Boreal forest | E87: x | F87: =Control!$F$48 -> 0 | G87: x | H87: =Control!$F$38 -> 0 | I87: x | J87: =Control!$F$31 -> 0 | K87: = | L87: 0 | M87: x | N87: =Control!$C$79 -> 28 | O87: = | P87: 0
B88: Eucalypt forests | E88: x | F88: =Control!$F$48 -> 0 | G88: x | H88: =Control!$F$39 -> 0 | I88: x | J88: =Control!$F$31 -> 0 | K88: = | L88: 0 | M88: x | N88: =Control!$C$79 -> 28 | O88: = | P88: 0
B89: Other temperate forests | E89: x | F89: =Control!$F$48 -> 0 | G89: x | H89: =Control!$F$40 -> 0 | I89: x | J89: =Control!$F$31 -> 0 | K89: = | L89: 0 | M89: x | N89: =Control!$C$79 -> 28 | O89: = | P89: 0
B90: Shrublands | E90: x | F90: =Control!$F$48 -> 0 | G90: x | H90: =Control!$F$41 -> 0 | I90: x | J90: =Control!$F$31 -> 0 | K90: = | L90: 0 | M90: x | N90: =Control!$C$79 -> 28 | O90: = | P90: 0
B91: Savanna woodlands (early dry season burns) | E91: x | F91: =Control!$F$48 -> 0 | G91: x | H91: =Control!$F$42 -> 0 | I91: x | J91: =Control!$F$29 -> 0 | K91: = | L91: 0 | M91: x | N91: =Control!$C$79 -> 28 | O91: = | P91: 0
B92: Savanna woodlands (mid/late season burns) | E92: x | F92: =Control!$F$48 -> 0 | G92: x | H92: =Control!$F$43 -> 0 | I92: x | J92: =Control!$F$29 -> 0 | K92: = | L92: 0 | M92: x | N92: =Control!$C$79 -> 28 | O92: = | P92: 0
B93: Savanna grasslands (early dry season burns) | E93: x | F93: =Control!$F$48 -> 0 | G93: x | H93: =Control!$F$44 -> 0 | I93: x | J93: =Control!$F$29 -> 0 | K93: = | L93: 0 | M93: x | N93: =Control!$C$79 -> 28 | O93: = | P93: 0
B94: Savanna grasslands (mid/late season burns) | E94: x | F94: =Control!$F$48 -> 0 | G94: x | H94: =Control!$F$45 -> 0 | I94: x | J94: =Control!$F$29 -> 0 | K94: = | L94: 0 | M94: x | N94: =Control!$C$79 -> 28 | O94: = | P94: 0
B95: Total | P95: =SUM(P84:P94) -> 0
A97: Forest Fires | D97: =D82+1 -> 1996
B98: Forest Type | D98: Area Burned (ha) | F98: Average Biomass Density (kg d.m. / ha) | H98: Combustion efficiency | J98: Emission Factor (g/kg dry matter burned) | L98: MTCH4 Emitted | N98: CH4 GWP | P98: Emissions MMTCO2E
B99: Primary tropical forests | E99: x | F99: =Control!$F$48 -> 0 | G99: x | H99: =Control!$F$35 -> 0 | I99: x | J99: =Control!$F$31 -> 0 | K99: = | L99: =D99*F99*H99*J99*10^-6 -> 0 | M99: x | N99: =Control!$C$79 -> 28 | O99: = | P99: =L99*N99*10^-6 -> 0
B100: Secondary tropical forests | E100: x | F100: =Control!$F$48 -> 0 | G100: x | H100: =Control!$F$36 -> 0 | I100: x | J100: =Control!$F$31 -> 0 | K100: = | L100: =D100*F100*H100*J100*10^-6 -> 0 | M100: x | N100: =Control!$C$79 -> 28 | O100: = | P100: =L100*N100*10^-6 -> 0
B101: Tertiary tropical forests | E101: x | F101: =Control!$F$48 -> 0 | G101: x | H101: =Control!$F$37 -> 0 | I101: x | J101: =Control!$F$31 -> 0 | K101: = | L101: 0 | M101: x | N101: =Control!$C$79 -> 28 | O101: = | P101: =L101*N101*10^-6 -> 0
B102: Boreal forest | E102: x | F102: =Control!$F$48 -> 0 | G102: x | H102: =Control!$F$38 -> 0 | I102: x | J102: =Control!$F$31 -> 0 | K102: = | L102: 0 | M102: x | N102: =Control!$C$79 -> 28 | O102: = | P102: 0
B103: Eucalypt forests | E103: x | F103: =Control!$F$48 -> 0 | G103: x | H103: =Control!$F$39 -> 0 | I103: x | J103: =Control!$F$31 -> 0 | K103: = | L103: 0 | M103: x | N103: =Control!$C$79 -> 28 | O103: = | P103: 0
B104: Other temperate forests | E104: x | F104: =Control!$F$48 -> 0 | G104: x | H104: =Control!$F$40 -> 0 | I104: x | J104: =Control!$F$31 -> 0 | K104: = | L104: 0 | M104: x | N104: =Control!$C$79 -> 28 | O104: = | P104: 0
B105: Shrublands | E105: x | F105: =Control!$F$48 -> 0 | G105: x | H105: =Control!$F$41 -> 0 | I105: x | J105: =Control!$F$31 -> 0 | K105: = | L105: 0 | M105: x | N105: =Control!$C$79 -> 28 | O105: = | P105: 0
B106: Savanna woodlands (early dry season burns) | E106: x | F106: =Control!$F$48 -> 0 | G106: x | H106: =Control!$F$42 -> 0 | I106: x | J106: =Control!$F$29 -> 0 | K106: = | L106: 0 | M106: x | N106: =Control!$C$79 -> 28 | O106: = | P106: 0
B107: Savanna woodlands (mid/late season burns) | E107: x | F107: =Control!$F$48 -> 0 | G107: x | H107: =Control!$F$43 -> 0 | I107: x | J107: =Control!$F$29 -> 0 | K107: = | L107: 0 | M107: x | N107: =Control!$C$79 -> 28 | O107: = | P107: 0
B108: Savanna grasslands (early dry season burns) | E108: x | F108: =Control!$F$48 -> 0 | G108: x | H108: =Control!$F$44 -> 0 | I108: x | J108: =Control!$F$29 -> 0 | K108: = | L108: 0 | M108: x | N108: =Control!$C$79 -> 28 | O108: = | P108: 0
B109: Savanna grasslands (mid/late season burns) | E109: x | F109: =Control!$F$48 -> 0 | G109: x | H109: =Control!$F$45 -> 0 | I109: x | J109: =Control!$F$29 -> 0 | K109: = | L109: 0 | M109: x | N109: =Control!$C$79 -> 28 | O109: = | P109: 0
B110: Total | P110: =SUM(P99:P109) -> 0
A112: Forest Fires | D112: =D97+1 -> 1997
B113: Forest Type | D113: Area Burned (ha) | F113: Average Biomass Density (kg d.m. / ha) | H113: Combustion efficiency | J113: Emission Factor (g/kg dry matter burned) | L113: MTCH4 Emitted | N113: CH4 GWP | P113: Emissions MMTCO2E
B114: Primary tropical forests | E114: x | F114: =Control!$F$48 -> 0 | G114: x | H114: =Control!$F$35 -> 0 | I114: x | J114: =Control!$F$31 -> 0 | K114: = | L114: =D114*F114*H114*J114*10^-6 -> 0 | M114: x | N114: =Control!$C$79 -> 28 | O114: = | P114: =L114*N114*10^-6 -> 0
B115: Secondary tropical forests | E115: x | F115: =Control!$F$48 -> 0 | G115: x | H115: =Control!$F$36 -> 0 | I115: x | J115: =Control!$F$31 -> 0 | K115: = | L115: =D115*F115*H115*J115*10^-6 -> 0 | M115: x | N115: =Control!$C$79 -> 28 | O115: = | P115: =L115*N115*10^-6 -> 0
B116: Tertiary tropical forests | E116: x | F116: =Control!$F$48 -> 0 | G116: x | H116: =Control!$F$37 -> 0 | I116: x | J116: =Control!$F$31 -> 0 | K116: = | L116: 0 | M116: x | N116: =Control!$C$79 -> 28 | O116: = | P116: =L116*N116*10^-6 -> 0
B117: Boreal forest | E117: x | F117: =Control!$F$48 -> 0 | G117: x | H117: =Control!$F$38 -> 0 | I117: x | J117: =Control!$F$31 -> 0 | K117: = | L117: 0 | M117: x | N117: =Control!$C$79 -> 28 | O117: = | P117: 0
B118: Eucalypt forests | E118: x | F118: =Control!$F$48 -> 0 | G118: x | H118: =Control!$F$39 -> 0 | I118: x | J118: =Control!$F$31 -> 0 | K118: = | L118: 0 | M118: x | N118: =Control!$C$79 -> 28 | O118: = | P118: 0
B119: Other temperate forests | E119: x | F119: =Control!$F$48 -> 0 | G119: x | H119: =Control!$F$40 -> 0 | I119: x | J119: =Control!$F$31 -> 0 | K119: = | L119: 0 | M119: x | N119: =Control!$C$79 -> 28 | O119: = | P119: 0
B120: Shrublands | E120: x | F120: =Control!$F$48 -> 0 | G120: x | H120: =Control!$F$41 -> 0 | I120: x | J120: =Control!$F$31 -> 0 | K120: = | L120: 0 | M120: x | N120: =Control!$C$79 -> 28 | O120: = | P120: 0
B121: Savanna woodlands (early dry season burns) | E121: x | F121: =Control!$F$48 -> 0 | G121: x | H121: =Control!$F$42 -> 0 | I121: x | J121: =Control!$F$29 -> 0 | K121: = | L121: 0 | M121: x | N121: =Control!$C$79 -> 28 | O121: = | P121: 0
B122: Savanna woodlands (mid/late season burns) | E122: x | F122: =Control!$F$48 -> 0 | G122: x | H122: =Control!$F$43 -> 0 | I122: x | J122: =Control!$F$29 -> 0 | K122: = | L122: 0 | M122: x | N122: =Control!$C$79 -> 28 | O122: = | P122: 0
B123: Savanna grasslands (early dry season burns) | E123: x | F123: =Control!$F$48 -> 0 | G123: x | H123: =Control!$F$44 -> 0 | I123: x | J123: =Control!$F$29 -> 0 | K123: = | L123: 0 | M123: x | N123: =Control!$C$79 -> 28 | O123: = | P123: 0
B124: Savanna grasslands (mid/late season burns) | E124: x | F124: =Control!$F$48 -> 0 | G124: x | H124: =Control!$F$45 -> 0 | I124: x | J124: =Control!$F$29 -> 0 | K124: = | L124: 0 | M124: x | N124: =Control!$C$79 -> 28 | O124: = | P124: 0
B125: Total | P125: =SUM(P114:P124) -> 0
A127: Forest Fires | D127: =D112+1 -> 1998
B128: Forest Type | D128: Area Burned (ha) | F128: Average Biomass Density (kg d.m. / ha) | H128: Combustion efficiency | J128: Emission Factor (g/kg dry matter burned) | L128: MTCH4 Emitted | N128: CH4 GWP | P128: Emissions MMTCO2E
B129: Primary tropical forests | E129: x | F129: =Control!$F$48 -> 0 | G129: x | H129: =Control!$F$35 -> 0 | I129: x | J129: =Control!$F$31 -> 0 | K129: = | L129: =D129*F129*H129*J129*10^-6 -> 0 | M129: x | N129: =Control!$C$79 -> 28 | O129: = | P129: =L129*N129*10^-6 -> 0
B130: Secondary tropical forests | E130: x | F130: =Control!$F$48 -> 0 | G130: x | H130: =Control!$F$36 -> 0 | I130: x | J130: =Control!$F$31 -> 0 | K130: = | L130: =D130*F130*H130*J130*10^-6 -> 0 | M130: x | N130: =Control!$C$79 -> 28 | O130: = | P130: =L130*N130*10^-6 -> 0
B131: Tertiary tropical forests | E131: x | F131: =Control!$F$48 -> 0 | G131: x | H131: =Control!$F$37 -> 0 | I131: x | J131: =Control!$F$31 -> 0 | K131: = | L131: 0 | M131: x | N131: =Control!$C$79 -> 28 | O131: = | P131: =L131*N131*10^-6 -> 0
B132: Boreal forest | E132: x | F132: =Control!$F$48 -> 0 | G132: x | H132: =Control!$F$38 -> 0 | I132: x | J132: =Control!$F$31 -> 0 | K132: = | L132: 0 | M132: x | N132: =Control!$C$79 -> 28 | O132: = | P132: 0
B133: Eucalypt forests | E133: x | F133: =Control!$F$48 -> 0 | G133: x | H133: =Control!$F$39 -> 0 | I133: x | J133: =Control!$F$31 -> 0 | K133: = | L133: 0 | M133: x | N133: =Control!$C$79 -> 28 | O133: = | P133: 0
B134: Other temperate forests | E134: x | F134: =Control!$F$48 -> 0 | G134: x | H134: =Control!$F$40 -> 0 | I134: x | J134: =Control!$F$31 -> 0 | K134: = | L134: 0 | M134: x | N134: =Control!$C$79 -> 28 | O134: = | P134: 0
B135: Shrublands | E135: x | F135: =Control!$F$48 -> 0 | G135: x | H135: =Control!$F$41 -> 0 | I135: x | J135: =Control!$F$31 -> 0 | K135: = | L135: 0 | M135: x | N135: =Control!$C$79 -> 28 | O135: = | P135: 0
B136: Savanna woodlands (early dry season burns) | E136: x | F136: =Control!$F$48 -> 0 | G136: x | H136: =Control!$F$42 -> 0 | I136: x | J136: =Control!$F$29 -> 0 | K136: = | L136: 0 | M136: x | N136: =Control!$C$79 -> 28 | O136: = | P136: 0
B137: Savanna woodlands (mid/late season burns) | E137: x | F137: =Control!$F$48 -> 0 | G137: x | H137: =Control!$F$43 -> 0 | I137: x | J137: =Control!$F$29 -> 0 | K137: = | L137: 0 | M137: x | N137: =Control!$C$79 -> 28 | O137: = | P137: 0
B138: Savanna grasslands (early dry season burns) | E138: x | F138: =Control!$F$48 -> 0 | G138: x | H138: =Control!$F$44 -> 0 | I138: x | J138: =Control!$F$29 -> 0 | K138: = | L138: 0 | M138: x | N138: =Control!$C$79 -> 28 | O138: = | P138: 0
B139: Savanna grasslands (mid/late season burns) | E139: x | F139: =Control!$F$48 -> 0 | G139: x | H139: =Control!$F$45 -> 0 | I139: x | J139: =Control!$F$29 -> 0 | K139: = | L139: 0 | M139: x | N139: =Control!$C$79 -> 28 | O139: = | P139: 0
B140: Total | P140: =SUM(P129:P139) -> 0
A142: Forest Fires | D142: =D127+1 -> 1999
B143: Forest Type | D143: Area Burned (ha) | F143: Average Biomass Density (kg d.m. / ha) | H143: Combustion efficiency | J143: Emission Factor (g/kg dry matter burned) | L143: MTCH4 Emitted | N143: CH4 GWP | P143: Emissions MMTCO2E
B144: Primary tropical forests | E144: x | F144: =Control!$F$48 -> 0 | G144: x | H144: =Control!$F$35 -> 0 | I144: x | J144: =Control!$F$31 -> 0 | K144: = | L144: =D144*F144*H144*J144*10^-6 -> 0 | M144: x | N144: =Control!$C$79 -> 28 | O144: = | P144: =L144*N144*10^-6 -> 0
B145: Secondary tropical forests | E145: x | F145: =Control!$F$48 -> 0 | G145: x | H145: =Control!$F$36 -> 0 | I145: x | J145: =Control!$F$31 -> 0 | K145: = | L145: =D145*F145*H145*J145*10^-6 -> 0 | M145: x | N145: =Control!$C$79 -> 28 | O145: = | P145: =L145*N145*10^-6 -> 0
B146: Tertiary tropical forests | E146: x | F146: =Control!$F$48 -> 0 | G146: x | H146: =Control!$F$37 -> 0 | I146: x | J146: =Control!$F$31 -> 0 | K146: = | L146: 0 | M146: x | N146: =Control!$C$79 -> 28 | O146: = | P146: =L146*N146*10^-6 -> 0
B147: Boreal forest | E147: x | F147: =Control!$F$48 -> 0 | G147: x | H147: =Control!$F$38 -> 0 | I147: x | J147: =Control!$F$31 -> 0 | K147: = | L147: 0 | M147: x | N147: =Control!$C$79 -> 28 | O147: = | P147: 0
B148: Eucalypt forests | E148: x | F148: =Control!$F$48 -> 0 | G148: x | H148: =Control!$F$39 -> 0 | I148: x | J148: =Control!$F$31 -> 0 | K148: = | L148: 0 | M148: x | N148: =Control!$C$79 -> 28 | O148: = | P148: 0
B149: Other temperate forests | E149: x | F149: =Control!$F$48 -> 0 | G149: x | H149: =Control!$F$40 -> 0 | I149: x | J149: =Control!$F$31 -> 0 | K149: = | L149: 0 | M149: x | N149: =Control!$C$79 -> 28 | O149: = | P149: 0
B150: Shrublands | E150: x | F150: =Control!$F$48 -> 0 | G150: x | H150: =Control!$F$41 -> 0 | I150: x | J150: =Control!$F$31 -> 0 | K150: = | L150: 0 | M150: x | N150: =Control!$C$79 -> 28 | O150: = | P150: 0
B151: Savanna woodlands (early dry season burns) | E151: x | F151: =Control!$F$48 -> 0 | G151: x | H151: =Control!$F$42 -> 0 | I151: x | J151: =Control!$F$29 -> 0 | K151: = | L151: 0 | M151: x | N151: =Control!$C$79 -> 28 | O151: = | P151: 0
B152: Savanna woodlands (mid/late season burns) | E152: x | F152: =Control!$F$48 -> 0 | G152: x | H152: =Control!$F$43 -> 0 | I152: x | J152: =Control!$F$29 -> 0 | K152: = | L152: 0 | M152: x | N152: =Control!$C$79 -> 28 | O152: = | P152: 0
B153: Savanna grasslands (early dry season burns) | E153: x | F153: =Control!$F$48 -> 0 | G153: x | H153: =Control!$F$44 -> 0 | I153: x | J153: =Control!$F$29 -> 0 | K153: = | L153: 0 | M153: x | N153: =Control!$C$79 -> 28 | O153: = | P153: 0
B154: Savanna grasslands (mid/late season burns) | E154: x | F154: =Control!$F$48 -> 0 | G154: x | H154: =Control!$F$45 -> 0 | I154: x | J154: =Control!$F$29 -> 0 | K154: = | L154: 0 | M154: x | N154: =Control!$C$79 -> 28 | O154: = | P154: 0
B155: Total | P155: =SUM(P144:P154) -> 0
A157: Forest Fires | D157: =D142+1 -> 2000
B158: Forest Type | D158: Area Burned (ha) | F158: Average Biomass Density (kg d.m. / ha) | H158: Combustion efficiency | J158: Emission Factor (g/kg dry matter burned) | L158: MTCH4 Emitted | N158: CH4 GWP | P158: Emissions MMTCO2E
B159: Primary tropical forests | E159: x | F159: =Control!$F$48 -> 0 | G159: x | H159: =Control!$F$35 -> 0 | I159: x | J159: =Control!$F$31 -> 0 | K159: = | L159: =D159*F159*H159*J159*10^-6 -> 0 | M159: x | N159: =Control!$C$79 -> 28 | O159: = | P159: =L159*N159*10^-6 -> 0
B160: Secondary tropical forests | E160: x | F160: =Control!$F$48 -> 0 | G160: x | H160: =Control!$F$36 -> 0 | I160: x | J160: =Control!$F$31 -> 0 | K160: = | L160: =D160*F160*H160*J160*10^-6 -> 0 | M160: x | N160: =Control!$C$79 -> 28 | O160: = | P160: =L160*N160*10^-6 -> 0
B161: Tertiary tropical forests | E161: x | F161: =Control!$F$48 -> 0 | G161: x | H161: =Control!$F$37 -> 0 | I161: x | J161: =Control!$F$31 -> 0 | K161: = | L161: 0 | M161: x | N161: =Control!$C$79 -> 28 | O161: = | P161: =L161*N161*10^-6 -> 0
B162: Boreal forest | E162: x | F162: =Control!$F$48 -> 0 | G162: x | H162: =Control!$F$38 -> 0 | I162: x | J162: =Control!$F$31 -> 0 | K162: = | L162: 0 | M162: x | N162: =Control!$C$79 -> 28 | O162: = | P162: 0
B163: Eucalypt forests | E163: x | F163: =Control!$F$48 -> 0 | G163: x | H163: =Control!$F$39 -> 0 | I163: x | J163: =Control!$F$31 -> 0 | K163: = | L163: 0 | M163: x | N163: =Control!$C$79 -> 28 | O163: = | P163: 0
B164: Other temperate forests | E164: x | F164: =Control!$F$48 -> 0 | G164: x | H164: =Control!$F$40 -> 0 | I164: x | J164: =Control!$F$31 -> 0 | K164: = | L164: 0 | M164: x | N164: =Control!$C$79 -> 28 | O164: = | P164: 0
B165: Shrublands | E165: x | F165: =Control!$F$48 -> 0 | G165: x | H165: =Control!$F$41 -> 0 | I165: x | J165: =Control!$F$31 -> 0 | K165: = | L165: 0 | M165: x | N165: =Control!$C$79 -> 28 | O165: = | P165: 0
B166: Savanna woodlands (early dry season burns) | E166: x | F166: =Control!$F$48 -> 0 | G166: x | H166: =Control!$F$42 -> 0 | I166: x | J166: =Control!$F$29 -> 0 | K166: = | L166: 0 | M166: x | N166: =Control!$C$79 -> 28 | O166: = | P166: 0
B167: Savanna woodlands (mid/late season burns) | E167: x | F167: =Control!$F$48 -> 0 | G167: x | H167: =Control!$F$43 -> 0 | I167: x | J167: =Control!$F$29 -> 0 | K167: = | L167: 0 | M167: x | N167: =Control!$C$79 -> 28 | O167: = | P167: 0
B168: Savanna grasslands (early dry season burns) | E168: x | F168: =Control!$F$48 -> 0 | G168: x | H168: =Control!$F$44 -> 0 | I168: x | J168: =Control!$F$29 -> 0 | K168: = | L168: 0 | M168: x | N168: =Control!$C$79 -> 28 | O168: = | P168: 0
B169: Savanna grasslands (mid/late season burns) | E169: x | F169: =Control!$F$48 -> 0 | G169: x | H169: =Control!$F$45 -> 0 | I169: x | J169: =Control!$F$29 -> 0 | K169: = | L169: 0 | M169: x | N169: =Control!$C$79 -> 28 | O169: = | P169: 0
B170: Total | P170: =SUM(P159:P169) -> 0
A172: Forest Fires | D172: =D157+1 -> 2001
B173: Forest Type | D173: Area Burned (ha) | F173: Average Biomass Density (kg d.m. / ha) | H173: Combustion efficiency | J173: Emission Factor (g/kg dry matter burned) | L173: MTCH4 Emitted | N173: CH4 GWP | P173: Emissions MMTCO2E
B174: Primary tropical forests | E174: x | F174: =Control!$F$48 -> 0 | G174: x | H174: =Control!$F$35 -> 0 | I174: x | J174: =Control!$F$31 -> 0 | K174: = | L174: =D174*F174*H174*J174*10^-6 -> 0 | M174: x | N174: =Control!$C$79 -> 28 | O174: = | P174: =L174*N174*10^-6 -> 0
B175: Secondary tropical forests | E175: x | F175: =Control!$F$48 -> 0 | G175: x | H175: =Control!$F$36 -> 0 | I175: x | J175: =Control!$F$31 -> 0 | K175: = | L175: =D175*F175*H175*J175*10^-6 -> 0 | M175: x | N175: =Control!$C$79 -> 28 | O175: = | P175: =L175*N175*10^-6 -> 0
B176: Tertiary tropical forests | E176: x | F176: =Control!$F$48 -> 0 | G176: x | H176: =Control!$F$37 -> 0 | I176: x | J176: =Control!$F$31 -> 0 | K176: = | L176: 0 | M176: x | N176: =Control!$C$79 -> 28 | O176: = | P176: =L176*N176*10^-6 -> 0
B177: Boreal forest | E177: x | F177: =Control!$F$48 -> 0 | G177: x | H177: =Control!$F$38 -> 0 | I177: x | J177: =Control!$F$31 -> 0 | K177: = | L177: 0 | M177: x | N177: =Control!$C$79 -> 28 | O177: = | P177: 0
B178: Eucalypt forests | E178: x | F178: =Control!$F$48 -> 0 | G178: x | H178: =Control!$F$39 -> 0 | I178: x | J178: =Control!$F$31 -> 0 | K178: = | L178: 0 | M178: x | N178: =Control!$C$79 -> 28 | O178: = | P178: 0
B179: Other temperate forests | E179: x | F179: =Control!$F$48 -> 0 | G179: x | H179: =Control!$F$40 -> 0 | I179: x | J179: =Control!$F$31 -> 0 | K179: = | L179: 0 | M179: x | N179: =Control!$C$79 -> 28 | O179: = | P179: 0
B180: Shrublands | E180: x | F180: =Control!$F$48 -> 0 | G180: x | H180: =Control!$F$41 -> 0 | I180: x | J180: =Control!$F$31 -> 0 | K180: = | L180: 0 | M180: x | N180: =Control!$C$79 -> 28 | O180: = | P180: 0
B181: Savanna woodlands (early dry season burns) | E181: x | F181: =Control!$F$48 -> 0 | G181: x | H181: =Control!$F$42 -> 0 | I181: x | J181: =Control!$F$29 -> 0 | K181: = | L181: 0 | M181: x | N181: =Control!$C$79 -> 28 | O181: = | P181: 0
B182: Savanna woodlands (mid/late season burns) | E182: x | F182: =Control!$F$48 -> 0 | G182: x | H182: =Control!$F$43 -> 0 | I182: x | J182: =Control!$F$29 -> 0 | K182: = | L182: 0 | M182: x | N182: =Control!$C$79 -> 28 | O182: = | P182: 0
B183: Savanna grasslands (early dry season burns) | E183: x | F183: =Control!$F$48 -> 0 | G183: x | H183: =Control!$F$44 -> 0 | I183: x | J183: =Control!$F$29 -> 0 | K183: = | L183: 0 | M183: x | N183: =Control!$C$79 -> 28 | O183: = | P183: 0
B184: Savanna grasslands (mid/late season burns) | E184: x | F184: =Control!$F$48 -> 0 | G184: x | H184: =Control!$F$45 -> 0 | I184: x | J184: =Control!$F$29 -> 0 | K184: = | L184: 0 | M184: x | N184: =Control!$C$79 -> 28 | O184: = | P184: 0
B185: Total | P185: =SUM(P174:P184) -> 0
A187: Forest Fires | D187: =D172+1 -> 2002
B188: Forest Type | D188: Area Burned (ha) | F188: Average Biomass Density (kg d.m. / ha) | H188: Combustion efficiency | J188: Emission Factor (g/kg dry matter burned) | L188: MTCH4 Emitted | N188: CH4 GWP | P188: Emissions MMTCO2E
B189: Primary tropical forests | E189: x | F189: =Control!$F$48 -> 0 | G189: x | H189: =Control!$F$35 -> 0 | I189: x | J189: =Control!$F$31 -> 0 | K189: = | L189: =D189*F189*H189*J189*10^-6 -> 0 | M189: x | N189: =Control!$C$79 -> 28 | O189: = | P189: =L189*N189*10^-6 -> 0
B190: Secondary tropical forests | E190: x | F190: =Control!$F$48 -> 0 | G190: x | H190: =Control!$F$36 -> 0 | I190: x | J190: =Control!$F$31 -> 0 | K190: = | L190: =D190*F190*H190*J190*10^-6 -> 0 | M190: x | N190: =Control!$C$79 -> 28 | O190: = | P190: =L190*N190*10^-6 -> 0
B191: Tertiary tropical forests | E191: x | F191: =Control!$F$48 -> 0 | G191: x | H191: =Control!$F$37 -> 0 | I191: x | J191: =Control!$F$31 -> 0 | K191: = | L191: 0 | M191: x | N191: =Control!$C$79 -> 28 | O191: = | P191: =L191*N191*10^-6 -> 0
B192: Boreal forest | E192: x | F192: =Control!$F$48 -> 0 | G192: x | H192: =Control!$F$38 -> 0 | I192: x | J192: =Control!$F$31 -> 0 | K192: = | L192: 0 | M192: x | N192: =Control!$C$79 -> 28 | O192: = | P192: 0
B193: Eucalypt forests | E193: x | F193: =Control!$F$48 -> 0 | G193: x | H193: =Control!$F$39 -> 0 | I193: x | J193: =Control!$F$31 -> 0 | K193: = | L193: 0 | M193: x | N193: =Control!$C$79 -> 28 | O193: = | P193: 0
B194: Other temperate forests | E194: x | F194: =Control!$F$48 -> 0 | G194: x | H194: =Control!$F$40 -> 0 | I194: x | J194: =Control!$F$31 -> 0 | K194: = | L194: 0 | M194: x | N194: =Control!$C$79 -> 28 | O194: = | P194: 0
B195: Shrublands | E195: x | F195: =Control!$F$48 -> 0 | G195: x | H195: =Control!$F$41 -> 0 | I195: x | J195: =Control!$F$31 -> 0 | K195: = | L195: 0 | M195: x | N195: =Control!$C$79 -> 28 | O195: = | P195: 0
B196: Savanna woodlands (early dry season burns) | E196: x | F196: =Control!$F$48 -> 0 | G196: x | H196: =Control!$F$42 -> 0 | I196: x | J196: =Control!$F$29 -> 0 | K196: = | L196: 0 | M196: x | N196: =Control!$C$79 -> 28 | O196: = | P196: 0
B197: Savanna woodlands (mid/late season burns) | E197: x | F197: =Control!$F$48 -> 0 | G197: x | H197: =Control!$F$43 -> 0 | I197: x | J197: =Control!$F$29 -> 0 | K197: = | L197: 0 | M197: x | N197: =Control!$C$79 -> 28 | O197: = | P197: 0
B198: Savanna grasslands (early dry season burns) | E198: x | F198: =Control!$F$48 -> 0 | G198: x | H198: =Control!$F$44 -> 0 | I198: x | J198: =Control!$F$29 -> 0 | K198: = | L198: 0 | M198: x | N198: =Control!$C$79 -> 28 | O198: = | P198: 0
B199: Savanna grasslands (mid/late season burns) | E199: x | F199: =Control!$F$48 -> 0 | G199: x | H199: =Control!$F$45 -> 0 | I199: x | J199: =Control!$F$29 -> 0 | K199: = | L199: 0 | M199: x | N199: =Control!$C$79 -> 28 | O199: = | P199: 0
B200: Total | P200: =SUM(P189:P199) -> 0
A202: Forest Fires | D202: =D187+1 -> 2003
B203: Forest Type | D203: Area Burned (ha) | F203: Average Biomass Density (kg d.m. / ha) | H203: Combustion efficiency | J203: Emission Factor (g/kg dry matter burned) | L203: MTCH4 Emitted | N203: CH4 GWP | P203: Emissions MMTCO2E
B204: Primary tropical forests | E204: x | F204: =Control!$F$48 -> 0 | G204: x | H204: =Control!$F$35 -> 0 | I204: x | J204: =Control!$F$31 -> 0 | K204: = | L204: =D204*F204*H204*J204*10^-6 -> 0 | M204: x | N204: =Control!$C$79 -> 28 | O204: = | P204: =L204*N204*10^-6 -> 0
B205: Secondary tropical forests | E205: x | F205: =Control!$F$48 -> 0 | G205: x | H205: =Control!$F$36 -> 0 | I205: x | J205: =Control!$F$31 -> 0 | K205: = | L205: =D205*F205*H205*J205*10^-6 -> 0 | M205: x | N205: =Control!$C$79 -> 28 | O205: = | P205: =L205*N205*10^-6 -> 0
B206: Tertiary tropical forests | E206: x | F206: =Control!$F$48 -> 0 | G206: x | H206: =Control!$F$37 -> 0 | I206: x | J206: =Control!$F$31 -> 0 | K206: = | L206: 0 | M206: x | N206: =Control!$C$79 -> 28 | O206: = | P206: =L206*N206*10^-6 -> 0
B207: Boreal forest | E207: x | F207: =Control!$F$48 -> 0 | G207: x | H207: =Control!$F$38 -> 0 | I207: x | J207: =Control!$F$31 -> 0 | K207: = | L207: 0 | M207: x | N207: =Control!$C$79 -> 28 | O207: = | P207: 0
B208: Eucalypt forests | E208: x | F208: =Control!$F$48 -> 0 | G208: x | H208: =Control!$F$39 -> 0 | I208: x | J208: =Control!$F$31 -> 0 | K208: = | L208: 0 | M208: x | N208: =Control!$C$79 -> 28 | O208: = | P208: 0
B209: Other temperate forests | E209: x | F209: =Control!$F$48 -> 0 | G209: x | H209: =Control!$F$40 -> 0 | I209: x | J209: =Control!$F$31 -> 0 | K209: = | L209: 0 | M209: x | N209: =Control!$C$79 -> 28 | O209: = | P209: 0
B210: Shrublands | E210: x | F210: =Control!$F$48 -> 0 | G210: x | H210: =Control!$F$41 -> 0 | I210: x | J210: =Control!$F$31 -> 0 | K210: = | L210: 0 | M210: x | N210: =Control!$C$79 -> 28 | O210: = | P210: 0
B211: Savanna woodlands (early dry season burns) | E211: x | F211: =Control!$F$48 -> 0 | G211: x | H211: =Control!$F$42 -> 0 | I211: x | J211: =Control!$F$29 -> 0 | K211: = | L211: 0 | M211: x | N211: =Control!$C$79 -> 28 | O211: = | P211: 0
B212: Savanna woodlands (mid/late season burns) | E212: x | F212: =Control!$F$48 -> 0 | G212: x | H212: =Control!$F$43 -> 0 | I212: x | J212: =Control!$F$29 -> 0 | K212: = | L212: 0 | M212: x | N212: =Control!$C$79 -> 28 | O212: = | P212: 0
B213: Savanna grasslands (early dry season burns) | E213: x | F213: =Control!$F$48 -> 0 | G213: x | H213: =Control!$F$44 -> 0 | I213: x | J213: =Control!$F$29 -> 0 | K213: = | L213: 0 | M213: x | N213: =Control!$C$79 -> 28 | O213: = | P213: 0
B214: Savanna grasslands (mid/late season burns) | E214: x | F214: =Control!$F$48 -> 0 | G214: x | H214: =Control!$F$45 -> 0 | I214: x | J214: =Control!$F$29 -> 0 | K214: = | L214: 0 | M214: x | N214: =Control!$C$79 -> 28 | O214: = | P214: 0
B215: Total | P215: =SUM(P204:P214) -> 0
A217: Forest Fires | D217: =D202+1 -> 2004
B218: Forest Type | D218: Area Burned (ha) | F218: Average Biomass Density (kg d.m. / ha) | H218: Combustion efficiency | J218: Emission Factor (g/kg dry matter burned) | L218: MTCH4 Emitted | N218: CH4 GWP | P218: Emissions MMTCO2E
B219: Primary tropical forests | E219: x | F219: =Control!$F$48 -> 0 | G219: x | H219: =Control!$F$35 -> 0 | I219: x | J219: =Control!$F$31 -> 0 | K219: = | L219: =D219*F219*H219*J219*10^-6 -> 0 | M219: x | N219: =Control!$C$79 -> 28 | O219: = | P219: =L219*N219*10^-6 -> 0
... 305 more rows

Sheet Burning N2O
A1: ="5b. Nitrous Oxide Emissions from Forest Fires in "&StateName -> 5b. Nitrous Oxide Emissions from Forest Fires in Select a State . . .
A7: Forest Fires | D7: 1990
B8: Forest Type | D8: Area Burned (ha) | F8: Average Biomass Density (kg d.m. / ha) | H8: Combustion efficiency | J8: Emission Factor (g/kg dry matter burned) | L8: MTN2O Emitted | N8: N2O GWP | P8: Emissions MMTCO2E
B9: Primary tropical forests | D9: ='Burning CH4'!D9 -> 0 | E9: x | F9: =Control!$F$48 -> 0 | G9: x | H9: =Control!$F$35 -> 0 | I9: x | J9: =Control!$F$32 -> 0 | K9: = | L9: =D9*F9*H9*J9*10^-6 -> 0 | M9: x | N9: =Control!$C$80 -> 265 | O9: = | P9: =L9*N9*10^-6 -> 0
B10: Secondary tropical forests | D10: ='Burning CH4'!D10 -> 0 | E10: x | F10: =Control!$F$48 -> 0 | G10: x | H10: =Control!$F$36 -> 0 | I10: x | J10: =Control!$F$32 -> 0 | K10: = | L10: 0 | M10: x | N10: =Control!$C$80 -> 265 | O10: = | P10: =L10*N10*10^-6 -> 0
B11: Tertiary tropical forests | D11: ='Burning CH4'!D11 -> 0 | E11: x | F11: =Control!$F$48 -> 0 | G11: x | H11: =Control!$F$37 -> 0 | I11: x | J11: =Control!$F$32 -> 0 | K11: = | L11: 0 | M11: x | N11: =Control!$C$80 -> 265 | O11: = | P11: 0
B12: Boreal forest | D12: ='Burning CH4'!D12 -> 0 | E12: x | F12: =Control!$F$48 -> 0 | G12: x | H12: =Control!$F$38 -> 0 | I12: x | J12: =Control!$F$32 -> 0 | K12: = | L12: 0 | M12: x | N12: =Control!$C$80 -> 265 | O12: = | P12: 0
B13: Eucalypt forests | D13: ='Burning CH4'!D13 -> 0 | E13: x | F13: =Control!$F$48 -> 0 | G13: x | H13: =Control!$F$39 -> 0 | I13: x | J13: =Control!$F$32 -> 0 | K13: = | L13: 0 | M13: x | N13: =Control!$C$80 -> 265 | O13: = | P13: 0
B14: Other temperate forests | D14: ='Burning CH4'!D14 -> 0 | E14: x | F14: =Control!$F$48 -> 0 | G14: x | H14: =Control!$F$40 -> 0 | I14: x | J14: =Control!$F$32 -> 0 | K14: = | L14: 0 | M14: x | N14: =Control!$C$80 -> 265 | O14: = | P14: 0
B15: Shrublands | D15: ='Burning CH4'!D15 -> 0 | E15: x | F15: =Control!$F$48 -> 0 | G15: x | H15: =Control!$F$41 -> 0 | I15: x | J15: =Control!$F$32 -> 0 | K15: = | L15: 0 | M15: x | N15: =Control!$C$80 -> 265 | O15: = | P15: 0
B16: Savanna woodlands (early dry season burns) | D16: ='Burning CH4'!D16 -> 0 | E16: x | F16: =Control!$F$48 -> 0 | G16: x | H16: =Control!$F$42 -> 0 | I16: x | J16: =Control!$F$30 -> 0 | K16: = | L16: 0 | M16: x | N16: =Control!$C$80 -> 265 | O16: = | P16: 0
B17: Savanna woodlands (mid/late season burns) | D17: ='Burning CH4'!D17 -> 0 | E17: x | F17: =Control!$F$48 -> 0 | G17: x | H17: =Control!$F$43 -> 0 | I17: x | J17: =Control!$F$30 -> 0 | K17: = | L17: 0 | M17: x | N17: =Control!$C$80 -> 265 | O17: = | P17: 0
B18: Savanna grasslands (early dry season burns) | D18: ='Burning CH4'!D18 -> 0 | E18: x | F18: =Control!$F$48 -> 0 | G18: x | H18: =Control!$F$44 -> 0 | I18: x | J18: =Control!$F$30 -> 0 | K18: = | L18: =D18*F18*H18*J18*10^-6 -> 0 | M18: x | N18: =Control!$C$80 -> 265 | O18: = | P18: =L18*N18*10^-6 -> 0
B19: Savanna grasslands (mid/late season burns) | D19: ='Burning CH4'!D19 -> 0 | E19: x | F19: =Control!$F$48 -> 0 | G19: x | H19: =Control!$F$45 -> 0 | I19: x | J19: =Control!$F$30 -> 0 | K19: = | L19: 0 | M19: x | N19: =Control!$C$80 -> 265 | O19: = | P19: 0
B20: Total | P20: =SUM(P9:P19) -> 0
A22: Forest Fires | D22: =D7+1 -> 1991
B23: Forest Type | D23: Area Burned (ha) | F23: Average Biomass Density (kg d.m. / ha) | H23: Combustion efficiency | J23: Emission Factor (g/kg dry matter burned) | L23: MTN2O Emitted | N23: N2O GWP | P23: Emissions MMTCO2E
B24: Primary tropical forests | D24: ='Burning CH4'!D24 -> 0 | E24: x | F24: =Control!$F$48 -> 0 | G24: x | H24: =Control!$F$35 -> 0 | I24: x | J24: =Control!$F$32 -> 0 | K24: = | L24: =D24*F24*H24*J24*10^-6 -> 0 | M24: x | N24: =Control!$C$80 -> 265 | O24: = | P24: =L24*N24*10^-6 -> 0
B25: Secondary tropical forests | D25: ='Burning CH4'!D25 -> 0 | E25: x | F25: =Control!$F$48 -> 0 | G25: x | H25: =Control!$F$36 -> 0 | I25: x | J25: =Control!$F$32 -> 0 | K25: = | L25: 0 | M25: x | N25: =Control!$C$80 -> 265 | O25: = | P25: =L25*N25*10^-6 -> 0
B26: Tertiary tropical forests | D26: ='Burning CH4'!D26 -> 0 | E26: x | F26: =Control!$F$48 -> 0 | G26: x | H26: =Control!$F$37 -> 0 | I26: x | J26: =Control!$F$32 -> 0 | K26: = | L26: 0 | M26: x | N26: =Control!$C$80 -> 265 | O26: = | P26: 0
B27: Boreal forest | D27: ='Burning CH4'!D27 -> 0 | E27: x | F27: =Control!$F$48 -> 0 | G27: x | H27: =Control!$F$38 -> 0 | I27: x | J27: =Control!$F$32 -> 0 | K27: = | L27: 0 | M27: x | N27: =Control!$C$80 -> 265 | O27: = | P27: 0
B28: Eucalypt forests | D28: ='Burning CH4'!D28 -> 0 | E28: x | F28: =Control!$F$48 -> 0 | G28: x | H28: =Control!$F$39 -> 0 | I28: x | J28: =Control!$F$32 -> 0 | K28: = | L28: 0 | M28: x | N28: =Control!$C$80 -> 265 | O28: = | P28: 0
B29: Other temperate forests | D29: ='Burning CH4'!D29 -> 0 | E29: x | F29: =Control!$F$48 -> 0 | G29: x | H29: =Control!$F$40 -> 0 | I29: x | J29: =Control!$F$32 -> 0 | K29: = | L29: 0 | M29: x | N29: =Control!$C$80 -> 265 | O29: = | P29: 0
B30: Shrublands | D30: ='Burning CH4'!D30 -> 0 | E30: x | F30: =Control!$F$48 -> 0 | G30: x | H30: =Control!$F$41 -> 0 | I30: x | J30: =Control!$F$32 -> 0 | K30: = | L30: 0 | M30: x | N30: =Control!$C$80 -> 265 | O30: = | P30: 0
B31: Savanna woodlands (early dry season burns) | D31: ='Burning CH4'!D31 -> 0 | E31: x | F31: =Control!$F$48 -> 0 | G31: x | H31: =Control!$F$42 -> 0 | I31: x | J31: =Control!$F$30 -> 0 | K31: = | L31: 0 | M31: x | N31: =Control!$C$80 -> 265 | O31: = | P31: 0
B32: Savanna woodlands (mid/late season burns) | D32: ='Burning CH4'!D32 -> 0 | E32: x | F32: =Control!$F$48 -> 0 | G32: x | H32: =Control!$F$43 -> 0 | I32: x | J32: =Control!$F$30 -> 0 | K32: = | L32: 0 | M32: x | N32: =Control!$C$80 -> 265 | O32: = | P32: 0
B33: Savanna grasslands (early dry season burns) | D33: ='Burning CH4'!D33 -> 0 | E33: x | F33: =Control!$F$48 -> 0 | G33: x | H33: =Control!$F$44 -> 0 | I33: x | J33: =Control!$F$30 -> 0 | K33: = | L33: 0 | M33: x | N33: =Control!$C$80 -> 265 | O33: = | P33: 0
B34: Savanna grasslands (mid/late season burns) | D34: ='Burning CH4'!D34 -> 0 | E34: x | F34: =Control!$F$48 -> 0 | G34: x | H34: =Control!$F$45 -> 0 | I34: x | J34: =Control!$F$30 -> 0 | K34: = | L34: 0 | M34: x | N34: =Control!$C$80 -> 265 | O34: = | P34: 0
B35: Total | P35: =SUM(P24:P34) -> 0
A37: Forest Fires | D37: =D22+1 -> 1992
B38: Forest Type | D38: Area Burned (ha) | F38: Average Biomass Density (kg d.m. / ha) | H38: Combustion efficiency | J38: Emission Factor (g/kg dry matter burned) | L38: MTN2O Emitted | N38: N2O GWP | P38: Emissions MMTCO2E
B39: Primary tropical forests | D39: ='Burning CH4'!D39 -> 0 | E39: x | F39: =Control!$F$48 -> 0 | G39: x | H39: =Control!$F$35 -> 0 | I39: x | J39: =Control!$F$32 -> 0 | K39: = | L39: =D39*F39*H39*J39*10^-6 -> 0 | M39: x | N39: =Control!$C$80 -> 265 | O39: = | P39: =L39*N39*10^-6 -> 0
B40: Secondary tropical forests | D40: ='Burning CH4'!D40 -> 0 | E40: x | F40: =Control!$F$48 -> 0 | G40: x | H40: =Control!$F$36 -> 0 | I40: x | J40: =Control!$F$32 -> 0 | K40: = | L40: 0 | M40: x | N40: =Control!$C$80 -> 265 | O40: = | P40: =L40*N40*10^-6 -> 0
B41: Tertiary tropical forests | D41: ='Burning CH4'!D41 -> 0 | E41: x | F41: =Control!$F$48 -> 0 | G41: x | H41: =Control!$F$37 -> 0 | I41: x | J41: =Control!$F$32 -> 0 | K41: = | L41: 0 | M41: x | N41: =Control!$C$80 -> 265 | O41: = | P41: 0
B42: Boreal forest | D42: ='Burning CH4'!D42 -> 0 | E42: x | F42: =Control!$F$48 -> 0 | G42: x | H42: =Control!$F$38 -> 0 | I42: x | J42: =Control!$F$32 -> 0 | K42: = | L42: 0 | M42: x | N42: =Control!$C$80 -> 265 | O42: = | P42: 0
B43: Eucalypt forests | D43: ='Burning CH4'!D43 -> 0 | E43: x | F43: =Control!$F$48 -> 0 | G43: x | H43: =Control!$F$39 -> 0 | I43: x | J43: =Control!$F$32 -> 0 | K43: = | L43: 0 | M43: x | N43: =Control!$C$80 -> 265 | O43: = | P43: 0
B44: Other temperate forests | D44: ='Burning CH4'!D44 -> 0 | E44: x | F44: =Control!$F$48 -> 0 | G44: x | H44: =Control!$F$40 -> 0 | I44: x | J44: =Control!$F$32 -> 0 | K44: = | L44: 0 | M44: x | N44: =Control!$C$80 -> 265 | O44: = | P44: 0
B45: Shrublands | D45: ='Burning CH4'!D45 -> 0 | E45: x | F45: =Control!$F$48 -> 0 | G45: x | H45: =Control!$F$41 -> 0 | I45: x | J45: =Control!$F$32 -> 0 | K45: = | L45: 0 | M45: x | N45: =Control!$C$80 -> 265 | O45: = | P45: 0
B46: Savanna woodlands (early dry season burns) | D46: ='Burning CH4'!D46 -> 0 | E46: x | F46: =Control!$F$48 -> 0 | G46: x | H46: =Control!$F$42 -> 0 | I46: x | J46: =Control!$F$30 -> 0 | K46: = | L46: 0 | M46: x | N46: =Control!$C$80 -> 265 | O46: = | P46: 0
B47: Savanna woodlands (mid/late season burns) | D47: ='Burning CH4'!D47 -> 0 | E47: x | F47: =Control!$F$48 -> 0 | G47: x | H47: =Control!$F$43 -> 0 | I47: x | J47: =Control!$F$30 -> 0 | K47: = | L47: 0 | M47: x | N47: =Control!$C$80 -> 265 | O47: = | P47: 0
B48: Savanna grasslands (early dry season burns) | D48: ='Burning CH4'!D48 -> 0 | E48: x | F48: =Control!$F$48 -> 0 | G48: x | H48: =Control!$F$44 -> 0 | I48: x | J48: =Control!$F$30 -> 0 | K48: = | L48: 0 | M48: x | N48: =Control!$C$80 -> 265 | O48: = | P48: 0
B49: Savanna grasslands (mid/late season burns) | D49: ='Burning CH4'!D49 -> 0 | E49: x | F49: =Control!$F$48 -> 0 | G49: x | H49: =Control!$F$45 -> 0 | I49: x | J49: =Control!$F$30 -> 0 | K49: = | L49: 0 | M49: x | N49: =Control!$C$80 -> 265 | O49: = | P49: 0
B50: Total | P50: =SUM(P39:P49) -> 0
A52: Forest Fires | D52: =D37+1 -> 1993
B53: Forest Type | D53: Area Burned (ha) | F53: Average Biomass Density (kg d.m. / ha) | H53: Combustion efficiency | J53: Emission Factor (g/kg dry matter burned) | L53: MTN2O Emitted | N53: N2O GWP | P53: Emissions MMTCO2E
B54: Primary tropical forests | D54: ='Burning CH4'!D54 -> 0 | E54: x | F54: =Control!$F$48 -> 0 | G54: x | H54: =Control!$F$35 -> 0 | I54: x | J54: =Control!$F$32 -> 0 | K54: = | L54: =D54*F54*H54*J54*10^-6 -> 0 | M54: x | N54: =Control!$C$80 -> 265 | O54: = | P54: =L54*N54*10^-6 -> 0
B55: Secondary tropical forests | D55: ='Burning CH4'!D55 -> 0 | E55: x | F55: =Control!$F$48 -> 0 | G55: x | H55: =Control!$F$36 -> 0 | I55: x | J55: =Control!$F$32 -> 0 | K55: = | L55: 0 | M55: x | N55: =Control!$C$80 -> 265 | O55: = | P55: =L55*N55*10^-6 -> 0
B56: Tertiary tropical forests | D56: ='Burning CH4'!D56 -> 0 | E56: x | F56: =Control!$F$48 -> 0 | G56: x | H56: =Control!$F$37 -> 0 | I56: x | J56: =Control!$F$32 -> 0 | K56: = | L56: 0 | M56: x | N56: =Control!$C$80 -> 265 | O56: = | P56: 0
B57: Boreal forest | D57: ='Burning CH4'!D57 -> 0 | E57: x | F57: =Control!$F$48 -> 0 | G57: x | H57: =Control!$F$38 -> 0 | I57: x | J57: =Control!$F$32 -> 0 | K57: = | L57: 0 | M57: x | N57: =Control!$C$80 -> 265 | O57: = | P57: 0
B58: Eucalypt forests | D58: ='Burning CH4'!D58 -> 0 | E58: x | F58: =Control!$F$48 -> 0 | G58: x | H58: =Control!$F$39 -> 0 | I58: x | J58: =Control!$F$32 -> 0 | K58: = | L58: 0 | M58: x | N58: =Control!$C$80 -> 265 | O58: = | P58: 0
B59: Other temperate forests | D59: ='Burning CH4'!D59 -> 0 | E59: x | F59: =Control!$F$48 -> 0 | G59: x | H59: =Control!$F$40 -> 0 | I59: x | J59: =Control!$F$32 -> 0 | K59: = | L59: 0 | M59: x | N59: =Control!$C$80 -> 265 | O59: = | P59: 0
B60: Shrublands | D60: ='Burning CH4'!D60 -> 0 | E60: x | F60: =Control!$F$48 -> 0 | G60: x | H60: =Control!$F$41 -> 0 | I60: x | J60: =Control!$F$32 -> 0 | K60: = | L60: 0 | M60: x | N60: =Control!$C$80 -> 265 | O60: = | P60: 0
B61: Savanna woodlands (early dry season burns) | D61: ='Burning CH4'!D61 -> 0 | E61: x | F61: =Control!$F$48 -> 0 | G61: x | H61: =Control!$F$42 -> 0 | I61: x | J61: =Control!$F$30 -> 0 | K61: = | L61: 0 | M61: x | N61: =Control!$C$80 -> 265 | O61: = | P61: 0
B62: Savanna woodlands (mid/late season burns) | D62: ='Burning CH4'!D62 -> 0 | E62: x | F62: =Control!$F$48 -> 0 | G62: x | H62: =Control!$F$43 -> 0 | I62: x | J62: =Control!$F$30 -> 0 | K62: = | L62: 0 | M62: x | N62: =Control!$C$80 -> 265 | O62: = | P62: 0
B63: Savanna grasslands (early dry season burns) | D63: ='Burning CH4'!D63 -> 0 | E63: x | F63: =Control!$F$48 -> 0 | G63: x | H63: =Control!$F$44 -> 0 | I63: x | J63: =Control!$F$30 -> 0 | K63: = | L63: 0 | M63: x | N63: =Control!$C$80 -> 265 | O63: = | P63: 0
B64: Savanna grasslands (mid/late season burns) | D64: ='Burning CH4'!D64 -> 0 | E64: x | F64: =Control!$F$48 -> 0 | G64: x | H64: =Control!$F$45 -> 0 | I64: x | J64: =Control!$F$30 -> 0 | K64: = | L64: 0 | M64: x | N64: =Control!$C$80 -> 265 | O64: = | P64: 0
B65: Total | P65: =SUM(P54:P64) -> 0
A67: Forest Fires | D67: =D52+1 -> 1994
B68: Forest Type | D68: Area Burned (ha) | F68: Average Biomass Density (kg d.m. / ha) | H68: Combustion efficiency | J68: Emission Factor (g/kg dry matter burned) | L68: MTN2O Emitted | N68: N2O GWP | P68: Emissions MMTCO2E
B69: Primary tropical forests | D69: ='Burning CH4'!D69 -> 0 | E69: x | F69: =Control!$F$48 -> 0 | G69: x | H69: =Control!$F$35 -> 0 | I69: x | J69: =Control!$F$32 -> 0 | K69: = | L69: =D69*F69*H69*J69*10^-6 -> 0 | M69: x | N69: =Control!$C$80 -> 265 | O69: = | P69: =L69*N69*10^-6 -> 0
B70: Secondary tropical forests | D70: ='Burning CH4'!D70 -> 0 | E70: x | F70: =Control!$F$48 -> 0 | G70: x | H70: =Control!$F$36 -> 0 | I70: x | J70: =Control!$F$32 -> 0 | K70: = | L70: 0 | M70: x | N70: =Control!$C$80 -> 265 | O70: = | P70: =L70*N70*10^-6 -> 0
B71: Tertiary tropical forests | D71: ='Burning CH4'!D71 -> 0 | E71: x | F71: =Control!$F$48 -> 0 | G71: x | H71: =Control!$F$37 -> 0 | I71: x | J71: =Control!$F$32 -> 0 | K71: = | L71: 0 | M71: x | N71: =Control!$C$80 -> 265 | O71: = | P71: 0
B72: Boreal forest | D72: ='Burning CH4'!D72 -> 0 | E72: x | F72: =Control!$F$48 -> 0 | G72: x | H72: =Control!$F$38 -> 0 | I72: x | J72: =Control!$F$32 -> 0 | K72: = | L72: 0 | M72: x | N72: =Control!$C$80 -> 265 | O72: = | P72: 0
B73: Eucalypt forests | D73: ='Burning CH4'!D73 -> 0 | E73: x | F73: =Control!$F$48 -> 0 | G73: x | H73: =Control!$F$39 -> 0 | I73: x | J73: =Control!$F$32 -> 0 | K73: = | L73: 0 | M73: x | N73: =Control!$C$80 -> 265 | O73: = | P73: 0
B74: Other temperate forests | D74: ='Burning CH4'!D74 -> 0 | E74: x | F74: =Control!$F$48 -> 0 | G74: x | H74: =Control!$F$40 -> 0 | I74: x | J74: =Control!$F$32 -> 0 | K74: = | L74: 0 | M74: x | N74: =Control!$C$80 -> 265 | O74: = | P74: 0
B75: Shrublands | D75: ='Burning CH4'!D75 -> 0 | E75: x | F75: =Control!$F$48 -> 0 | G75: x | H75: =Control!$F$41 -> 0 | I75: x | J75: =Control!$F$32 -> 0 | K75: = | L75: 0 | M75: x | N75: =Control!$C$80 -> 265 | O75: = | P75: 0
B76: Savanna woodlands (early dry season burns) | D76: ='Burning CH4'!D76 -> 0 | E76: x | F76: =Control!$F$48 -> 0 | G76: x | H76: =Control!$F$42 -> 0 | I76: x | J76: =Control!$F$30 -> 0 | K76: = | L76: 0 | M76: x | N76: =Control!$C$80 -> 265 | O76: = | P76: 0
B77: Savanna woodlands (mid/late season burns) | D77: ='Burning CH4'!D77 -> 0 | E77: x | F77: =Control!$F$48 -> 0 | G77: x | H77: =Control!$F$43 -> 0 | I77: x | J77: =Control!$F$30 -> 0 | K77: = | L77: 0 | M77: x | N77: =Control!$C$80 -> 265 | O77: = | P77: 0
B78: Savanna grasslands (early dry season burns) | D78: ='Burning CH4'!D78 -> 0 | E78: x | F78: =Control!$F$48 -> 0 | G78: x | H78: =Control!$F$44 -> 0 | I78: x | J78: =Control!$F$30 -> 0 | K78: = | L78: 0 | M78: x | N78: =Control!$C$80 -> 265 | O78: = | P78: 0
B79: Savanna grasslands (mid/late season burns) | D79: ='Burning CH4'!D79 -> 0 | E79: x | F79: =Control!$F$48 -> 0 | G79: x | H79: =Control!$F$45 -> 0 | I79: x | J79: =Control!$F$30 -> 0 | K79: = | L79: 0 | M79: x | N79: =Control!$C$80 -> 265 | O79: = | P79: 0
B80: Total | P80: =SUM(P69:P79) -> 0
A82: Forest Fires | D82: =D67+1 -> 1995
B83: Forest Type | D83: Area Burned (ha) | F83: Average Biomass Density (kg d.m. / ha) | H83: Combustion efficiency | J83: Emission Factor (g/kg dry matter burned) | L83: MTN2O Emitted | N83: N2O GWP | P83: Emissions MMTCO2E
B84: Primary tropical forests | D84: ='Burning CH4'!D84 -> 0 | E84: x | F84: =Control!$F$48 -> 0 | G84: x | H84: =Control!$F$35 -> 0 | I84: x | J84: =Control!$F$32 -> 0 | K84: = | L84: =D84*F84*H84*J84*10^-6 -> 0 | M84: x | N84: =Control!$C$80 -> 265 | O84: = | P84: =L84*N84*10^-6 -> 0
B85: Secondary tropical forests | D85: ='Burning CH4'!D85 -> 0 | E85: x | F85: =Control!$F$48 -> 0 | G85: x | H85: =Control!$F$36 -> 0 | I85: x | J85: =Control!$F$32 -> 0 | K85: = | L85: 0 | M85: x | N85: =Control!$C$80 -> 265 | O85: = | P85: =L85*N85*10^-6 -> 0
B86: Tertiary tropical forests | D86: ='Burning CH4'!D86 -> 0 | E86: x | F86: =Control!$F$48 -> 0 | G86: x | H86: =Control!$F$37 -> 0 | I86: x | J86: =Control!$F$32 -> 0 | K86: = | L86: 0 | M86: x | N86: =Control!$C$80 -> 265 | O86: = | P86: 0
B87: Boreal forest | D87: ='Burning CH4'!D87 -> 0 | E87: x | F87: =Control!$F$48 -> 0 | G87: x | H87: =Control!$F$38 -> 0 | I87: x | J87: =Control!$F$32 -> 0 | K87: = | L87: 0 | M87: x | N87: =Control!$C$80 -> 265 | O87: = | P87: 0
B88: Eucalypt forests | D88: ='Burning CH4'!D88 -> 0 | E88: x | F88: =Control!$F$48 -> 0 | G88: x | H88: =Control!$F$39 -> 0 | I88: x | J88: =Control!$F$32 -> 0 | K88: = | L88: 0 | M88: x | N88: =Control!$C$80 -> 265 | O88: = | P88: 0
B89: Other temperate forests | D89: ='Burning CH4'!D89 -> 0 | E89: x | F89: =Control!$F$48 -> 0 | G89: x | H89: =Control!$F$40 -> 0 | I89: x | J89: =Control!$F$32 -> 0 | K89: = | L89: 0 | M89: x | N89: =Control!$C$80 -> 265 | O89: = | P89: 0
B90: Shrublands | D90: ='Burning CH4'!D90 -> 0 | E90: x | F90: =Control!$F$48 -> 0 | G90: x | H90: =Control!$F$41 -> 0 | I90: x | J90: =Control!$F$32 -> 0 | K90: = | L90: 0 | M90: x | N90: =Control!$C$80 -> 265 | O90: = | P90: 0
B91: Savanna woodlands (early dry season burns) | D91: ='Burning CH4'!D91 -> 0 | E91: x | F91: =Control!$F$48 -> 0 | G91: x | H91: =Control!$F$42 -> 0 | I91: x | J91: =Control!$F$30 -> 0 | K91: = | L91: 0 | M91: x | N91: =Control!$C$80 -> 265 | O91: = | P91: 0
B92: Savanna woodlands (mid/late season burns) | D92: ='Burning CH4'!D92 -> 0 | E92: x | F92: =Control!$F$48 -> 0 | G92: x | H92: =Control!$F$43 -> 0 | I92: x | J92: =Control!$F$30 -> 0 | K92: = | L92: 0 | M92: x | N92: =Control!$C$80 -> 265 | O92: = | P92: 0
B93: Savanna grasslands (early dry season burns) | D93: ='Burning CH4'!D93 -> 0 | E93: x | F93: =Control!$F$48 -> 0 | G93: x | H93: =Control!$F$44 -> 0 | I93: x | J93: =Control!$F$30 -> 0 | K93: = | L93: 0 | M93: x | N93: =Control!$C$80 -> 265 | O93: = | P93: 0
B94: Savanna grasslands (mid/late season burns) | D94: ='Burning CH4'!D94 -> 0 | E94: x | F94: =Control!$F$48 -> 0 | G94: x | H94: =Control!$F$45 -> 0 | I94: x | J94: =Control!$F$30 -> 0 | K94: = | L94: 0 | M94: x | N94: =Control!$C$80 -> 265 | O94: = | P94: 0
B95: Total | P95: =SUM(P84:P94) -> 0
A97: Forest Fires | D97: =D82+1 -> 1996
B98: Forest Type | D98: Area Burned (ha) | F98: Average Biomass Density (kg d.m. / ha) | H98: Combustion efficiency | J98: Emission Factor (g/kg dry matter burned) | L98: MTN2O Emitted | N98: N2O GWP | P98: Emissions MMTCO2E
B99: Primary tropical forests | D99: ='Burning CH4'!D99 -> 0 | E99: x | F99: =Control!$F$48 -> 0 | G99: x | H99: =Control!$F$35 -> 0 | I99: x | J99: =Control!$F$32 -> 0 | K99: = | L99: =D99*F99*H99*J99*10^-6 -> 0 | M99: x | N99: =Control!$C$80 -> 265 | O99: = | P99: =L99*N99*10^-6 -> 0
B100: Secondary tropical forests | D100: ='Burning CH4'!D100 -> 0 | E100: x | F100: =Control!$F$48 -> 0 | G100: x | H100: =Control!$F$36 -> 0 | I100: x | J100: =Control!$F$32 -> 0 | K100: = | L100: 0 | M100: x | N100: =Control!$C$80 -> 265 | O100: = | P100: =L100*N100*10^-6 -> 0
B101: Tertiary tropical forests | D101: ='Burning CH4'!D101 -> 0 | E101: x | F101: =Control!$F$48 -> 0 | G101: x | H101: =Control!$F$37 -> 0 | I101: x | J101: =Control!$F$32 -> 0 | K101: = | L101: 0 | M101: x | N101: =Control!$C$80 -> 265 | O101: = | P101: 0
B102: Boreal forest | D102: ='Burning CH4'!D102 -> 0 | E102: x | F102: =Control!$F$48 -> 0 | G102: x | H102: =Control!$F$38 -> 0 | I102: x | J102: =Control!$F$32 -> 0 | K102: = | L102: 0 | M102: x | N102: =Control!$C$80 -> 265 | O102: = | P102: 0
B103: Eucalypt forests | D103: ='Burning CH4'!D103 -> 0 | E103: x | F103: =Control!$F$48 -> 0 | G103: x | H103: =Control!$F$39 -> 0 | I103: x | J103: =Control!$F$32 -> 0 | K103: = | L103: 0 | M103: x | N103: =Control!$C$80 -> 265 | O103: = | P103: 0
B104: Other temperate forests | D104: ='Burning CH4'!D104 -> 0 | E104: x | F104: =Control!$F$48 -> 0 | G104: x | H104: =Control!$F$40 -> 0 | I104: x | J104: =Control!$F$32 -> 0 | K104: = | L104: 0 | M104: x | N104: =Control!$C$80 -> 265 | O104: = | P104: 0
B105: Shrublands | D105: ='Burning CH4'!D105 -> 0 | E105: x | F105: =Control!$F$48 -> 0 | G105: x | H105: =Control!$F$41 -> 0 | I105: x | J105: =Control!$F$32 -> 0 | K105: = | L105: 0 | M105: x | N105: =Control!$C$80 -> 265 | O105: = | P105: 0
B106: Savanna woodlands (early dry season burns) | D106: ='Burning CH4'!D106 -> 0 | E106: x | F106: =Control!$F$48 -> 0 | G106: x | H106: =Control!$F$42 -> 0 | I106: x | J106: =Control!$F$30 -> 0 | K106: = | L106: 0 | M106: x | N106: =Control!$C$80 -> 265 | O106: = | P106: 0
B107: Savanna woodlands (mid/late season burns) | D107: ='Burning CH4'!D107 -> 0 | E107: x | F107: =Control!$F$48 -> 0 | G107: x | H107: =Control!$F$43 -> 0 | I107: x | J107: =Control!$F$30 -> 0 | K107: = | L107: 0 | M107: x | N107: =Control!$C$80 -> 265 | O107: = | P107: 0
B108: Savanna grasslands (early dry season burns) | D108: ='Burning CH4'!D108 -> 0 | E108: x | F108: =Control!$F$48 -> 0 | G108: x | H108: =Control!$F$44 -> 0 | I108: x | J108: =Control!$F$30 -> 0 | K108: = | L108: 0 | M108: x | N108: =Control!$C$80 -> 265 | O108: = | P108: 0
B109: Savanna grasslands (mid/late season burns) | D109: ='Burning CH4'!D109 -> 0 | E109: x | F109: =Control!$F$48 -> 0 | G109: x | H109: =Control!$F$45 -> 0 | I109: x | J109: =Control!$F$30 -> 0 | K109: = | L109: 0 | M109: x | N109: =Control!$C$80 -> 265 | O109: = | P109: 0
B110: Total | P110: =SUM(P99:P109) -> 0
A112: Forest Fires | D112: =D97+1 -> 1997
B113: Forest Type | D113: Area Burned (ha) | F113: Average Biomass Density (kg d.m. / ha) | H113: Combustion efficiency | J113: Emission Factor (g/kg dry matter burned) | L113: MTN2O Emitted | N113: N2O GWP | P113: Emissions MMTCO2E
B114: Primary tropical forests | D114: ='Burning CH4'!D114 -> 0 | E114: x | F114: =Control!$F$48 -> 0 | G114: x | H114: =Control!$F$35 -> 0 | I114: x | J114: =Control!$F$32 -> 0 | K114: = | L114: =D114*F114*H114*J114*10^-6 -> 0 | M114: x | N114: =Control!$C$80 -> 265 | O114: = | P114: =L114*N114*10^-6 -> 0
B115: Secondary tropical forests | D115: ='Burning CH4'!D115 -> 0 | E115: x | F115: =Control!$F$48 -> 0 | G115: x | H115: =Control!$F$36 -> 0 | I115: x | J115: =Control!$F$32 -> 0 | K115: = | L115: 0 | M115: x | N115: =Control!$C$80 -> 265 | O115: = | P115: =L115*N115*10^-6 -> 0
B116: Tertiary tropical forests | D116: ='Burning CH4'!D116 -> 0 | E116: x | F116: =Control!$F$48 -> 0 | G116: x | H116: =Control!$F$37 -> 0 | I116: x | J116: =Control!$F$32 -> 0 | K116: = | L116: 0 | M116: x | N116: =Control!$C$80 -> 265 | O116: = | P116: 0
B117: Boreal forest | D117: ='Burning CH4'!D117 -> 0 | E117: x | F117: =Control!$F$48 -> 0 | G117: x | H117: =Control!$F$38 -> 0 | I117: x | J117: =Control!$F$32 -> 0 | K117: = | L117: 0 | M117: x | N117: =Control!$C$80 -> 265 | O117: = | P117: 0
B118: Eucalypt forests | D118: ='Burning CH4'!D118 -> 0 | E118: x | F118: =Control!$F$48 -> 0 | G118: x | H118: =Control!$F$39 -> 0 | I118: x | J118: =Control!$F$32 -> 0 | K118: = | L118: 0 | M118: x | N118: =Control!$C$80 -> 265 | O118: = | P118: 0
B119: Other temperate forests | D119: ='Burning CH4'!D119 -> 0 | E119: x | F119: =Control!$F$48 -> 0 | G119: x | H119: =Control!$F$40 -> 0 | I119: x | J119: =Control!$F$32 -> 0 | K119: = | L119: 0 | M119: x | N119: =Control!$C$80 -> 265 | O119: = | P119: 0
B120: Shrublands | D120: ='Burning CH4'!D120 -> 0 | E120: x | F120: =Control!$F$48 -> 0 | G120: x | H120: =Control!$F$41 -> 0 | I120: x | J120: =Control!$F$32 -> 0 | K120: = | L120: 0 | M120: x | N120: =Control!$C$80 -> 265 | O120: = | P120: 0
B121: Savanna woodlands (early dry season burns) | D121: ='Burning CH4'!D121 -> 0 | E121: x | F121: =Control!$F$48 -> 0 | G121: x | H121: =Control!$F$42 -> 0 | I121: x | J121: =Control!$F$30 -> 0 | K121: = | L121: 0 | M121: x | N121: =Control!$C$80 -> 265 | O121: = | P121: 0
B122: Savanna woodlands (mid/late season burns) | D122: ='Burning CH4'!D122 -> 0 | E122: x | F122: =Control!$F$48 -> 0 | G122: x | H122: =Control!$F$43 -> 0 | I122: x | J122: =Control!$F$30 -> 0 | K122: = | L122: 0 | M122: x | N122: =Control!$C$80 -> 265 | O122: = | P122: 0
B123: Savanna grasslands (early dry season burns) | D123: ='Burning CH4'!D123 -> 0 | E123: x | F123: =Control!$F$48 -> 0 | G123: x | H123: =Control!$F$44 -> 0 | I123: x | J123: =Control!$F$30 -> 0 | K123: = | L123: 0 | M123: x | N123: =Control!$C$80 -> 265 | O123: = | P123: 0
B124: Savanna grasslands (mid/late season burns) | D124: ='Burning CH4'!D124 -> 0 | E124: x | F124: =Control!$F$48 -> 0 | G124: x | H124: =Control!$F$45 -> 0 | I124: x | J124: =Control!$F$30 -> 0 | K124: = | L124: 0 | M124: x | N124: =Control!$C$80 -> 265 | O124: = | P124: 0
B125: Total | P125: =SUM(P114:P124) -> 0
A127: Forest Fires | D127: =D112+1 -> 1998
B128: Forest Type | D128: Area Burned (ha) | F128: Average Biomass Density (kg d.m. / ha) | H128: Combustion efficiency | J128: Emission Factor (g/kg dry matter burned) | L128: MTN2O Emitted | N128: N2O GWP | P128: Emissions MMTCO2E
B129: Primary tropical forests | D129: ='Burning CH4'!D129 -> 0 | E129: x | F129: =Control!$F$48 -> 0 | G129: x | H129: =Control!$F$35 -> 0 | I129: x | J129: =Control!$F$32 -> 0 | K129: = | L129: =D129*F129*H129*J129*10^-6 -> 0 | M129: x | N129: =Control!$C$80 -> 265 | O129: = | P129: =L129*N129*10^-6 -> 0
B130: Secondary tropical forests | D130: ='Burning CH4'!D130 -> 0 | E130: x | F130: =Control!$F$48 -> 0 | G130: x | H130: =Control!$F$36 -> 0 | I130: x | J130: =Control!$F$32 -> 0 | K130: = | L130: 0 | M130: x | N130: =Control!$C$80 -> 265 | O130: = | P130: =L130*N130*10^-6 -> 0
B131: Tertiary tropical forests | D131: ='Burning CH4'!D131 -> 0 | E131: x | F131: =Control!$F$48 -> 0 | G131: x | H131: =Control!$F$37 -> 0 | I131: x | J131: =Control!$F$32 -> 0 | K131: = | L131: 0 | M131: x | N131: =Control!$C$80 -> 265 | O131: = | P131: 0
B132: Boreal forest | D132: ='Burning CH4'!D132 -> 0 | E132: x | F132: =Control!$F$48 -> 0 | G132: x | H132: =Control!$F$38 -> 0 | I132: x | J132: =Control!$F$32 -> 0 | K132: = | L132: 0 | M132: x | N132: =Control!$C$80 -> 265 | O132: = | P132: 0
B133: Eucalypt forests | D133: ='Burning CH4'!D133 -> 0 | E133: x | F133: =Control!$F$48 -> 0 | G133: x | H133: =Control!$F$39 -> 0 | I133: x | J133: =Control!$F$32 -> 0 | K133: = | L133: 0 | M133: x | N133: =Control!$C$80 -> 265 | O133: = | P133: 0
B134: Other temperate forests | D134: ='Burning CH4'!D134 -> 0 | E134: x | F134: =Control!$F$48 -> 0 | G134: x | H134: =Control!$F$40 -> 0 | I134: x | J134: =Control!$F$32 -> 0 | K134: = | L134: 0 | M134: x | N134: =Control!$C$80 -> 265 | O134: = | P134: 0
B135: Shrublands | D135: ='Burning CH4'!D135 -> 0 | E135: x | F135: =Control!$F$48 -> 0 | G135: x | H135: =Control!$F$41 -> 0 | I135: x | J135: =Control!$F$32 -> 0 | K135: = | L135: 0 | M135: x | N135: =Control!$C$80 -> 265 | O135: = | P135: 0
B136: Savanna woodlands (early dry season burns) | D136: ='Burning CH4'!D136 -> 0 | E136: x | F136: =Control!$F$48 -> 0 | G136: x | H136: =Control!$F$42 -> 0 | I136: x | J136: =Control!$F$30 -> 0 | K136: = | L136: 0 | M136: x | N136: =Control!$C$80 -> 265 | O136: = | P136: 0
B137: Savanna woodlands (mid/late season burns) | D137: ='Burning CH4'!D137 -> 0 | E137: x | F137: =Control!$F$48 -> 0 | G137: x | H137: =Control!$F$43 -> 0 | I137: x | J137: =Control!$F$30 -> 0 | K137: = | L137: 0 | M137: x | N137: =Control!$C$80 -> 265 | O137: = | P137: 0
B138: Savanna grasslands (early dry season burns) | D138: ='Burning CH4'!D138 -> 0 | E138: x | F138: =Control!$F$48 -> 0 | G138: x | H138: =Control!$F$44 -> 0 | I138: x | J138: =Control!$F$30 -> 0 | K138: = | L138: 0 | M138: x | N138: =Control!$C$80 -> 265 | O138: = | P138: 0
B139: Savanna grasslands (mid/late season burns) | D139: ='Burning CH4'!D139 -> 0 | E139: x | F139: =Control!$F$48 -> 0 | G139: x | H139: =Control!$F$45 -> 0 | I139: x | J139: =Control!$F$30 -> 0 | K139: = | L139: 0 | M139: x | N139: =Control!$C$80 -> 265 | O139: = | P139: 0
B140: Total | P140: =SUM(P129:P139) -> 0
A142: Forest Fires | D142: =D127+1 -> 1999
B143: Forest Type | D143: Area Burned (ha) | F143: Average Biomass Density (kg d.m. / ha) | H143: Combustion efficiency | J143: Emission Factor (g/kg dry matter burned) | L143: MTN2O Emitted | N143: N2O GWP | P143: Emissions MMTCO2E
B144: Primary tropical forests | D144: ='Burning CH4'!D144 -> 0 | E144: x | F144: =Control!$F$48 -> 0 | G144: x | H144: =Control!$F$35 -> 0 | I144: x | J144: =Control!$F$32 -> 0 | K144: = | L144: =D144*F144*H144*J144*10^-6 -> 0 | M144: x | N144: =Control!$C$80 -> 265 | O144: = | P144: =L144*N144*10^-6 -> 0
B145: Secondary tropical forests | D145: ='Burning CH4'!D145 -> 0 | E145: x | F145: =Control!$F$48 -> 0 | G145: x | H145: =Control!$F$36 -> 0 | I145: x | J145: =Control!$F$32 -> 0 | K145: = | L145: 0 | M145: x | N145: =Control!$C$80 -> 265 | O145: = | P145: =L145*N145*10^-6 -> 0
B146: Tertiary tropical forests | D146: ='Burning CH4'!D146 -> 0 | E146: x | F146: =Control!$F$48 -> 0 | G146: x | H146: =Control!$F$37 -> 0 | I146: x | J146: =Control!$F$32 -> 0 | K146: = | L146: 0 | M146: x | N146: =Control!$C$80 -> 265 | O146: = | P146: 0
B147: Boreal forest | D147: ='Burning CH4'!D147 -> 0 | E147: x | F147: =Control!$F$48 -> 0 | G147: x | H147: =Control!$F$38 -> 0 | I147: x | J147: =Control!$F$32 -> 0 | K147: = | L147: 0 | M147: x | N147: =Control!$C$80 -> 265 | O147: = | P147: 0
B148: Eucalypt forests | D148: ='Burning CH4'!D148 -> 0 | E148: x | F148: =Control!$F$48 -> 0 | G148: x | H148: =Control!$F$39 -> 0 | I148: x | J148: =Control!$F$32 -> 0 | K148: = | L148: 0 | M148: x | N148: =Control!$C$80 -> 265 | O148: = | P148: 0
B149: Other temperate forests | D149: ='Burning CH4'!D149 -> 0 | E149: x | F149: =Control!$F$48 -> 0 | G149: x | H149: =Control!$F$40 -> 0 | I149: x | J149: =Control!$F$32 -> 0 | K149: = | L149: 0 | M149: x | N149: =Control!$C$80 -> 265 | O149: = | P149: 0
B150: Shrublands | D150: ='Burning CH4'!D150 -> 0 | E150: x | F150: =Control!$F$48 -> 0 | G150: x | H150: =Control!$F$41 -> 0 | I150: x | J150: =Control!$F$32 -> 0 | K150: = | L150: 0 | M150: x | N150: =Control!$C$80 -> 265 | O150: = | P150: 0
B151: Savanna woodlands (early dry season burns) | D151: ='Burning CH4'!D151 -> 0 | E151: x | F151: =Control!$F$48 -> 0 | G151: x | H151: =Control!$F$42 -> 0 | I151: x | J151: =Control!$F$30 -> 0 | K151: = | L151: 0 | M151: x | N151: =Control!$C$80 -> 265 | O151: = | P151: 0
B152: Savanna woodlands (mid/late season burns) | D152: ='Burning CH4'!D152 -> 0 | E152: x | F152: =Control!$F$48 -> 0 | G152: x | H152: =Control!$F$43 -> 0 | I152: x | J152: =Control!$F$30 -> 0 | K152: = | L152: 0 | M152: x | N152: =Control!$C$80 -> 265 | O152: = | P152: 0
B153: Savanna grasslands (early dry season burns) | D153: ='Burning CH4'!D153 -> 0 | E153: x | F153: =Control!$F$48 -> 0 | G153: x | H153: =Control!$F$44 -> 0 | I153: x | J153: =Control!$F$30 -> 0 | K153: = | L153: 0 | M153: x | N153: =Control!$C$80 -> 265 | O153: = | P153: 0
B154: Savanna grasslands (mid/late season burns) | D154: ='Burning CH4'!D154 -> 0 | E154: x | F154: =Control!$F$48 -> 0 | G154: x | H154: =Control!$F$45 -> 0 | I154: x | J154: =Control!$F$30 -> 0 | K154: = | L154: 0 | M154: x | N154: =Control!$C$80 -> 265 | O154: = | P154: 0
B155: Total | P155: =SUM(P144:P154) -> 0
A157: Forest Fires | D157: =D142+1 -> 2000
B158: Forest Type | D158: Area Burned (ha) | F158: Average Biomass Density (kg d.m. / ha) | H158: Combustion efficiency | J158: Emission Factor (g/kg dry matter burned) | L158: MTN2O Emitted | N158: N2O GWP | P158: Emissions MMTCO2E
B159: Primary tropical forests | D159: ='Burning CH4'!D159 -> 0 | E159: x | F159: =Control!$F$48 -> 0 | G159: x | H159: =Control!$F$35 -> 0 | I159: x | J159: =Control!$F$32 -> 0 | K159: = | L159: =D159*F159*H159*J159*10^-6 -> 0 | M159: x | N159: =Control!$C$80 -> 265 | O159: = | P159: =L159*N159*10^-6 -> 0
B160: Secondary tropical forests | D160: ='Burning CH4'!D160 -> 0 | E160: x | F160: =Control!$F$48 -> 0 | G160: x | H160: =Control!$F$36 -> 0 | I160: x | J160: =Control!$F$32 -> 0 | K160: = | L160: 0 | M160: x | N160: =Control!$C$80 -> 265 | O160: = | P160: =L160*N160*10^-6 -> 0
B161: Tertiary tropical forests | D161: ='Burning CH4'!D161 -> 0 | E161: x | F161: =Control!$F$48 -> 0 | G161: x | H161: =Control!$F$37 -> 0 | I161: x | J161: =Control!$F$32 -> 0 | K161: = | L161: 0 | M161: x | N161: =Control!$C$80 -> 265 | O161: = | P161: 0
B162: Boreal forest | D162: ='Burning CH4'!D162 -> 0 | E162: x | F162: =Control!$F$48 -> 0 | G162: x | H162: =Control!$F$38 -> 0 | I162: x | J162: =Control!$F$32 -> 0 | K162: = | L162: 0 | M162: x | N162: =Control!$C$80 -> 265 | O162: = | P162: 0
B163: Eucalypt forests | D163: ='Burning CH4'!D163 -> 0 | E163: x | F163: =Control!$F$48 -> 0 | G163: x | H163: =Control!$F$39 -> 0 | I163: x | J163: =Control!$F$32 -> 0 | K163: = | L163: 0 | M163: x | N163: =Control!$C$80 -> 265 | O163: = | P163: 0
B164: Other temperate forests | D164: ='Burning CH4'!D164 -> 0 | E164: x | F164: =Control!$F$48 -> 0 | G164: x | H164: =Control!$F$40 -> 0 | I164: x | J164: =Control!$F$32 -> 0 | K164: = | L164: 0 | M164: x | N164: =Control!$C$80 -> 265 | O164: = | P164: 0
B165: Shrublands | D165: ='Burning CH4'!D165 -> 0 | E165: x | F165: =Control!$F$48 -> 0 | G165: x | H165: =Control!$F$41 -> 0 | I165: x | J165: =Control!$F$32 -> 0 | K165: = | L165: 0 | M165: x | N165: =Control!$C$80 -> 265 | O165: = | P165: 0
B166: Savanna woodlands (early dry season burns) | D166: ='Burning CH4'!D166 -> 0 | E166: x | F166: =Control!$F$48 -> 0 | G166: x | H166: =Control!$F$42 -> 0 | I166: x | J166: =Control!$F$30 -> 0 | K166: = | L166: 0 | M166: x | N166: =Control!$C$80 -> 265 | O166: = | P166: 0
B167: Savanna woodlands (mid/late season burns) | D167: ='Burning CH4'!D167 -> 0 | E167: x | F167: =Control!$F$48 -> 0 | G167: x | H167: =Control!$F$43 -> 0 | I167: x | J167: =Control!$F$30 -> 0 | K167: = | L167: 0 | M167: x | N167: =Control!$C$80 -> 265 | O167: = | P167: 0
B168: Savanna grasslands (early dry season burns) | D168: ='Burning CH4'!D168 -> 0 | E168: x | F168: =Control!$F$48 -> 0 | G168: x | H168: =Control!$F$44 -> 0 | I168: x | J168: =Control!$F$30 -> 0 | K168: = | L168: 0 | M168: x | N168: =Control!$C$80 -> 265 | O168: = | P168: 0
B169: Savanna grasslands (mid/late season burns) | D169: ='Burning CH4'!D169 -> 0 | E169: x | F169: =Control!$F$48 -> 0 | G169: x | H169: =Control!$F$45 -> 0 | I169: x | J169: =Control!$F$30 -> 0 | K169: = | L169: 0 | M169: x | N169: =Control!$C$80 -> 265 | O169: = | P169: 0
B170: Total | P170: =SUM(P159:P169) -> 0
A172: Forest Fires | D172: =D157+1 -> 2001
B173: Forest Type | D173: Area Burned (ha) | F173: Average Biomass Density (kg d.m. / ha) | H173: Combustion efficiency | J173: Emission Factor (g/kg dry matter burned) | L173: MTN2O Emitted | N173: N2O GWP | P173: Emissions MMTCO2E
B174: Primary tropical forests | D174: ='Burning CH4'!D174 -> 0 | E174: x | F174: =Control!$F$48 -> 0 | G174: x | H174: =Control!$F$35 -> 0 | I174: x | J174: =Control!$F$32 -> 0 | K174: = | L174: =D174*F174*H174*J174*10^-6 -> 0 | M174: x | N174: =Control!$C$80 -> 265 | O174: = | P174: =L174*N174*10^-6 -> 0
B175: Secondary tropical forests | D175: ='Burning CH4'!D175 -> 0 | E175: x | F175: =Control!$F$48 -> 0 | G175: x | H175: =Control!$F$36 -> 0 | I175: x | J175: =Control!$F$32 -> 0 | K175: = | L175: 0 | M175: x | N175: =Control!$C$80 -> 265 | O175: = | P175: =L175*N175*10^-6 -> 0
B176: Tertiary tropical forests | D176: ='Burning CH4'!D176 -> 0 | E176: x | F176: =Control!$F$48 -> 0 | G176: x | H176: =Control!$F$37 -> 0 | I176: x | J176: =Control!$F$32 -> 0 | K176: = | L176: 0 | M176: x | N176: =Control!$C$80 -> 265 | O176: = | P176: 0
B177: Boreal forest | D177: ='Burning CH4'!D177 -> 0 | E177: x | F177: =Control!$F$48 -> 0 | G177: x | H177: =Control!$F$38 -> 0 | I177: x | J177: =Control!$F$32 -> 0 | K177: = | L177: 0 | M177: x | N177: =Control!$C$80 -> 265 | O177: = | P177: 0
B178: Eucalypt forests | D178: ='Burning CH4'!D178 -> 0 | E178: x | F178: =Control!$F$48 -> 0 | G178: x | H178: =Control!$F$39 -> 0 | I178: x | J178: =Control!$F$32 -> 0 | K178: = | L178: 0 | M178: x | N178: =Control!$C$80 -> 265 | O178: = | P178: 0
B179: Other temperate forests | D179: ='Burning CH4'!D179 -> 0 | E179: x | F179: =Control!$F$48 -> 0 | G179: x | H179: =Control!$F$40 -> 0 | I179: x | J179: =Control!$F$32 -> 0 | K179: = | L179: 0 | M179: x | N179: =Control!$C$80 -> 265 | O179: = | P179: 0
B180: Shrublands | D180: ='Burning CH4'!D180 -> 0 | E180: x | F180: =Control!$F$48 -> 0 | G180: x | H180: =Control!$F$41 -> 0 | I180: x | J180: =Control!$F$32 -> 0 | K180: = | L180: 0 | M180: x | N180: =Control!$C$80 -> 265 | O180: = | P180: 0
B181: Savanna woodlands (early dry season burns) | D181: ='Burning CH4'!D181 -> 0 | E181: x | F181: =Control!$F$48 -> 0 | G181: x | H181: =Control!$F$42 -> 0 | I181: x | J181: =Control!$F$30 -> 0 | K181: = | L181: 0 | M181: x | N181: =Control!$C$80 -> 265 | O181: = | P181: 0
B182: Savanna woodlands (mid/late season burns) | D182: ='Burning CH4'!D182 -> 0 | E182: x | F182: =Control!$F$48 -> 0 | G182: x | H182: =Control!$F$43 -> 0 | I182: x | J182: =Control!$F$30 -> 0 | K182: = | L182: 0 | M182: x | N182: =Control!$C$80 -> 265 | O182: = | P182: 0
B183: Savanna grasslands (early dry season burns) | D183: ='Burning CH4'!D183 -> 0 | E183: x | F183: =Control!$F$48 -> 0 | G183: x | H183: =Control!$F$44 -> 0 | I183: x | J183: =Control!$F$30 -> 0 | K183: = | L183: 0 | M183: x | N183: =Control!$C$80 -> 265 | O183: = | P183: 0
B184: Savanna grasslands (mid/late season burns) | D184: ='Burning CH4'!D184 -> 0 | E184: x | F184: =Control!$F$48 -> 0 | G184: x | H184: =Control!$F$45 -> 0 | I184: x | J184: =Control!$F$30 -> 0 | K184: = | L184: 0 | M184: x | N184: =Control!$C$80 -> 265 | O184: = | P184: 0
B185: Total | P185: =SUM(P174:P184) -> 0
A187: Forest Fires | D187: =D172+1 -> 2002
B188: Forest Type | D188: Area Burned (ha) | F188: Average Biomass Density (kg d.m. / ha) | H188: Combustion efficiency | J188: Emission Factor (g/kg dry matter burned) | L188: MTN2O Emitted | N188: N2O GWP | P188: Emissions MMTCO2E
B189: Primary tropical forests | D189: ='Burning CH4'!D189 -> 0 | E189: x | F189: =Control!$F$48 -> 0 | G189: x | H189: =Control!$F$35 -> 0 | I189: x | J189: =Control!$F$32 -> 0 | K189: = | L189: =D189*F189*H189*J189*10^-6 -> 0 | M189: x | N189: =Control!$C$80 -> 265 | O189: = | P189: =L189*N189*10^-6 -> 0
B190: Secondary tropical forests | D190: ='Burning CH4'!D190 -> 0 | E190: x | F190: =Control!$F$48 -> 0 | G190: x | H190: =Control!$F$36 -> 0 | I190: x | J190: =Control!$F$32 -> 0 | K190: = | L190: 0 | M190: x | N190: =Control!$C$80 -> 265 | O190: = | P190: =L190*N190*10^-6 -> 0
B191: Tertiary tropical forests | D191: ='Burning CH4'!D191 -> 0 | E191: x | F191: =Control!$F$48 -> 0 | G191: x | H191: =Control!$F$37 -> 0 | I191: x | J191: =Control!$F$32 -> 0 | K191: = | L191: 0 | M191: x | N191: =Control!$C$80 -> 265 | O191: = | P191: 0
B192: Boreal forest | D192: ='Burning CH4'!D192 -> 0 | E192: x | F192: =Control!$F$48 -> 0 | G192: x | H192: =Control!$F$38 -> 0 | I192: x | J192: =Control!$F$32 -> 0 | K192: = | L192: 0 | M192: x | N192: =Control!$C$80 -> 265 | O192: = | P192: 0
B193: Eucalypt forests | D193: ='Burning CH4'!D193 -> 0 | E193: x | F193: =Control!$F$48 -> 0 | G193: x | H193: =Control!$F$39 -> 0 | I193: x | J193: =Control!$F$32 -> 0 | K193: = | L193: 0 | M193: x | N193: =Control!$C$80 -> 265 | O193: = | P193: 0
B194: Other temperate forests | D194: ='Burning CH4'!D194 -> 0 | E194: x | F194: =Control!$F$48 -> 0 | G194: x | H194: =Control!$F$40 -> 0 | I194: x | J194: =Control!$F$32 -> 0 | K194: = | L194: 0 | M194: x | N194: =Control!$C$80 -> 265 | O194: = | P194: 0
B195: Shrublands | D195: ='Burning CH4'!D195 -> 0 | E195: x | F195: =Control!$F$48 -> 0 | G195: x | H195: =Control!$F$41 -> 0 | I195: x | J195: =Control!$F$32 -> 0 | K195: = | L195: 0 | M195: x | N195: =Control!$C$80 -> 265 | O195: = | P195: 0
B196: Savanna woodlands (early dry season burns) | D196: ='Burning CH4'!D196 -> 0 | E196: x | F196: =Control!$F$48 -> 0 | G196: x | H196: =Control!$F$42 -> 0 | I196: x | J196: =Control!$F$30 -> 0 | K196: = | L196: 0 | M196: x | N196: =Control!$C$80 -> 265 | O196: = | P196: 0
B197: Savanna woodlands (mid/late season burns) | D197: ='Burning CH4'!D197 -> 0 | E197: x | F197: =Control!$F$48 -> 0 | G197: x | H197: =Control!$F$43 -> 0 | I197: x | J197: =Control!$F$30 -> 0 | K197: = | L197: 0 | M197: x | N197: =Control!$C$80 -> 265 | O197: = | P197: 0
B198: Savanna grasslands (early dry season burns) | D198: ='Burning CH4'!D198 -> 0 | E198: x | F198: =Control!$F$48 -> 0 | G198: x | H198: =Control!$F$44 -> 0 | I198: x | J198: =Control!$F$30 -> 0 | K198: = | L198: 0 | M198: x | N198: =Control!$C$80 -> 265 | O198: = | P198: 0
B199: Savanna grasslands (mid/late season burns) | D199: ='Burning CH4'!D199 -> 0 | E199: x | F199: =Control!$F$48 -> 0 | G199: x | H199: =Control!$F$45 -> 0 | I199: x | J199: =Control!$F$30 -> 0 | K199: = | L199: 0 | M199: x | N199: =Control!$C$80 -> 265 | O199: = | P199: 0
B200: Total | P200: =SUM(P189:P199) -> 0
A202: Forest Fires | D202: =D187+1 -> 2003
B203: Forest Type | D203: Area Burned (ha) | F203: Average Biomass Density (kg d.m. / ha) | H203: Combustion efficiency | J203: Emission Factor (g/kg dry matter burned) | L203: MTN2O Emitted | N203: N2O GWP | P203: Emissions MMTCO2E
B204: Primary tropical forests | D204: ='Burning CH4'!D204 -> 0 | E204: x | F204: =Control!$F$48 -> 0 | G204: x | H204: =Control!$F$35 -> 0 | I204: x | J204: =Control!$F$32 -> 0 | K204: = | L204: =D204*F204*H204*J204*10^-6 -> 0 | M204: x | N204: =Control!$C$80 -> 265 | O204: = | P204: =L204*N204*10^-6 -> 0
B205: Secondary tropical forests | D205: ='Burning CH4'!D205 -> 0 | E205: x | F205: =Control!$F$48 -> 0 | G205: x | H205: =Control!$F$36 -> 0 | I205: x | J205: =Control!$F$32 -> 0 | K205: = | L205: 0 | M205: x | N205: =Control!$C$80 -> 265 | O205: = | P205: =L205*N205*10^-6 -> 0
B206: Tertiary tropical forests | D206: ='Burning CH4'!D206 -> 0 | E206: x | F206: =Control!$F$48 -> 0 | G206: x | H206: =Control!$F$37 -> 0 | I206: x | J206: =Control!$F$32 -> 0 | K206: = | L206: 0 | M206: x | N206: =Control!$C$80 -> 265 | O206: = | P206: 0
B207: Boreal forest | D207: ='Burning CH4'!D207 -> 0 | E207: x | F207: =Control!$F$48 -> 0 | G207: x | H207: =Control!$F$38 -> 0 | I207: x | J207: =Control!$F$32 -> 0 | K207: = | L207: 0 | M207: x | N207: =Control!$C$80 -> 265 | O207: = | P207: 0
B208: Eucalypt forests | D208: ='Burning CH4'!D208 -> 0 | E208: x | F208: =Control!$F$48 -> 0 | G208: x | H208: =Control!$F$39 -> 0 | I208: x | J208: =Control!$F$32 -> 0 | K208: = | L208: 0 | M208: x | N208: =Control!$C$80 -> 265 | O208: = | P208: 0
B209: Other temperate forests | D209: ='Burning CH4'!D209 -> 0 | E209: x | F209: =Control!$F$48 -> 0 | G209: x | H209: =Control!$F$40 -> 0 | I209: x | J209: =Control!$F$32 -> 0 | K209: = | L209: 0 | M209: x | N209: =Control!$C$80 -> 265 | O209: = | P209: 0
B210: Shrublands | D210: ='Burning CH4'!D210 -> 0 | E210: x | F210: =Control!$F$48 -> 0 | G210: x | H210: =Control!$F$41 -> 0 | I210: x | J210: =Control!$F$32 -> 0 | K210: = | L210: 0 | M210: x | N210: =Control!$C$80 -> 265 | O210: = | P210: 0
B211: Savanna woodlands (early dry season burns) | D211: ='Burning CH4'!D211 -> 0 | E211: x | F211: =Control!$F$48 -> 0 | G211: x | H211: =Control!$F$42 -> 0 | I211: x | J211: =Control!$F$30 -> 0 | K211: = | L211: 0 | M211: x | N211: =Control!$C$80 -> 265 | O211: = | P211: 0
B212: Savanna woodlands (mid/late season burns) | D212: ='Burning CH4'!D212 -> 0 | E212: x | F212: =Control!$F$48 -> 0 | G212: x | H212: =Control!$F$43 -> 0 | I212: x | J212: =Control!$F$30 -> 0 | K212: = | L212: 0 | M212: x | N212: =Control!$C$80 -> 265 | O212: = | P212: 0
B213: Savanna grasslands (early dry season burns) | D213: ='Burning CH4'!D213 -> 0 | E213: x | F213: =Control!$F$48 -> 0 | G213: x | H213: =Control!$F$44 -> 0 | I213: x | J213: =Control!$F$30 -> 0 | K213: = | L213: 0 | M213: x | N213: =Control!$C$80 -> 265 | O213: = | P213: 0
B214: Savanna grasslands (mid/late season burns) | D214: ='Burning CH4'!D214 -> 0 | E214: x | F214: =Control!$F$48 -> 0 | G214: x | H214: =Control!$F$45 -> 0 | I214: x | J214: =Control!$F$30 -> 0 | K214: = | L214: 0 | M214: x | N214: =Control!$C$80 -> 265 | O214: = | P214: 0
B215: Total | P215: =SUM(P204:P214) -> 0
A217: Forest Fires | D217: =D202+1 -> 2004
B218: Forest Type | D218: Area Burned (ha) | F218: Average Biomass Density (kg d.m. / ha) | H218: Combustion efficiency | J218: Emission Factor (g/kg dry matter burned) | L218: MTN2O Emitted | N218: N2O GWP | P218: Emissions MMTCO2E
B219: Primary tropical forests | D219: ='Burning CH4'!D219 -> 0 | E219: x | F219: =Control!$F$48 -> 0 | G219: x | H219: =Control!$F$35 -> 0 | I219: x | J219: =Control!$F$32 -> 0 | K219: = | L219: =D219*F219*H219*J219*10^-6 -> 0 | M219: x | N219: =Control!$C$80 -> 265 | O219: = | P219: =L219*N219*10^-6 -> 0
... 305 more rows

Sheet Yard Trimmings
A1: ="6. Landfilled Yard Trimmings and Food Scraps in "&StateName -> 6. Landfilled Yard Trimmings and Food Scraps in Select a State . . .
A9: 1. Enter the composition of yard trimmings, and the amount of annually landfilled yard trimmings and food scraps
B11: Content of yard trimmings | C11: Default | E11: Use the Default? (Check for Yes)
B13: % Grass | C13: =LYTinputs!C5 -> 0.303
B14: % Leaves | C14: =LYTinputs!C6 -> 0.401
B15: % Branches | C15: =LYTinputs!C7 -> 0.296
D16: Check -- must add up to 100% in order to continue: | E16: =SUM(E13:E15) -> 0 | F16: =IF(E16=1,"OK","Must equal 100%") -> Must equal 100%
B18: Landfilled yard trimmings and scraps, '000 short tons, wet weight
B19: Default landfilled yard trimmings and food scraps = state population x national landfilled yard trimmings and food scraps per capita
B20: Default grass, leaves, and branches = total landfilled yard trimmings x percentages entered above
C24: 1960 | D24: 1961 | E24: 1962 | F24: 1963 | G24: 1964 | H24: 1965 | I24: 1966 | J24: 1967 | K24: 1968 | L24: 1969 | M24: 1970 | N24: 1971 | O24: 1972 | P24: 1973 | Q24: 1974 | R24: 1975 | S24: 1976 | T24: 1977 | U24: 1978 | V24: 1979 | W24: 1980 | X24: 1981 | Y24: 1982 | Z24: 1983 | AA24: 1984 | AB24: 1985 | AC24: 1986 | AD24: 1987 | AE24: 1988 | AF24: 1989 | AG24: 1990 | AH24: 1991 | AI24: 1992 | AJ24: 1993 | AK24: 1994 | AL24: 1995 | AM24: 1996 | AN24: 1997 | AO24: 1998 | AP24: 1999 | AQ24: 2000 | AR24: 2001 | AS24: 2002 | AT24: 2003 | AU24: 2004 | AV24: 2005 | AW24: 2006 | AX24: 2007 | AY24: 2008 | AZ24: 2009 | BA24: 2010 | BB24: 2011 | BC24: 2012 | BD24: 2013 | BE24: 2014 | BF24: 2015 | BG24: 2016 | BH24: 2017 | BI24: 2018 | BJ24: 2019 | BK24: 2020 | BL24: 2021 | BM24: 2022 | BN24: 2023 | BO24: 2024 | BP24: 2025
B25: Total landfilled yard trimmings
B26: Grass
B27: Leaves
B28: Branches
B29: Food scraps
A32: 2. Calculate the amount of carbon added to landfills annually
B33: Key Assumptions
B34: Initial Carbon Content | C34: Default | E34: Use the Default? (Check for Yes)
B37: Grass | C37: =LYTinputs!C70 -> 0.4487
B38: Leaves | C38: =LYTinputs!C71 -> 0.455
B39: Branches | C39: =LYTinputs!C72 -> 0.494
B40: Food Scraps | C40: =LYTinputs!C73 -> 0.508
B42: Dry Weight/Wet Weight ratio | C42: Default | E42: Use the Default? (Check for Yes)
B43: Grass | C43: =LYTinputs!E5 -> 0.3
B44: Leaves | C44: =LYTinputs!E6 -> 0.7
B45: Branches | C45: =LYTinputs!E7 -> 0.9
B46: Food Scraps | C46: =LYTinputs!E8 -> 0.3
B49: Total Mass Additions, '000 metric tons C
B50: Mass additions of carbon = landfilled materials, wet weight x initial carbon content x dry weight/wet weight ration x metric tons per short ton
C53: 1960 | D53: 1961 | E53: 1962 | F53: 1963 | G53: 1964 | H53: 1965 | I53: 1966 | J53: 1967 | K53: 1968 | L53: 1969 | M53: 1970 | N53: 1971 | O53: 1972 | P53: 1973 | Q53: 1974 | R53: 1975 | S53: 1976 | T53: 1977 | U53: 1978 | V53: 1979 | W53: 1980 | X53: 1981 | Y53: 1982 | Z53: 1983 | AA53: 1984 | AB53: 1985 | AC53: 1986 | AD53: 1987 | AE53: 1988 | AF53: 1989 | AG53: 1990 | AH53: 1991 | AI53: 1992 | AJ53: 1993 | AK53: 1994 | AL53: 1995 | AM53: 1996 | AN53: 1997 | AO53: 1998 | AP53: 1999 | AQ53: 2000 | AR53: 2001 | AS53: 2002 | AT53: 2003 | AU53: 2004 | AV53: 2005 | AW53: 2006 | AX53: 2007 | AY53: 2008 | AZ53: 2009 | BA53: 2010 | BB53: 2011 | BC53: 2012 | BD53: 2013 | BE53: 2014 | BF53: 2015 | BG53: 2016 | BH53: 2017 | BI53: 2018 | BJ53: 2019 | BK53: 2020 | BL53: 2021 | BM53: 2022 | BN53: 2023 | BO53: 2024 | BP53: 2025
B54: Grass | C54: =C26*$E37*MT_ST*$E43 -> 0 | D54: 0 | E54: 0 | F54: 0 | G54: 0 | H54: 0 | I54: 0 | J54: 0 | K54: 0 | L54: 0 | M54: 0 | N54: 0 | O54: 0 | P54: 0 | Q54: 0 | R54: 0 | S54: 0 | T54: 0 | U54: 0 | V54: 0 | W54: 0 | X54: 0 | Y54: 0 | Z54: 0 | AA54: 0 | AB54: 0 | AC54: 0 | AD54: 0 | AE54: 0 | AF54: 0 | AG54: 0 | AH54: 0 | AI54: 0 | AJ54: 0 | AK54: 0 | AL54: 0 | AM54: 0 | AN54: 0 | AO54: 0 | AP54: 0 | AQ54: 0 | AR54: 0 | AS54: 0 | AT54: 0 | AU54: 0 | AV54: =AV26*$E37*MT_ST*$E43 -> 0 | AW54: 0 | AX54: 0 | AY54: 0 | AZ54: 0 | BA54: 0 | BB54: 0 | BC54: 0 | BD54: 0 | BE54: 0 | BF54: 0 | BG54: 0 | BH54: 0 | BI54: 0 | BJ54: 0 | BK54: 0 | BL54: =BL26*$E37*MT_ST*$E43 -> 0 | BM54: 0 | BN54: 0 | BO54: 0 | BP54: 0
B55: Leaves | C55: =C27*$E38*MT_ST*$E44 -> 0 | D55: 0 | E55: 0 | F55: 0 | G55: 0 | H55: 0 | I55: 0 | J55: 0 | K55: 0 | L55: 0 | M55: 0 | N55: 0 | O55: 0 | P55: 0 | Q55: 0 | R55: 0 | S55: 0 | T55: 0 | U55: 0 | V55: 0 | W55: 0 | X55: 0 | Y55: 0 | Z55: 0 | AA55: 0 | AB55: 0 | AC55: 0 | AD55: 0 | AE55: 0 | AF55: 0 | AG55: 0 | AH55: 0 | AI55: 0 | AJ55: 0 | AK55: 0 | AL55: 0 | AM55: 0 | AN55: 0 | AO55: 0 | AP55: 0 | AQ55: 0 | AR55: 0 | AS55: 0 | AT55: 0 | AU55: 0 | AV55: 0 | AW55: 0 | AX55: 0 | AY55: 0 | AZ55: 0 | BA55: 0 | BB55: 0 | BC55: 0 | BD55: 0 | BE55: 0 | BF55: 0 | BG55: 0 | BH55: 0 | BI55: 0 | BJ55: 0 | BK55: 0 | BL55: =BL27*$E38*MT_ST*$E44 -> 0 | BM55: 0 | BN55: 0 | BO55: 0 | BP55: 0
B56: Branches | C56: =C28*$E39*MT_ST*$E45 -> 0 | D56: 0 | E56: 0 | F56: 0 | G56: 0 | H56: 0 | I56: 0 | J56: 0 | K56: 0 | L56: 0 | M56: 0 | N56: 0 | O56: 0 | P56: 0 | Q56: 0 | R56: 0 | S56: 0 | T56: 0 | U56: 0 | V56: 0 | W56: 0 | X56: 0 | Y56: 0 | Z56: 0 | AA56: 0 | AB56: 0 | AC56: 0 | AD56: 0 | AE56: 0 | AF56: 0 | AG56: 0 | AH56: 0 | AI56: 0 | AJ56: 0 | AK56: 0 | AL56: 0 | AM56: 0 | AN56: 0 | AO56: 0 | AP56: 0 | AQ56: 0 | AR56: 0 | AS56: 0 | AT56: 0 | AU56: 0 | AV56: 0 | AW56: 0 | AX56: 0 | AY56: 0 | AZ56: 0 | BA56: 0 | BB56: 0 | BC56: 0 | BD56: 0 | BE56: 0 | BF56: 0 | BG56: 0 | BH56: 0 | BI56: 0 | BJ56: 0 | BK56: 0 | BL56: =BL28*$E39*MT_ST*$E45 -> 0 | BM56: 0 | BN56: 0 | BO56: 0 | BP56: 0
B57: Food Scraps | C57: =C29*$E40*MT_ST*$E46 -> 0 | D57: 0 | E57: 0 | F57: 0 | G57: 0 | H57: 0 | I57: 0 | J57: 0 | K57: 0 | L57: 0 | M57: 0 | N57: 0 | O57: 0 | P57: 0 | Q57: 0 | R57: 0 | S57: 0 | T57: 0 | U57: 0 | V57: 0 | W57: 0 | X57: 0 | Y57: 0 | Z57: 0 | AA57: 0 | AB57: 0 | AC57: 0 | AD57: 0 | AE57: 0 | AF57: 0 | AG57: 0 | AH57: 0 | AI57: 0 | AJ57: 0 | AK57: 0 | AL57: 0 | AM57: 0 | AN57: 0 | AO57: 0 | AP57: 0 | AQ57: 0 | AR57: 0 | AS57: 0 | AT57: 0 | AU57: 0 | AV57: 0 | AW57: 0 | AX57: 0 | AY57: 0 | AZ57: 0 | BA57: 0 | BB57: 0 | BC57: 0 | BD57: 0 | BE57: 0 | BF57: 0 | BG57: 0 | BH57: 0 | BI57: =BI29*$E40*MT_ST*$E46 -> 0 | BJ57: 0 | BK57: 0 | BL57: =BL29*$E40*MT_ST*$E46 -> 0 | BM57: 0 | BN57: 0 | BO57: 0 | BP57: 0
B58: Total | C58: =SUM(C54:C57) -> 0 | D58: =SUM(D54:D57) -> 0 | E58: 0 | F58: 0 | G58: 0 | H58: 0 | I58: 0 | J58: 0 | K58: 0 | L58: 0 | M58: 0 | N58: 0 | O58: 0 | P58: 0 | Q58: 0 | R58: 0 | S58: 0 | T58: 0 | U58: 0 | V58: 0 | W58: 0 | X58: 0 | Y58: 0 | Z58: 0 | AA58: 0 | AB58: 0 | AC58: 0 | AD58: 0 | AE58: 0 | AF58: 0 | AG58: 0 | AH58: 0 | AI58: 0 | AJ58: 0 | AK58: 0 | AL58: 0 | AM58: 0 | AN58: 0 | AO58: 0 | AP58: 0 | AQ58: 0 | AR58: 0 | AS58: 0 | AT58: 0 | AU58: 0 | AV58: 0 | AW58: =SUM(AW54:AW57) -> 0 | AX58: 0 | AY58: 0 | AZ58: 0 | BA58: 0 | BB58: 0 | BC58: 0 | BD58: 0 | BE58: 0 | BF58: 0 | BG58: 0 | BH58: 0 | BI58: 0 | BJ58: 0 | BK58: 0 | BL58: =SUM(BL54:BL57) -> 0 | BM58: 0 | BN58: 0 | BO58: 0 | BP58: 0
A60: 3. Calculate the total annual stocks of landfilled carbon
B62: Proportion of Carbon Stored Permanently | C62: Default | E62: Use the Default? (Check for Yes)
B65: Grass | C65: 0.535
B66: Leaves | C66: 0.846
B67: Branches | C67: 0.769
B68: Food Scraps | C68: 0.157
B70: Half-life of degradable carbon (years) | C70: Default | E70: Use the Default? (Check for Yes)
B71: Grass | C71: =LYTinputs!G5 -> 5
B72: Leaves | C72: =LYTinputs!G6 -> 20
B73: Branches | C73: =LYTinputs!G7 -> 23.1
B74: Food Scraps | C74: =LYTinputs!G8 -> 3.8
B77: Total Stocks of Landfilled Carbon, '000 metric tons C
B78: Annual carbon stocks are calculated by summing the carbon remaining from all previous years' deposits of waste.
B79: The stock of carbon remaining in landfills from any given year is calculated as follows:
B80: Initial C Addition x (Proportion of C Stored Permanently + (1 - Proportion of C Stored Permanently) x e ^(-ln(0.5)/half-life of degradable C))
B81: To calculate stocks for any given year, the remaining stocks for all previous years are summed.
B82: The table below provides a summary of the calculated annual C stored in landfills. To view the more detailed calculations for each year, click on the navigational arrow below.
C87: 1960 | D87: 1961 | E87: 1962 | F87: 1963 | G87: 1964 | H87: 1965 | I87: 1966 | J87: 1967 | K87: 1968 | L87: 1969 | M87: 1970 | N87: 1971 | O87: 1972 | P87: 1973 | Q87: 1974 | R87: 1975 | S87: 1976 | T87: 1977 | U87: 1978 | V87: 1979 | W87: 1980 | X87: 1981 | Y87: 1982 | Z87: 1983 | AA87: 1984 | AB87: 1985 | AC87: 1986 | AD87: 1987 | AE87: 1988 | AF87: 1989 | AG87: 1990 | AH87: 1991 | AI87: 1992 | AJ87: 1993 | AK87: 1994 | AL87: 1995 | AM87: 1996 | AN87: 1997 | AO87: 1998 | AP87: 1999 | AQ87: 2000 | AR87: 2001 | AS87: 2002 | AT87: 2003 | AU87: 2004 | AV87: 2005 | AW87: 2006 | AX87: 2007 | AY87: 2008 | AZ87: 2009 | BA87: 2010 | BB87: 2011 | BC87: 2012 | BD87: 2013 | BE87: 2014 | BF87: 2015 | BG87: 2016 | BH87: 2017 | BI87: 2018 | BJ87: 2019 | BK87: 2020 | BL87: 2021 | BM87: 2022 | BN87: 2023 | BO87: 2024 | BP87: 2025
B88: Grass | C88: =IF(C26=0,0,LYTCalculations!B74) -> 0 | D88: =IF(D26=0,0,LYTCalculations!C74) -> 0 | E88: =IF(E26=0,0,LYTCalculations!D74) -> 0 | F88: =IF(F26=0,0,LYTCalculations!E74) -> 0 | G88: =IF(G26=0,0,LYTCalculations!F74) -> 0 | H88: =IF(H26=0,0,LYTCalculations!G74) -> 0 | I88: =IF(I26=0,0,LYTCalculations!H74) -> 0 | J88: =IF(J26=0,0,LYTCalculations!I74) -> 0 | K88: =IF(K26=0,0,LYTCalculations!J74) -> 0 | L88: =IF(L26=0,0,LYTCalculations!K74) -> 0 | M88: =IF(M26=0,0,LYTCalculations!L74) -> 0 | N88: =IF(N26=0,0,LYTCalculations!M74) -> 0 | O88: =IF(O26=0,0,LYTCalculations!N74) -> 0 | P88: =IF(P26=0,0,LYTCalculations!O74) -> 0 | Q88: =IF(Q26=0,0,LYTCalculations!P74) -> 0 | R88: =IF(R26=0,0,LYTCalculations!Q74) -> 0 | S88: =IF(S26=0,0,LYTCalculations!R74) -> 0 | T88: =IF(T26=0,0,LYTCalculations!S74) -> 0 | U88: =IF(U26=0,0,LYTCalculations!T74) -> 0 | V88: =IF(V26=0,0,LYTCalculations!U74) -> 0 | W88: =IF(W26=0,0,LYTCalculations!V74) -> 0 | X88: =IF(X26=0,0,LYTCalculations!W74) -> 0 | Y88: =IF(Y26=0,0,LYTCalculations!X74) -> 0 | Z88: =IF(Z26=0,0,LYTCalculations!Y74) -> 0 | AA88: =IF(AA26=0,0,LYTCalculations!Z74) -> 0 | AB88: =IF(AB26=0,0,LYTCalculations!AA74) -> 0 | AC88: =IF(AC26=0,0,LYTCalculations!AB74) -> 0 | AD88: =IF(AD26=0,0,LYTCalculations!AC74) -> 0 | AE88: =IF(AE26=0,0,LYTCalculations!AD74) -> 0 | AF88: =IF(AF26=0,0,LYTCalculations!AE74) -> 0 | AG88: =IF(AG26=0,0,LYTCalculations!AF74) -> 0 | AH88: =IF(AH26=0,0,LYTCalculations!AG74) -> 0 | AI88: =IF(AI26=0,0,LYTCalculations!AH74) -> 0 | AJ88: =IF(AJ26=0,0,LYTCalculations!AI74) -> 0 | AK88: =IF(AK26=0,0,LYTCalculations!AJ74) -> 0 | AL88: =IF(AL26=0,0,LYTCalculations!AK74) -> 0 | AM88: =IF(AM26=0,0,LYTCalculations!AL74) -> 0 | AN88: =IF(AN26=0,0,LYTCalculations!AM74) -> 0 | AO88: =IF(AO26=0,0,LYTCalculations!AN74) -> 0 | AP88: =IF(AP26=0,0,LYTCalculations!AO74) -> 0 | AQ88: =IF(AQ26=0,0,LYTCalculations!AP74) -> 0 | AR88: =IF(AR26=0,0,LYTCalculations!AQ74) -> 0 | AS88: =IF(AS26=0,0,LYTCalculations!AR74) -> 0 | AT88: =IF(AT26=0,0,LYTCalculations!AS74) -> 0 | AU88: =IF(AU26=0,0,LYTCalculations!AT74) -> 0 | AV88: =IF(AV26=0,0,LYTCalculations!AU74) -> 0 | AW88: =IF(AW26=0,0,LYTCalculations!AV74) -> 0 | AX88: =IF(AX26=0,0,LYTCalculations!AW74) -> 0 | AY88: =IF(AY26=0,0,LYTCalculations!AX74) -> 0 | AZ88: =IF(AZ26=0,0,LYTCalculations!AY74) -> 0 | BA88: =IF(BA26=0,0,LYTCalculations!AZ74) -> 0 | BB88: =IF(BB26=0,0,LYTCalculations!BA74) -> 0 | BC88: =IF(BC26=0,0,LYTCalculations!BB74) -> 0 | BD88: =IF(BD26=0,0,LYTCalculations!BC74) -> 0 | BE88: =IF(BE26=0,0,LYTCalculations!BD74) -> 0 | BF88: =IF(BF26=0,0,LYTCalculations!BE74) -> 0 | BG88: =IF(BG26=0,0,LYTCalculations!BF74) -> 0 | BH88: =IF(BH26=0,0,LYTCalculations!BG74) -> 0 | BI88: =IF(BI26=0,0,LYTCalculations!BH74) -> 0 | BJ88: =IF(BJ26=0,0,LYTCalculations!BI74) -> 0 | BK88: =IF(BK26=0,0,LYTCalculations!BJ74) -> 0 | BL88: =IF(BL26=0,0,LYTCalculations!BK74) -> 0 | BM88: =IF(BM26=0,0,LYTCalculations!BL74) -> 0 | BN88: =IF(BN26=0,0,LYTCalculations!BM74) -> 0 | BO88: =IF(BO26=0,0,LYTCalculations!BN74) -> 0 | BP88: =IF(BP26=0,0,LYTCalculations!BO74) -> 0
B89: Leaves | C89: =IF(C27=0,0,LYTCalculations!B146) -> 0 | D89: =IF(D27=0,0,LYTCalculations!C146) -> 0 | E89: =IF(E27=0,0,LYTCalculations!D146) -> 0 | F89: =IF(F27=0,0,LYTCalculations!E146) -> 0 | G89: =IF(G27=0,0,LYTCalculations!F146) -> 0 | H89: =IF(H27=0,0,LYTCalculations!G146) -> 0 | I89: =IF(I27=0,0,LYTCalculations!H146) -> 0 | J89: =IF(J27=0,0,LYTCalculations!I146) -> 0 | K89: =IF(K27=0,0,LYTCalculations!J146) -> 0 | L89: =IF(L27=0,0,LYTCalculations!K146) -> 0 | M89: =IF(M27=0,0,LYTCalculations!L146) -> 0 | N89: =IF(N27=0,0,LYTCalculations!M146) -> 0 | O89: =IF(O27=0,0,LYTCalculations!N146) -> 0 | P89: =IF(P27=0,0,LYTCalculations!O146) -> 0 | Q89: =IF(Q27=0,0,LYTCalculations!P146) -> 0 | R89: =IF(R27=0,0,LYTCalculations!Q146) -> 0 | S89: =IF(S27=0,0,LYTCalculations!R146) -> 0 | T89: =IF(T27=0,0,LYTCalculations!S146) -> 0 | U89: =IF(U27=0,0,LYTCalculations!T146) -> 0 | V89: =IF(V27=0,0,LYTCalculations!U146) -> 0 | W89: =IF(W27=0,0,LYTCalculations!V146) -> 0 | X89: =IF(X27=0,0,LYTCalculations!W146) -> 0 | Y89: =IF(Y27=0,0,LYTCalculations!X146) -> 0 | Z89: =IF(Z27=0,0,LYTCalculations!Y146) -> 0 | AA89: =IF(AA27=0,0,LYTCalculations!Z146) -> 0 | AB89: =IF(AB27=0,0,LYTCalculations!AA146) -> 0 | AC89: =IF(AC27=0,0,LYTCalculations!AB146) -> 0 | AD89: =IF(AD27=0,0,LYTCalculations!AC146) -> 0 | AE89: =IF(AE27=0,0,LYTCalculations!AD146) -> 0 | AF89: =IF(AF27=0,0,LYTCalculations!AE146) -> 0 | AG89: =IF(AG27=0,0,LYTCalculations!AF146) -> 0 | AH89: =IF(AH27=0,0,LYTCalculations!AG146) -> 0 | AI89: =IF(AI27=0,0,LYTCalculations!AH146) -> 0 | AJ89: =IF(AJ27=0,0,LYTCalculations!AI146) -> 0 | AK89: =IF(AK27=0,0,LYTCalculations!AJ146) -> 0 | AL89: =IF(AL27=0,0,LYTCalculations!AK146) -> 0 | AM89: =IF(AM27=0,0,LYTCalculations!AL146) -> 0 | AN89: =IF(AN27=0,0,LYTCalculations!AM146) -> 0 | AO89: =IF(AO27=0,0,LYTCalculations!AN146) -> 0 | AP89: =IF(AP27=0,0,LYTCalculations!AO146) -> 0 | AQ89: =IF(AQ27=0,0,LYTCalculations!AP146) -> 0 | AR89: =IF(AR27=0,0,LYTCalculations!AQ146) -> 0 | AS89: =IF(AS27=0,0,LYTCalculations!AR146) -> 0 | AT89: =IF(AT27=0,0,LYTCalculations!AS146) -> 0 | AU89: =IF(AU27=0,0,LYTCalculations!AT146) -> 0 | AV89: =IF(AV27=0,0,LYTCalculations!AU146) -> 0 | AW89: =IF(AW27=0,0,LYTCalculations!AV146) -> 0 | AX89: =IF(AX27=0,0,LYTCalculations!AW146) -> 0 | AY89: =IF(AY27=0,0,LYTCalculations!AX146) -> 0 | AZ89: =IF(AZ27=0,0,LYTCalculations!AY146) -> 0 | BA89: =IF(BA27=0,0,LYTCalculations!AZ146) -> 0 | BB89: =IF(BB27=0,0,LYTCalculations!BA146) -> 0 | BC89: =IF(BC27=0,0,LYTCalculations!BB146) -> 0 | BD89: =IF(BD27=0,0,LYTCalculations!BC146) -> 0 | BE89: =IF(BE27=0,0,LYTCalculations!BD146) -> 0 | BF89: =IF(BF27=0,0,LYTCalculations!BE146) -> 0 | BG89: =IF(BG27=0,0,LYTCalculations!BF146) -> 0 | BH89: =IF(BH27=0,0,LYTCalculations!BG146) -> 0 | BI89: =IF(BI27=0,0,LYTCalculations!BH146) -> 0 | BJ89: =IF(BJ27=0,0,LYTCalculations!BI146) -> 0 | BK89: =IF(BK27=0,0,LYTCalculations!BJ146) -> 0 | BL89: =IF(BL27=0,0,LYTCalculations!BK146) -> 0 | BM89: =IF(BM27=0,0,LYTCalculations!BL146) -> 0 | BN89: =IF(BN27=0,0,LYTCalculations!BM146) -> 0 | BO89: =IF(BO27=0,0,LYTCalculations!BN146) -> 0 | BP89: =IF(BP27=0,0,LYTCalculations!BO146) -> 0
B90: Branches | C90: =IF(C28=0,0,LYTCalculations!B218) -> 0 | D90: =IF(D28=0,0,LYTCalculations!C218) -> 0 | E90: =IF(E28=0,0,LYTCalculations!D218) -> 0 | F90: =IF(F28=0,0,LYTCalculations!E218) -> 0 | G90: =IF(G28=0,0,LYTCalculations!F218) -> 0 | H90: =IF(H28=0,0,LYTCalculations!G218) -> 0 | I90: =IF(I28=0,0,LYTCalculations!H218) -> 0 | J90: =IF(J28=0,0,LYTCalculations!I218) -> 0 | K90: =IF(K28=0,0,LYTCalculations!J218) -> 0 | L90: =IF(L28=0,0,LYTCalculations!K218) -> 0 | M90: =IF(M28=0,0,LYTCalculations!L218) -> 0 | N90: =IF(N28=0,0,LYTCalculations!M218) -> 0 | O90: =IF(O28=0,0,LYTCalculations!N218) -> 0 | P90: =IF(P28=0,0,LYTCalculations!O218) -> 0 | Q90: =IF(Q28=0,0,LYTCalculations!P218) -> 0 | R90: =IF(R28=0,0,LYTCalculations!Q218) -> 0 | S90: =IF(S28=0,0,LYTCalculations!R218) -> 0 | T90: =IF(T28=0,0,LYTCalculations!S218) -> 0 | U90: =IF(U28=0,0,LYTCalculations!T218) -> 0 | V90: =IF(V28=0,0,LYTCalculations!U218) -> 0 | W90: =IF(W28=0,0,LYTCalculations!V218) -> 0 | X90: =IF(X28=0,0,LYTCalculations!W218) -> 0 | Y90: =IF(Y28=0,0,LYTCalculations!X218) -> 0 | Z90: =IF(Z28=0,0,LYTCalculations!Y218) -> 0 | AA90: =IF(AA28=0,0,LYTCalculations!Z218) -> 0 | AB90: =IF(AB28=0,0,LYTCalculations!AA218) -> 0 | AC90: =IF(AC28=0,0,LYTCalculations!AB218) -> 0 | AD90: =IF(AD28=0,0,LYTCalculations!AC218) -> 0 | AE90: =IF(AE28=0,0,LYTCalculations!AD218) -> 0 | AF90: =IF(AF28=0,0,LYTCalculations!AE218) -> 0 | AG90: =IF(AG28=0,0,LYTCalculations!AF218) -> 0 | AH90: =IF(AH28=0,0,LYTCalculations!AG218) -> 0 | AI90: =IF(AI28=0,0,LYTCalculations!AH218) -> 0 | AJ90: =IF(AJ28=0,0,LYTCalculations!AI218) -> 0 | AK90: =IF(AK28=0,0,LYTCalculations!AJ218) -> 0 | AL90: =IF(AL28=0,0,LYTCalculations!AK218) -> 0 | AM90: =IF(AM28=0,0,LYTCalculations!AL218) -> 0 | AN90: =IF(AN28=0,0,LYTCalculations!AM218) -> 0 | AO90: =IF(AO28=0,0,LYTCalculations!AN218) -> 0 | AP90: =IF(AP28=0,0,LYTCalculations!AO218) -> 0 | AQ90: =IF(AQ28=0,0,LYTCalculations!AP218) -> 0 | AR90: =IF(AR28=0,0,LYTCalculations!AQ218) -> 0 | AS90: =IF(AS28=0,0,LYTCalculations!AR218) -> 0 | AT90: =IF(AT28=0,0,LYTCalculations!AS218) -> 0 | AU90: =IF(AU28=0,0,LYTCalculations!AT218) -> 0 | AV90: =IF(AV28=0,0,LYTCalculations!AU218) -> 0 | AW90: =IF(AW28=0,0,LYTCalculations!AV218) -> 0 | AX90: =IF(AX28=0,0,LYTCalculations!AW218) -> 0 | AY90: =IF(AY28=0,0,LYTCalculations!AX218) -> 0 | AZ90: =IF(AZ28=0,0,LYTCalculations!AY218) -> 0 | BA90: =IF(BA28=0,0,LYTCalculations!AZ218) -> 0 | BB90: =IF(BB28=0,0,LYTCalculations!BA218) -> 0 | BC90: =IF(BC28=0,0,LYTCalculations!BB218) -> 0 | BD90: =IF(BD28=0,0,LYTCalculations!BC218) -> 0 | BE90: =IF(BE28=0,0,LYTCalculations!BD218) -> 0 | BF90: =IF(BF28=0,0,LYTCalculations!BE218) -> 0 | BG90: =IF(BG28=0,0,LYTCalculations!BF218) -> 0 | BH90: =IF(BH28=0,0,LYTCalculations!BG218) -> 0 | BI90: =IF(BI28=0,0,LYTCalculations!BH218) -> 0 | BJ90: =IF(BJ28=0,0,LYTCalculations!BI218) -> 0 | BK90: =IF(BK28=0,0,LYTCalculations!BJ218) -> 0 | BL90: =IF(BL28=0,0,LYTCalculations!BK218) -> 0 | BM90: =IF(BM28=0,0,LYTCalculations!BL218) -> 0 | BN90: =IF(BN28=0,0,LYTCalculations!BM218) -> 0 | BO90: =IF(BO28=0,0,LYTCalculations!BN218) -> 0 | BP90: =IF(BP28=0,0,LYTCalculations!BO218) -> 0
B91: Food Scraps | C91: =IF(C29=0,0,LYTCalculations!B291) -> 0 | D91: =IF(D29=0,0,LYTCalculations!C291) -> 0 | E91: =IF(E29=0,0,LYTCalculations!D291) -> 0 | F91: =IF(F29=0,0,LYTCalculations!E291) -> 0 | G91: =IF(G29=0,0,LYTCalculations!F291) -> 0 | H91: =IF(H29=0,0,LYTCalculations!G291) -> 0 | I91: =IF(I29=0,0,LYTCalculations!H291) -> 0 | J91: =IF(J29=0,0,LYTCalculations!I291) -> 0 | K91: =IF(K29=0,0,LYTCalculations!J291) -> 0 | L91: =IF(L29=0,0,LYTCalculations!K291) -> 0 | M91: =IF(M29=0,0,LYTCalculations!L291) -> 0 | N91: =IF(N29=0,0,LYTCalculations!M291) -> 0 | O91: =IF(O29=0,0,LYTCalculations!N291) -> 0 | P91: =IF(P29=0,0,LYTCalculations!O291) -> 0 | Q91: =IF(Q29=0,0,LYTCalculations!P291) -> 0 | R91: =IF(R29=0,0,LYTCalculations!Q291) -> 0 | S91: =IF(S29=0,0,LYTCalculations!R291) -> 0 | T91: =IF(T29=0,0,LYTCalculations!S291) -> 0 | U91: =IF(U29=0,0,LYTCalculations!T291) -> 0 | V91: =IF(V29=0,0,LYTCalculations!U291) -> 0 | W91: =IF(W29=0,0,LYTCalculations!V291) -> 0 | X91: =IF(X29=0,0,LYTCalculations!W291) -> 0 | Y91: =IF(Y29=0,0,LYTCalculations!X291) -> 0 | Z91: =IF(Z29=0,0,LYTCalculations!Y291) -> 0 | AA91: =IF(AA29=0,0,LYTCalculations!Z291) -> 0 | AB91: =IF(AB29=0,0,LYTCalculations!AA291) -> 0 | AC91: =IF(AC29=0,0,LYTCalculations!AB291) -> 0 | AD91: =IF(AD29=0,0,LYTCalculations!AC291) -> 0 | AE91: =IF(AE29=0,0,LYTCalculations!AD291) -> 0 | AF91: =IF(AF29=0,0,LYTCalculations!AE291) -> 0 | AG91: =IF(AG29=0,0,LYTCalculations!AF291) -> 0 | AH91: =IF(AH29=0,0,LYTCalculations!AG291) -> 0 | AI91: =IF(AI29=0,0,LYTCalculations!AH291) -> 0 | AJ91: =IF(AJ29=0,0,LYTCalculations!AI291) -> 0 | AK91: =IF(AK29=0,0,LYTCalculations!AJ291) -> 0 | AL91: =IF(AL29=0,0,LYTCalculations!AK291) -> 0 | AM91: =IF(AM29=0,0,LYTCalculations!AL291) -> 0 | AN91: =IF(AN29=0,0,LYTCalculations!AM291) -> 0 | AO91: =IF(AO29=0,0,LYTCalculations!AN291) -> 0 | AP91: =IF(AP29=0,0,LYTCalculations!AO291) -> 0 | AQ91: =IF(AQ29=0,0,LYTCalculations!AP291) -> 0 | AR91: =IF(AR29=0,0,LYTCalculations!AQ291) -> 0 | AS91: =IF(AS29=0,0,LYTCalculations!AR291) -> 0 | AT91: =IF(AT29=0,0,LYTCalculations!AS291) -> 0 | AU91: =IF(AU29=0,0,LYTCalculations!AT291) -> 0 | AV91: =IF(AV29=0,0,LYTCalculations!AU291) -> 0 | AW91: =IF(AW29=0,0,LYTCalculations!AV291) -> 0 | AX91: =IF(AX29=0,0,LYTCalculations!AW291) -> 0 | AY91: =IF(AY29=0,0,LYTCalculations!AX291) -> 0 | AZ91: =IF(AZ29=0,0,LYTCalculations!AY291) -> 0 | BA91: =IF(BA29=0,0,LYTCalculations!AZ291) -> 0 | BB91: =IF(BB29=0,0,LYTCalculations!BA291) -> 0 | BC91: =IF(BC29=0,0,LYTCalculations!BB291) -> 0 | BD91: =IF(BD29=0,0,LYTCalculations!BC291) -> 0 | BE91: =IF(BE29=0,0,LYTCalculations!BD291) -> 0 | BF91: =IF(BF29=0,0,LYTCalculations!BE291) -> 0 | BG91: =IF(BG29=0,0,LYTCalculations!BF291) -> 0 | BH91: =IF(BH29=0,0,LYTCalculations!BG291) -> 0 | BI91: =IF(BI29=0,0,LYTCalculations!BH291) -> 0 | BJ91: =IF(BJ29=0,0,LYTCalculations!BI291) -> 0 | BK91: =IF(BK29=0,0,LYTCalculations!BJ291) -> 0 | BL91: =IF(BL29=0,0,LYTCalculations!BK291) -> 0 | BM91: =IF(BM29=0,0,LYTCalculations!BL291) -> 0 | BN91: =IF(BN29=0,0,LYTCalculations!BM291) -> 0 | BO91: =IF(BO29=0,0,LYTCalculations!BN291) -> 0 | BP91: =IF(BP29=0,0,LYTCalculations!BO291) -> 0
B92: Total | C92: =SUM(C88:C91) -> 0 | D92: =SUM(D88:D91) -> 0 | E92: 0 | F92: 0 | G92: 0 | H92: 0 | I92: 0 | J92: 0 | K92: 0 | L92: 0 | M92: 0 | N92: 0 | O92: 0 | P92: 0 | Q92: 0 | R92: 0 | S92: 0 | T92: 0 | U92: 0 | V92: 0 | W92: 0 | X92: 0 | Y92: 0 | Z92: 0 | AA92: 0 | AB92: 0 | AC92: 0 | AD92: 0 | AE92: 0 | AF92: 0 | AG92: 0 | AH92: 0 | AI92: 0 | AJ92: 0 | AK92: 0 | AL92: 0 | AM92: 0 | AN92: 0 | AO92: 0 | AP92: 0 | AQ92: 0 | AR92: 0 | AS92: 0 | AT92: 0 | AU92: 0 | AV92: 0 | AW92: =SUM(AW88:AW91) -> 0 | AX92: 0 | AY92: 0 | AZ92: 0 | BA92: 0 | BB92: 0 | BC92: 0 | BD92: 0 | BE92: 0 | BF92: 0 | BG92: 0 | BH92: 0 | BI92: 0 | BJ92: 0 | BK92: 0 | BL92: =SUM(BL88:BL91) -> 0 | BM92: 0 | BN92: 0 | BO92: 0 | BP92: 0
A95: 4. Calculate annual flux of carbon stored in landfills
B97: Annual Flux of Carbon Stored in Landfills, '000 metric tons C
B98: Annual flux is calculated by subtracting the current year's C stocks from the previous year's stocks
C100: 1960 | D100: 1961 | E100: 1962 | F100: 1963 | G100: 1964 | H100: 1965 | I100: 1966 | J100: 1967 | K100: 1968 | L100: 1969 | M100: 1970 | N100: 1971 | O100: 1972 | P100: 1973 | Q100: 1974 | R100: 1975 | S100: 1976 | T100: 1977 | U100: 1978 | V100: 1979 | W100: 1980 | X100: 1981 | Y100: 1982 | Z100: 1983 | AA100: 1984 | AB100: 1985 | AC100: 1986 | AD100: 1987 | AE100: 1988 | AF100: 1989 | AG100: 1990 | AH100: 1991 | AI100: 1992 | AJ100: 1993 | AK100: 1994 | AL100: 1995 | AM100: 1996 | AN100: 1997 | AO100: 1998 | AP100: 1999 | AQ100: 2000 | AR100: 2001 | AS100: 2002 | AT100: 2003 | AU100: 2004 | AV100: 2005 | AW100: 2006 | AX100: 2007 | AY100: 2008 | AZ100: 2009 | BA100: 2010 | BB100: 2011 | BC100: 2012 | BD100: 2013 | BE100: 2014 | BF100: 2015 | BG100: 2016 | BH100: 2017 | BI100: 2018 | BJ100: 2019 | BK100: 2020 | BL100: 2021 | BM100: 2022 | BN100: 2023 | BO100: 2024 | BP100: 2025
B101: Grass | C101: =IF(C26=0,0,-C88) -> 0 | D101: =-1*IF(D26=0,0,D88-C88) -> 0 | E101: =-1*IF(E26=0,0,E88-D88) -> 0 | F101: 0 | G101: 0 | H101: 0 | I101: 0 | J101: 0 | K101: 0 | L101: 0 | M101: 0 | N101: 0 | O101: 0 | P101: 0 | Q101: 0 | R101: 0 | S101: 0 | T101: 0 | U101: 0 | V101: 0 | W101: 0 | X101: 0 | Y101: 0 | Z101: 0 | AA101: 0 | AB101: 0 | AC101: 0 | AD101: 0 | AE101: 0 | AF101: 0 | AG101: 0 | AH101: 0 | AI101: 0 | AJ101: 0 | AK101: 0 | AL101: 0 | AM101: 0 | AN101: 0 | AO101: 0 | AP101: 0 | AQ101: 0 | AR101: 0 | AS101: 0 | AT101: 0 | AU101: 0 | AV101: 0 | AW101: =-1*IF(AW26=0,0,AW88-AV88) -> 0 | AX101: 0 | AY101: 0 | AZ101: 0 | BA101: 0 | BB101: 0 | BC101: 0 | BD101: 0 | BE101: 0 | BF101: 0 | BG101: 0 | BH101: 0 | BI101: 0 | BJ101: 0 | BK101: 0 | BL101: =-1*IF(BL26=0,0,BL88-BK88) -> 0 | BM101: =-1*IF(BM26=0,0,BM88-BL88) -> 0 | BN101: =-1*IF(BN26=0,0,BN88-BM88) -> 0 | BO101: =-1*IF(BO26=0,0,BO88-BN88) -> 0 | BP101: =-1*IF(BP26=0,0,BP88-BO88) -> 0
B102: Leaves | C102: =IF(C27=0,0,-C89) -> 0 | D102: =-1*IF(D27=0,0,D89-C89) -> 0 | E102: =-1*IF(E27=0,0,E89-D89) -> 0 | F102: 0 | G102: 0 | H102: 0 | I102: 0 | J102: 0 | K102: 0 | L102: 0 | M102: 0 | N102: 0 | O102: 0 | P102: 0 | Q102: 0 | R102: 0 | S102: 0 | T102: =-1*IF(T27=0,0,T89-S89) -> 0 | U102: 0 | V102: 0 | W102: 0 | X102: 0 | Y102: 0 | Z102: 0 | AA102: 0 | AB102: 0 | AC102: 0 | AD102: 0 | AE102: 0 | AF102: 0 | AG102: 0 | AH102: 0 | AI102: 0 | AJ102: 0 | AK102: 0 | AL102: 0 | AM102: 0 | AN102: 0 | AO102: 0 | AP102: 0 | AQ102: 0 | AR102: 0 | AS102: 0 | AT102: 0 | AU102: 0 | AV102: 0 | AW102: =-1*IF(AW27=0,0,AW89-AV89) -> 0 | AX102: 0 | AY102: 0 | AZ102: 0 | BA102: 0 | BB102: 0 | BC102: 0 | BD102: 0 | BE102: 0 | BF102: 0 | BG102: 0 | BH102: 0 | BI102: 0 | BJ102: 0 | BK102: 0 | BL102: =-1*IF(BL27=0,0,BL89-BK89) -> 0 | BM102: 0 | BN102: 0 | BO102: 0 | BP102: 0
B103: Branches | C103: =IF(C28=0,0,-C90) -> 0 | D103: =-1*IF(D28=0,0,D90-C90) -> 0 | E103: 0 | F103: 0 | G103: 0 | H103: 0 | I103: 0 | J103: 0 | K103: 0 | L103: 0 | M103: 0 | N103: 0 | O103: 0 | P103: 0 | Q103: 0 | R103: 0 | S103: 0 | T103: =-1*IF(T28=0,0,T90-S90) -> 0 | U103: 0 | V103: 0 | W103: 0 | X103: 0 | Y103: 0 | Z103: 0 | AA103: 0 | AB103: 0 | AC103: 0 | AD103: 0 | AE103: 0 | AF103: 0 | AG103: 0 | AH103: 0 | AI103: 0 | AJ103: 0 | AK103: 0 | AL103: 0 | AM103: 0 | AN103: 0 | AO103: 0 | AP103: 0 | AQ103: 0 | AR103: 0 | AS103: 0 | AT103: 0 | AU103: 0 | AV103: 0 | AW103: =-1*IF(AW28=0,0,AW90-AV90) -> 0 | AX103: 0 | AY103: 0 | AZ103: 0 | BA103: 0 | BB103: 0 | BC103: 0 | BD103: 0 | BE103: 0 | BF103: 0 | BG103: 0 | BH103: 0 | BI103: 0 | BJ103: 0 | BK103: 0 | BL103: 0 | BM103: 0 | BN103: 0 | BO103: 0 | BP103: 0
B104: Food Scraps | C104: =IF(C29=0,0,-C91) -> 0 | D104: =-1*IF(D29=0,0,D91-C91) -> 0 | E104: 0 | F104: 0 | G104: 0 | H104: 0 | I104: 0 | J104: 0 | K104: 0 | L104: 0 | M104: 0 | N104: 0 | O104: 0 | P104: 0 | Q104: 0 | R104: 0 | S104: 0 | T104: 0 | U104: 0 | V104: 0 | W104: 0 | X104: 0 | Y104: 0 | Z104: 0 | AA104: 0 | AB104: 0 | AC104: 0 | AD104: 0 | AE104: 0 | AF104: 0 | AG104: 0 | AH104: 0 | AI104: 0 | AJ104: 0 | AK104: 0 | AL104: 0 | AM104: 0 | AN104: 0 | AO104: 0 | AP104: 0 | AQ104: 0 | AR104: 0 | AS104: 0 | AT104: 0 | AU104: 0 | AV104: 0 | AW104: =-1*IF(AW29=0,0,AW91-AV91) -> 0 | AX104: 0 | AY104: 0 | AZ104: 0 | BA104: 0 | BB104: 0 | BC104: 0 | BD104: 0 | BE104: 0 | BF104: 0 | BG104: 0 | BH104: 0 | BI104: 0 | BJ104: 0 | BK104: 0 | BL104: 0 | BM104: 0 | BN104: 0 | BO104: 0 | BP104: 0
B105: Total | C105: =SUM(C101:C104) -> 0 | D105: 0 | E105: 0 | F105: 0 | G105: 0 | H105: 0 | I105: 0 | J105: 0 | K105: 0 | L105: 0 | M105: 0 | N105: 0 | O105: 0 | P105: 0 | Q105: 0 | R105: 0 | S105: 0 | T105: 0 | U105: 0 | V105: 0 | W105: 0 | X105: 0 | Y105: 0 | Z105: 0 | AA105: 0 | AB105: 0 | AC105: 0 | AD105: 0 | AE105: 0 | AF105: 0 | AG105: 0 | AH105: 0 | AI105: 0 | AJ105: 0 | AK105: 0 | AL105: 0 | AM105: 0 | AN105: 0 | AO105: 0 | AP105: 0 | AQ105: 0 | AR105: 0 | AS105: 0 | AT105: 0 | AU105: 0 | AV105: 0 | AW105: =SUM(AW101:AW104) -> 0 | AX105: 0 | AY105: 0 | AZ105: 0 | BA105: 0 | BB105: 0 | BC105: 0 | BD105: 0 | BE105: 0 | BF105: 0 | BG105: 0 | BH105: 0 | BI105: 0 | BJ105: 0 | BK105: 0 | BL105: =SUM(BL101:BL104) -> 0 | BM105: 0 | BN105: 0 | BO105: 0 | BP105: 0
B108: Time series for 1990 to 2025, '000 metric tons C
B109: Activity data and values for 1960-1989 are necessary for completing 1990-2018 calculations with stocks from previous years
B110: Since stocks for 1960-1989 do not include previous years, those calculations are considered incomplete and are not presented in the following summary table.
C112: 1990 | D112: 1991 | E112: 1992 | F112: 1993 | G112: 1994 | H112: 1995 | I112: 1996 | J112: 1997 | K112: 1998 | L112: 1999 | M112: 2000 | N112: 2001 | O112: 2002 | P112: 2003 | Q112: 2004 | R112: 2005 | S112: 2006 | T112: 2007 | U112: 2008 | V112: 2009 | W112: 2010 | X112: 2011 | Y112: 2012 | Z112: 2013 | AA112: 2014 | AB112: 2015 | AC112: 2016 | AD112: 2017 | AE112: 2018 | AF112: 2019 | AG112: 2020 | AH112: 2021 | AI112: 2022 | AJ112: 2023 | AK112: 2024 | AL112: 2025
B113: Grass | C113: =AG101 -> 0 | D113: =AH101 -> 0 | E113: 0 | F113: 0 | G113: 0 | H113: 0 | I113: 0 | J113: 0 | K113: 0 | L113: 0 | M113: 0 | N113: 0 | O113: 0 | P113: 0 | Q113: 0 | R113: 0 | S113: =AW101 -> 0 | T113: 0 | U113: 0 | V113: 0 | W113: 0 | X113: 0 | Y113: 0 | Z113: 0 | AA113: 0 | AB113: 0 | AC113: 0 | AD113: 0 | AE113: 0 | AF113: 0 | AG113: 0 | AH113: =BL101 -> 0 | AI113: =BM101 -> 0 | AJ113: =BN101 -> 0 | AK113: =BO101 -> 0 | AL113: =BP101 -> 0
B114: Leaves | C114: =AG102 -> 0 | D114: 0 | E114: 0 | F114: 0 | G114: 0 | H114: 0 | I114: 0 | J114: 0 | K114: 0 | L114: 0 | M114: 0 | N114: 0 | O114: 0 | P114: 0 | Q114: 0 | R114: 0 | S114: 0 | T114: 0 | U114: 0 | V114: 0 | W114: 0 | X114: 0 | Y114: 0 | Z114: 0 | AA114: 0 | AB114: 0 | AC114: 0 | AD114: 0 | AE114: 0 | AF114: 0 | AG114: 0 | AH114: 0 | AI114: 0 | AJ114: 0 | AK114: 0 | AL114: 0
B115: Branches | C115: =AG103 -> 0 | D115: 0 | E115: 0 | F115: 0 | G115: 0 | H115: 0 | I115: 0 | J115: 0 | K115: 0 | L115: 0 | M115: 0 | N115: 0 | O115: 0 | P115: 0 | Q115: 0 | R115: 0 | S115: 0 | T115: 0 | U115: 0 | V115: 0 | W115: 0 | X115: 0 | Y115: 0 | Z115: 0 | AA115: 0 | AB115: 0 | AC115: 0 | AD115: 0 | AE115: 0 | AF115: 0 | AG115: 0 | AH115: 0 | AI115: 0 | AJ115: 0 | AK115: 0 | AL115: 0
B116: Food Scraps | C116: =AG104 -> 0 | D116: 0 | E116: 0 | F116: 0 | G116: 0 | H116: 0 | I116: 0 | J116: 0 | K116: 0 | L116: 0 | M116: 0 | N116: 0 | O116: 0 | P116: 0 | Q116: 0 | R116: 0 | S116: 0 | T116: 0 | U116: 0 | V116: 0 | W116: 0 | X116: 0 | Y116: 0 | Z116: 0 | AA116: 0 | AB116: 0 | AC116: 0 | AD116: 0 | AE116: 0 | AF116: 0 | AG116: 0 | AH116: 0 | AI116: 0 | AJ116: 0 | AK116: 0 | AL116: 0
B117: Total | C117: =AG105 -> 0 | D117: 0 | E117: 0 | F117: 0 | G117: 0 | H117: 0 | I117: 0 | J117: 0 | K117: 0 | L117: 0 | M117: 0 | N117: 0 | O117: 0 | P117: 0 | Q117: 0 | R117: 0 | S117: 0 | T117: 0 | U117: 0 | V117: 0 | W117: 0 | X117: 0 | Y117: 0 | Z117: 0 | AA117: 0 | AB117: 0 | AC117: 0 | AD117: 0 | AE117: 0 | AF117: 0 | AG117: 0 | AH117: 0 | AI117: 0 | AJ117: 0 | AK117: 0 | AL117: 0
B119: Time series for 1990 to 2025, '000 metric tons CO2E
C120: 1990 | D120: 1991 | E120: 1992 | F120: 1993 | G120: 1994 | H120: 1995 | I120: 1996 | J120: 1997 | K120: 1998 | L120: 1999 | M120: 2000 | N120: 2001 | O120: 2002 | P120: 2003 | Q120: 2004 | R120: 2005 | S120: 2006 | T120: 2007 | U120: 2008 | V120: 2009 | W120: 2010 | X120: 2011 | Y120: 2012 | Z120: 2013 | AA120: 2014 | AB120: 2015 | AC120: 2016 | AD120: 2017 | AE120: 2018 | AF120: 2019 | AG120: 2020 | AH120: 2021 | AI120: 2022 | AJ120: 2023 | AK120: 2024 | AL120: 2025
B121: Grass | C121: =C113*CO2_C -> 0 | D121: 0 | E121: 0 | F121: 0 | G121: 0 | H121: 0 | I121: 0 | J121: 0 | K121: 0 | L121: 0 | M121: 0 | N121: 0 | O121: 0 | P121: 0 | Q121: 0 | R121: 0 | S121: =S113*CO2_C -> 0 | T121: 0 | U121: 0 | V121: 0 | W121: 0 | X121: 0 | Y121: 0 | Z121: 0 | AA121: 0 | AB121: 0 | AC121: 0 | AD121: 0 | AE121: 0 | AF121: 0 | AG121: 0 | AH121: =AH113*CO2_C -> 0 | AI121: 0 | AJ121: 0 | AK121: 0 | AL121: 0
B122: Leaves | C122: =C114*CO2_C -> 0 | D122: 0 | E122: 0 | F122: 0 | G122: 0 | H122: 0 | I122: 0 | J122: 0 | K122: 0 | L122: 0 | M122: 0 | N122: 0 | O122: 0 | P122: 0 | Q122: 0 | R122: 0 | S122: =S114*CO2_C -> 0 | T122: 0 | U122: 0 | V122: 0 | W122: 0 | X122: 0 | Y122: 0 | Z122: 0 | AA122: 0 | AB122: 0 | AC122: 0 | AD122: 0 | AE122: 0 | AF122: 0 | AG122: 0 | AH122: =AH114*CO2_C -> 0 | AI122: 0 | AJ122: 0 | AK122: 0 | AL122: 0
B123: Branches | C123: =C115*CO2_C -> 0 | D123: 0 | E123: 0 | F123: 0 | G123: 0 | H123: 0 | I123: 0 | J123: 0 | K123: 0 | L123: 0 | M123: 0 | N123: 0 | O123: 0 | P123: 0 | Q123: 0 | R123: 0 | S123: =S115*CO2_C -> 0 | T123: 0 | U123: 0 | V123: 0 | W123: 0 | X123: 0 | Y123: 0 | Z123: 0 | AA123: 0 | AB123: 0 | AC123: 0 | AD123: 0 | AE123: 0 | AF123: 0 | AG123: 0 | AH123: =AH115*CO2_C -> 0 | AI123: 0 | AJ123: 0 | AK123: 0 | AL123: 0
B124: Food Scraps | C124: =C116*CO2_C -> 0 | D124: 0 | E124: 0 | F124: 0 | G124: 0 | H124: 0 | I124: 0 | J124: 0 | K124: 0 | L124: 0 | M124: 0 | N124: 0 | O124: 0 | P124: 0 | Q124: 0 | R124: 0 | S124: =S116*CO2_C -> 0 | T124: 0 | U124: 0 | V124: 0 | W124: 0 | X124: 0 | Y124: 0 | Z124: 0 | AA124: 0 | AB124: 0 | AC124: 0 | AD124: 0 | AE124: 0 | AF124: 0 | AG124: 0 | AH124: =AH116*CO2_C -> 0 | AI124: 0 | AJ124: 0 | AK124: 0 | AL124: 0
B125: Total | C125: =C117*CO2_C -> 0 | D125: 0 | E125: 0 | F125: 0 | G125: 0 | H125: 0 | I125: 0 | J125: 0 | K125: 0 | L125: 0 | M125: 0 | N125: 0 | O125: 0 | P125: 0 | Q125: 0 | R125: 0 | S125: 0 | T125: 0 | U125: 0 | V125: 0 | W125: 0 | X125: 0 | Y125: 0 | Z125: 0 | AA125: 0 | AB125: 0 | AC125: 0 | AD125: 0 | AE125: 0 | AF125: 0 | AG125: 0 | AH125: =AH117*CO2_C -> 0 | AI125: 0 | AJ125: 0 | AK125: 0 | AL125: 0

Sheet Ag Soil C Flux-Default
A1: ="7. Agricultural Soil Carbon Flux in "&StateName -> 7. Agricultural Soil Carbon Flux in Select a State . . .
A5: Default data for carbon stored in Cropland Remaining Cropland, Land Converted to Cropland, Grassland Remaining Grassland, and Land Converted to Grassland
K7: Changes in Carbon Storage
K8: (million metric tons carbon)
E9: 1990 | F9: 1991 | G9: 1992 | H9: 1993 | I9: 1994 | J9: 1995 | K9: 1996 | L9: 1997 | M9: 1998 | N9: 1999 | O9: 2000 | P9: 2001 | Q9: 2002 | R9: 2003 | S9: 2004 | T9: 2005 | U9: 2006 | V9: 2007 | W9: 2008 | X9: 2009 | Y9: 2010 | Z9: 2011 | AA9: 2012 | AB9: 2013 | AC9: 2014 | AD9: 2015 | AE9: 2016 | AF9: 2017 | AG9: 2018 | AH9: 2019 | AI9: 2020 | AJ9: 2021 | AK9: 2022 | AL9: 2023 | AM9: 2024 | AN9: 2025
C10: Total | E10: =VLOOKUP(StateID,AgSoilCFluxData,((E9-1990)+3),FALSE)/CO2_C*-1 ->  | AK10: =VLOOKUP(StateID,AgSoilCFluxData,((AK9-1990)+3),FALSE)/CO2_C*-1 -> 
K12: Net Sequestration/Emissions
K13: MMTCO2E
E14: 1990 | F14: 1991 | G14: 1992 | H14: 1993 | I14: 1994 | J14: 1995 | K14: 1996 | L14: 1997 | M14: 1998 | N14: 1999 | O14: 2000 | P14: 2001 | Q14: 2002 | R14: 2003 | S14: 2004 | T14: 2005 | U14: 2006 | V14: 2007 | W14: 2008 | X14: 2009 | Y14: 2010 | Z14: 2011 | AA14: 2012 | AB14: 2013 | AC14: 2014 | AD14: 2015 | AE14: 2016 | AF14: 2017 | AG14: 2018 | AH14: 2019 | AI14: 2020 | AJ14: 2021 | AK14: 2022 | AL14: 2023 | AM14: 2024 | AN14: 2025
C15: Total | E15: =IFERROR(-E10*CO2_C,"") ->  | AK15: =IFERROR(-AK10*CO2_C,"") -> 

Sheet Ag Soil C Flux-User Data
A1: ="7. Agricultural Soil Carbon Flux in "&StateName -> 7. Agricultural Soil Carbon Flux in Select a State . . .
C8: Total
C9: MMTCO2E (million metric tons of carbon dioxide equivalent)
B11: 1990 | D11: = | E11: =C11 -> 0
B13: =B11+1 -> 1991 | D13: = | E13: =C13 -> 0
B15: =B13+1 -> 1992 | D15: = | E15: =C15 -> 0
B17: =B15+1 -> 1993 | D17: = | E17: =C17 -> 0
B19: =B17+1 -> 1994 | D19: = | E19: =C19 -> 0
B21: =B19+1 -> 1995 | D21: = | E21: =C21 -> 0
B23: =B21+1 -> 1996 | D23: = | E23: =C23 -> 0
B25: =B23+1 -> 1997 | D25: = | E25: =C25 -> 0
B27: =B25+1 -> 1998 | D27: = | E27: =C27 -> 0
B29: =B27+1 -> 1999 | D29: = | E29: =C29 -> 0
B31: =B29+1 -> 2000 | D31: = | E31: =C31 -> 0
B33: =B31+1 -> 2001 | D33: = | E33: =C33 -> 0
B35: =B33+1 -> 2002 | D35: = | E35: =C35 -> 0
B37: =B35+1 -> 2003 | D37: = | E37: =C37 -> 0
B39: =B37+1 -> 2004 | D39: = | E39: =C39 -> 0
B41: =B39+1 -> 2005 | D41: = | E41: =C41 -> 0
B43: =B41+1 -> 2006 | D43: = | E43: =C43 -> 0
B45: =B43+1 -> 2007 | D45: = | E45: =C45 -> 0
B47: =B45+1 -> 2008 | D47: = | E47: =C47 -> 0
B49: =B47+1 -> 2009 | D49: = | E49: =C49 -> 0
B51: =B49+1 -> 2010 | D51: = | E51: =C51 -> 0
B53: =B51+1 -> 2011 | D53: = | E53: =C53 -> 0
B55: =B53+1 -> 2012 | D55: = | E55: =C55 -> 0
B57: =B55+1 -> 2013 | D57: = | E57: =C57 -> 0
B59: =B57+1 -> 2014 | D59: = | E59: =C59 -> 0
B61: =B59+1 -> 2015 | D61: = | E61: =C61 -> 0
B63: =B61+1 -> 2016 | D63: = | E63: =C63 -> 0
B65: =B63+1 -> 2017 | D65: = | E65: =C65 -> 0
B67: =B65+1 -> 2018 | D67: = | E67: =C67 -> 0
B69: =B67+1 -> 2019 | D69: = | E69: =C69 -> 0
B71: =B69+1 -> 2020 | D71: = | E71: =C71 -> 0
B73: =B71+1 -> 2021 | D73: = | E73: =C73 -> 0
B75: =B73+1 -> 2022 | D75: = | E75: =C75 -> 0
B77: =B75+1 -> 2023 | D77: = | E77: =C77 -> 0
B79: =B77+1 -> 2024 | D79: = | E79: =C79 -> 0
B81: =B79+1 -> 2025 | D81: = | E81: =C81 -> 0

Sheet Additional Emission Sources
B1: ="8. Additional Emission Sources in "&StateName -> 8. Additional Emission Sources in Select a State . . .
B10: Additional Emission Sources (MMTCO2E)
B11: Option A
B12: Source | C12: Gas | D12: 1990 | E12: 1991 | F12: 1992 | G12: 1993 | H12: 1994 | I12: 1995 | J12: 1996 | K12: 1997 | L12: 1998 | M12: 1999 | N12: 2000 | O12: 2001 | P12: 2002 | Q12: 2003 | R12: 2004 | S12: 2005 | T12: 2006 | U12: 2007 | V12: 2008 | W12: 2009 | X12: 2010 | Y12: 2011 | Z12: 2012 | AA12: 2013 | AB12: 2014 | AC12: 2015 | AD12: 2016 | AE12: 2017 | AF12: 2018 | AG12: 2019 | AH12: 2020 | AI12: 2021 | AJ12: 2022 | AK12: 2023 | AL12: 2024 | AM12: 2025
AR14: CO2
AR15: CH4
AR16: N2O
D25: 1990 | E25: 1991 | F25: 1992 | G25: 1993 | H25: 1994 | I25: 1995 | J25: 1996 | K25: 1997 | L25: 1998 | M25: 1999 | N25: 2000 | O25: 2001 | P25: 2002 | Q25: 2003 | R25: 2004 | S25: 2005 | T25: 2006 | U25: 2007 | V25: 2008 | W25: 2009 | X25: 2010 | Y25: 2011 | Z25: 2012 | AA25: 2013 | AB25: 2014 | AC25: 2015 | AD25: 2016 | AE25: 2017 | AF25: 2018 | AG25: 2019 | AH25: 2020 | AI25: 2021 | AJ25: 2022 | AK25: 2023 | AL25: 2024 | AM25: 2025
B26: Additional Carbon Dioxide Emissions | C26: CO2 | D26: =SUMIF($C$13:$C$22,$C26,D$13:D$22) -> 0 | E26: =SUMIF($C$13:$C$22, $C26,E$13:E$22) -> 0 | F26: 0 | G26: 0 | H26: 0 | I26: 0 | J26: 0 | K26: 0 | L26: 0 | M26: 0 | N26: 0 | O26: =SUMIF($C$13:$C$22, $C26,O$13:O$22) -> 0 | P26: 0 | Q26: 0 | R26: 0 | S26: 0 | T26: 0 | U26: 0 | V26: 0 | W26: 0 | X26: 0 | Y26: =SUMIF($C$13:$C$22, $C26,Y$13:Y$22) -> 0 | Z26: 0 | AA26: 0 | AB26: 0 | AC26: 0 | AD26: 0 | AE26: 0 | AF26: 0 | AG26: 0 | AH26: 0 | AI26: 0 | AJ26: 0 | AK26: 0 | AL26: 0 | AM26: 0
B27: Additional Methane Emissions | C27: CH4 | D27: =SUMIF($C$13:$C$22, $C27,D$13:D$22) -> 0 | E27: 0 | F27: 0 | G27: 0 | H27: 0 | I27: 0 | J27: 0 | K27: 0 | L27: 0 | M27: 0 | N27: 0 | O27: 0 | P27: 0 | Q27: 0 | R27: 0 | S27: 0 | T27: 0 | U27: 0 | V27: 0 | W27: 0 | X27: 0 | Y27: 0 | Z27: 0 | AA27: 0 | AB27: 0 | AC27: 0 | AD27: 0 | AE27: 0 | AF27: 0 | AG27: 0 | AH27: 0 | AI27: 0 | AJ27: 0 | AK27: 0 | AL27: 0 | AM27: 0
B28: Additional Nitrous Oxide Emissions | C28: N2O | D28: =SUMIF($C$13:$C$22, $C28,D$13:D$22) -> 0 | E28: 0 | F28: 0 | G28: 0 | H28: 0 | I28: 0 | J28: 0 | K28: 0 | L28: 0 | M28: 0 | N28: 0 | O28: 0 | P28: 0 | Q28: 0 | R28: 0 | S28: 0 | T28: 0 | U28: 0 | V28: 0 | W28: 0 | X28: 0 | Y28: 0 | Z28: 0 | AA28: 0 | AB28: 0 | AC28: 0 | AD28: 0 | AE28: 0 | AF28: 0 | AG28: 0 | AH28: 0 | AI28: 0 | AJ28: 0 | AK28: 0 | AL28: 0 | AM28: 0
B31: Option B
D32: 1990 | E32: 1991 | F32: 1992 | G32: 1993 | H32: 1994 | I32: 1995 | J32: 1996 | K32: 1997 | L32: 1998 | M32: 1999 | N32: 2000 | O32: 2001 | P32: 2002 | Q32: 2003 | R32: 2004 | S32: 2005 | T32: 2006 | U32: 2007 | V32: 2008 | W32: 2009 | X32: 2010 | Y32: 2011 | Z32: 2012 | AA32: 2013 | AB32: 2014 | AC32: 2015 | AD32: 2016 | AE32: 2017 | AF32: 2018 | AG32: 2019 | AH32: 2020 | AI32: 2021 | AJ32: 2022 | AK32: 2023 | AL32: 2024 | AM32: 2025
B33: Additional Carbon Dioxide Emissions | C33: CO2
B34: Additional Methane Emissions | C34: CH4
B35: Additional Nitrous Oxide Emissions | C35: N2O

Sheet Summary
A1: ="9. Summary of Land Use, Land-Use Change, and Forestry Emissions and Sequestration for "&StateName -> 9. Summary of Land Use, Land-Use Change, and Forestry Emissions and Sequestration for Select a State . . .
AM2: used depending on which option is selected
B3: =MAX(C83:AL83) -> 
B4: Note: The Land Use, Land-Use Change, and Forestry module no longer estimates carbon dioxide emissions from Liming of Soils and Urea Fertilization. These categories are now estimated in the Agriculture module.
B5: =Tracker!B17 -> Emissions were not calculated for the following sectors: Forest Carbon Flux, Settlement Soils, Urban Trees, Landfilled Yard Trimmings and Food Scraps, Forest Fires, and Agricultural Soil Carbon Flux. If you skipped any of these by mistake, please return to the control worksheet and complete each skipped source.
AK6: FCF | AL6: =IF(FCFchoice=TRUE,"default","user") -> default
B8: Emissions* (MMTCO2E) | AM8: 1990 | AN8: 1991 | AO8: 1992 | AP8: 1993 | AQ8: 1994 | AR8: 1995 | AS8: 1996 | AT8: 1997 | AU8: 1998 | AV8: 1999 | AW8: 2000 | AX8: 2001 | AY8: 2002 | AZ8: 2003 | BA8: 2004 | BB8: 2005 | BC8: 2006 | BD8: 2007 | BE8: 2008 | BF8: 2009 | BG8: 2010 | BH8: 2011 | BI8: 2012 | BJ8: 2013 | BK8: 2014 | BL8: 2015 | BM8: 2016 | BN8: 2017 | BO8: 2018 | BP8: 2019 | BQ8: 2020
C9: 1990 | D9: 1991 | E9: 1992 | F9: 1993 | G9: 1994 | H9: 1995 | I9: 1996 | J9: 1997 | K9: 1998 | L9: 1999 | M9: 2000 | N9: 2001 | O9: 2002 | P9: 2003 | Q9: 2004 | R9: 2005 | S9: 2006 | T9: 2007 | U9: 2008 | V9: 2009 | W9: 2010 | X9: 2011 | Y9: 2012 | Z9: 2013 | AA9: 2014 | AB9: 2015 | AC9: 2016 | AD9: 2017 | AE9: 2018 | AF9: 2019 | AG9: 2020 | AH9: 2021 | AI9: 2022 | AJ9: 2023 | AK9: 2024 | AL9: 2025 | AM9: 2026 | AN9: 2027 | AO9: 2028 | AP9: 2029 | AQ9: 2030 | AR9: 2031 | AS9: 2032 | AT9: 2033 | AU9: 2034 | AV9: 2035 | AW9: 2036 | AX9: 2037 | AY9: 2038 | AZ9: 2039 | BA9: 2040 | BB9: 2041 | BC9: 2042 | BD9: 2043 | BE9: 2044 | BF9: 2045 | BG9: 2046 | BH9: 2047 | BI9: 2048 | BJ9: 2049 | BK9: 2050 | BL9: 2051 | BM9: 2052 | BN9: 2053 | BO9: 2054 | BP9: 2055 | BQ9: 2056 | BR9: 2057 | BS9: 2058
B10: Net Forest Carbon Flux | C10: =IF(FCFchoice=TRUE,SUM(C19,C28,C34),SUM(C11:C18)) ->  | AG10: =IF(FCFchoice=TRUE,SUM(AG19,AG28,AG34),SUM(AG11:AG18)) ->  | AJ10: 0 | AK10: 0 | AL10: 0 | AM10: 0 | AN10: 0 | AO10: 0 | AP10: 0 | AQ10: 0 | AR10: 0 | AS10: 0 | AT10: 0 | AU10: 0 | AV10: 0 | AW10: 0 | AX10: 0 | AY10: 0 | AZ10: 0 | BA10: 0 | BB10: 0 | BC10: 0 | BD10: 0 | BE10: 0 | BF10: 0 | BG10: 0 | BH10: 0 | BI10: 0 | BJ10: 0 | BK10: 0 | BL10: 0 | BM10: 0 | BN10: 0 | BO10: 0 | BP10: 0 | BQ10: 0 | BR10: 0 | BS10: 0
B11: Aboveground Biomass | C11: ='C Flux-User Data'!C$11 -> 0 | D11: ='C Flux-User Data'!C$13 -> 0 | E11: ='C Flux-User Data'!C$15 -> 0 | F11: ='C Flux-User Data'!C$17 -> 0 | G11: ='C Flux-User Data'!C$19 -> 0 | H11: ='C Flux-User Data'!C$21 -> 0 | I11: ='C Flux-User Data'!C$23 -> 0 | J11: ='C Flux-User Data'!C$25 -> 0 | K11: ='C Flux-User Data'!C$27 -> 0 | L11: ='C Flux-User Data'!C$29 -> 0 | M11: ='C Flux-User Data'!C$31 -> 0 | N11: ='C Flux-User Data'!C$33 -> 0 | O11: ='C Flux-User Data'!C$35 -> 0 | P11: ='C Flux-User Data'!C$37 -> 0 | Q11: ='C Flux-User Data'!C$39 -> 0 | R11: ='C Flux-User Data'!C$41 -> 0 | S11: ='C Flux-User Data'!C$43 -> 0 | T11: ='C Flux-User Data'!C$45 -> 0 | U11: ='C Flux-User Data'!C$47 -> 0 | V11: ='C Flux-User Data'!C$49 -> 0 | W11: ='C Flux-User Data'!C$51 -> 0 | X11: ='C Flux-User Data'!C$53 -> 0 | Y11: ='C Flux-User Data'!C$55 -> 0 | Z11: ='C Flux-User Data'!C$57 -> 0 | AA11: ='C Flux-User Data'!C$59 -> 0 | AB11: ='C Flux-User Data'!C$61 -> 0 | AC11: ='C Flux-User Data'!C$63 -> 0 | AD11: ='C Flux-User Data'!C$65 -> 0 | AE11: ='C Flux-User Data'!C$67 -> 0 | AF11: ='C Flux-User Data'!C$69 -> 0 | AG11: ='C Flux-User Data'!$C$71 -> 0 | AH11: ='C Flux-User Data'!$C$73 -> 0 | AI11: ='C Flux-User Data'!$C$75 -> 0 | AJ11: ='C Flux-User Data'!$C$77 -> 0 | AK11: ='C Flux-User Data'!$C$79 -> 0 | AL11: ='C Flux-User Data'!$C$81 -> 0 | AM11: ='C Flux-User Data'!I$71 -> 0 | AN11: ='C Flux-User Data'!J$71 -> + | AO11: ='C Flux-User Data'!K$71 -> 0 | AP11: ='C Flux-User Data'!L$71 -> + | AQ11: ='C Flux-User Data'!M$71 -> 0 | AR11: ='C Flux-User Data'!N$71 -> + | AS11: ='C Flux-User Data'!O$71 -> 0 | AT11: ='C Flux-User Data'!P$71 -> + | AU11: ='C Flux-User Data'!Q$71 -> 0 | AV11: ='C Flux-User Data'!R$71 -> = | AW11: ='C Flux-User Data'!S$71 -> 0 | AX11: ='C Flux-User Data'!T$71 -> 0 | AY11: ='C Flux-User Data'!U$71 -> 0 | AZ11: ='C Flux-User Data'!V$71 -> 0 | BA11: ='C Flux-User Data'!W$71 -> 0 | BB11: ='C Flux-User Data'!X$71 -> 0 | BC11: ='C Flux-User Data'!Y$71 -> 0 | BD11: ='C Flux-User Data'!Z$71 -> 0 | BE11: ='C Flux-User Data'!AA$71 -> 0 | BF11: ='C Flux-User Data'!AB$71 -> 0 | BG11: ='C Flux-User Data'!AC$71 -> 0 | BH11: ='C Flux-User Data'!AD$71 -> 0 | BI11: ='C Flux-User Data'!AE$71 -> 0 | BJ11: ='C Flux-User Data'!AF$71 -> 0 | BK11: ='C Flux-User Data'!AG$71 -> 0 | BL11: ='C Flux-User Data'!AH$71 -> 0 | BM11: ='C Flux-User Data'!AI$71 -> 0 | BN11: ='C Flux-User Data'!AJ$71 -> 0 | BO11: ='C Flux-User Data'!AK$71 -> 0 | BP11: ='C Flux-User Data'!AL$71 -> 0 | BQ11: ='C Flux-User Data'!AM$71 -> 0 | BR11: ='C Flux-User Data'!AN$71 -> 0 | BS11: ='C Flux-User Data'!AO$71 -> 0
B12: Belowground Biomass | C12: ='C Flux-User Data'!E11 -> 0 | D12: ='C Flux-User Data'!E13 -> 0 | E12: ='C Flux-User Data'!E15 -> 0 | F12: ='C Flux-User Data'!E17 -> 0 | G12: ='C Flux-User Data'!E19 -> 0 | H12: ='C Flux-User Data'!E21 -> 0 | I12: ='C Flux-User Data'!E23 -> 0 | J12: ='C Flux-User Data'!E25 -> 0 | K12: ='C Flux-User Data'!E27 -> 0 | L12: ='C Flux-User Data'!E29 -> 0 | M12: ='C Flux-User Data'!E31 -> 0 | N12: ='C Flux-User Data'!E33 -> 0 | O12: ='C Flux-User Data'!E35 -> 0 | P12: ='C Flux-User Data'!E37 -> 0 | Q12: ='C Flux-User Data'!E39 -> 0 | R12: ='C Flux-User Data'!E41 -> 0 | S12: ='C Flux-User Data'!E43 -> 0 | T12: ='C Flux-User Data'!E45 -> 0 | U12: ='C Flux-User Data'!E47 -> 0 | V12: ='C Flux-User Data'!E49 -> 0 | W12: ='C Flux-User Data'!E51 -> 0 | X12: ='C Flux-User Data'!E53 -> 0 | Y12: ='C Flux-User Data'!E55 -> 0 | Z12: ='C Flux-User Data'!E57 -> 0 | AA12: ='C Flux-User Data'!E59 -> 0 | AB12: ='C Flux-User Data'!E61 -> 0 | AC12: ='C Flux-User Data'!E63 -> 0 | AD12: ='C Flux-User Data'!E65 -> 0 | AE12: ='C Flux-User Data'!E67 -> 0 | AF12: ='C Flux-User Data'!E69 -> 0 | AG12: ='C Flux-User Data'!$E71 -> 0 | AH12: ='C Flux-User Data'!$E73 -> 0 | AI12: ='C Flux-User Data'!$E75 -> 0 | AJ12: ='C Flux-User Data'!$E77 -> 0 | AK12: ='C Flux-User Data'!$E79 -> 0 | AL12: ='C Flux-User Data'!$E81 -> 0 | AM12: ='C Flux-User Data'!K71 -> 0 | AN12: ='C Flux-User Data'!L71 -> + | AO12: ='C Flux-User Data'!M71 -> 0 | AP12: ='C Flux-User Data'!N71 -> + | AQ12: ='C Flux-User Data'!O71 -> 0 | AR12: ='C Flux-User Data'!P71 -> + | AS12: ='C Flux-User Data'!Q71 -> 0 | AT12: ='C Flux-User Data'!R71 -> = | AU12: ='C Flux-User Data'!S71 -> 0 | AV12: ='C Flux-User Data'!T71 -> 0 | AW12: ='C Flux-User Data'!U71 -> 0 | AX12: ='C Flux-User Data'!V71 -> 0 | AY12: ='C Flux-User Data'!W71 -> 0 | AZ12: ='C Flux-User Data'!X71 -> 0 | BA12: ='C Flux-User Data'!Y71 -> 0 | BB12: ='C Flux-User Data'!Z71 -> 0 | BC12: ='C Flux-User Data'!AA71 -> 0 | BD12: ='C Flux-User Data'!AB71 -> 0 | BE12: ='C Flux-User Data'!AC71 -> 0 | BF12: ='C Flux-User Data'!AD71 -> 0 | BG12: ='C Flux-User Data'!AE71 -> 0 | BH12: ='C Flux-User Data'!AF71 -> 0 | BI12: ='C Flux-User Data'!AG71 -> 0 | BJ12: ='C Flux-User Data'!AH71 -> 0 | BK12: ='C Flux-User Data'!AI71 -> 0 | BL12: ='C Flux-User Data'!AJ71 -> 0 | BM12: ='C Flux-User Data'!AK71 -> 0 | BN12: ='C Flux-User Data'!AL71 -> 0 | BO12: ='C Flux-User Data'!AM71 -> 0 | BP12: ='C Flux-User Data'!AN71 -> 0 | BQ12: ='C Flux-User Data'!AO71 -> 0 | BR12: ='C Flux-User Data'!AP71 -> 0 | BS12: ='C Flux-User Data'!AQ71 -> 0
B13: Deadwood | C13: ='C Flux-User Data'!G11 -> 0 | D13: ='C Flux-User Data'!G13 -> 0 | E13: ='C Flux-User Data'!G15 -> 0 | F13: ='C Flux-User Data'!G17 -> 0 | G13: ='C Flux-User Data'!G19 -> 0 | H13: ='C Flux-User Data'!G21 -> 0 | I13: ='C Flux-User Data'!G23 -> 0 | J13: ='C Flux-User Data'!G25 -> 0 | K13: ='C Flux-User Data'!G27 -> 0 | L13: ='C Flux-User Data'!G29 -> 0 | M13: ='C Flux-User Data'!G31 -> 0 | N13: ='C Flux-User Data'!G33 -> 0 | O13: ='C Flux-User Data'!G35 -> 0 | P13: ='C Flux-User Data'!G37 -> 0 | Q13: ='C Flux-User Data'!G39 -> 0 | R13: ='C Flux-User Data'!G41 -> 0 | S13: ='C Flux-User Data'!G43 -> 0 | T13: ='C Flux-User Data'!G45 -> 0 | U13: ='C Flux-User Data'!G47 -> 0 | V13: ='C Flux-User Data'!G49 -> 0 | W13: ='C Flux-User Data'!G51 -> 0 | X13: ='C Flux-User Data'!G53 -> 0 | Y13: ='C Flux-User Data'!G55 -> 0 | Z13: ='C Flux-User Data'!G57 -> 0 | AA13: ='C Flux-User Data'!G59 -> 0 | AB13: ='C Flux-User Data'!G61 -> 0 | AC13: ='C Flux-User Data'!G63 -> 0 | AD13: ='C Flux-User Data'!G65 -> 0 | AE13: ='C Flux-User Data'!G67 -> 0 | AF13: ='C Flux-User Data'!G69 -> 0 | AG13: ='C Flux-User Data'!$G71 -> 0 | AH13: ='C Flux-User Data'!$G73 -> 0 | AI13: ='C Flux-User Data'!$G75 -> 0 | AJ13: ='C Flux-User Data'!$G77 -> 0 | AK13: ='C Flux-User Data'!$G79 -> 0 | AL13: ='C Flux-User Data'!$G81 -> 0 | AM13: ='C Flux-User Data'!M71 -> 0 | AN13: ='C Flux-User Data'!N71 -> + | AO13: ='C Flux-User Data'!O71 -> 0 | AP13: ='C Flux-User Data'!P71 -> + | AQ13: ='C Flux-User Data'!Q71 -> 0 | AR13: ='C Flux-User Data'!R71 -> = | AS13: ='C Flux-User Data'!S71 -> 0 | AT13: ='C Flux-User Data'!T71 -> 0 | AU13: ='C Flux-User Data'!U71 -> 0 | AV13: ='C Flux-User Data'!V71 -> 0 | AW13: ='C Flux-User Data'!W71 -> 0 | AX13: ='C Flux-User Data'!X71 -> 0 | AY13: ='C Flux-User Data'!Y71 -> 0 | AZ13: ='C Flux-User Data'!Z71 -> 0 | BA13: ='C Flux-User Data'!AA71 -> 0 | BB13: ='C Flux-User Data'!AB71 -> 0 | BC13: ='C Flux-User Data'!AC71 -> 0 | BD13: ='C Flux-User Data'!AD71 -> 0 | BE13: ='C Flux-User Data'!AE71 -> 0 | BF13: ='C Flux-User Data'!AF71 -> 0 | BG13: ='C Flux-User Data'!AG71 -> 0 | BH13: ='C Flux-User Data'!AH71 -> 0 | BI13: ='C Flux-User Data'!AI71 -> 0 | BJ13: ='C Flux-User Data'!AJ71 -> 0 | BK13: ='C Flux-User Data'!AK71 -> 0 | BL13: ='C Flux-User Data'!AL71 -> 0 | BM13: ='C Flux-User Data'!AM71 -> 0 | BN13: ='C Flux-User Data'!AN71 -> 0 | BO13: ='C Flux-User Data'!AO71 -> 0 | BP13: ='C Flux-User Data'!AP71 -> 0 | BQ13: ='C Flux-User Data'!AQ71 -> 0 | BR13: ='C Flux-User Data'!AR71 -> 0 | BS13: ='C Flux-User Data'!AS71 -> 0
B14: Litter | C14: ='C Flux-User Data'!I11 -> 0 | D14: ='C Flux-User Data'!I13 -> 0 | E14: ='C Flux-User Data'!I15 -> 0 | F14: ='C Flux-User Data'!I17 -> 0 | G14: ='C Flux-User Data'!I19 -> 0 | H14: ='C Flux-User Data'!I21 -> 0 | I14: ='C Flux-User Data'!I23 -> 0 | J14: ='C Flux-User Data'!I25 -> 0 | K14: ='C Flux-User Data'!I27 -> 0 | L14: ='C Flux-User Data'!I29 -> 0 | M14: ='C Flux-User Data'!I31 -> 0 | N14: ='C Flux-User Data'!I33 -> 0 | O14: ='C Flux-User Data'!I35 -> 0 | P14: ='C Flux-User Data'!I37 -> 0 | Q14: ='C Flux-User Data'!I39 -> 0 | R14: ='C Flux-User Data'!I41 -> 0 | S14: ='C Flux-User Data'!I43 -> 0 | T14: ='C Flux-User Data'!I45 -> 0 | U14: ='C Flux-User Data'!I47 -> 0 | V14: ='C Flux-User Data'!I49 -> 0 | W14: ='C Flux-User Data'!I51 -> 0 | X14: ='C Flux-User Data'!I53 -> 0 | Y14: ='C Flux-User Data'!I55 -> 0 | Z14: ='C Flux-User Data'!I57 -> 0 | AA14: ='C Flux-User Data'!I59 -> 0 | AB14: ='C Flux-User Data'!I61 -> 0 | AC14: ='C Flux-User Data'!I63 -> 0 | AD14: ='C Flux-User Data'!I65 -> 0 | AE14: ='C Flux-User Data'!I67 -> 0 | AF14: ='C Flux-User Data'!I69 -> 0 | AG14: ='C Flux-User Data'!$I71 -> 0 | AH14: ='C Flux-User Data'!$I73 -> 0 | AI14: ='C Flux-User Data'!$I75 -> 0 | AJ14: ='C Flux-User Data'!$I77 -> 0 | AK14: ='C Flux-User Data'!$I79 -> 0 | AL14: ='C Flux-User Data'!$I81 -> 0 | AM14: ='C Flux-User Data'!O71 -> 0 | AN14: ='C Flux-User Data'!P71 -> + | AO14: ='C Flux-User Data'!Q71 -> 0 | AP14: ='C Flux-User Data'!R71 -> = | AQ14: ='C Flux-User Data'!S71 -> 0 | AR14: ='C Flux-User Data'!T71 -> 0 | AS14: ='C Flux-User Data'!U71 -> 0 | AT14: ='C Flux-User Data'!V71 -> 0 | AU14: ='C Flux-User Data'!W71 -> 0 | AV14: ='C Flux-User Data'!X71 -> 0 | AW14: ='C Flux-User Data'!Y71 -> 0 | AX14: ='C Flux-User Data'!Z71 -> 0 | AY14: ='C Flux-User Data'!AA71 -> 0 | AZ14: ='C Flux-User Data'!AB71 -> 0 | BA14: ='C Flux-User Data'!AC71 -> 0 | BB14: ='C Flux-User Data'!AD71 -> 0 | BC14: ='C Flux-User Data'!AE71 -> 0 | BD14: ='C Flux-User Data'!AF71 -> 0 | BE14: ='C Flux-User Data'!AG71 -> 0 | BF14: ='C Flux-User Data'!AH71 -> 0 | BG14: ='C Flux-User Data'!AI71 -> 0 | BH14: ='C Flux-User Data'!AJ71 -> 0 | BI14: ='C Flux-User Data'!AK71 -> 0 | BJ14: ='C Flux-User Data'!AL71 -> 0 | BK14: ='C Flux-User Data'!AM71 -> 0 | BL14: ='C Flux-User Data'!AN71 -> 0 | BM14: ='C Flux-User Data'!AO71 -> 0 | BN14: ='C Flux-User Data'!AP71 -> 0 | BO14: ='C Flux-User Data'!AQ71 -> 0 | BP14: ='C Flux-User Data'!AR71 -> 0 | BQ14: ='C Flux-User Data'!AS71 -> 0 | BR14: ='C Flux-User Data'!AT71 -> 0 | BS14: ='C Flux-User Data'!AU71 -> 0
B15: Soil (Mineral) | C15: ='C Flux-User Data'!K11 -> 0 | D15: ='C Flux-User Data'!K13 -> 0 | E15: ='C Flux-User Data'!K15 -> 0 | F15: ='C Flux-User Data'!K17 -> 0 | G15: ='C Flux-User Data'!K19 -> 0 | H15: ='C Flux-User Data'!K21 -> 0 | I15: ='C Flux-User Data'!K23 -> 0 | J15: ='C Flux-User Data'!K25 -> 0 | K15: ='C Flux-User Data'!K27 -> 0 | L15: ='C Flux-User Data'!K29 -> 0 | M15: ='C Flux-User Data'!K31 -> 0 | N15: ='C Flux-User Data'!K33 -> 0 | O15: ='C Flux-User Data'!K35 -> 0 | P15: ='C Flux-User Data'!K37 -> 0 | Q15: ='C Flux-User Data'!K39 -> 0 | R15: ='C Flux-User Data'!K41 -> 0 | S15: ='C Flux-User Data'!K43 -> 0 | T15: ='C Flux-User Data'!K45 -> 0 | U15: ='C Flux-User Data'!K47 -> 0 | V15: ='C Flux-User Data'!K49 -> 0 | W15: ='C Flux-User Data'!K51 -> 0 | X15: ='C Flux-User Data'!K53 -> 0 | Y15: ='C Flux-User Data'!K55 -> 0 | Z15: ='C Flux-User Data'!K57 -> 0 | AA15: ='C Flux-User Data'!K59 -> 0 | AB15: ='C Flux-User Data'!K61 -> 0 | AC15: ='C Flux-User Data'!K63 -> 0 | AD15: ='C Flux-User Data'!K65 -> 0 | AE15: ='C Flux-User Data'!K67 -> 0 | AF15: ='C Flux-User Data'!K69 -> 0 | AG15: ='C Flux-User Data'!$K71 -> 0 | AH15: ='C Flux-User Data'!$K73 -> 0 | AI15: ='C Flux-User Data'!$K75 -> 0 | AJ15: ='C Flux-User Data'!$K77 -> 0 | AK15: ='C Flux-User Data'!$K79 -> 0 | AL15: ='C Flux-User Data'!$K81 -> 0 | AM15: ='C Flux-User Data'!Q71 -> 0 | AN15: ='C Flux-User Data'!R71 -> = | AO15: ='C Flux-User Data'!S71 -> 0 | AP15: ='C Flux-User Data'!T71 -> 0 | AQ15: ='C Flux-User Data'!U71 -> 0 | AR15: ='C Flux-User Data'!V71 -> 0 | AS15: ='C Flux-User Data'!W71 -> 0 | AT15: ='C Flux-User Data'!X71 -> 0 | AU15: ='C Flux-User Data'!Y71 -> 0 | AV15: ='C Flux-User Data'!Z71 -> 0 | AW15: ='C Flux-User Data'!AA71 -> 0 | AX15: ='C Flux-User Data'!AB71 -> 0 | AY15: ='C Flux-User Data'!AC71 -> 0 | AZ15: ='C Flux-User Data'!AD71 -> 0 | BA15: ='C Flux-User Data'!AE71 -> 0 | BB15: ='C Flux-User Data'!AF71 -> 0 | BC15: ='C Flux-User Data'!AG71 -> 0 | BD15: ='C Flux-User Data'!AH71 -> 0 | BE15: ='C Flux-User Data'!AI71 -> 0 | BF15: ='C Flux-User Data'!AJ71 -> 0 | BG15: ='C Flux-User Data'!AK71 -> 0 | BH15: ='C Flux-User Data'!AL71 -> 0 | BI15: ='C Flux-User Data'!AM71 -> 0 | BJ15: ='C Flux-User Data'!AN71 -> 0 | BK15: ='C Flux-User Data'!AO71 -> 0 | BL15: ='C Flux-User Data'!AP71 -> 0 | BM15: ='C Flux-User Data'!AQ71 -> 0 | BN15: ='C Flux-User Data'!AR71 -> 0 | BO15: ='C Flux-User Data'!AS71 -> 0 | BP15: ='C Flux-User Data'!AT71 -> 0 | BQ15: ='C Flux-User Data'!AU71 -> 0 | BR15: ='C Flux-User Data'!AV71 -> 0 | BS15: ='C Flux-User Data'!AW71 -> 0
B16: Soil (Organic) | C16: ='C Flux-User Data'!M11 -> 0 | D16: ='C Flux-User Data'!M13 -> 0 | E16: ='C Flux-User Data'!M15 -> 0 | F16: ='C Flux-User Data'!M17 -> 0 | G16: ='C Flux-User Data'!M19 -> 0 | H16: ='C Flux-User Data'!M21 -> 0 | I16: ='C Flux-User Data'!M23 -> 0 | J16: ='C Flux-User Data'!M25 -> 0 | K16: ='C Flux-User Data'!M27 -> 0 | L16: ='C Flux-User Data'!M29 -> 0 | M16: ='C Flux-User Data'!M31 -> 0 | N16: ='C Flux-User Data'!M33 -> 0 | O16: ='C Flux-User Data'!M35 -> 0 | P16: ='C Flux-User Data'!$M$37 -> 0 | Q16: ='C Flux-User Data'!M39 -> 0 | R16: ='C Flux-User Data'!M41 -> 0 | S16: ='C Flux-User Data'!M43 -> 0 | T16: ='C Flux-User Data'!M45 -> 0 | U16: ='C Flux-User Data'!M47 -> 0 | V16: ='C Flux-User Data'!M49 -> 0 | W16: ='C Flux-User Data'!M51 -> 0 | X16: ='C Flux-User Data'!M53 -> 0 | Y16: ='C Flux-User Data'!M55 -> 0 | Z16: ='C Flux-User Data'!M57 -> 0 | AA16: ='C Flux-User Data'!M59 -> 0 | AB16: ='C Flux-User Data'!M61 -> 0 | AC16: ='C Flux-User Data'!M63 -> 0 | AD16: ='C Flux-User Data'!M65 -> 0 | AE16: ='C Flux-User Data'!M67 -> 0 | AF16: ='C Flux-User Data'!M69 -> 0 | AG16: ='C Flux-User Data'!$M71 -> 0 | AH16: ='C Flux-User Data'!$M73 -> 0 | AI16: ='C Flux-User Data'!$M75 -> 0 | AJ16: ='C Flux-User Data'!$M77 -> 0 | AK16: ='C Flux-User Data'!$M79 -> 0 | AL16: ='C Flux-User Data'!$M81 -> 0 | AM16: ='C Flux-User Data'!S71 -> 0 | AN16: ='C Flux-User Data'!T71 -> 0 | AO16: ='C Flux-User Data'!U71 -> 0 | AP16: ='C Flux-User Data'!V71 -> 0 | AQ16: ='C Flux-User Data'!W71 -> 0 | AR16: ='C Flux-User Data'!X71 -> 0 | AS16: ='C Flux-User Data'!Y71 -> 0 | AT16: ='C Flux-User Data'!Z71 -> 0 | AU16: ='C Flux-User Data'!AA71 -> 0 | AV16: ='C Flux-User Data'!AB71 -> 0 | AW16: ='C Flux-User Data'!AC71 -> 0 | AX16: ='C Flux-User Data'!AD71 -> 0 | AY16: ='C Flux-User Data'!AE71 -> 0 | AZ16: ='C Flux-User Data'!AF71 -> 0 | BA16: ='C Flux-User Data'!AG71 -> 0 | BB16: ='C Flux-User Data'!AH71 -> 0 | BC16: ='C Flux-User Data'!AI71 -> 0 | BD16: ='C Flux-User Data'!AJ71 -> 0 | BE16: ='C Flux-User Data'!AK71 -> 0 | BF16: ='C Flux-User Data'!AL71 -> 0 | BG16: ='C Flux-User Data'!AM71 -> 0 | BH16: ='C Flux-User Data'!AN71 -> 0 | BI16: ='C Flux-User Data'!AO71 -> 0 | BJ16: ='C Flux-User Data'!AP71 -> 0 | BK16: ='C Flux-User Data'!AQ71 -> 0 | BL16: ='C Flux-User Data'!AR71 -> 0 | BM16: ='C Flux-User Data'!AS71 -> 0 | BN16: ='C Flux-User Data'!AT71 -> 0 | BO16: ='C Flux-User Data'!AU71 -> 0 | BP16: ='C Flux-User Data'!AV71 -> 0 | BQ16: ='C Flux-User Data'!AW71 -> 0 | BR16: ='C Flux-User Data'!AX71 -> 0 | BS16: ='C Flux-User Data'!AY71 -> 0
B17: Drained Organic Soil | C17: ='C Flux-User Data'!O11 -> 0 | D17: ='C Flux-User Data'!O13 -> 0 | E17: ='C Flux-User Data'!O15 -> 0 | F17: ='C Flux-User Data'!O17 -> 0 | G17: ='C Flux-User Data'!O19 -> 0 | H17: ='C Flux-User Data'!O21 -> 0 | I17: ='C Flux-User Data'!O23 -> 0 | J17: ='C Flux-User Data'!O25 -> 0 | K17: ='C Flux-User Data'!O27 -> 0 | L17: ='C Flux-User Data'!O29 -> 0 | M17: ='C Flux-User Data'!O31 -> 0 | N17: ='C Flux-User Data'!O33 -> 0 | O17: ='C Flux-User Data'!O35 -> 0 | P17: ='C Flux-User Data'!O37 -> 0 | Q17: ='C Flux-User Data'!O39 -> 0 | R17: ='C Flux-User Data'!O41 -> 0 | S17: ='C Flux-User Data'!O43 -> 0 | T17: ='C Flux-User Data'!O45 -> 0 | U17: ='C Flux-User Data'!O47 -> 0 | V17: ='C Flux-User Data'!O49 -> 0 | W17: ='C Flux-User Data'!O51 -> 0 | X17: ='C Flux-User Data'!O53 -> 0 | Y17: ='C Flux-User Data'!O55 -> 0 | Z17: ='C Flux-User Data'!O57 -> 0 | AA17: ='C Flux-User Data'!O59 -> 0 | AB17: ='C Flux-User Data'!O61 -> 0 | AC17: ='C Flux-User Data'!O63 -> 0 | AD17: ='C Flux-User Data'!O65 -> 0 | AE17: ='C Flux-User Data'!O67 -> 0 | AF17: ='C Flux-User Data'!O69 -> 0 | AG17: ='C Flux-User Data'!$O71 -> 0 | AH17: ='C Flux-User Data'!$O73 -> 0 | AI17: ='C Flux-User Data'!$O75 -> 0 | AJ17: ='C Flux-User Data'!$O77 -> 0 | AK17: ='C Flux-User Data'!$O79 -> 0 | AL17: ='C Flux-User Data'!$O81 -> 0 | AM17: ='C Flux-User Data'!U71 -> 0 | AN17: ='C Flux-User Data'!V71 -> 0 | AO17: ='C Flux-User Data'!W71 -> 0 | AP17: ='C Flux-User Data'!X71 -> 0 | AQ17: ='C Flux-User Data'!Y71 -> 0 | AR17: ='C Flux-User Data'!Z71 -> 0 | AS17: ='C Flux-User Data'!AA71 -> 0 | AT17: ='C Flux-User Data'!AB71 -> 0 | AU17: ='C Flux-User Data'!AC71 -> 0 | AV17: ='C Flux-User Data'!AD71 -> 0 | AW17: ='C Flux-User Data'!AE71 -> 0 | AX17: ='C Flux-User Data'!AF71 -> 0 | AY17: ='C Flux-User Data'!AG71 -> 0 | AZ17: ='C Flux-User Data'!AH71 -> 0 | BA17: ='C Flux-User Data'!AI71 -> 0 | BB17: ='C Flux-User Data'!AJ71 -> 0 | BC17: ='C Flux-User Data'!AK71 -> 0 | BD17: ='C Flux-User Data'!AL71 -> 0 | BE17: ='C Flux-User Data'!AM71 -> 0 | BF17: ='C Flux-User Data'!AN71 -> 0 | BG17: ='C Flux-User Data'!AO71 -> 0 | BH17: ='C Flux-User Data'!AP71 -> 0 | BI17: ='C Flux-User Data'!AQ71 -> 0 | BJ17: ='C Flux-User Data'!AR71 -> 0 | BK17: ='C Flux-User Data'!AS71 -> 0 | BL17: ='C Flux-User Data'!AT71 -> 0 | BM17: ='C Flux-User Data'!AU71 -> 0 | BN17: ='C Flux-User Data'!AV71 -> 0 | BO17: ='C Flux-User Data'!AW71 -> 0 | BP17: ='C Flux-User Data'!AX71 -> 0 | BQ17: ='C Flux-User Data'!AY71 -> 0 | BR17: ='C Flux-User Data'!AZ71 -> 0 | BS17: ='C Flux-User Data'!BA71 -> 0
B18: Total wood products and landfills | C18: ='C Flux-User Data'!Q11 -> 0 | D18: ='C Flux-User Data'!Q13 -> 0 | E18: ='C Flux-User Data'!Q15 -> 0 | F18: ='C Flux-User Data'!Q17 -> 0 | G18: ='C Flux-User Data'!Q19 -> 0 | H18: ='C Flux-User Data'!Q21 -> 0 | I18: ='C Flux-User Data'!Q23 -> 0 | J18: ='C Flux-User Data'!Q25 -> 0 | K18: ='C Flux-User Data'!Q27 -> 0 | L18: ='C Flux-User Data'!Q29 -> 0 | M18: ='C Flux-User Data'!Q31 -> 0 | N18: ='C Flux-User Data'!Q33 -> 0 | O18: ='C Flux-User Data'!Q35 -> 0 | P18: ='C Flux-User Data'!Q37 -> 0 | Q18: ='C Flux-User Data'!Q39 -> 0 | R18: ='C Flux-User Data'!Q41 -> 0 | S18: ='C Flux-User Data'!Q43 -> 0 | T18: ='C Flux-User Data'!Q45 -> 0 | U18: ='C Flux-User Data'!Q47 -> 0 | V18: ='C Flux-User Data'!Q49 -> 0 | W18: ='C Flux-User Data'!Q51 -> 0 | X18: ='C Flux-User Data'!Q53 -> 0 | Y18: ='C Flux-User Data'!Q55 -> 0 | Z18: ='C Flux-User Data'!Q57 -> 0 | AA18: ='C Flux-User Data'!Q59 -> 0 | AB18: ='C Flux-User Data'!Q61 -> 0 | AC18: ='C Flux-User Data'!Q63 -> 0 | AD18: ='C Flux-User Data'!Q65 -> 0 | AE18: ='C Flux-User Data'!Q67 -> 0 | AF18: ='C Flux-User Data'!Q69 -> 0 | AG18: ='C Flux-User Data'!$Q71 -> 0 | AH18: ='C Flux-User Data'!$Q73 -> 0 | AI18: ='C Flux-User Data'!$Q75 -> 0 | AJ18: ='C Flux-User Data'!$Q77 -> 0 | AK18: ='C Flux-User Data'!$Q79 -> 0 | AL18: ='C Flux-User Data'!$Q81 -> 0 | AM18: ='C Flux-User Data'!W71 -> 0 | AN18: ='C Flux-User Data'!X71 -> 0 | AO18: ='C Flux-User Data'!Y71 -> 0 | AP18: ='C Flux-User Data'!Z71 -> 0 | AQ18: ='C Flux-User Data'!AA71 -> 0 | AR18: ='C Flux-User Data'!AB71 -> 0 | AS18: ='C Flux-User Data'!AC71 -> 0 | AT18: ='C Flux-User Data'!AD71 -> 0 | AU18: ='C Flux-User Data'!AE71 -> 0 | AV18: ='C Flux-User Data'!AF71 -> 0 | AW18: ='C Flux-User Data'!AG71 -> 0 | AX18: ='C Flux-User Data'!AH71 -> 0 | AY18: ='C Flux-User Data'!AI71 -> 0 | AZ18: ='C Flux-User Data'!AJ71 -> 0 | BA18: ='C Flux-User Data'!AK71 -> 0 | BB18: ='C Flux-User Data'!AL71 -> 0 | BC18: ='C Flux-User Data'!AM71 -> 0 | BD18: ='C Flux-User Data'!AN71 -> 0 | BE18: ='C Flux-User Data'!AO71 -> 0 | BF18: ='C Flux-User Data'!AP71 -> 0 | BG18: ='C Flux-User Data'!AQ71 -> 0 | BH18: ='C Flux-User Data'!AR71 -> 0 | BI18: ='C Flux-User Data'!AS71 -> 0 | BJ18: ='C Flux-User Data'!AT71 -> 0 | BK18: ='C Flux-User Data'!AU71 -> 0 | BL18: ='C Flux-User Data'!AV71 -> 0 | BM18: ='C Flux-User Data'!AW71 -> 0 | BN18: ='C Flux-User Data'!AX71 -> 0 | BO18: ='C Flux-User Data'!AY71 -> 0 | BP18: ='C Flux-User Data'!AZ71 -> 0 | BQ18: ='C Flux-User Data'!BA71 -> 0 | BR18: ='C Flux-User Data'!BB71 -> 0 | BS18: ='C Flux-User Data'!BC71 -> 0
B19: Forest Land Remaining Forest Land | C19: =SUM(C20:C27) ->  | D19: =SUM(D20:D27) ->  | AF19: =SUM(AF20:AF27) ->  | AH19: =SUM(AH20:AH27) ->  | AJ19: 0 | AK19: 0 | AL19: 0 | AM19: 0 | AN19: 0 | AO19: 0 | AP19: 0 | AQ19: 0 | AR19: 0 | AS19: 0 | AT19: 0 | AU19: 0 | AV19: 0 | AW19: 0 | AX19: 0 | AY19: 0 | AZ19: 0 | BA19: 0 | BB19: 0 | BC19: 0 | BD19: 0 | BE19: 0 | BF19: 0 | BG19: 0 | BH19: 0 | BI19: 0 | BJ19: 0 | BK19: 0 | BL19: 0 | BM19: 0 | BN19: 0 | BO19: 0 | BP19: 0 | BQ19: 0 | BR19: 0 | BS19: 0
B20: Aboveground Biomass | C20: ='Forest Land Remaining Forest'!E9 ->  | D20: ='Forest Land Remaining Forest'!F9 ->  | E20: ='Forest Land Remaining Forest'!G9 ->  | F20: ='Forest Land Remaining Forest'!H9 ->  | G20: ='Forest Land Remaining Forest'!I9 ->  | H20: ='Forest Land Remaining Forest'!J9 ->  | I20: ='Forest Land Remaining Forest'!K9 ->  | J20: ='Forest Land Remaining Forest'!L9 ->  | K20: ='Forest Land Remaining Forest'!M9 ->  | L20: ='Forest Land Remaining Forest'!N9 ->  | M20: ='Forest Land Remaining Forest'!O9 ->  | N20: ='Forest Land Remaining Forest'!P9 ->  | O20: ='Forest Land Remaining Forest'!Q9 ->  | P20: ='Forest Land Remaining Forest'!R9 ->  | Q20: ='Forest Land Remaining Forest'!S9 ->  | R20: ='Forest Land Remaining Forest'!T9 ->  | S20: ='Forest Land Remaining Forest'!U9 ->  | T20: ='Forest Land Remaining Forest'!V9 ->  | U20: ='Forest Land Remaining Forest'!W9 ->  | V20: ='Forest Land Remaining Forest'!X9 ->  | W20: ='Forest Land Remaining Forest'!Y9 ->  | X20: ='Forest Land Remaining Forest'!Z9 ->  | Y20: ='Forest Land Remaining Forest'!AA9 ->  | Z20: ='Forest Land Remaining Forest'!AB9 ->  | AA20: ='Forest Land Remaining Forest'!AC9 ->  | AB20: ='Forest Land Remaining Forest'!AD9 ->  | AC20: ='Forest Land Remaining Forest'!AE9 ->  | AD20: ='Forest Land Remaining Forest'!AF9 ->  | AE20: ='Forest Land Remaining Forest'!AG9 ->  | AF20: ='Forest Land Remaining Forest'!AH9 ->  | AG20: ='Forest Land Remaining Forest'!AI9 ->  | AH20: ='Forest Land Remaining Forest'!AJ9 ->  | AI20: ='Forest Land Remaining Forest'!AK9 ->  | AJ20: ='Forest Land Remaining Forest'!AL9 -> 0 | AK20: ='Forest Land Remaining Forest'!AM9 -> 0 | AL20: ='Forest Land Remaining Forest'!AN9 -> 0 | AM20: ='Forest Land Remaining Forest'!AO9 -> 0 | AN20: ='Forest Land Remaining Forest'!AP9 -> 0 | AO20: ='Forest Land Remaining Forest'!AQ9 -> 0 | AP20: ='Forest Land Remaining Forest'!AR9 -> 0 | AQ20: ='Forest Land Remaining Forest'!AS9 -> 0 | AR20: ='Forest Land Remaining Forest'!AT9 -> 0 | AS20: ='Forest Land Remaining Forest'!AU9 -> 0 | AT20: ='Forest Land Remaining Forest'!AV9 -> 0 | AU20: ='Forest Land Remaining Forest'!AW9 -> 0 | AV20: ='Forest Land Remaining Forest'!AX9 -> 0 | AW20: ='Forest Land Remaining Forest'!AY9 -> 0 | AX20: ='Forest Land Remaining Forest'!AZ9 -> 0 | AY20: ='Forest Land Remaining Forest'!BA9 -> 0 | AZ20: ='Forest Land Remaining Forest'!BB9 -> 0 | BA20: ='Forest Land Remaining Forest'!BC9 -> 0 | BB20: ='Forest Land Remaining Forest'!BD9 -> 0 | BC20: ='Forest Land Remaining Forest'!BE9 -> 0 | BD20: ='Forest Land Remaining Forest'!BF9 -> 0 | BE20: ='Forest Land Remaining Forest'!BG9 -> 0 | BF20: ='Forest Land Remaining Forest'!BH9 -> 0 | BG20: ='Forest Land Remaining Forest'!BI9 -> 0 | BH20: ='Forest Land Remaining Forest'!BJ9 -> 0 | BI20: ='Forest Land Remaining Forest'!BK9 -> 0 | BJ20: ='Forest Land Remaining Forest'!BL9 -> 0 | BK20: ='Forest Land Remaining Forest'!BM9 -> 0 | BL20: ='Forest Land Remaining Forest'!BN9 -> 0 | BM20: ='Forest Land Remaining Forest'!BO9 -> 0 | BN20: ='Forest Land Remaining Forest'!BP9 -> 0 | BO20: ='Forest Land Remaining Forest'!BQ9 -> 0 | BP20: ='Forest Land Remaining Forest'!BR9 -> 0 | BQ20: ='Forest Land Remaining Forest'!BS9 -> 0 | BR20: ='Forest Land Remaining Forest'!BT9 -> 0 | BS20: ='Forest Land Remaining Forest'!BU9 -> 0
B21: Belowground Biomass | C21: ='Forest Land Remaining Forest'!E10 ->  | D21: ='Forest Land Remaining Forest'!F10 ->  | E21: ='Forest Land Remaining Forest'!G10 ->  | F21: ='Forest Land Remaining Forest'!H10 ->  | G21: ='Forest Land Remaining Forest'!I10 ->  | H21: ='Forest Land Remaining Forest'!J10 ->  | I21: ='Forest Land Remaining Forest'!K10 ->  | J21: ='Forest Land Remaining Forest'!L10 ->  | K21: ='Forest Land Remaining Forest'!M10 ->  | L21: ='Forest Land Remaining Forest'!N10 ->  | M21: ='Forest Land Remaining Forest'!O10 ->  | N21: ='Forest Land Remaining Forest'!P10 ->  | O21: ='Forest Land Remaining Forest'!Q10 ->  | P21: ='Forest Land Remaining Forest'!R10 ->  | Q21: ='Forest Land Remaining Forest'!S10 ->  | R21: ='Forest Land Remaining Forest'!T10 ->  | S21: ='Forest Land Remaining Forest'!U10 ->  | T21: ='Forest Land Remaining Forest'!V10 ->  | U21: ='Forest Land Remaining Forest'!W10 ->  | V21: ='Forest Land Remaining Forest'!X10 ->  | W21: ='Forest Land Remaining Forest'!Y10 ->  | X21: ='Forest Land Remaining Forest'!Z10 ->  | Y21: ='Forest Land Remaining Forest'!AA10 ->  | Z21: ='Forest Land Remaining Forest'!AB10 ->  | AA21: ='Forest Land Remaining Forest'!AC10 ->  | AB21: ='Forest Land Remaining Forest'!AD10 ->  | AC21: ='Forest Land Remaining Forest'!AE10 ->  | AD21: ='Forest Land Remaining Forest'!AF10 ->  | AE21: ='Forest Land Remaining Forest'!AG10 ->  | AF21: ='Forest Land Remaining Forest'!AH10 ->  | AG21: ='Forest Land Remaining Forest'!AI10 ->  | AH21: ='Forest Land Remaining Forest'!AJ10 ->  | AI21: ='Forest Land Remaining Forest'!AK10 ->  | AJ21: ='Forest Land Remaining Forest'!AL10 -> 0 | AK21: ='Forest Land Remaining Forest'!AM10 -> 0 | AL21: ='Forest Land Remaining Forest'!AN10 -> 0 | AM21: ='Forest Land Remaining Forest'!AO10 -> 0 | AN21: ='Forest Land Remaining Forest'!AP10 -> 0 | AO21: ='Forest Land Remaining Forest'!AQ10 -> 0 | AP21: ='Forest Land Remaining Forest'!AR10 -> 0 | AQ21: ='Forest Land Remaining Forest'!AS10 -> 0 | AR21: ='Forest Land Remaining Forest'!AT10 -> 0 | AS21: ='Forest Land Remaining Forest'!AU10 -> 0 | AT21: ='Forest Land Remaining Forest'!AV10 -> 0 | AU21: ='Forest Land Remaining Forest'!AW10 -> 0 | AV21: ='Forest Land Remaining Forest'!AX10 -> 0 | AW21: ='Forest Land Remaining Forest'!AY10 -> 0 | AX21: ='Forest Land Remaining Forest'!AZ10 -> 0 | AY21: ='Forest Land Remaining Forest'!BA10 -> 0 | AZ21: ='Forest Land Remaining Forest'!BB10 -> 0 | BA21: ='Forest Land Remaining Forest'!BC10 -> 0 | BB21: ='Forest Land Remaining Forest'!BD10 -> 0 | BC21: ='Forest Land Remaining Forest'!BE10 -> 0 | BD21: ='Forest Land Remaining Forest'!BF10 -> 0 | BE21: ='Forest Land Remaining Forest'!BG10 -> 0 | BF21: ='Forest Land Remaining Forest'!BH10 -> 0 | BG21: ='Forest Land Remaining Forest'!BI10 -> 0 | BH21: ='Forest Land Remaining Forest'!BJ10 -> 0 | BI21: ='Forest Land Remaining Forest'!BK10 -> 0 | BJ21: ='Forest Land Remaining Forest'!BL10 -> 0 | BK21: ='Forest Land Remaining Forest'!BM10 -> 0 | BL21: ='Forest Land Remaining Forest'!BN10 -> 0 | BM21: ='Forest Land Remaining Forest'!BO10 -> 0 | BN21: ='Forest Land Remaining Forest'!BP10 -> 0 | BO21: ='Forest Land Remaining Forest'!BQ10 -> 0 | BP21: ='Forest Land Remaining Forest'!BR10 -> 0 | BQ21: ='Forest Land Remaining Forest'!BS10 -> 0 | BR21: ='Forest Land Remaining Forest'!BT10 -> 0 | BS21: ='Forest Land Remaining Forest'!BU10 -> 0
B22: Deadwood | C22: ='Forest Land Remaining Forest'!E11 ->  | D22: ='Forest Land Remaining Forest'!F11 ->  | E22: ='Forest Land Remaining Forest'!G11 ->  | F22: ='Forest Land Remaining Forest'!H11 ->  | G22: ='Forest Land Remaining Forest'!I11 ->  | H22: ='Forest Land Remaining Forest'!J11 ->  | I22: ='Forest Land Remaining Forest'!K11 ->  | J22: ='Forest Land Remaining Forest'!L11 ->  | K22: ='Forest Land Remaining Forest'!M11 ->  | L22: ='Forest Land Remaining Forest'!N11 ->  | M22: ='Forest Land Remaining Forest'!O11 ->  | N22: ='Forest Land Remaining Forest'!P11 ->  | O22: ='Forest Land Remaining Forest'!Q11 ->  | P22: ='Forest Land Remaining Forest'!R11 ->  | Q22: ='Forest Land Remaining Forest'!S11 ->  | R22: ='Forest Land Remaining Forest'!T11 ->  | S22: ='Forest Land Remaining Forest'!U11 ->  | T22: ='Forest Land Remaining Forest'!V11 ->  | U22: ='Forest Land Remaining Forest'!W11 ->  | V22: ='Forest Land Remaining Forest'!X11 ->  | W22: ='Forest Land Remaining Forest'!Y11 ->  | X22: ='Forest Land Remaining Forest'!Z11 ->  | Y22: ='Forest Land Remaining Forest'!AA11 ->  | Z22: ='Forest Land Remaining Forest'!AB11 ->  | AA22: ='Forest Land Remaining Forest'!AC11 ->  | AB22: ='Forest Land Remaining Forest'!AD11 ->  | AC22: ='Forest Land Remaining Forest'!AE11 ->  | AD22: ='Forest Land Remaining Forest'!AF11 ->  | AE22: ='Forest Land Remaining Forest'!AG11 ->  | AF22: ='Forest Land Remaining Forest'!AH11 ->  | AG22: ='Forest Land Remaining Forest'!AI11 ->  | AH22: ='Forest Land Remaining Forest'!AJ11 ->  | AI22: ='Forest Land Remaining Forest'!AK11 ->  | AJ22: ='Forest Land Remaining Forest'!AL11 -> 0 | AK22: ='Forest Land Remaining Forest'!AM11 -> 0 | AL22: ='Forest Land Remaining Forest'!AN11 -> 0 | AM22: ='Forest Land Remaining Forest'!AO11 -> 0 | AN22: ='Forest Land Remaining Forest'!AP11 -> 0 | AO22: ='Forest Land Remaining Forest'!AQ11 -> 0 | AP22: ='Forest Land Remaining Forest'!AR11 -> 0 | AQ22: ='Forest Land Remaining Forest'!AS11 -> 0 | AR22: ='Forest Land Remaining Forest'!AT11 -> 0 | AS22: ='Forest Land Remaining Forest'!AU11 -> 0 | AT22: ='Forest Land Remaining Forest'!AV11 -> 0 | AU22: ='Forest Land Remaining Forest'!AW11 -> 0 | AV22: ='Forest Land Remaining Forest'!AX11 -> 0 | AW22: ='Forest Land Remaining Forest'!AY11 -> 0 | AX22: ='Forest Land Remaining Forest'!AZ11 -> 0 | AY22: ='Forest Land Remaining Forest'!BA11 -> 0 | AZ22: ='Forest Land Remaining Forest'!BB11 -> 0 | BA22: ='Forest Land Remaining Forest'!BC11 -> 0 | BB22: ='Forest Land Remaining Forest'!BD11 -> 0 | BC22: ='Forest Land Remaining Forest'!BE11 -> 0 | BD22: ='Forest Land Remaining Forest'!BF11 -> 0 | BE22: ='Forest Land Remaining Forest'!BG11 -> 0 | BF22: ='Forest Land Remaining Forest'!BH11 -> 0 | BG22: ='Forest Land Remaining Forest'!BI11 -> 0 | BH22: ='Forest Land Remaining Forest'!BJ11 -> 0 | BI22: ='Forest Land Remaining Forest'!BK11 -> 0 | BJ22: ='Forest Land Remaining Forest'!BL11 -> 0 | BK22: ='Forest Land Remaining Forest'!BM11 -> 0 | BL22: ='Forest Land Remaining Forest'!BN11 -> 0 | BM22: ='Forest Land Remaining Forest'!BO11 -> 0 | BN22: ='Forest Land Remaining Forest'!BP11 -> 0 | BO22: ='Forest Land Remaining Forest'!BQ11 -> 0 | BP22: ='Forest Land Remaining Forest'!BR11 -> 0 | BQ22: ='Forest Land Remaining Forest'!BS11 -> 0 | BR22: ='Forest Land Remaining Forest'!BT11 -> 0 | BS22: ='Forest Land Remaining Forest'!BU11 -> 0
B23: Litter | C23: ='Forest Land Remaining Forest'!E12 ->  | D23: ='Forest Land Remaining Forest'!F12 ->  | E23: ='Forest Land Remaining Forest'!G12 ->  | F23: ='Forest Land Remaining Forest'!H12 ->  | G23: ='Forest Land Remaining Forest'!I12 ->  | H23: ='Forest Land Remaining Forest'!J12 ->  | I23: ='Forest Land Remaining Forest'!K12 ->  | J23: ='Forest Land Remaining Forest'!L12 ->  | K23: ='Forest Land Remaining Forest'!M12 ->  | L23: ='Forest Land Remaining Forest'!N12 ->  | M23: ='Forest Land Remaining Forest'!O12 ->  | N23: ='Forest Land Remaining Forest'!P12 ->  | O23: ='Forest Land Remaining Forest'!Q12 ->  | P23: ='Forest Land Remaining Forest'!R12 ->  | Q23: ='Forest Land Remaining Forest'!S12 ->  | R23: ='Forest Land Remaining Forest'!T12 ->  | S23: ='Forest Land Remaining Forest'!U12 ->  | T23: ='Forest Land Remaining Forest'!V12 ->  | U23: ='Forest Land Remaining Forest'!W12 ->  | V23: ='Forest Land Remaining Forest'!X12 ->  | W23: ='Forest Land Remaining Forest'!Y12 ->  | X23: ='Forest Land Remaining Forest'!Z12 ->  | Y23: ='Forest Land Remaining Forest'!AA12 ->  | Z23: ='Forest Land Remaining Forest'!AB12 ->  | AA23: ='Forest Land Remaining Forest'!AC12 ->  | AB23: ='Forest Land Remaining Forest'!AD12 ->  | AC23: ='Forest Land Remaining Forest'!AE12 ->  | AD23: ='Forest Land Remaining Forest'!AF12 ->  | AE23: ='Forest Land Remaining Forest'!AG12 ->  | AF23: ='Forest Land Remaining Forest'!AH12 ->  | AG23: ='Forest Land Remaining Forest'!AI12 ->  | AH23: ='Forest Land Remaining Forest'!AJ12 ->  | AI23: ='Forest Land Remaining Forest'!AK12 ->  | AJ23: ='Forest Land Remaining Forest'!AL12 -> 0 | AK23: ='Forest Land Remaining Forest'!AM12 -> 0 | AL23: ='Forest Land Remaining Forest'!AN12 -> 0 | AM23: ='Forest Land Remaining Forest'!AO12 -> 0 | AN23: ='Forest Land Remaining Forest'!AP12 -> 0 | AO23: ='Forest Land Remaining Forest'!AQ12 -> 0 | AP23: ='Forest Land Remaining Forest'!AR12 -> 0 | AQ23: ='Forest Land Remaining Forest'!AS12 -> 0 | AR23: ='Forest Land Remaining Forest'!AT12 -> 0 | AS23: ='Forest Land Remaining Forest'!AU12 -> 0 | AT23: ='Forest Land Remaining Forest'!AV12 -> 0 | AU23: ='Forest Land Remaining Forest'!AW12 -> 0 | AV23: ='Forest Land Remaining Forest'!AX12 -> 0 | AW23: ='Forest Land Remaining Forest'!AY12 -> 0 | AX23: ='Forest Land Remaining Forest'!AZ12 -> 0 | AY23: ='Forest Land Remaining Forest'!BA12 -> 0 | AZ23: ='Forest Land Remaining Forest'!BB12 -> 0 | BA23: ='Forest Land Remaining Forest'!BC12 -> 0 | BB23: ='Forest Land Remaining Forest'!BD12 -> 0 | BC23: ='Forest Land Remaining Forest'!BE12 -> 0 | BD23: ='Forest Land Remaining Forest'!BF12 -> 0 | BE23: ='Forest Land Remaining Forest'!BG12 -> 0 | BF23: ='Forest Land Remaining Forest'!BH12 -> 0 | BG23: ='Forest Land Remaining Forest'!BI12 -> 0 | BH23: ='Forest Land Remaining Forest'!BJ12 -> 0 | BI23: ='Forest Land Remaining Forest'!BK12 -> 0 | BJ23: ='Forest Land Remaining Forest'!BL12 -> 0 | BK23: ='Forest Land Remaining Forest'!BM12 -> 0 | BL23: ='Forest Land Remaining Forest'!BN12 -> 0 | BM23: ='Forest Land Remaining Forest'!BO12 -> 0 | BN23: ='Forest Land Remaining Forest'!BP12 -> 0 | BO23: ='Forest Land Remaining Forest'!BQ12 -> 0 | BP23: ='Forest Land Remaining Forest'!BR12 -> 0 | BQ23: ='Forest Land Remaining Forest'!BS12 -> 0 | BR23: ='Forest Land Remaining Forest'!BT12 -> 0 | BS23: ='Forest Land Remaining Forest'!BU12 -> 0
B24: Soil (Mineral) | C24: ='Forest Land Remaining Forest'!E13 ->  | D24: ='Forest Land Remaining Forest'!F13 ->  | E24: ='Forest Land Remaining Forest'!G13 ->  | F24: ='Forest Land Remaining Forest'!H13 ->  | G24: ='Forest Land Remaining Forest'!I13 ->  | H24: ='Forest Land Remaining Forest'!J13 ->  | I24: ='Forest Land Remaining Forest'!K13 ->  | J24: ='Forest Land Remaining Forest'!L13 ->  | K24: ='Forest Land Remaining Forest'!M13 ->  | L24: ='Forest Land Remaining Forest'!N13 ->  | M24: ='Forest Land Remaining Forest'!O13 ->  | N24: ='Forest Land Remaining Forest'!P13 ->  | O24: ='Forest Land Remaining Forest'!Q13 ->  | P24: ='Forest Land Remaining Forest'!R13 ->  | Q24: ='Forest Land Remaining Forest'!S13 ->  | R24: ='Forest Land Remaining Forest'!T13 ->  | S24: ='Forest Land Remaining Forest'!U13 ->  | T24: ='Forest Land Remaining Forest'!V13 ->  | U24: ='Forest Land Remaining Forest'!W13 ->  | V24: ='Forest Land Remaining Forest'!X13 ->  | W24: ='Forest Land Remaining Forest'!Y13 ->  | X24: ='Forest Land Remaining Forest'!Z13 ->  | Y24: ='Forest Land Remaining Forest'!AA13 ->  | Z24: ='Forest Land Remaining Forest'!AB13 ->  | AA24: ='Forest Land Remaining Forest'!AC13 ->  | AB24: ='Forest Land Remaining Forest'!AD13 ->  | AC24: ='Forest Land Remaining Forest'!AE13 ->  | AD24: ='Forest Land Remaining Forest'!AF13 ->  | AE24: ='Forest Land Remaining Forest'!AG13 ->  | AF24: ='Forest Land Remaining Forest'!AH13 ->  | AG24: ='Forest Land Remaining Forest'!AI13 ->  | AH24: ='Forest Land Remaining Forest'!AJ13 ->  | AI24: ='Forest Land Remaining Forest'!AK13 ->  | AJ24: ='Forest Land Remaining Forest'!AL13 -> 0 | AK24: ='Forest Land Remaining Forest'!AM13 -> 0 | AL24: ='Forest Land Remaining Forest'!AN13 -> 0 | AM24: ='Forest Land Remaining Forest'!AO13 -> 0 | AN24: ='Forest Land Remaining Forest'!AP13 -> 0 | AO24: ='Forest Land Remaining Forest'!AQ13 -> 0 | AP24: ='Forest Land Remaining Forest'!AR13 -> 0 | AQ24: ='Forest Land Remaining Forest'!AS13 -> 0 | AR24: ='Forest Land Remaining Forest'!AT13 -> 0 | AS24: ='Forest Land Remaining Forest'!AU13 -> 0 | AT24: ='Forest Land Remaining Forest'!AV13 -> 0 | AU24: ='Forest Land Remaining Forest'!AW13 -> 0 | AV24: ='Forest Land Remaining Forest'!AX13 -> 0 | AW24: ='Forest Land Remaining Forest'!AY13 -> 0 | AX24: ='Forest Land Remaining Forest'!AZ13 -> 0 | AY24: ='Forest Land Remaining Forest'!BA13 -> 0 | AZ24: ='Forest Land Remaining Forest'!BB13 -> 0 | BA24: ='Forest Land Remaining Forest'!BC13 -> 0 | BB24: ='Forest Land Remaining Forest'!BD13 -> 0 | BC24: ='Forest Land Remaining Forest'!BE13 -> 0 | BD24: ='Forest Land Remaining Forest'!BF13 -> 0 | BE24: ='Forest Land Remaining Forest'!BG13 -> 0 | BF24: ='Forest Land Remaining Forest'!BH13 -> 0 | BG24: ='Forest Land Remaining Forest'!BI13 -> 0 | BH24: ='Forest Land Remaining Forest'!BJ13 -> 0 | BI24: ='Forest Land Remaining Forest'!BK13 -> 0 | BJ24: ='Forest Land Remaining Forest'!BL13 -> 0 | BK24: ='Forest Land Remaining Forest'!BM13 -> 0 | BL24: ='Forest Land Remaining Forest'!BN13 -> 0 | BM24: ='Forest Land Remaining Forest'!BO13 -> 0 | BN24: ='Forest Land Remaining Forest'!BP13 -> 0 | BO24: ='Forest Land Remaining Forest'!BQ13 -> 0 | BP24: ='Forest Land Remaining Forest'!BR13 -> 0 | BQ24: ='Forest Land Remaining Forest'!BS13 -> 0 | BR24: ='Forest Land Remaining Forest'!BT13 -> 0 | BS24: ='Forest Land Remaining Forest'!BU13 -> 0
B25: Soil (Organic) | C25: ='Forest Land Remaining Forest'!E14 ->  | D25: ='Forest Land Remaining Forest'!F14 ->  | E25: ='Forest Land Remaining Forest'!G14 ->  | F25: ='Forest Land Remaining Forest'!H14 ->  | G25: ='Forest Land Remaining Forest'!I14 ->  | H25: ='Forest Land Remaining Forest'!J14 ->  | I25: ='Forest Land Remaining Forest'!K14 ->  | J25: ='Forest Land Remaining Forest'!L14 ->  | K25: ='Forest Land Remaining Forest'!M14 ->  | L25: ='Forest Land Remaining Forest'!N14 ->  | M25: ='Forest Land Remaining Forest'!O14 ->  | N25: ='Forest Land Remaining Forest'!P14 ->  | O25: ='Forest Land Remaining Forest'!Q14 ->  | P25: ='Forest Land Remaining Forest'!R14 ->  | Q25: ='Forest Land Remaining Forest'!S14 ->  | R25: ='Forest Land Remaining Forest'!T14 ->  | S25: ='Forest Land Remaining Forest'!U14 ->  | T25: ='Forest Land Remaining Forest'!V14 ->  | U25: ='Forest Land Remaining Forest'!W14 ->  | V25: ='Forest Land Remaining Forest'!X14 ->  | W25: ='Forest Land Remaining Forest'!Y14 ->  | X25: ='Forest Land Remaining Forest'!Z14 ->  | Y25: ='Forest Land Remaining Forest'!AA14 ->  | Z25: ='Forest Land Remaining Forest'!AB14 ->  | AA25: ='Forest Land Remaining Forest'!AC14 ->  | AB25: ='Forest Land Remaining Forest'!AD14 ->  | AC25: ='Forest Land Remaining Forest'!AE14 ->  | AD25: ='Forest Land Remaining Forest'!AF14 ->  | AE25: ='Forest Land Remaining Forest'!AG14 ->  | AF25: ='Forest Land Remaining Forest'!AH14 ->  | AG25: ='Forest Land Remaining Forest'!AI14 ->  | AH25: ='Forest Land Remaining Forest'!AJ14 ->  | AI25: ='Forest Land Remaining Forest'!AK14 ->  | AJ25: ='Forest Land Remaining Forest'!AL14 -> 0 | AK25: ='Forest Land Remaining Forest'!AM14 -> 0 | AL25: ='Forest Land Remaining Forest'!AN14 -> 0 | AM25: ='Forest Land Remaining Forest'!AO14 -> 0 | AN25: ='Forest Land Remaining Forest'!AP14 -> 0 | AO25: ='Forest Land Remaining Forest'!AQ14 -> 0 | AP25: ='Forest Land Remaining Forest'!AR14 -> 0 | AQ25: ='Forest Land Remaining Forest'!AS14 -> 0 | AR25: ='Forest Land Remaining Forest'!AT14 -> 0 | AS25: ='Forest Land Remaining Forest'!AU14 -> 0 | AT25: ='Forest Land Remaining Forest'!AV14 -> 0 | AU25: ='Forest Land Remaining Forest'!AW14 -> 0 | AV25: ='Forest Land Remaining Forest'!AX14 -> 0 | AW25: ='Forest Land Remaining Forest'!AY14 -> 0 | AX25: ='Forest Land Remaining Forest'!AZ14 -> 0 | AY25: ='Forest Land Remaining Forest'!BA14 -> 0 | AZ25: ='Forest Land Remaining Forest'!BB14 -> 0 | BA25: ='Forest Land Remaining Forest'!BC14 -> 0 | BB25: ='Forest Land Remaining Forest'!BD14 -> 0 | BC25: ='Forest Land Remaining Forest'!BE14 -> 0 | BD25: ='Forest Land Remaining Forest'!BF14 -> 0 | BE25: ='Forest Land Remaining Forest'!BG14 -> 0 | BF25: ='Forest Land Remaining Forest'!BH14 -> 0 | BG25: ='Forest Land Remaining Forest'!BI14 -> 0 | BH25: ='Forest Land Remaining Forest'!BJ14 -> 0 | BI25: ='Forest Land Remaining Forest'!BK14 -> 0 | BJ25: ='Forest Land Remaining Forest'!BL14 -> 0 | BK25: ='Forest Land Remaining Forest'!BM14 -> 0 | BL25: ='Forest Land Remaining Forest'!BN14 -> 0 | BM25: ='Forest Land Remaining Forest'!BO14 -> 0 | BN25: ='Forest Land Remaining Forest'!BP14 -> 0 | BO25: ='Forest Land Remaining Forest'!BQ14 -> 0 | BP25: ='Forest Land Remaining Forest'!BR14 -> 0 | BQ25: ='Forest Land Remaining Forest'!BS14 -> 0 | BR25: ='Forest Land Remaining Forest'!BT14 -> 0 | BS25: ='Forest Land Remaining Forest'!BU14 -> 0
B26: Drained Organic Soil | C26: ='Forest Land Remaining Forest'!E15 ->  | D26: ='Forest Land Remaining Forest'!F15 ->  | E26: ='Forest Land Remaining Forest'!G15 ->  | F26: ='Forest Land Remaining Forest'!H15 ->  | G26: ='Forest Land Remaining Forest'!I15 ->  | H26: ='Forest Land Remaining Forest'!J15 ->  | I26: ='Forest Land Remaining Forest'!K15 ->  | J26: ='Forest Land Remaining Forest'!L15 ->  | K26: ='Forest Land Remaining Forest'!M15 ->  | L26: ='Forest Land Remaining Forest'!N15 ->  | M26: ='Forest Land Remaining Forest'!O15 ->  | N26: ='Forest Land Remaining Forest'!P15 ->  | O26: ='Forest Land Remaining Forest'!Q15 ->  | P26: ='Forest Land Remaining Forest'!R15 ->  | Q26: ='Forest Land Remaining Forest'!S15 ->  | R26: ='Forest Land Remaining Forest'!T15 ->  | S26: ='Forest Land Remaining Forest'!U15 ->  | T26: ='Forest Land Remaining Forest'!V15 ->  | U26: ='Forest Land Remaining Forest'!W15 ->  | V26: ='Forest Land Remaining Forest'!X15 ->  | W26: ='Forest Land Remaining Forest'!Y15 ->  | X26: ='Forest Land Remaining Forest'!Z15 ->  | Y26: ='Forest Land Remaining Forest'!AA15 ->  | Z26: ='Forest Land Remaining Forest'!AB15 ->  | AA26: ='Forest Land Remaining Forest'!AC15 ->  | AB26: ='Forest Land Remaining Forest'!AD15 ->  | AC26: ='Forest Land Remaining Forest'!AE15 ->  | AD26: ='Forest Land Remaining Forest'!AF15 ->  | AE26: ='Forest Land Remaining Forest'!AG15 ->  | AF26: ='Forest Land Remaining Forest'!AH15 ->  | AG26: ='Forest Land Remaining Forest'!AI15 ->  | AH26: ='Forest Land Remaining Forest'!AJ15 ->  | AI26: ='Forest Land Remaining Forest'!AK15 ->  | AJ26: ='Forest Land Remaining Forest'!AL15 -> 0 | AK26: ='Forest Land Remaining Forest'!AM15 -> 0 | AL26: ='Forest Land Remaining Forest'!AN15 -> 0 | AM26: ='Forest Land Remaining Forest'!AO15 -> 0 | AN26: ='Forest Land Remaining Forest'!AP15 -> 0 | AO26: ='Forest Land Remaining Forest'!AQ15 -> 0 | AP26: ='Forest Land Remaining Forest'!AR15 -> 0 | AQ26: ='Forest Land Remaining Forest'!AS15 -> 0 | AR26: ='Forest Land Remaining Forest'!AT15 -> 0 | AS26: ='Forest Land Remaining Forest'!AU15 -> 0 | AT26: ='Forest Land Remaining Forest'!AV15 -> 0 | AU26: ='Forest Land Remaining Forest'!AW15 -> 0 | AV26: ='Forest Land Remaining Forest'!AX15 -> 0 | AW26: ='Forest Land Remaining Forest'!AY15 -> 0 | AX26: ='Forest Land Remaining Forest'!AZ15 -> 0 | AY26: ='Forest Land Remaining Forest'!BA15 -> 0 | AZ26: ='Forest Land Remaining Forest'!BB15 -> 0 | BA26: ='Forest Land Remaining Forest'!BC15 -> 0 | BB26: ='Forest Land Remaining Forest'!BD15 -> 0 | BC26: ='Forest Land Remaining Forest'!BE15 -> 0 | BD26: ='Forest Land Remaining Forest'!BF15 -> 0 | BE26: ='Forest Land Remaining Forest'!BG15 -> 0 | BF26: ='Forest Land Remaining Forest'!BH15 -> 0 | BG26: ='Forest Land Remaining Forest'!BI15 -> 0 | BH26: ='Forest Land Remaining Forest'!BJ15 -> 0 | BI26: ='Forest Land Remaining Forest'!BK15 -> 0 | BJ26: ='Forest Land Remaining Forest'!BL15 -> 0 | BK26: ='Forest Land Remaining Forest'!BM15 -> 0 | BL26: ='Forest Land Remaining Forest'!BN15 -> 0 | BM26: ='Forest Land Remaining Forest'!BO15 -> 0 | BN26: ='Forest Land Remaining Forest'!BP15 -> 0 | BO26: ='Forest Land Remaining Forest'!BQ15 -> 0 | BP26: ='Forest Land Remaining Forest'!BR15 -> 0 | BQ26: ='Forest Land Remaining Forest'!BS15 -> 0 | BR26: ='Forest Land Remaining Forest'!BT15 -> 0 | BS26: ='Forest Land Remaining Forest'!BU15 -> 0
B27: Total wood products and landfills | C27: ='Forest Land Remaining Forest'!F36 ->  | D27: ='Forest Land Remaining Forest'!G36 ->  | E27: ='Forest Land Remaining Forest'!H36 ->  | F27: ='Forest Land Remaining Forest'!I36 ->  | G27: ='Forest Land Remaining Forest'!J36 ->  | H27: ='Forest Land Remaining Forest'!K36 ->  | I27: ='Forest Land Remaining Forest'!L36 ->  | J27: ='Forest Land Remaining Forest'!M36 ->  | K27: ='Forest Land Remaining Forest'!N36 ->  | L27: ='Forest Land Remaining Forest'!O36 ->  | M27: ='Forest Land Remaining Forest'!P36 ->  | N27: ='Forest Land Remaining Forest'!Q36 ->  | O27: ='Forest Land Remaining Forest'!R36 ->  | P27: ='Forest Land Remaining Forest'!S36 ->  | Q27: ='Forest Land Remaining Forest'!T36 ->  | R27: ='Forest Land Remaining Forest'!U36 ->  | S27: ='Forest Land Remaining Forest'!V36 ->  | T27: ='Forest Land Remaining Forest'!W36 ->  | U27: ='Forest Land Remaining Forest'!X36 ->  | V27: ='Forest Land Remaining Forest'!Y36 ->  | W27: ='Forest Land Remaining Forest'!Z36 ->  | X27: ='Forest Land Remaining Forest'!AA36 ->  | Y27: ='Forest Land Remaining Forest'!AB36 ->  | Z27: ='Forest Land Remaining Forest'!AC36 ->  | AA27: ='Forest Land Remaining Forest'!AD36 ->  | AB27: ='Forest Land Remaining Forest'!AE36 ->  | AC27: ='Forest Land Remaining Forest'!AF36 ->  | AD27: ='Forest Land Remaining Forest'!AG36 ->  | AE27: ='Forest Land Remaining Forest'!AH36 ->  | AF27: ='Forest Land Remaining Forest'!AI36 ->  | AG27: ='Forest Land Remaining Forest'!AJ36 ->  | AH27: ='Forest Land Remaining Forest'!AK36 ->  | AI27: ='Forest Land Remaining Forest'!AL36 ->  | AJ27: ='Forest Land Remaining Forest'!AM36 -> 0 | AK27: ='Forest Land Remaining Forest'!AN36 -> 0 | AL27: ='Forest Land Remaining Forest'!AO36 -> 0 | AM27: ='Forest Land Remaining Forest'!AP36 -> 0 | AN27: ='Forest Land Remaining Forest'!AQ36 -> 0 | AO27: ='Forest Land Remaining Forest'!AR36 -> 0 | AP27: ='Forest Land Remaining Forest'!AS36 -> 0 | AQ27: ='Forest Land Remaining Forest'!AT36 -> 0 | AR27: ='Forest Land Remaining Forest'!AU36 -> 0 | AS27: ='Forest Land Remaining Forest'!AV36 -> 0 | AT27: ='Forest Land Remaining Forest'!AW36 -> 0 | AU27: ='Forest Land Remaining Forest'!AX36 -> 0 | AV27: ='Forest Land Remaining Forest'!AY36 -> 0 | AW27: ='Forest Land Remaining Forest'!AZ36 -> 0 | AX27: ='Forest Land Remaining Forest'!BA36 -> 0 | AY27: ='Forest Land Remaining Forest'!BB36 -> 0 | AZ27: ='Forest Land Remaining Forest'!BC36 -> 0 | BA27: ='Forest Land Remaining Forest'!BD36 -> 0 | BB27: ='Forest Land Remaining Forest'!BE36 -> 0 | BC27: ='Forest Land Remaining Forest'!BF36 -> 0 | BD27: ='Forest Land Remaining Forest'!BG36 -> 0 | BE27: ='Forest Land Remaining Forest'!BH36 -> 0 | BF27: ='Forest Land Remaining Forest'!BI36 -> 0 | BG27: ='Forest Land Remaining Forest'!BJ36 -> 0 | BH27: ='Forest Land Remaining Forest'!BK36 -> 0 | BI27: ='Forest Land Remaining Forest'!BL36 -> 0 | BJ27: ='Forest Land Remaining Forest'!BM36 -> 0 | BK27: ='Forest Land Remaining Forest'!BN36 -> 0 | BL27: ='Forest Land Remaining Forest'!BO36 -> 0 | BM27: ='Forest Land Remaining Forest'!BP36 -> 0 | BN27: ='Forest Land Remaining Forest'!BQ36 -> 0 | BO27: ='Forest Land Remaining Forest'!BR36 -> 0 | BP27: ='Forest Land Remaining Forest'!BS36 -> 0 | BQ27: ='Forest Land Remaining Forest'!BT36 -> 0 | BR27: ='Forest Land Remaining Forest'!BU36 -> 0 | BS27: ='Forest Land Remaining Forest'!BV36 -> 0
